Workbook

Sheet Kalender
A4: Jahr | C4: Jahr | D4: Resultat | E4: Jahreskarte | G4: Konstellation | H4: Gruppe
A5: =+A23 -> 2023 | C5: =$A$23 -> 2023 | D5: =SUMPRODUCT(MID(C5,ROW(INDIRECT("1:"&LEN(C5))),1)*1) -> 7 | E5: =IF(D5>22,SUMPRODUCT(VALUE(MID(D5,ROW(INDIRECT("$b1:$A"&LEN(D5))),1))),D5) -> 7 | F5: =+VLOOKUP(E5,A162:D183,2,FALSE) -> Wagen | G5: =+VLOOKUP(E5,A162:D183,3,FALSE) -> 7 Wagen | H5: =+VLOOKUP(E5,A162:D183,4,FALSE) -> 1 Osiris
A8: Monat | B8: Jahr | C8: Monatszahl | D8: Resultat | E8: Monatskarte | G8: Konstellation | H8: Gruppe
A9: Januar | B9: =$A$23 -> 2023 | C9: =B9+1 -> 2024 | D9: =SUMPRODUCT(MID(C9,ROW(INDIRECT("1:"&LEN(C9))),1)*1) -> 8 | E9: =IF(D9>22,SUMPRODUCT(VALUE(MID(D9,ROW(INDIRECT("$b1:$A"&LEN(D9))),1))),D9) -> 8 | F9: =+VLOOKUP(E9,$A$162:$D$183,2,FALSE) -> Kraft | G9: =+VLOOKUP(E9,$A$162:$D$183,3,FALSE) -> 8 Kraft | H9: =+VLOOKUP(E9,$A$162:$D$183,4,FALSE) -> 2 Isis
A10: Februar | B10: =$A$23 -> 2023 | C10: =B10+2 -> 2025 | D10: =SUMPRODUCT(MID(C10,ROW(INDIRECT("1:"&LEN(C10))),1)*1) -> 9 | E10: =IF(D10>22,SUMPRODUCT(VALUE(MID(D10,ROW(INDIRECT("$b1:$A"&LEN(D10))),1))),D10) -> 9 | F10: =+VLOOKUP(E10,$A$162:$D$183,2,FALSE) -> Eremit | G10: =+VLOOKUP(E10,$A$162:$D$183,3,FALSE) -> 9 Eremit | H10: =+VLOOKUP(E10,$A$162:$D$183,4,FALSE) -> 3 Horus
A11: März | B11: 2023 | C11: =B11+3 -> 2026 | D11: 10 | E11: 10 | F11: Rad | G11: 1 Magier | H11: 1 Osiris
A12: April | B12: 2023 | C12: =B12+4 -> 2027 | D12: 11 | E12: 11 | F12: Gerechtigkeit | G12: 2 Hohepriesterin | H12: 2 Isis
A13: Mai | B13: 2023 | C13: =B13+5 -> 2028 | D13: 12 | E13: 12 | F13: Gehängter | G13: 3 Herrscherin | H13: 3 Horus
A14: Juni | B14: 2023 | C14: =B14+6 -> 2029 | D14: 13 | E14: 13 | F14: Tod | G14: 4 Herrscher | H14: 1 Osiris
A15: Juli | B15: 2023 | C15: =B15+7 -> 2030 | D15: 5 | E15: 5 | F15: Hierophant | G15: 5 Hierophant | H15: 2 Isis
A16: August | B16: 2023 | C16: =B16+8 -> 2031 | D16: 6 | E16: 6 | F16: Liebende | G16: 6 Liebende | H16: 3 Horus
A17: September | B17: 2023 | C17: =B17+9 -> 2032 | D17: 7 | E17: 7 | F17: Wagen | G17: 7 Wagen | H17: 1 Osiris
A18: Oktober | B18: 2023 | C18: =B18+10 -> 2033 | D18: 8 | E18: 8 | F18: Kraft | G18: 8 Kraft | H18: 2 Isis
A19: November | B19: 2023 | C19: =B19+11 -> 2034 | D19: 9 | E19: 9 | F19: Eremit | G19: 9 Eremit | H19: 3 Horus
A20: Dezember | B20: 2023 | C20: =B20+12 -> 2035 | D20: 10 | E20: 10 | F20: Rad | G20: 1 Magier | H20: 1 Osiris
A22: Jahr JJJJ
A23: 2023
A24: Januar | B24: Monatszahl | C24: Summe | D24: Resultat | E24: Tageskarte | G24: Konstellation | H24: Gruppe | J24: Februar | K24: Monatszahl | L24: Summe | M24: Resultat | N24: Tageskarte | P24: Konstellation | Q24: Gruppe | S24: März | T24: Monatszahl | U24: Summe | V24: Resultat | W24: Tageskarte | Y24: Konstellation | Z24: Gruppe
A25: 1 | B25: =$A$23+1 -> 2024 | C25: =SUM(A25:B25) -> 2025 | D25: =SUMPRODUCT(MID(C25,ROW(INDIRECT("1:"&LEN(C25))),1)*1) -> 9 | E25: =IF(D25>22,SUMPRODUCT(VALUE(MID(D25,ROW(INDIRECT("$b1:$A"&LEN(D25))),1))),D25) -> 9 | F25: =+VLOOKUP(E25,$A$162:$D$183,2,FALSE) -> Eremit | G25: =+VLOOKUP(E25,$A$162:$D$183,3,FALSE) -> 9 Eremit | H25: =+VLOOKUP(E25,$A$162:$D$183,4,FALSE) -> 3 Horus | J25: 1 | K25: =$A$23+2 -> 2025 | L25: =SUM(J25:K25) -> 2026 | M25: =SUMPRODUCT(MID(L25,ROW(INDIRECT("1:"&LEN(L25))),1)*1) -> 10 | N25: =IF(M25>22,SUMPRODUCT(VALUE(MID(M25,ROW(INDIRECT("$b1:$A"&LEN(M25))),1))),M25) -> 10 | O25: =+VLOOKUP(N25,$A$162:$D$183,2,FALSE) -> Rad | P25: =+VLOOKUP(N25,$A$162:$D$183,3,FALSE) -> 1 Magier | Q25: =+VLOOKUP(N25,$A$162:$D$183,4,FALSE) -> 1 Osiris | S25: 1 | T25: =$A$23+3 -> 2026 | U25: =SUM(S25:T25) -> 2027 | V25: =SUMPRODUCT(MID(U25,ROW(INDIRECT("1:"&LEN(U25))),1)*1) -> 11 | W25: =IF(V25>22,SUMPRODUCT(VALUE(MID(V25,ROW(INDIRECT("$b1:$A"&LEN(V25))),1))),V25) -> 11 | X25: =+VLOOKUP(W25,$A$162:$D$183,2,FALSE) -> Gerechtigkeit | Y25: =+VLOOKUP(W25,$A$162:$D$183,3,FALSE) -> 2 Hohepriesterin | Z25: =+VLOOKUP(W25,$A$162:$D$183,4,FALSE) -> 2 Isis
A26: 2 | B26: =$A$23+1 -> 2024 | C26: =SUM(A26:B26) -> 2026 | D26: =SUMPRODUCT(MID(C26,ROW(INDIRECT("1:"&LEN(C26))),1)*1) -> 10 | E26: =IF(D26>22,SUMPRODUCT(VALUE(MID(D26,ROW(INDIRECT("$b1:$A"&LEN(D26))),1))),D26) -> 10 | F26: Rad | G26: 1 Magier | H26: 1 Osiris | J26: 2 | K26: =$A$23+2 -> 2025 | L26: =SUM(J26:K26) -> 2027 | M26: =SUMPRODUCT(MID(L26,ROW(INDIRECT("1:"&LEN(L26))),1)*1) -> 11 | N26: =IF(M26>22,SUMPRODUCT(VALUE(MID(M26,ROW(INDIRECT("$b1:$A"&LEN(M26))),1))),M26) -> 11 | O26: Gerechtigkeit | P26: 2 Hohepriesterin | Q26: 2 Isis | S26: 2 | T26: =$A$23+3 -> 2026 | U26: =SUM(S26:T26) -> 2028 | V26: =SUMPRODUCT(MID(U26,ROW(INDIRECT("1:"&LEN(U26))),1)*1) -> 12 | W26: =IF(V26>22,SUMPRODUCT(VALUE(MID(V26,ROW(INDIRECT("$b1:$A"&LEN(V26))),1))),V26) -> 12 | X26: Gehängter | Y26: 3 Herrscherin | Z26: 3 Horus
A27: 3 | B27: 2024 | C27: 2027 | D27: 11 | E27: 11 | F27: Gerechtigkeit | G27: 2 Hohepriesterin | H27: 2 Isis | J27: 3 | K27: 2025 | L27: 2028 | M27: 12 | N27: 12 | O27: Gehängter | P27: 3 Herrscherin | Q27: 3 Horus | S27: 3 | T27: 2026 | U27: 2029 | V27: 13 | W27: 13 | X27: Tod | Y27: 4 Herrscher | Z27: 1 Osiris
A28: 4 | B28: 2024 | C28: 2028 | D28: 12 | E28: 12 | F28: Gehängter | G28: 3 Herrscherin | H28: 3 Horus | J28: 4 | K28: 2025 | L28: 2029 | M28: 13 | N28: 13 | O28: Tod | P28: 4 Herrscher | Q28: 1 Osiris | S28: 4 | T28: 2026 | U28: 2030 | V28: 5 | W28: 5 | X28: Hierophant | Y28: 5 Hierophant | Z28: 2 Isis
A29: 5 | B29: 2024 | C29: 2029 | D29: 13 | E29: 13 | F29: Tod | G29: 4 Herrscher | H29: 1 Osiris | J29: 5 | K29: 2025 | L29: 2030 | M29: 5 | N29: 5 | O29: Hierophant | P29: 5 Hierophant | Q29: 2 Isis | S29: 5 | T29: 2026 | U29: 2031 | V29: 6 | W29: 6 | X29: Liebende | Y29: 6 Liebende | Z29: 3 Horus
A30: 6 | B30: 2024 | C30: 2030 | D30: 5 | E30: 5 | F30: Hierophant | G30: 5 Hierophant | H30: 2 Isis | J30: 6 | K30: 2025 | L30: 2031 | M30: 6 | N30: 6 | O30: Liebende | P30: 6 Liebende | Q30: 3 Horus | S30: 6 | T30: 2026 | U30: 2032 | V30: 7 | W30: 7 | X30: Wagen | Y30: 7 Wagen | Z30: 1 Osiris
A31: 7 | B31: 2024 | C31: 2031 | D31: 6 | E31: 6 | F31: Liebende | G31: 6 Liebende | H31: 3 Horus | J31: 7 | K31: 2025 | L31: 2032 | M31: 7 | N31: 7 | O31: Wagen | P31: 7 Wagen | Q31: 1 Osiris | S31: 7 | T31: 2026 | U31: 2033 | V31: 8 | W31: 8 | X31: Kraft | Y31: 8 Kraft | Z31: 2 Isis
A32: 8 | B32: 2024 | C32: 2032 | D32: 7 | E32: 7 | F32: Wagen | G32: 7 Wagen | H32: 1 Osiris | J32: 8 | K32: 2025 | L32: 2033 | M32: 8 | N32: 8 | O32: Kraft | P32: 8 Kraft | Q32: 2 Isis | S32: 8 | T32: 2026 | U32: 2034 | V32: 9 | W32: 9 | X32: Eremit | Y32: 9 Eremit | Z32: 3 Horus
A33: 9 | B33: 2024 | C33: 2033 | D33: 8 | E33: 8 | F33: Kraft | G33: 8 Kraft | H33: 2 Isis | J33: 9 | K33: 2025 | L33: 2034 | M33: 9 | N33: 9 | O33: Eremit | P33: 9 Eremit | Q33: 3 Horus | S33: 9 | T33: 2026 | U33: 2035 | V33: 10 | W33: 10 | X33: Rad | Y33: 1 Magier | Z33: 1 Osiris
A34: 10 | B34: 2024 | C34: 2034 | D34: 9 | E34: 9 | F34: Eremit | G34: 9 Eremit | H34: 3 Horus | J34: 10 | K34: 2025 | L34: 2035 | M34: 10 | N34: 10 | O34: Rad | P34: 1 Magier | Q34: 1 Osiris | S34: 10 | T34: 2026 | U34: 2036 | V34: 11 | W34: 11 | X34: Gerechtigkeit | Y34: 2 Hohepriesterin | Z34: 2 Isis
A35: 11 | B35: 2024 | C35: 2035 | D35: 10 | E35: 10 | F35: Rad | G35: 1 Magier | H35: 1 Osiris | J35: 11 | K35: 2025 | L35: 2036 | M35: 11 | N35: 11 | O35: Gerechtigkeit | P35: 2 Hohepriesterin | Q35: 2 Isis | S35: 11 | T35: 2026 | U35: 2037 | V35: 12 | W35: 12 | X35: Gehängter | Y35: 3 Herrscherin | Z35: 3 Horus
A36: 12 | B36: 2024 | C36: 2036 | D36: 11 | E36: 11 | F36: Gerechtigkeit | G36: 2 Hohepriesterin | H36: 2 Isis | J36: 12 | K36: 2025 | L36: 2037 | M36: 12 | N36: 12 | O36: Gehängter | P36: 3 Herrscherin | Q36: 3 Horus | S36: 12 | T36: 2026 | U36: 2038 | V36: 13 | W36: 13 | X36: Tod | Y36: 4 Herrscher | Z36: 1 Osiris
A37: 13 | B37: 2024 | C37: 2037 | D37: 12 | E37: 12 | F37: Gehängter | G37: 3 Herrscherin | H37: 3 Horus | J37: 13 | K37: 2025 | L37: 2038 | M37: 13 | N37: 13 | O37: Tod | P37: 4 Herrscher | Q37: 1 Osiris | S37: 13 | T37: 2026 | U37: 2039 | V37: 14 | W37: 14 | X37: Mässigkeit | Y37: 5 Hierophant | Z37: 2 Isis
A38: 14 | B38: 2024 | C38: 2038 | D38: 13 | E38: 13 | F38: Tod | G38: 4 Herrscher | H38: 1 Osiris | J38: 14 | K38: 2025 | L38: 2039 | M38: 14 | N38: 14 | O38: Mässigkeit | P38: 5 Hierophant | Q38: 2 Isis | S38: 14 | T38: 2026 | U38: 2040 | V38: 6 | W38: 6 | X38: Liebende | Y38: 6 Liebende | Z38: 3 Horus
A39: 15 | B39: 2024 | C39: 2039 | D39: 14 | E39: 14 | F39: Mässigkeit | G39: 5 Hierophant | H39: 2 Isis | J39: 15 | K39: 2025 | L39: 2040 | M39: 6 | N39: 6 | O39: Liebende | P39: 6 Liebende | Q39: 3 Horus | S39: 15 | T39: 2026 | U39: 2041 | V39: 7 | W39: 7 | X39: Wagen | Y39: 7 Wagen | Z39: 1 Osiris
A40: 16 | B40: 2024 | C40: 2040 | D40: 6 | E40: 6 | F40: Liebende | G40: 6 Liebende | H40: 3 Horus | J40: 16 | K40: 2025 | L40: 2041 | M40: 7 | N40: 7 | O40: Wagen | P40: 7 Wagen | Q40: 1 Osiris | S40: 16 | T40: 2026 | U40: 2042 | V40: 8 | W40: 8 | X40: Kraft | Y40: 8 Kraft | Z40: 2 Isis
A41: 17 | B41: 2024 | C41: 2041 | D41: 7 | E41: 7 | F41: Wagen | G41: 7 Wagen | H41: 1 Osiris | J41: 17 | K41: 2025 | L41: 2042 | M41: 8 | N41: 8 | O41: Kraft | P41: 8 Kraft | Q41: 2 Isis | S41: 17 | T41: 2026 | U41: 2043 | V41: 9 | W41: 9 | X41: Eremit | Y41: 9 Eremit | Z41: 3 Horus
A42: 18 | B42: 2024 | C42: 2042 | D42: 8 | E42: 8 | F42: Kraft | G42: 8 Kraft | H42: 2 Isis | J42: 18 | K42: 2025 | L42: 2043 | M42: 9 | N42: 9 | O42: Eremit | P42: 9 Eremit | Q42: 3 Horus | S42: 18 | T42: 2026 | U42: 2044 | V42: 10 | W42: 10 | X42: Rad | Y42: 1 Magier | Z42: 1 Osiris
A43: 19 | B43: 2024 | C43: 2043 | D43: 9 | E43: 9 | F43: Eremit | G43: 9 Eremit | H43: 3 Horus | J43: 19 | K43: 2025 | L43: 2044 | M43: 10 | N43: 10 | O43: Rad | P43: 1 Magier | Q43: 1 Osiris | S43: 19 | T43: 2026 | U43: 2045 | V43: 11 | W43: 11 | X43: Gerechtigkeit | Y43: 2 Hohepriesterin | Z43: 2 Isis
A44: 20 | B44: 2024 | C44: 2044 | D44: 10 | E44: 10 | F44: Rad | G44: 1 Magier | H44: 1 Osiris | J44: 20 | K44: 2025 | L44: 2045 | M44: 11 | N44: 11 | O44: Gerechtigkeit | P44: 2 Hohepriesterin | Q44: 2 Isis | S44: 20 | T44: 2026 | U44: 2046 | V44: 12 | W44: 12 | X44: Gehängter | Y44: 3 Herrscherin | Z44: 3 Horus
A45: 21 | B45: 2024 | C45: 2045 | D45: 11 | E45: 11 | F45: Gerechtigkeit | G45: 2 Hohepriesterin | H45: 2 Isis | J45: 21 | K45: 2025 | L45: 2046 | M45: 12 | N45: 12 | O45: Gehängter | P45: 3 Herrscherin | Q45: 3 Horus | S45: 21 | T45: 2026 | U45: 2047 | V45: 13 | W45: 13 | X45: Tod | Y45: 4 Herrscher | Z45: 1 Osiris
A46: 22 | B46: 2024 | C46: 2046 | D46: 12 | E46: 12 | F46: Gehängter | G46: 3 Herrscherin | H46: 3 Horus | J46: 22 | K46: 2025 | L46: 2047 | M46: 13 | N46: 13 | O46: Tod | P46: 4 Herrscher | Q46: 1 Osiris | S46: 22 | T46: 2026 | U46: 2048 | V46: 14 | W46: 14 | X46: Mässigkeit | Y46: 5 Hierophant | Z46: 2 Isis
A47: 23 | B47: 2024 | C47: 2047 | D47: 13 | E47: 13 | F47: Tod | G47: 4 Herrscher | H47: 1 Osiris | J47: 23 | K47: 2025 | L47: 2048 | M47: 14 | N47: 14 | O47: Mässigkeit | P47: 5 Hierophant | Q47: 2 Isis | S47: 23 | T47: 2026 | U47: 2049 | V47: 15 | W47: 15 | X47: Teufel | Y47: 6 Liebende | Z47: 3 Horus
A48: 24 | B48: 2024 | C48: 2048 | D48: 14 | E48: 14 | F48: Mässigkeit | G48: 5 Hierophant | H48: 2 Isis | J48: 24 | K48: 2025 | L48: 2049 | M48: 15 | N48: 15 | O48: Teufel | P48: 6 Liebende | Q48: 3 Horus | S48: 24 | T48: 2026 | U48: 2050 | V48: 7 | W48: 7 | X48: Wagen | Y48: 7 Wagen | Z48: 1 Osiris
A49: 25 | B49: 2024 | C49: 2049 | D49: 15 | E49: 15 | F49: Teufel | G49: 6 Liebende | H49: 3 Horus | J49: 25 | K49: 2025 | L49: 2050 | M49: 7 | N49: 7 | O49: Wagen | P49: 7 Wagen | Q49: 1 Osiris | S49: 25 | T49: 2026 | U49: 2051 | V49: 8 | W49: 8 | X49: Kraft | Y49: 8 Kraft | Z49: 2 Isis
A50: 26 | B50: 2024 | C50: 2050 | D50: 7 | E50: 7 | F50: Wagen | G50: 7 Wagen | H50: 1 Osiris | J50: 26 | K50: 2025 | L50: 2051 | M50: 8 | N50: 8 | O50: Kraft | P50: 8 Kraft | Q50: 2 Isis | S50: 26 | T50: 2026 | U50: 2052 | V50: 9 | W50: 9 | X50: Eremit | Y50: 9 Eremit | Z50: 3 Horus
A51: 27 | B51: 2024 | C51: 2051 | D51: 8 | E51: 8 | F51: Kraft | G51: 8 Kraft | H51: 2 Isis | J51: 27 | K51: 2025 | L51: 2052 | M51: 9 | N51: 9 | O51: Eremit | P51: 9 Eremit | Q51: 3 Horus | S51: 27 | T51: 2026 | U51: 2053 | V51: 10 | W51: 10 | X51: Rad | Y51: 1 Magier | Z51: 1 Osiris
A52: 28 | B52: 2024 | C52: 2052 | D52: 9 | E52: 9 | F52: Eremit | G52: 9 Eremit | H52: 3 Horus | J52: 28 | K52: 2025 | L52: 2053 | M52: 10 | N52: 10 | O52: Rad | P52: 1 Magier | Q52: 1 Osiris | S52: 28 | T52: 2026 | U52: 2054 | V52: 11 | W52: 11 | X52: Gerechtigkeit | Y52: 2 Hohepriesterin | Z52: 2 Isis
A53: 29 | B53: 2024 | C53: 2053 | D53: 10 | E53: 10 | F53: Rad | G53: 1 Magier | H53: 1 Osiris | J53: 29 | K53: 2025 | L53: 2054 | M53: 11 | N53: 11 | O53: Gerechtigkeit | P53: 2 Hohepriesterin | Q53: 2 Isis | S53: 29 | T53: 2026 | U53: 2055 | V53: 12 | W53: 12 | X53: Gehängter | Y53: 3 Herrscherin | Z53: 3 Horus
A54: 30 | B54: 2024 | C54: 2054 | D54: 11 | E54: 11 | F54: Gerechtigkeit | G54: 2 Hohepriesterin | H54: 2 Isis | S54: 30 | T54: 2026 | U54: 2056 | V54: 13 | W54: 13 | X54: Tod | Y54: 4 Herrscher | Z54: 1 Osiris
A55: 31 | B55: 2024 | C55: 2055 | D55: 12 | E55: 12 | F55: Gehängter | G55: 3 Herrscherin | H55: 3 Horus | S55: 31 | T55: 2026 | U55: 2057 | V55: 14 | W55: 14 | X55: Mässigkeit | Y55: 5 Hierophant | Z55: 2 Isis
A58: April | B58: Monatszahl | C58: Summe | D58: Resultat | E58: Tageskarte | G58: Konstellation | H58: Gruppe | J58: Mai | K58: Monatszahl | L58: Summe | M58: Resultat | N58: Tageskarte | P58: Konstellation | Q58: Gruppe | S58: Juni | T58: Monatszahl | U58: Summe | V58: Resultat | W58: Tageskarte | Y58: Konstellation | Z58: Gruppe
A59: 1 | B59: =$A$23+4 -> 2027 | C59: =SUM(A59:B59) -> 2028 | D59: =SUMPRODUCT(MID(C59,ROW(INDIRECT("1:"&LEN(C59))),1)*1) -> 12 | E59: =IF(D59>22,SUMPRODUCT(VALUE(MID(D59,ROW(INDIRECT("$b1:$A"&LEN(D59))),1))),D59) -> 12 | F59: =+VLOOKUP(E59,$A$162:$D$183,2,FALSE) -> Gehängter | G59: =+VLOOKUP(E59,$A$162:$D$183,3,FALSE) -> 3 Herrscherin | H59: =+VLOOKUP(E59,$A$162:$D$183,4,FALSE) -> 3 Horus | J59: 1 | K59: =$A$23+5 -> 2028 | L59: =SUM(J59:K59) -> 2029 | M59: =SUMPRODUCT(MID(L59,ROW(INDIRECT("1:"&LEN(L59))),1)*1) -> 13 | N59: =IF(M59>22,SUMPRODUCT(VALUE(MID(M59,ROW(INDIRECT("$b1:$A"&LEN(M59))),1))),M59) -> 13 | O59: =+VLOOKUP(N59,$A$162:$D$183,2,FALSE) -> Tod | P59: =+VLOOKUP(N59,$A$162:$D$183,3,FALSE) -> 4 Herrscher | Q59: =+VLOOKUP(N59,$A$162:$D$183,4,FALSE) -> 1 Osiris | S59: 1 | T59: =$A$23+6 -> 2029 | U59: =SUM(S59:T59) -> 2030 | V59: =SUMPRODUCT(MID(U59,ROW(INDIRECT("1:"&LEN(U59))),1)*1) -> 5 | W59: =IF(V59>22,SUMPRODUCT(VALUE(MID(V59,ROW(INDIRECT("$b1:$A"&LEN(V59))),1))),V59) -> 5 | X59: =+VLOOKUP(W59,$A$162:$D$183,2,FALSE) -> Hierophant | Y59: =+VLOOKUP(W59,$A$162:$D$183,3,FALSE) -> 5 Hierophant | Z59: =+VLOOKUP(W59,$A$162:$D$183,4,FALSE) -> 2 Isis
A60: 2 | B60: =$A$23+4 -> 2027 | C60: =SUM(A60:B60) -> 2029 | D60: 13 | E60: 13 | F60: Tod | G60: 4 Herrscher | H60: 1 Osiris | J60: 2 | K60: =$A$23+5 -> 2028 | L60: =SUM(J60:K60) -> 2030 | M60: =SUMPRODUCT(MID(L60,ROW(INDIRECT("1:"&LEN(L60))),1)*1) -> 5 | N60: 5 | O60: Hierophant | P60: 5 Hierophant | Q60: 2 Isis | S60: 2 | T60: =$A$23+6 -> 2029 | U60: =SUM(S60:T60) -> 2031 | V60: 6 | W60: 6 | X60: Liebende | Y60: 6 Liebende | Z60: 3 Horus
A61: 3 | B61: 2027 | C61: 2030 | D61: 5 | E61: 5 | F61: Hierophant | G61: 5 Hierophant | H61: 2 Isis | J61: 3 | K61: 2028 | L61: 2031 | M61: 6 | N61: 6 | O61: Liebende | P61: 6 Liebende | Q61: 3 Horus | S61: 3 | T61: 2029 | U61: 2032 | V61: 7 | W61: 7 | X61: Wagen | Y61: 7 Wagen | Z61: 1 Osiris
A62: 4 | B62: 2027 | C62: 2031 | D62: 6 | E62: 6 | F62: Liebende | G62: 6 Liebende | H62: 3 Horus | J62: 4 | K62: 2028 | L62: 2032 | M62: 7 | N62: 7 | O62: Wagen | P62: 7 Wagen | Q62: 1 Osiris | S62: 4 | T62: 2029 | U62: 2033 | V62: 8 | W62: 8 | X62: Kraft | Y62: 8 Kraft | Z62: 2 Isis
A63: 5 | B63: 2027 | C63: 2032 | D63: 7 | E63: 7 | F63: Wagen | G63: 7 Wagen | H63: 1 Osiris | J63: 5 | K63: 2028 | L63: 2033 | M63: 8 | N63: 8 | O63: Kraft | P63: 8 Kraft | Q63: 2 Isis | S63: 5 | T63: 2029 | U63: 2034 | V63: 9 | W63: 9 | X63: Eremit | Y63: 9 Eremit | Z63: 3 Horus
A64: 6 | B64: 2027 | C64: 2033 | D64: 8 | E64: 8 | F64: Kraft | G64: 8 Kraft | H64: 2 Isis | J64: 6 | K64: 2028 | L64: 2034 | M64: 9 | N64: 9 | O64: Eremit | P64: 9 Eremit | Q64: 3 Horus | S64: 6 | T64: 2029 | U64: 2035 | V64: 10 | W64: 10 | X64: Rad | Y64: 1 Magier | Z64: 1 Osiris
A65: 7 | B65: 2027 | C65: 2034 | D65: 9 | E65: 9 | F65: Eremit | G65: 9 Eremit | H65: 3 Horus | J65: 7 | K65: 2028 | L65: 2035 | M65: 10 | N65: 10 | O65: Rad | P65: 1 Magier | Q65: 1 Osiris | S65: 7 | T65: 2029 | U65: 2036 | V65: 11 | W65: 11 | X65: Gerechtigkeit | Y65: 2 Hohepriesterin | Z65: 2 Isis
A66: 8 | B66: 2027 | C66: 2035 | D66: 10 | E66: 10 | F66: Rad | G66: 1 Magier | H66: 1 Osiris | J66: 8 | K66: 2028 | L66: 2036 | M66: 11 | N66: 11 | O66: Gerechtigkeit | P66: 2 Hohepriesterin | Q66: 2 Isis | S66: 8 | T66: 2029 | U66: 2037 | V66: 12 | W66: 12 | X66: Gehängter | Y66: 3 Herrscherin | Z66: 3 Horus
A67: 9 | B67: 2027 | C67: 2036 | D67: 11 | E67: 11 | F67: Gerechtigkeit | G67: 2 Hohepriesterin | H67: 2 Isis | J67: 9 | K67: 2028 | L67: 2037 | M67: 12 | N67: 12 | O67: Gehängter | P67: 3 Herrscherin | Q67: 3 Horus | S67: 9 | T67: 2029 | U67: 2038 | V67: 13 | W67: 13 | X67: Tod | Y67: 4 Herrscher | Z67: 1 Osiris
A68: 10 | B68: 2027 | C68: 2037 | D68: 12 | E68: 12 | F68: Gehängter | G68: 3 Herrscherin | H68: 3 Horus | J68: 10 | K68: 2028 | L68: 2038 | M68: 13 | N68: 13 | O68: Tod | P68: 4 Herrscher | Q68: 1 Osiris | S68: 10 | T68: 2029 | U68: 2039 | V68: 14 | W68: 14 | X68: Mässigkeit | Y68: 5 Hierophant | Z68: 2 Isis
A69: 11 | B69: 2027 | C69: 2038 | D69: 13 | E69: 13 | F69: Tod | G69: 4 Herrscher | H69: 1 Osiris | J69: 11 | K69: 2028 | L69: 2039 | M69: 14 | N69: 14 | O69: Mässigkeit | P69: 5 Hierophant | Q69: 2 Isis | S69: 11 | T69: 2029 | U69: 2040 | V69: 6 | W69: 6 | X69: Liebende | Y69: 6 Liebende | Z69: 3 Horus
A70: 12 | B70: 2027 | C70: 2039 | D70: 14 | E70: 14 | F70: Mässigkeit | G70: 5 Hierophant | H70: 2 Isis | J70: 12 | K70: 2028 | L70: 2040 | M70: 6 | N70: 6 | O70: Liebende | P70: 6 Liebende | Q70: 3 Horus | S70: 12 | T70: 2029 | U70: 2041 | V70: 7 | W70: 7 | X70: Wagen | Y70: 7 Wagen | Z70: 1 Osiris
A71: 13 | B71: 2027 | C71: 2040 | D71: 6 | E71: 6 | F71: Liebende | G71: 6 Liebende | H71: 3 Horus | J71: 13 | K71: 2028 | L71: 2041 | M71: 7 | N71: 7 | O71: Wagen | P71: 7 Wagen | Q71: 1 Osiris | S71: 13 | T71: 2029 | U71: 2042 | V71: 8 | W71: 8 | X71: Kraft | Y71: 8 Kraft | Z71: 2 Isis
A72: 14 | B72: 2027 | C72: 2041 | D72: 7 | E72: 7 | F72: Wagen | G72: 7 Wagen | H72: 1 Osiris | J72: 14 | K72: 2028 | L72: 2042 | M72: 8 | N72: 8 | O72: Kraft | P72: 8 Kraft | Q72: 2 Isis | S72: 14 | T72: 2029 | U72: 2043 | V72: 9 | W72: 9 | X72: Eremit | Y72: 9 Eremit | Z72: 3 Horus
A73: 15 | B73: 2027 | C73: 2042 | D73: 8 | E73: 8 | F73: Kraft | G73: 8 Kraft | H73: 2 Isis | J73: 15 | K73: 2028 | L73: 2043 | M73: 9 | N73: 9 | O73: Eremit | P73: 9 Eremit | Q73: 3 Horus | S73: 15 | T73: 2029 | U73: 2044 | V73: 10 | W73: 10 | X73: Rad | Y73: 1 Magier | Z73: 1 Osiris
A74: 16 | B74: 2027 | C74: 2043 | D74: 9 | E74: 9 | F74: Eremit | G74: 9 Eremit | H74: 3 Horus | J74: 16 | K74: 2028 | L74: 2044 | M74: 10 | N74: 10 | O74: Rad | P74: 1 Magier | Q74: 1 Osiris | S74: 16 | T74: 2029 | U74: 2045 | V74: 11 | W74: 11 | X74: Gerechtigkeit | Y74: 2 Hohepriesterin | Z74: 2 Isis
A75: 17 | B75: 2027 | C75: 2044 | D75: 10 | E75: 10 | F75: Rad | G75: 1 Magier | H75: 1 Osiris | J75: 17 | K75: 2028 | L75: 2045 | M75: 11 | N75: 11 | O75: Gerechtigkeit | P75: 2 Hohepriesterin | Q75: 2 Isis | S75: 17 | T75: 2029 | U75: 2046 | V75: 12 | W75: 12 | X75: Gehängter | Y75: 3 Herrscherin | Z75: 3 Horus
A76: 18 | B76: 2027 | C76: 2045 | D76: 11 | E76: 11 | F76: Gerechtigkeit | G76: 2 Hohepriesterin | H76: 2 Isis | J76: 18 | K76: 2028 | L76: 2046 | M76: 12 | N76: 12 | O76: Gehängter | P76: 3 Herrscherin | Q76: 3 Horus | S76: 18 | T76: 2029 | U76: 2047 | V76: 13 | W76: 13 | X76: Tod | Y76: 4 Herrscher | Z76: 1 Osiris
A77: 19 | B77: 2027 | C77: 2046 | D77: 12 | E77: 12 | F77: Gehängter | G77: 3 Herrscherin | H77: 3 Horus | J77: 19 | K77: 2028 | L77: 2047 | M77: 13 | N77: 13 | O77: Tod | P77: 4 Herrscher | Q77: 1 Osiris | S77: 19 | T77: 2029 | U77: 2048 | V77: 14 | W77: 14 | X77: Mässigkeit | Y77: 5 Hierophant | Z77: 2 Isis
A78: 20 | B78: 2027 | C78: 2047 | D78: 13 | E78: 13 | F78: Tod | G78: 4 Herrscher | H78: 1 Osiris | J78: 20 | K78: 2028 | L78: 2048 | M78: 14 | N78: 14 | O78: Mässigkeit | P78: 5 Hierophant | Q78: 2 Isis | S78: 20 | T78: 2029 | U78: 2049 | V78: 15 | W78: 15 | X78: Teufel | Y78: 6 Liebende | Z78: 3 Horus
A79: 21 | B79: 2027 | C79: 2048 | D79: 14 | E79: 14 | F79: Mässigkeit | G79: 5 Hierophant | H79: 2 Isis | J79: 21 | K79: 2028 | L79: 2049 | M79: 15 | N79: 15 | O79: Teufel | P79: 6 Liebende | Q79: 3 Horus | S79: 21 | T79: 2029 | U79: 2050 | V79: 7 | W79: 7 | X79: Wagen | Y79: 7 Wagen | Z79: 1 Osiris
A80: 22 | B80: 2027 | C80: 2049 | D80: 15 | E80: 15 | F80: Teufel | G80: 6 Liebende | H80: 3 Horus | J80: 22 | K80: 2028 | L80: 2050 | M80: 7 | N80: 7 | O80: Wagen | P80: 7 Wagen | Q80: 1 Osiris | S80: 22 | T80: 2029 | U80: 2051 | V80: 8 | W80: 8 | X80: Kraft | Y80: 8 Kraft | Z80: 2 Isis
A81: 23 | B81: 2027 | C81: 2050 | D81: 7 | E81: 7 | F81: Wagen | G81: 7 Wagen | H81: 1 Osiris | J81: 23 | K81: 2028 | L81: 2051 | M81: 8 | N81: 8 | O81: Kraft | P81: 8 Kraft | Q81: 2 Isis | S81: 23 | T81: 2029 | U81: 2052 | V81: 9 | W81: 9 | X81: Eremit | Y81: 9 Eremit | Z81: 3 Horus
A82: 24 | B82: 2027 | C82: 2051 | D82: 8 | E82: 8 | F82: Kraft | G82: 8 Kraft | H82: 2 Isis | J82: 24 | K82: 2028 | L82: 2052 | M82: 9 | N82: 9 | O82: Eremit | P82: 9 Eremit | Q82: 3 Horus | S82: 24 | T82: 2029 | U82: 2053 | V82: 10 | W82: 10 | X82: Rad | Y82: 1 Magier | Z82: 1 Osiris
A83: 25 | B83: 2027 | C83: 2052 | D83: 9 | E83: 9 | F83: Eremit | G83: 9 Eremit | H83: 3 Horus | J83: 25 | K83: 2028 | L83: 2053 | M83: 10 | N83: 10 | O83: Rad | P83: 1 Magier | Q83: 1 Osiris | S83: 25 | T83: 2029 | U83: 2054 | V83: 11 | W83: 11 | X83: Gerechtigkeit | Y83: 2 Hohepriesterin | Z83: 2 Isis
A84: 26 | B84: 2027 | C84: 2053 | D84: 10 | E84: 10 | F84: Rad | G84: 1 Magier | H84: 1 Osiris | J84: 26 | K84: 2028 | L84: 2054 | M84: 11 | N84: 11 | O84: Gerechtigkeit | P84: 2 Hohepriesterin | Q84: 2 Isis | S84: 26 | T84: 2029 | U84: 2055 | V84: 12 | W84: 12 | X84: Gehängter | Y84: 3 Herrscherin | Z84: 3 Horus
A85: 27 | B85: 2027 | C85: 2054 | D85: 11 | E85: 11 | F85: Gerechtigkeit | G85: 2 Hohepriesterin | H85: 2 Isis | J85: 27 | K85: 2028 | L85: 2055 | M85: 12 | N85: 12 | O85: Gehängter | P85: 3 Herrscherin | Q85: 3 Horus | S85: 27 | T85: 2029 | U85: 2056 | V85: 13 | W85: 13 | X85: Tod | Y85: 4 Herrscher | Z85: 1 Osiris
A86: 28 | B86: 2027 | C86: 2055 | D86: 12 | E86: 12 | F86: Gehängter | G86: 3 Herrscherin | H86: 3 Horus | J86: 28 | K86: 2028 | L86: 2056 | M86: 13 | N86: 13 | O86: Tod | P86: 4 Herrscher | Q86: 1 Osiris | S86: 28 | T86: 2029 | U86: 2057 | V86: 14 | W86: 14 | X86: Mässigkeit | Y86: 5 Hierophant | Z86: 2 Isis
A87: 29 | B87: 2027 | C87: 2056 | D87: 13 | E87: 13 | F87: Tod | G87: 4 Herrscher | H87: 1 Osiris | J87: 29 | K87: 2028 | L87: 2057 | M87: 14 | N87: 14 | O87: Mässigkeit | P87: 5 Hierophant | Q87: 2 Isis | S87: 29 | T87: 2029 | U87: 2058 | V87: 15 | W87: 15 | X87: Teufel | Y87: 6 Liebende | Z87: 3 Horus
A88: 30 | B88: 2027 | C88: 2057 | D88: 14 | E88: 14 | F88: Mässigkeit | G88: 5 Hierophant | H88: 2 Isis | J88: 30 | K88: 2028 | L88: 2058 | M88: 15 | N88: 15 | O88: Teufel | P88: 6 Liebende | Q88: 3 Horus | S88: 30 | T88: 2029 | U88: 2059 | V88: 16 | W88: 16 | X88: Turm | Y88: 7 Wagen | Z88: 1 Osiris
J89: 31 | K89: 2028 | L89: 2059 | M89: 16 | N89: 16 | O89: Turm | P89: 7 Wagen | Q89: 1 Osiris
A92: Juli | B92: Monatszahl | C92: Summe | D92: Resultat | E92: Tageskarte | G92: Konstellation | H92: Gruppe | J92: August | K92: Monatszahl | L92: Summe | M92: Resultat | N92: Tageskarte | P92: Konstellation | Q92: Gruppe | S92: September | T92: Monatszahl | U92: Summe | V92: Resultat | W92: Tageskarte | Y92: Konstellation | Z92: Gruppe
A93: 1 | B93: =$A$23+7 -> 2030 | C93: =SUM(A93:B93) -> 2031 | D93: =SUMPRODUCT(MID(C93,ROW(INDIRECT("1:"&LEN(C93))),1)*1) -> 6 | E93: =IF(D93>22,SUMPRODUCT(VALUE(MID(D93,ROW(INDIRECT("$b1:$A"&LEN(D93))),1))),D93) -> 6 | F93: =+VLOOKUP(E93,$A$162:$D$183,2,FALSE) -> Liebende | G93: =+VLOOKUP(E93,$A$162:$D$183,3,FALSE) -> 6 Liebende | H93: =+VLOOKUP(E93,$A$162:$D$183,4,FALSE) -> 3 Horus | J93: 1 | K93: =$A$23+8 -> 2031 | L93: =SUM(J93:K93) -> 2032 | M93: =SUMPRODUCT(MID(L93,ROW(INDIRECT("1:"&LEN(L93))),1)*1) -> 7 | N93: =IF(M93>22,SUMPRODUCT(VALUE(MID(M93,ROW(INDIRECT("$b1:$A"&LEN(M93))),1))),M93) -> 7 | O93: =+VLOOKUP(N93,$A$162:$D$183,2,FALSE) -> Wagen | P93: =+VLOOKUP(N93,$A$162:$D$183,3,FALSE) -> 7 Wagen | Q93: =+VLOOKUP(N93,$A$162:$D$183,4,FALSE) -> 1 Osiris | S93: 1 | T93: =$A$23+9 -> 2032 | U93: =SUM(S93:T93) -> 2033 | V93: =SUMPRODUCT(MID(U93,ROW(INDIRECT("1:"&LEN(U93))),1)*1) -> 8 | W93: =IF(V93>22,SUMPRODUCT(VALUE(MID(V93,ROW(INDIRECT("$b1:$A"&LEN(V93))),1))),V93) -> 8 | X93: =+VLOOKUP(W93,$A$162:$D$183,2,FALSE) -> Kraft | Y93: =+VLOOKUP(W93,$A$162:$D$183,3,FALSE) -> 8 Kraft | Z93: =+VLOOKUP(W93,$A$162:$D$183,4,FALSE) -> 2 Isis
A94: 2 | B94: =$A$23+7 -> 2030 | C94: =SUM(A94:B94) -> 2032 | D94: =SUMPRODUCT(MID(C94,ROW(INDIRECT("1:"&LEN(C94))),1)*1) -> 7 | E94: 7 | F94: Wagen | G94: 7 Wagen | H94: 1 Osiris | J94: 2 | K94: =$A$23+8 -> 2031 | L94: =SUM(J94:K94) -> 2033 | M94: 8 | N94: 8 | O94: Kraft | P94: 8 Kraft | Q94: 2 Isis | S94: 2 | T94: =$A$23+9 -> 2032 | U94: =SUM(S94:T94) -> 2034 | V94: 9 | W94: 9 | X94: Eremit | Y94: 9 Eremit | Z94: 3 Horus
A95: 3 | B95: 2030 | C95: 2033 | D95: 8 | E95: 8 | F95: Kraft | G95: 8 Kraft | H95: 2 Isis | J95: 3 | K95: 2031 | L95: 2034 | M95: 9 | N95: 9 | O95: Eremit | P95: 9 Eremit | Q95: 3 Horus | S95: 3 | T95: 2032 | U95: 2035 | V95: 10 | W95: 10 | X95: Rad | Y95: 1 Magier | Z95: 1 Osiris
A96: 4 | B96: 2030 | C96: 2034 | D96: 9 | E96: 9 | F96: Eremit | G96: 9 Eremit | H96: 3 Horus | J96: 4 | K96: 2031 | L96: 2035 | M96: 10 | N96: 10 | O96: Rad | P96: 1 Magier | Q96: 1 Osiris | S96: 4 | T96: 2032 | U96: 2036 | V96: 11 | W96: 11 | X96: Gerechtigkeit | Y96: 2 Hohepriesterin | Z96: 2 Isis
A97: 5 | B97: 2030 | C97: 2035 | D97: 10 | E97: 10 | F97: Rad | G97: 1 Magier | H97: 1 Osiris | J97: 5 | K97: 2031 | L97: 2036 | M97: 11 | N97: 11 | O97: Gerechtigkeit | P97: 2 Hohepriesterin | Q97: 2 Isis | S97: 5 | T97: 2032 | U97: 2037 | V97: 12 | W97: 12 | X97: Gehängter | Y97: 3 Herrscherin | Z97: 3 Horus
A98: 6 | B98: 2030 | C98: 2036 | D98: 11 | E98: 11 | F98: Gerechtigkeit | G98: 2 Hohepriesterin | H98: 2 Isis | J98: 6 | K98: 2031 | L98: 2037 | M98: 12 | N98: 12 | O98: Gehängter | P98: 3 Herrscherin | Q98: 3 Horus | S98: 6 | T98: 2032 | U98: 2038 | V98: 13 | W98: 13 | X98: Tod | Y98: 4 Herrscher | Z98: 1 Osiris
A99: 7 | B99: 2030 | C99: 2037 | D99: 12 | E99: 12 | F99: Gehängter | G99: 3 Herrscherin | H99: 3 Horus | J99: 7 | K99: 2031 | L99: 2038 | M99: 13 | N99: 13 | O99: Tod | P99: 4 Herrscher | Q99: 1 Osiris | S99: 7 | T99: 2032 | U99: 2039 | V99: 14 | W99: 14 | X99: Mässigkeit | Y99: 5 Hierophant | Z99: 2 Isis
A100: 8 | B100: 2030 | C100: 2038 | D100: 13 | E100: 13 | F100: Tod | G100: 4 Herrscher | H100: 1 Osiris | J100: 8 | K100: 2031 | L100: 2039 | M100: 14 | N100: 14 | O100: Mässigkeit | P100: 5 Hierophant | Q100: 2 Isis | S100: 8 | T100: 2032 | U100: 2040 | V100: 6 | W100: 6 | X100: Liebende | Y100: 6 Liebende | Z100: 3 Horus
A101: 9 | B101: 2030 | C101: 2039 | D101: 14 | E101: 14 | F101: Mässigkeit | G101: 5 Hierophant | H101: 2 Isis | J101: 9 | K101: 2031 | L101: 2040 | M101: 6 | N101: 6 | O101: Liebende | P101: 6 Liebende | Q101: 3 Horus | S101: 9 | T101: 2032 | U101: 2041 | V101: 7 | W101: 7 | X101: Wagen | Y101: 7 Wagen | Z101: 1 Osiris
A102: 10 | B102: 2030 | C102: 2040 | D102: 6 | E102: 6 | F102: Liebende | G102: 6 Liebende | H102: 3 Horus | J102: 10 | K102: 2031 | L102: 2041 | M102: 7 | N102: 7 | O102: Wagen | P102: 7 Wagen | Q102: 1 Osiris | S102: 10 | T102: 2032 | U102: 2042 | V102: 8 | W102: 8 | X102: Kraft | Y102: 8 Kraft | Z102: 2 Isis
A103: 11 | B103: 2030 | C103: 2041 | D103: 7 | E103: 7 | F103: Wagen | G103: 7 Wagen | H103: 1 Osiris | J103: 11 | K103: 2031 | L103: 2042 | M103: 8 | N103: 8 | O103: Kraft | P103: 8 Kraft | Q103: 2 Isis | S103: 11 | T103: 2032 | U103: 2043 | V103: 9 | W103: 9 | X103: Eremit | Y103: 9 Eremit | Z103: 3 Horus
A104: 12 | B104: 2030 | C104: 2042 | D104: 8 | E104: 8 | F104: Kraft | G104: 8 Kraft | H104: 2 Isis | J104: 12 | K104: 2031 | L104: 2043 | M104: 9 | N104: 9 | O104: Eremit | P104: 9 Eremit | Q104: 3 Horus | S104: 12 | T104: 2032 | U104: 2044 | V104: 10 | W104: 10 | X104: Rad | Y104: 1 Magier | Z104: 1 Osiris
A105: 13 | B105: 2030 | C105: 2043 | D105: 9 | E105: 9 | F105: Eremit | G105: 9 Eremit | H105: 3 Horus | J105: 13 | K105: 2031 | L105: 2044 | M105: 10 | N105: 10 | O105: Rad | P105: 1 Magier | Q105: 1 Osiris | S105: 13 | T105: 2032 | U105: 2045 | V105: 11 | W105: 11 | X105: Gerechtigkeit | Y105: 2 Hohepriesterin | Z105: 2 Isis
A106: 14 | B106: 2030 | C106: 2044 | D106: 10 | E106: 10 | F106: Rad | G106: 1 Magier | H106: 1 Osiris | J106: 14 | K106: 2031 | L106: 2045 | M106: 11 | N106: 11 | O106: Gerechtigkeit | P106: 2 Hohepriesterin | Q106: 2 Isis | S106: 14 | T106: 2032 | U106: 2046 | V106: 12 | W106: 12 | X106: Gehängter | Y106: 3 Herrscherin | Z106: 3 Horus
A107: 15 | B107: 2030 | C107: 2045 | D107: 11 | E107: 11 | F107: Gerechtigkeit | G107: 2 Hohepriesterin | H107: 2 Isis | J107: 15 | K107: 2031 | L107: 2046 | M107: 12 | N107: 12 | O107: Gehängter | P107: 3 Herrscherin | Q107: 3 Horus | S107: 15 | T107: 2032 | U107: 2047 | V107: 13 | W107: 13 | X107: Tod | Y107: 4 Herrscher | Z107: 1 Osiris
A108: 16 | B108: 2030 | C108: 2046 | D108: 12 | E108: 12 | F108: Gehängter | G108: 3 Herrscherin | H108: 3 Horus | J108: 16 | K108: 2031 | L108: 2047 | M108: 13 | N108: 13 | O108: Tod | P108: 4 Herrscher | Q108: 1 Osiris | S108: 16 | T108: 2032 | U108: 2048 | V108: 14 | W108: 14 | X108: Mässigkeit | Y108: 5 Hierophant | Z108: 2 Isis
A109: 17 | B109: 2030 | C109: 2047 | D109: 13 | E109: 13 | F109: Tod | G109: 4 Herrscher | H109: 1 Osiris | J109: 17 | K109: 2031 | L109: 2048 | M109: 14 | N109: 14 | O109: Mässigkeit | P109: 5 Hierophant | Q109: 2 Isis | S109: 17 | T109: 2032 | U109: 2049 | V109: 15 | W109: 15 | X109: Teufel | Y109: 6 Liebende | Z109: 3 Horus
A110: 18 | B110: 2030 | C110: 2048 | D110: 14 | E110: 14 | F110: Mässigkeit | G110: 5 Hierophant | H110: 2 Isis | J110: 18 | K110: 2031 | L110: 2049 | M110: 15 | N110: 15 | O110: Teufel | P110: 6 Liebende | Q110: 3 Horus | S110: 18 | T110: 2032 | U110: 2050 | V110: 7 | W110: 7 | X110: Wagen | Y110: 7 Wagen | Z110: 1 Osiris
A111: 19 | B111: 2030 | C111: 2049 | D111: 15 | E111: 15 | F111: Teufel | G111: 6 Liebende | H111: 3 Horus | J111: 19 | K111: 2031 | L111: 2050 | M111: 7 | N111: 7 | O111: Wagen | P111: 7 Wagen | Q111: 1 Osiris | S111: 19 | T111: 2032 | U111: 2051 | V111: 8 | W111: 8 | X111: Kraft | Y111: 8 Kraft | Z111: 2 Isis
A112: 20 | B112: 2030 | C112: 2050 | D112: 7 | E112: 7 | F112: Wagen | G112: 7 Wagen | H112: 1 Osiris | J112: 20 | K112: 2031 | L112: 2051 | M112: 8 | N112: 8 | O112: Kraft | P112: 8 Kraft | Q112: 2 Isis | S112: 20 | T112: 2032 | U112: 2052 | V112: 9 | W112: 9 | X112: Eremit | Y112: 9 Eremit | Z112: 3 Horus
A113: 21 | B113: 2030 | C113: 2051 | D113: 8 | E113: 8 | F113: Kraft | G113: 8 Kraft | H113: 2 Isis | J113: 21 | K113: 2031 | L113: 2052 | M113: 9 | N113: 9 | O113: Eremit | P113: 9 Eremit | Q113: 3 Horus | S113: 21 | T113: 2032 | U113: 2053 | V113: 10 | W113: 10 | X113: Rad | Y113: 1 Magier | Z113: 1 Osiris
A114: 22 | B114: 2030 | C114: 2052 | D114: 9 | E114: 9 | F114: Eremit | G114: 9 Eremit | H114: 3 Horus | J114: 22 | K114: 2031 | L114: 2053 | M114: 10 | N114: 10 | O114: Rad | P114: 1 Magier | Q114: 1 Osiris | S114: 22 | T114: 2032 | U114: 2054 | V114: 11 | W114: 11 | X114: Gerechtigkeit | Y114: 2 Hohepriesterin | Z114: 2 Isis
A115: 23 | B115: 2030 | C115: 2053 | D115: 10 | E115: 10 | F115: Rad | G115: 1 Magier | H115: 1 Osiris | J115: 23 | K115: 2031 | L115: 2054 | M115: 11 | N115: 11 | O115: Gerechtigkeit | P115: 2 Hohepriesterin | Q115: 2 Isis | S115: 23 | T115: 2032 | U115: 2055 | V115: 12 | W115: 12 | X115: Gehängter | Y115: 3 Herrscherin | Z115: 3 Horus
A116: 24 | B116: 2030 | C116: 2054 | D116: 11 | E116: 11 | F116: Gerechtigkeit | G116: 2 Hohepriesterin | H116: 2 Isis | J116: 24 | K116: 2031 | L116: 2055 | M116: 12 | N116: 12 | O116: Gehängter | P116: 3 Herrscherin | Q116: 3 Horus | S116: 24 | T116: 2032 | U116: 2056 | V116: 13 | W116: 13 | X116: Tod | Y116: 4 Herrscher | Z116: 1 Osiris
A117: 25 | B117: 2030 | C117: 2055 | D117: 12 | E117: 12 | F117: Gehängter | G117: 3 Herrscherin | H117: 3 Horus | J117: 25 | K117: 2031 | L117: 2056 | M117: 13 | N117: 13 | O117: Tod | P117: 4 Herrscher | Q117: 1 Osiris | S117: 25 | T117: 2032 | U117: 2057 | V117: 14 | W117: 14 | X117: Mässigkeit | Y117: 5 Hierophant | Z117: 2 Isis
A118: 26 | B118: 2030 | C118: 2056 | D118: 13 | E118: 13 | F118: Tod | G118: 4 Herrscher | H118: 1 Osiris | J118: 26 | K118: 2031 | L118: 2057 | M118: 14 | N118: 14 | O118: Mässigkeit | P118: 5 Hierophant | Q118: 2 Isis | S118: 26 | T118: 2032 | U118: 2058 | V118: 15 | W118: 15 | X118: Teufel | Y118: 6 Liebende | Z118: 3 Horus
A119: 27 | B119: 2030 | C119: 2057 | D119: 14 | E119: 14 | F119: Mässigkeit | G119: 5 Hierophant | H119: 2 Isis | J119: 27 | K119: 2031 | L119: 2058 | M119: 15 | N119: 15 | O119: Teufel | P119: 6 Liebende | Q119: 3 Horus | S119: 27 | T119: 2032 | U119: 2059 | V119: 16 | W119: 16 | X119: Turm | Y119: 7 Wagen | Z119: 1 Osiris
A120: 28 | B120: 2030 | C120: 2058 | D120: 15 | E120: 15 | F120: Teufel | G120: 6 Liebende | H120: 3 Horus | J120: 28 | K120: 2031 | L120: 2059 | M120: 16 | N120: 16 | O120: Turm | P120: 7 Wagen | Q120: 1 Osiris | S120: 28 | T120: 2032 | U120: 2060 | V120: 8 | W120: 8 | X120: Kraft | Y120: 8 Kraft | Z120: 2 Isis
A121: 29 | B121: 2030 | C121: 2059 | D121: 16 | E121: 16 | F121: Turm | G121: 7 Wagen | H121: 1 Osiris | J121: 29 | K121: 2031 | L121: 2060 | M121: 8 | N121: 8 | O121: Kraft | P121: 8 Kraft | Q121: 2 Isis | S121: 29 | T121: 2032 | U121: 2061 | V121: 9 | W121: 9 | X121: Eremit | Y121: 9 Eremit | Z121: 3 Horus
A122: 30 | B122: 2030 | C122: 2060 | D122: 8 | E122: 8 | F122: Kraft | G122: 8 Kraft | H122: 2 Isis | J122: 30 | K122: 2031 | L122: 2061 | M122: 9 | N122: 9 | O122: Eremit | P122: 9 Eremit | Q122: 3 Horus | S122: 30 | T122: 2032 | U122: 2062 | V122: 10 | W122: 10 | X122: Rad | Y122: 1 Magier | Z122: 1 Osiris
A123: 31 | B123: 2030 | C123: 2061 | D123: 9 | E123: 9 | F123: Eremit | G123: 9 Eremit | H123: 3 Horus | J123: 31 | K123: 2031 | L123: 2062 | M123: 10 | N123: 10 | O123: Rad | P123: 1 Magier | Q123: 1 Osiris
A126: Oktober | B126: Monatszahl | C126: Summe | D126: Resultat | E126: Tageskarte | G126: Konstellation | H126: Gruppe | J126: November | K126: Monatszahl | L126: Summe | M126: Resultat | N126: Tageskarte | S126: Dezember | T126: Monatszahl | U126: Summe | V126: Resultat | W126: Tageskarte | Y126: Konstellation | Z126: Gruppe
A127: 1 | B127: =$A$23+10 -> 2033 | C127: =SUM(A127:B127) -> 2034 | D127: =SUMPRODUCT(MID(C127,ROW(INDIRECT("1:"&LEN(C127))),1)*1) -> 9 | E127: =IF(D127>22,SUMPRODUCT(VALUE(MID(D127,ROW(INDIRECT("$b1:$A"&LEN(D127))),1))),D127) -> 9 | F127: =+VLOOKUP(E127,$A$162:$D$183,2,FALSE) -> Eremit | G127: =+VLOOKUP(E127,$A$162:$D$183,3,FALSE) -> 9 Eremit | H127: =+VLOOKUP(E127,$A$162:$D$183,4,FALSE) -> 3 Horus | J127: 1 | K127: =$A$23+11 -> 2034 | L127: =SUM(J127:K127) -> 2035 | M127: =SUMPRODUCT(MID(L127,ROW(INDIRECT("1:"&LEN(L127))),1)*1) -> 10 | N127: =IF(M127>22,SUMPRODUCT(VALUE(MID(M127,ROW(INDIRECT("$b1:$A"&LEN(M127))),1))),M127) -> 10 | O127: =+VLOOKUP(N127,$A$162:$D$183,2,FALSE) -> Rad | P127: =+VLOOKUP(N127,$A$162:$D$183,3,FALSE) -> 1 Magier | Q127: =+VLOOKUP(N127,$A$162:$D$183,4,FALSE) -> 1 Osiris | S127: 1 | T127: =$A$23+12 -> 2035 | U127: =SUM(S127:T127) -> 2036 | V127: =SUMPRODUCT(MID(U127,ROW(INDIRECT("1:"&LEN(U127))),1)*1) -> 11 | W127: =IF(V127>22,SUMPRODUCT(VALUE(MID(V127,ROW(INDIRECT("$b1:$A"&LEN(V127))),1))),V127) -> 11 | X127: =+VLOOKUP(W127,$A$162:$D$183,2,FALSE) -> Gerechtigkeit | Y127: =+VLOOKUP(W127,$A$162:$D$183,3,FALSE) -> 2 Hohepriesterin | Z127: =+VLOOKUP(W127,$A$162:$D$183,4,FALSE) -> 2 Isis
A128: 2 | B128: =$A$23+10 -> 2033 | C128: =SUM(A128:B128) -> 2035 | D128: 10 | E128: 10 | F128: Rad | G128: 1 Magier | H128: 1 Osiris | J128: 2 | K128: =$A$23+11 -> 2034 | L128: =SUM(J128:K128) -> 2036 | M128: 11 | N128: 11 | O128: Gerechtigkeit | P128: 2 Hohepriesterin | Q128: 2 Isis | S128: 2 | T128: =$A$23+12 -> 2035 | U128: =SUM(S128:T128) -> 2037 | V128: 12 | W128: 12 | X128: Gehängter | Y128: 3 Herrscherin | Z128: 3 Horus
A129: 3 | B129: 2033 | C129: 2036 | D129: 11 | E129: 11 | F129: Gerechtigkeit | G129: 2 Hohepriesterin | H129: 2 Isis | J129: 3 | K129: 2034 | L129: 2037 | M129: 12 | N129: 12 | O129: Gehängter | P129: 3 Herrscherin | Q129: 3 Horus | S129: 3 | T129: 2035 | U129: 2038 | V129: 13 | W129: 13 | X129: Tod | Y129: 4 Herrscher | Z129: 1 Osiris
A130: 4 | B130: 2033 | C130: 2037 | D130: 12 | E130: 12 | F130: Gehängter | G130: 3 Herrscherin | H130: 3 Horus | J130: 4 | K130: 2034 | L130: 2038 | M130: 13 | N130: 13 | O130: Tod | P130: 4 Herrscher | Q130: 1 Osiris | S130: 4 | T130: 2035 | U130: 2039 | V130: 14 | W130: 14 | X130: Mässigkeit | Y130: 5 Hierophant | Z130: 2 Isis
A131: 5 | B131: 2033 | C131: 2038 | D131: 13 | E131: 13 | F131: Tod | G131: 4 Herrscher | H131: 1 Osiris | J131: 5 | K131: 2034 | L131: 2039 | M131: 14 | N131: 14 | O131: Mässigkeit | P131: 5 Hierophant | Q131: 2 Isis | S131: 5 | T131: 2035 | U131: 2040 | V131: 6 | W131: 6 | X131: Liebende | Y131: 6 Liebende | Z131: 3 Horus
A132: 6 | B132: 2033 | C132: 2039 | D132: 14 | E132: 14 | F132: Mässigkeit | G132: 5 Hierophant | H132: 2 Isis | J132: 6 | K132: 2034 | L132: 2040 | M132: 6 | N132: 6 | O132: Liebende | P132: 6 Liebende | Q132: 3 Horus | S132: 6 | T132: 2035 | U132: 2041 | V132: 7 | W132: 7 | X132: Wagen | Y132: 7 Wagen | Z132: 1 Osiris
A133: 7 | B133: 2033 | C133: 2040 | D133: 6 | E133: 6 | F133: Liebende | G133: 6 Liebende | H133: 3 Horus | J133: 7 | K133: 2034 | L133: 2041 | M133: 7 | N133: 7 | O133: Wagen | P133: 7 Wagen | Q133: 1 Osiris | S133: 7 | T133: 2035 | U133: 2042 | V133: 8 | W133: 8 | X133: Kraft | Y133: 8 Kraft | Z133: 2 Isis
A134: 8 | B134: 2033 | C134: 2041 | D134: 7 | E134: 7 | F134: Wagen | G134: 7 Wagen | H134: 1 Osiris | J134: 8 | K134: 2034 | L134: 2042 | M134: 8 | N134: 8 | O134: Kraft | P134: 8 Kraft | Q134: 2 Isis | S134: 8 | T134: 2035 | U134: 2043 | V134: 9 | W134: 9 | X134: Eremit | Y134: 9 Eremit | Z134: 3 Horus
A135: 9 | B135: 2033 | C135: 2042 | D135: 8 | E135: 8 | F135: Kraft | G135: 8 Kraft | H135: 2 Isis | J135: 9 | K135: 2034 | L135: 2043 | M135: 9 | N135: 9 | O135: Eremit | P135: 9 Eremit | Q135: 3 Horus | S135: 9 | T135: 2035 | U135: 2044 | V135: 10 | W135: 10 | X135: Rad | Y135: 1 Magier | Z135: 1 Osiris
A136: 10 | B136: 2033 | C136: 2043 | D136: 9 | E136: 9 | F136: Eremit | G136: 9 Eremit | H136: 3 Horus | J136: 10 | K136: 2034 | L136: 2044 | M136: 10 | N136: 10 | O136: Rad | P136: 1 Magier | Q136: 1 Osiris | S136: 10 | T136: 2035 | U136: 2045 | V136: 11 | W136: 11 | X136: Gerechtigkeit | Y136: 2 Hohepriesterin | Z136: 2 Isis
A137: 11 | B137: 2033 | C137: 2044 | D137: 10 | E137: 10 | F137: Rad | G137: 1 Magier | H137: 1 Osiris | J137: 11 | K137: 2034 | L137: 2045 | M137: 11 | N137: 11 | O137: Gerechtigkeit | P137: 2 Hohepriesterin | Q137: 2 Isis | S137: 11 | T137: 2035 | U137: 2046 | V137: 12 | W137: 12 | X137: Gehängter | Y137: 3 Herrscherin | Z137: 3 Horus
A138: 12 | B138: 2033 | C138: 2045 | D138: 11 | E138: 11 | F138: Gerechtigkeit | G138: 2 Hohepriesterin | H138: 2 Isis | J138: 12 | K138: 2034 | L138: 2046 | M138: 12 | N138: 12 | O138: Gehängter | P138: 3 Herrscherin | Q138: 3 Horus | S138: 12 | T138: 2035 | U138: 2047 | V138: 13 | W138: 13 | X138: Tod | Y138: 4 Herrscher | Z138: 1 Osiris
A139: 13 | B139: 2033 | C139: 2046 | D139: 12 | E139: 12 | F139: Gehängter | G139: 3 Herrscherin | H139: 3 Horus | J139: 13 | K139: 2034 | L139: 2047 | M139: 13 | N139: 13 | O139: Tod | P139: 4 Herrscher | Q139: 1 Osiris | S139: 13 | T139: 2035 | U139: 2048 | V139: 14 | W139: 14 | X139: Mässigkeit | Y139: 5 Hierophant | Z139: 2 Isis
A140: 14 | B140: 2033 | C140: 2047 | D140: 13 | E140: 13 | F140: Tod | G140: 4 Herrscher | H140: 1 Osiris | J140: 14 | K140: 2034 | L140: 2048 | M140: 14 | N140: 14 | O140: Mässigkeit | P140: 5 Hierophant | Q140: 2 Isis | S140: 14 | T140: 2035 | U140: 2049 | V140: 15 | W140: 15 | X140: Teufel | Y140: 6 Liebende | Z140: 3 Horus
A141: 15 | B141: 2033 | C141: 2048 | D141: 14 | E141: 14 | F141: Mässigkeit | G141: 5 Hierophant | H141: 2 Isis | J141: 15 | K141: 2034 | L141: 2049 | M141: 15 | N141: 15 | O141: Teufel | P141: 6 Liebende | Q141: 3 Horus | S141: 15 | T141: 2035 | U141: 2050 | V141: 7 | W141: 7 | X141: Wagen | Y141: 7 Wagen | Z141: 1 Osiris
A142: 16 | B142: 2033 | C142: 2049 | D142: 15 | E142: 15 | F142: Teufel | G142: 6 Liebende | H142: 3 Horus | J142: 16 | K142: 2034 | L142: 2050 | M142: 7 | N142: 7 | O142: Wagen | P142: 7 Wagen | Q142: 1 Osiris | S142: 16 | T142: 2035 | U142: 2051 | V142: 8 | W142: 8 | X142: Kraft | Y142: 8 Kraft | Z142: 2 Isis
A143: 17 | B143: 2033 | C143: 2050 | D143: 7 | E143: 7 | F143: Wagen | G143: 7 Wagen | H143: 1 Osiris | J143: 17 | K143: 2034 | L143: 2051 | M143: 8 | N143: 8 | O143: Kraft | P143: 8 Kraft | Q143: 2 Isis | S143: 17 | T143: 2035 | U143: 2052 | V143: 9 | W143: 9 | X143: Eremit | Y143: 9 Eremit | Z143: 3 Horus
A144: 18 | B144: 2033 | C144: 2051 | D144: 8 | E144: 8 | F144: Kraft | G144: 8 Kraft | H144: 2 Isis | J144: 18 | K144: 2034 | L144: 2052 | M144: 9 | N144: 9 | O144: Eremit | P144: 9 Eremit | Q144: 3 Horus | S144: 18 | T144: 2035 | U144: 2053 | V144: 10 | W144: 10 | X144: Rad | Y144: 1 Magier | Z144: 1 Osiris
A145: 19 | B145: 2033 | C145: 2052 | D145: 9 | E145: 9 | F145: Eremit | G145: 9 Eremit | H145: 3 Horus | J145: 19 | K145: 2034 | L145: 2053 | M145: 10 | N145: 10 | O145: Rad | P145: 1 Magier | Q145: 1 Osiris | S145: 19 | T145: 2035 | U145: 2054 | V145: 11 | W145: 11 | X145: Gerechtigkeit | Y145: 2 Hohepriesterin | Z145: 2 Isis
A146: 20 | B146: 2033 | C146: 2053 | D146: 10 | E146: 10 | F146: Rad | G146: 1 Magier | H146: 1 Osiris | J146: 20 | K146: 2034 | L146: 2054 | M146: 11 | N146: 11 | O146: Gerechtigkeit | P146: 2 Hohepriesterin | Q146: 2 Isis | S146: 20 | T146: 2035 | U146: 2055 | V146: 12 | W146: 12 | X146: Gehängter | Y146: 3 Herrscherin | Z146: 3 Horus
A147: 21 | B147: 2033 | C147: 2054 | D147: 11 | E147: 11 | F147: Gerechtigkeit | G147: 2 Hohepriesterin | H147: 2 Isis | J147: 21 | K147: 2034 | L147: 2055 | M147: 12 | N147: 12 | O147: Gehängter | P147: 3 Herrscherin | Q147: 3 Horus | S147: 21 | T147: 2035 | U147: 2056 | V147: 13 | W147: 13 | X147: Tod | Y147: 4 Herrscher | Z147: 1 Osiris
A148: 22 | B148: 2033 | C148: 2055 | D148: 12 | E148: 12 | F148: Gehängter | G148: 3 Herrscherin | H148: 3 Horus | J148: 22 | K148: 2034 | L148: 2056 | M148: 13 | N148: 13 | O148: Tod | P148: 4 Herrscher | Q148: 1 Osiris | S148: 22 | T148: 2035 | U148: 2057 | V148: 14 | W148: 14 | X148: Mässigkeit | Y148: 5 Hierophant | Z148: 2 Isis
A149: 23 | B149: 2033 | C149: 2056 | D149: 13 | E149: 13 | F149: Tod | G149: 4 Herrscher | H149: 1 Osiris | J149: 23 | K149: 2034 | L149: 2057 | M149: 14 | N149: 14 | O149: Mässigkeit | P149: 5 Hierophant | Q149: 2 Isis | S149: 23 | T149: 2035 | U149: 2058 | V149: 15 | W149: 15 | X149: Teufel | Y149: 6 Liebende | Z149: 3 Horus
A150: 24 | B150: 2033 | C150: 2057 | D150: 14 | E150: 14 | F150: Mässigkeit | G150: 5 Hierophant | H150: 2 Isis | J150: 24 | K150: 2034 | L150: 2058 | M150: 15 | N150: 15 | O150: Teufel | P150: 6 Liebende | Q150: 3 Horus | S150: 24 | T150: 2035 | U150: 2059 | V150: 16 | W150: 16 | X150: Turm | Y150: 7 Wagen | Z150: 1 Osiris
A151: 25 | B151: 2033 | C151: 2058 | D151: 15 | E151: 15 | F151: Teufel | G151: 6 Liebende | H151: 3 Horus | J151: 25 | K151: 2034 | L151: 2059 | M151: 16 | N151: 16 | O151: Turm | P151: 7 Wagen | Q151: 1 Osiris | S151: 25 | T151: 2035 | U151: 2060 | V151: 8 | W151: 8 | X151: Kraft | Y151: 8 Kraft | Z151: 2 Isis
A152: 26 | B152: 2033 | C152: 2059 | D152: 16 | E152: 16 | F152: Turm | G152: 7 Wagen | H152: 1 Osiris | J152: 26 | K152: 2034 | L152: 2060 | M152: 8 | N152: 8 | O152: Kraft | P152: 8 Kraft | Q152: 2 Isis | S152: 26 | T152: 2035 | U152: 2061 | V152: 9 | W152: 9 | X152: Eremit | Y152: 9 Eremit | Z152: 3 Horus
A153: 27 | B153: 2033 | C153: 2060 | D153: 8 | E153: 8 | F153: Kraft | G153: 8 Kraft | H153: 2 Isis | J153: 27 | K153: 2034 | L153: 2061 | M153: 9 | N153: 9 | O153: Eremit | P153: 9 Eremit | Q153: 3 Horus | S153: 27 | T153: 2035 | U153: 2062 | V153: 10 | W153: 10 | X153: Rad | Y153: 1 Magier | Z153: 1 Osiris
A154: 28 | B154: 2033 | C154: 2061 | D154: 9 | E154: 9 | F154: Eremit | G154: 9 Eremit | H154: 3 Horus | J154: 28 | K154: 2034 | L154: 2062 | M154: 10 | N154: 10 | O154: Rad | P154: 1 Magier | Q154: 1 Osiris | S154: 28 | T154: 2035 | U154: 2063 | V154: 11 | W154: 11 | X154: Gerechtigkeit | Y154: 2 Hohepriesterin | Z154: 2 Isis
A155: 29 | B155: 2033 | C155: 2062 | D155: 10 | E155: 10 | F155: Rad | G155: 1 Magier | H155: 1 Osiris | J155: 29 | K155: 2034 | L155: 2063 | M155: 11 | N155: 11 | O155: Gerechtigkeit | P155: 2 Hohepriesterin | Q155: 2 Isis | S155: 29 | T155: 2035 | U155: 2064 | V155: 12 | W155: 12 | X155: Gehängter | Y155: 3 Herrscherin | Z155: 3 Horus
A156: 30 | B156: 2033 | C156: 2063 | D156: 11 | E156: 11 | F156: Gerechtigkeit | G156: 2 Hohepriesterin | H156: 2 Isis | J156: 30 | K156: 2034 | L156: 2064 | M156: 12 | N156: 12 | O156: Gehängter | P156: 3 Herrscherin | Q156: 3 Horus | S156: 30 | T156: 2035 | U156: 2065 | V156: 13 | W156: 13 | X156: Tod | Y156: 4 Herrscher | Z156: 1 Osiris
A157: 31 | B157: 2033 | C157: 2064 | D157: 12 | E157: 12 | F157: Gehängter | G157: 3 Herrscherin | H157: 3 Horus | S157: 31 | T157: 2035 | U157: 2066 | V157: 14 | W157: 14 | X157: Mässigkeit | Y157: 5 Hierophant | Z157: 2 Isis
A162: 1 | B162: Magier | C162: 1 Magier | D162: 1 Osiris
A163: 2 | B163: Hohepriesterin | C163: 2 Hohepriesterin | D163: 2 Isis
A164: 3 | B164: Herrscherin | C164: 3 Herrscherin | D164: 3 Horus
A165: 4 | B165: Herrscher | C165: 4 Herrscher | D165: 1 Osiris
A166: 5 | B166: Hierophant | C166: 5 Hierophant | D166: 2 Isis
A167: 6 | B167: Liebende | C167: 6 Liebende | D167: 3 Horus
A168: 7 | B168: Wagen | C168: 7 Wagen | D168: 1 Osiris
A169: 8 | B169: Kraft | C169: 8 Kraft | D169: 2 Isis
A170: 9 | B170: Eremit | C170: 9 Eremit | D170: 3 Horus
A171: 10 | B171: Rad | C171: 1 Magier | D171: 1 Osiris
A172: 11 | B172: Gerechtigkeit | C172: 2 Hohepriesterin | D172: 2 Isis
A173: 12 | B173: Gehängter | C173: 3 Herrscherin | D173: 3 Horus
A174: 13 | B174: Tod | C174: 4 Herrscher | D174: 1 Osiris
A175: 14 | B175: Mässigkeit | C175: 5 Hierophant | D175: 2 Isis
A176: 15 | B176: Teufel | C176: 6 Liebende | D176: 3 Horus
A177: 16 | B177: Turm | C177: 7 Wagen | D177: 1 Osiris
A178: 17 | B178: Stern | C178: 8 Kraft | D178: 2 Isis
A179: 18 | B179: Mond | C179: 9 Eremit | D179: 3 Horus
A180: 19 | B180: Sonne | C180: 1 Magier | D180: 1 Osiris
A181: 20 | B181: Gericht | C181: 2 Hohepriesterin | D181: 2 Isis
A182: 21 | B182: Welt | C182: 3 Herrscherin | D182: 3 Horus
A183: 22 | B183: Narr | C183: 4 Herrscher | D183: 1 Osiris

Sheet Jahreskarten
A4: Persönliche Karten
A6: Hier das Geburtsdatum im Format JJJJ, MM, TT eingeben:
A7: Jahr | B7: Monat | C7: Tag | E7: Vorname | F7: Name | H7: Die Persönlichkeitskarte ist: | J7: =H13 -> 19 | K7: =IF(J7=1,"Der Magier",IF(J7=2,"Die Hohepriesterin",IF(J7=3,"Die Herrscherin",IF(J7=4,"Der Herrscher",IF(J7=5,"Der Hierophant",IF(J7=6,"Die Liebenden",IF(J7=7,"Der Wagen",IF(J7=8,"Die Kraft",IF(J7=9,"Der Eremit",IF(J7=10,"Das Rad",IF(J7=11,"Die Gerechtigkeit",IF(J7=12,"Der Gehängte",IF(J7=13,"Der Tod",IF(J7=14,"Die Mässigkeit",IF(J7=15,"Der Teufel",IF(J7=16,"Der Turm",IF(J7=17,"Der Stern",IF(J7=18,"Der Mond",IF(J7=19,"Die Sonne",IF(J7=20,"Das Gericht",IF(J7=21,"Die Welt",IF(J7=22,"Der Narr")))))))))))))))))))))) -> Die Sonne
A8: 1962 | B8: 7 | C8: 12 | E8: Zum | F8: Beispiel | H8: Die Wesenskarte ist: | J8: =I13 -> 10 | K8: =IF(J8=1,"Der Magier",IF(J8=2,"Die Hohepriesterin",IF(J8=3,"Die Herrscherin",IF(J8=4,"Der Herrscher",IF(J8=5,"Der Hierophant",IF(J8=6,"Die Liebenden",IF(J8=7,"Der Wagen",IF(J8=8,"Die Kraft",IF(J8=9,"Der Eremit",IF(J8=10,"Das Rad",IF(J8=11,"Die Gerechtigkeit",IF(J8=12,"Der Gehängte",IF(J8=13,"Der Tod",IF(J8=14,"Die Mässigkeit",IF(J8=15,"Der Teufel",IF(J8=16,"Der Turm",IF(J8=17,"Der Stern",IF(J8=18,"Der Mond",IF(J8=19,"Die Sonne",IF(J8=20,"Das Gericht",IF(J8=21,"Die Welt",IF(J8=22,"Der Narr")))))))))))))))))))))) -> Das Rad
A12: Geburtsjahr | B12: Alter | C12: Jahr | G12: Quersumme | H12: Jahreskarte | I12: Wesenskarte | J12: Karmisches Jahr
A13: =$A$8 -> 1962 | B13: 0 | C13: =SUM(A13:B13) -> 1962 | D13: =$B$8 -> 7 | E13: =$C$8 -> 12 | F13: =SUM(C13:E13) -> 1981 | G13: =SUMPRODUCT(MID(F13,ROW(INDIRECT("1:"&LEN(F13))),1)*1) -> 19 | H13: =IF(G13>22,SUMPRODUCT(VALUE(MID(G13,ROW(INDIRECT("$b1:$A"&LEN(G13))),1))),G13) -> 19 | I13: =IF(H13>9,SUMPRODUCT(VALUE(MID(H13,ROW(INDIRECT("$b1:$A"&LEN(H13))),1))),H13+9) -> 10 | J13: =SUM($C13:$E13) -> 1981
A14: =$A$8 -> 1962 | B14: 1 | C14: =SUM(A14:B14) -> 1963 | D14: =$B$8 -> 7 | E14: =$C$8 -> 12 | F14: =SUM(C14:E14) -> 1982 | G14: =SUMPRODUCT(MID(F14,ROW(INDIRECT("1:"&LEN(F14))),1)*1) -> 20 | H14: =IF(G14>22,SUMPRODUCT(VALUE(MID(G14,ROW(INDIRECT("$b1:$A"&LEN(G14))),1))),G14) -> 20 | I14: =IF(H14>9,SUMPRODUCT(VALUE(MID(H14,ROW(INDIRECT("$b1:$A"&LEN(H14))),1))),H14+9) -> 2
A15: 1962 | B15: 2 | C15: 1964 | D15: 7 | E15: 12 | F15: 1983 | G15: 21 | H15: 21 | I15: 3
A16: 1962 | B16: 3 | C16: 1965 | D16: 7 | E16: 12 | F16: 1984 | G16: 22 | H16: 22 | I16: 4
A17: 1962 | B17: 4 | C17: 1966 | D17: 7 | E17: 12 | F17: 1985 | G17: 23 | H17: 5 | I17: 14
A18: 1962 | B18: 5 | C18: 1967 | D18: 7 | E18: 12 | F18: 1986 | G18: 24 | H18: 6 | I18: 15
A19: 1962 | B19: 6 | C19: 1968 | D19: 7 | E19: 12 | F19: 1987 | G19: 25 | H19: 7 | I19: 16
A20: 1962 | B20: 7 | C20: 1969 | D20: 7 | E20: 12 | F20: 1988 | G20: 26 | H20: 8 | I20: 17
A21: 1962 | B21: 8 | C21: 1970 | D21: 7 | E21: 12 | F21: 1989 | G21: 27 | H21: 9 | I21: 18
A22: 1962 | B22: 9 | C22: 1971 | D22: 7 | E22: 12 | F22: 1990 | G22: =SUMPRODUCT(MID(F22,ROW(INDIRECT("1:"&LEN(F22))),1)*1) -> 19 | H22: 19 | I22: 10
A23: 1962 | B23: 10 | C23: 1972 | D23: 7 | E23: 12 | F23: 1991 | G23: 20 | H23: 20 | I23: 2
A24: 1962 | B24: 11 | C24: 1973 | D24: 7 | E24: 12 | F24: 1992 | G24: 21 | H24: 21 | I24: 3
A25: 1962 | B25: 12 | C25: 1974 | D25: 7 | E25: 12 | F25: 1993 | G25: 22 | H25: 22 | I25: 4
A26: 1962 | B26: 13 | C26: 1975 | D26: 7 | E26: 12 | F26: 1994 | G26: 23 | H26: 5 | I26: 14
A27: 1962 | B27: 14 | C27: 1976 | D27: 7 | E27: 12 | F27: 1995 | G27: 24 | H27: 6 | I27: 15
A28: 1962 | B28: 15 | C28: 1977 | D28: 7 | E28: 12 | F28: 1996 | G28: 25 | H28: 7 | I28: 16
A29: 1962 | B29: 16 | C29: 1978 | D29: 7 | E29: 12 | F29: 1997 | G29: 26 | H29: 8 | I29: 17
A30: 1962 | B30: 17 | C30: 1979 | D30: 7 | E30: 12 | F30: 1998 | G30: 27 | H30: 9 | I30: 18
A31: 1962 | B31: 18 | C31: 1980 | D31: 7 | E31: 12 | F31: 1999 | G31: 28 | H31: 10 | I31: 1
A32: 1962 | B32: 19 | C32: 1981 | D32: 7 | E32: 12 | F32: 2000 | G32: 2 | H32: 2 | I32: 11
A33: 1962 | B33: 20 | C33: 1982 | D33: 7 | E33: 12 | F33: 2001 | G33: 3 | H33: 3 | I33: 12
A34: 1962 | B34: 21 | C34: 1983 | D34: 7 | E34: 12 | F34: 2002 | G34: 4 | H34: 4 | I34: 13
A35: 1962 | B35: 22 | C35: 1984 | D35: 7 | E35: 12 | F35: 2003 | G35: 5 | H35: 5 | I35: 14
A36: 1962 | B36: 23 | C36: 1985 | D36: 7 | E36: 12 | F36: 2004 | G36: 6 | H36: 6 | I36: 15
A37: 1962 | B37: 24 | C37: 1986 | D37: 7 | E37: 12 | F37: 2005 | G37: 7 | H37: 7 | I37: 16
A38: 1962 | B38: 25 | C38: 1987 | D38: 7 | E38: 12 | F38: 2006 | G38: 8 | H38: 8 | I38: 17
A39: 1962 | B39: 26 | C39: 1988 | D39: 7 | E39: 12 | F39: 2007 | G39: 9 | H39: 9 | I39: 18
A40: 1962 | B40: 27 | C40: 1989 | D40: 7 | E40: 12 | F40: 2008 | G40: 10 | H40: 10 | I40: 1
A41: 1962 | B41: 28 | C41: 1990 | D41: 7 | E41: 12 | F41: 2009 | G41: 11 | H41: 11 | I41: 2
A42: 1962 | B42: 29 | C42: 1991 | D42: 7 | E42: 12 | F42: 2010 | G42: 3 | H42: 3 | I42: 12
A43: 1962 | B43: 30 | C43: 1992 | D43: 7 | E43: 12 | F43: 2011 | G43: 4 | H43: 4 | I43: 13
A44: 1962 | B44: 31 | C44: 1993 | D44: 7 | E44: 12 | F44: 2012 | G44: 5 | H44: 5 | I44: 14
A45: 1962 | B45: 32 | C45: 1994 | D45: 7 | E45: 12 | F45: 2013 | G45: 6 | H45: 6 | I45: 15
A46: 1962 | B46: 33 | C46: 1995 | D46: 7 | E46: 12 | F46: 2014 | G46: 7 | H46: 7 | I46: 16
A47: 1962 | B47: 34 | C47: 1996 | D47: 7 | E47: 12 | F47: 2015 | G47: 8 | H47: 8 | I47: 17
A48: 1962 | B48: 35 | C48: 1997 | D48: 7 | E48: 12 | F48: 2016 | G48: 9 | H48: 9 | I48: 18
A49: 1962 | B49: 36 | C49: 1998 | D49: 7 | E49: 12 | F49: 2017 | G49: 10 | H49: 10 | I49: 1
A50: 1962 | B50: 37 | C50: 1999 | D50: 7 | E50: 12 | F50: 2018 | G50: 11 | H50: 11 | I50: 2
A51: 1962 | B51: 38 | C51: 2000 | D51: 7 | E51: 12 | F51: 2019 | G51: 12 | H51: 12 | I51: 3
A52: 1962 | B52: 39 | C52: 2001 | D52: 7 | E52: 12 | F52: 2020 | G52: 4 | H52: 4 | I52: 13
A53: 1962 | B53: 40 | C53: 2002 | D53: 7 | E53: 12 | F53: 2021 | G53: 5 | H53: 5 | I53: 14
A54: 1962 | B54: 41 | C54: 2003 | D54: 7 | E54: 12 | F54: 2022 | G54: 6 | H54: 6 | I54: 15
A55: 1962 | B55: 42 | C55: 2004 | D55: 7 | E55: 12 | F55: 2023 | G55: 7 | H55: 7 | I55: 16
A56: 1962 | B56: 43 | C56: 2005 | D56: 7 | E56: 12 | F56: 2024 | G56: 8 | H56: 8 | I56: 17
A57: 1962 | B57: 44 | C57: 2006 | D57: 7 | E57: 12 | F57: 2025 | G57: 9 | H57: 9 | I57: 18
A58: 1962 | B58: 45 | C58: 2007 | D58: 7 | E58: 12 | F58: 2026 | G58: 10 | H58: 10 | I58: 1
A59: 1962 | B59: 46 | C59: 2008 | D59: 7 | E59: 12 | F59: 2027 | G59: 11 | H59: 11 | I59: 2
A60: 1962 | B60: 47 | C60: 2009 | D60: 7 | E60: 12 | F60: 2028 | G60: 12 | H60: 12 | I60: 3
A61: 1962 | B61: 48 | C61: 2010 | D61: 7 | E61: 12 | F61: 2029 | G61: 13 | H61: 13 | I61: 4
A62: 1962 | B62: 49 | C62: 2011 | D62: 7 | E62: 12 | F62: 2030 | G62: 5 | H62: 5 | I62: 14
A63: 1962 | B63: 50 | C63: 2012 | D63: 7 | E63: 12 | F63: 2031 | G63: 6 | H63: 6 | I63: 15
A64: 1962 | B64: 51 | C64: 2013 | D64: 7 | E64: 12 | F64: 2032 | G64: 7 | H64: 7 | I64: 16
A65: 1962 | B65: 52 | C65: 2014 | D65: 7 | E65: 12 | F65: 2033 | G65: 8 | H65: 8 | I65: 17
A66: 1962 | B66: 53 | C66: 2015 | D66: 7 | E66: 12 | F66: 2034 | G66: 9 | H66: 9 | I66: 18
A67: 1962 | B67: 54 | C67: 2016 | D67: 7 | E67: 12 | F67: 2035 | G67: 10 | H67: 10 | I67: 1
A68: 1962 | B68: 55 | C68: 2017 | D68: 7 | E68: 12 | F68: 2036 | G68: 11 | H68: 11 | I68: 2
A69: 1962 | B69: 56 | C69: 2018 | D69: 7 | E69: 12 | F69: 2037 | G69: 12 | H69: 12 | I69: 3
A70: 1962 | B70: 57 | C70: 2019 | D70: 7 | E70: 12 | F70: 2038 | G70: 13 | H70: 13 | I70: 4
A71: 1962 | B71: 58 | C71: 2020 | D71: 7 | E71: 12 | F71: 2039 | G71: 14 | H71: 14 | I71: 5
A72: 1962 | B72: 59 | C72: 2021 | D72: 7 | E72: 12 | F72: 2040 | G72: 6 | H72: 6 | I72: 15
A73: 1962 | B73: 60 | C73: 2022 | D73: 7 | E73: 12 | F73: 2041 | G73: 7 | H73: 7 | I73: 16
A74: 1962 | B74: 61 | C74: 2023 | D74: 7 | E74: 12 | F74: 2042 | G74: 8 | H74: 8 | I74: 17
A75: 1962 | B75: 62 | C75: 2024 | D75: 7 | E75: 12 | F75: 2043 | G75: 9 | H75: 9 | I75: 18
A76: 1962 | B76: 63 | C76: 2025 | D76: 7 | E76: 12 | F76: 2044 | G76: 10 | H76: 10 | I76: 1
A77: 1962 | B77: 64 | C77: 2026 | D77: 7 | E77: 12 | F77: 2045 | G77: 11 | H77: 11 | I77: 2
A78: =$A$8 -> 1962 | B78: 65 | C78: =SUM(A78:B78) -> 2027 | D78: =$B$8 -> 7 | E78: =$C$8 -> 12 | F78: =SUM(C78:E78) -> 2046 | G78: 12 | H78: =IF(G78>22,SUMPRODUCT(VALUE(MID(G78,ROW(INDIRECT("$b1:$A"&LEN(G78))),1))),G78) -> 12 | I78: =IF(H78>9,SUMPRODUCT(VALUE(MID(H78,ROW(INDIRECT("$b1:$A"&LEN(H78))),1))),H78+9) -> 3
A79: 1962 | B79: 66 | C79: 2028 | D79: 7 | E79: 12 | F79: 2047 | G79: 13 | H79: 13 | I79: 4
A80: 1962 | B80: 67 | C80: 2029 | D80: 7 | E80: 12 | F80: 2048 | G80: 14 | H80: 14 | I80: 5
A81: 1962 | B81: 68 | C81: 2030 | D81: 7 | E81: 12 | F81: 2049 | G81: 15 | H81: 15 | I81: 6
A82: 1962 | B82: 69 | C82: 2031 | D82: 7 | E82: 12 | F82: 2050 | G82: 7 | H82: 7 | I82: 16
A83: 1962 | B83: 70 | C83: 2032 | D83: 7 | E83: 12 | F83: 2051 | G83: 8 | H83: 8 | I83: 17
A84: 1962 | B84: 71 | C84: 2033 | D84: 7 | E84: 12 | F84: 2052 | G84: 9 | H84: 9 | I84: 18
A85: 1962 | B85: 72 | C85: 2034 | D85: 7 | E85: 12 | F85: 2053 | G85: 10 | H85: 10 | I85: 1
A86: 1962 | B86: 73 | C86: 2035 | D86: 7 | E86: 12 | F86: 2054 | G86: =SUMPRODUCT(MID(F86,ROW(INDIRECT("1:"&LEN(F86))),1)*1) -> 11 | H86: 11 | I86: 2
A87: 1962 | B87: 74 | C87: 2036 | D87: 7 | E87: 12 | F87: 2055 | G87: 12 | H87: 12 | I87: 3
A88: 1962 | B88: 75 | C88: 2037 | D88: 7 | E88: 12 | F88: 2056 | G88: 13 | H88: 13 | I88: 4
A89: 1962 | B89: 76 | C89: 2038 | D89: 7 | E89: 12 | F89: 2057 | G89: 14 | H89: 14 | I89: 5
A90: 1962 | B90: 77 | C90: 2039 | D90: 7 | E90: 12 | F90: 2058 | G90: 15 | H90: 15 | I90: 6
A91: 1962 | B91: 78 | C91: 2040 | D91: 7 | E91: 12 | F91: 2059 | G91: 16 | H91: 16 | I91: 7
A92: 1962 | B92: 79 | C92: 2041 | D92: 7 | E92: 12 | F92: 2060 | G92: 8 | H92: 8 | I92: 17
A93: 1962 | B93: 80 | C93: 2042 | D93: 7 | E93: 12 | F93: 2061 | G93: 9 | H93: 9 | I93: 18
A94: 1962 | B94: 81 | C94: 2043 | D94: 7 | E94: 12 | F94: 2062 | G94: 10 | H94: 10 | I94: 1
A95: 1962 | B95: 82 | C95: 2044 | D95: 7 | E95: 12 | F95: 2063 | G95: 11 | H95: 11 | I95: 2
A96: 1962 | B96: 83 | C96: 2045 | D96: 7 | E96: 12 | F96: 2064 | G96: 12 | H96: 12 | I96: 3
A97: 1962 | B97: 84 | C97: 2046 | D97: 7 | E97: 12 | F97: 2065 | G97: 13 | H97: 13 | I97: 4
A98: 1962 | B98: 85 | C98: 2047 | D98: 7 | E98: 12 | F98: 2066 | G98: 14 | H98: 14 | I98: 5
A99: 1962 | B99: 86 | C99: 2048 | D99: 7 | E99: 12 | F99: 2067 | G99: 15 | H99: 15 | I99: 6
A100: 1962 | B100: 87 | C100: 2049 | D100: 7 | E100: 12 | F100: 2068 | G100: 16 | H100: 16 | I100: 7
A101: 1962 | B101: 88 | C101: 2050 | D101: 7 | E101: 12 | F101: 2069 | G101: 17 | H101: 17 | I101: 8
A102: 1962 | B102: 89 | C102: 2051 | D102: 7 | E102: 12 | F102: 2070 | G102: 9 | H102: 9 | I102: 18
A103: 1962 | B103: 90 | C103: 2052 | D103: 7 | E103: 12 | F103: 2071 | G103: 10 | H103: 10 | I103: 1
A104: 1962 | B104: 91 | C104: 2053 | D104: 7 | E104: 12 | F104: 2072 | G104: 11 | H104: 11 | I104: 2
A105: 1962 | B105: 92 | C105: 2054 | D105: 7 | E105: 12 | F105: 2073 | G105: 12 | H105: 12 | I105: 3
A106: 1962 | B106: 93 | C106: 2055 | D106: 7 | E106: 12 | F106: 2074 | G106: 13 | H106: 13 | I106: 4
A107: 1962 | B107: 94 | C107: 2056 | D107: 7 | E107: 12 | F107: 2075 | G107: 14 | H107: 14 | I107: 5
A108: 1962 | B108: 95 | C108: 2057 | D108: 7 | E108: 12 | F108: 2076 | G108: 15 | H108: 15 | I108: 6
A109: 1962 | B109: 96 | C109: 2058 | D109: 7 | E109: 12 | F109: 2077 | G109: 16 | H109: 16 | I109: 7
A110: 1962 | B110: 97 | C110: 2059 | D110: 7 | E110: 12 | F110: 2078 | G110: 17 | H110: 17 | I110: 8
A111: 1962 | B111: 98 | C111: 2060 | D111: 7 | E111: 12 | F111: 2079 | G111: 18 | H111: 18 | I111: 9
A112: 1962 | B112: 99 | C112: 2061 | D112: 7 | E112: 12 | F112: 2080 | G112: 10 | H112: 10 | I112: 1
A117: Häufigkeit der einzelnen Jahreskarten:
A119: 1 Magier | B119: =COUNTIF($H$13:$H$112,1) -> 0 | L119: 1 Der Magier | M119: 2 Die Hohepriesterin | N119: 3 Die Herrscherin | O119: 4 Der Herrscher | P119: 5 Der Hierophant | Q119: 6 Die Liebenden | R119: 7 Der Wagen | S119: 8 Die Kraft | T119: 9 Der Eremit | U119: 10 Das Rad | V119: 11 Die Gerechtigkeit | W119: 12 Der Gehängte | X119: 13 Der Tod | Y119: 14 Die Mässigkeit | Z119: 15 Der Teufel | AA119: 16 Der Turm | AB119: 17 Der Stern | AC119: 18 Der Mond | AD119: 19 Die Sonne | AE119: 20 Das Gericht | AF119: 21 Die Welt | AG119: 22 Der Narr
A120: 2 Hohepriesterin | B120: =COUNTIF($H$13:$H$112,2) -> 1 | L120: =IF(H13=1,C13,0) -> 0 | M120: =IF(H13=2,C13,0) -> 0 | N120: =IF(H13=3,C13,0) -> 0 | O120: =IF(H13=4,C13,0) -> 0 | P120: =IF(H13=5,C13,0) -> 0 | Q120: =IF(H13=6,C13,0) -> 0 | R120: =IF(H13=7,C13,0) -> 0 | S120: =IF(H13=8,C13,0) -> 0 | T120: =IF(H13=9,C13,0) -> 0 | U120: =IF(H13=10,C13,0) -> 0 | V120: =IF(H13=11,C13,0) -> 0 | W120: =IF(H13=12,C13,0) -> 0 | X120: =IF(H13=13,C13,0) -> 0 | Y120: =IF(H13=14,C13,0) -> 0 | Z120: =IF(H13=15,C13,0) -> 0 | AA120: =IF(H13=16,C13,0) -> 0 | AB120: =IF(H13=17,C13,0) -> 0 | AC120: =IF(H13=18,C13,0) -> 0 | AD120: =IF(H13=19,C13,0) -> 1962 | AE120: =IF(H13=20,C13,0) -> 0 | AF120: =IF(H13=21,C13,0) -> 0 | AG120: =IF(H13=22,C13,0) -> 0
A121: 3 Herrscherin | B121: =COUNTIF($H$13:$H$112,3) -> 2 | L121: =IF(H14=1,C14,0) -> 0 | M121: =IF(H14=2,C14,0) -> 0 | N121: =IF(H14=3,C14,0) -> 0 | O121: =IF(H14=4,C14,0) -> 0 | P121: =IF(H14=5,C14,0) -> 0 | Q121: =IF(H14=6,C14,0) -> 0 | R121: =IF(H14=7,C14,0) -> 0 | S121: =IF(H14=8,C14,0) -> 0 | T121: =IF(H14=9,C14,0) -> 0 | U121: =IF(H14=10,C14,0) -> 0 | V121: =IF(H14=11,C14,0) -> 0 | W121: =IF(H14=12,C14,0) -> 0 | X121: =IF(H14=13,C14,0) -> 0 | Y121: =IF(H14=14,C14,0) -> 0 | Z121: =IF(H14=15,C14,0) -> 0 | AA121: =IF(H14=16,C14,0) -> 0 | AB121: =IF(H14=17,C14,0) -> 0 | AC121: =IF(H14=18,C14,0) -> 0 | AD121: =IF(H14=19,C14,0) -> 0 | AE121: =IF(H14=20,C14,0) -> 1963 | AF121: =IF(H14=21,C14,0) -> 0 | AG121: =IF(H14=22,C14,0) -> 0
A122: 4 Herrscher | B122: =COUNTIF($H$13:$H$112,4) -> 3 | L122: =IF(H15=1,C15,0) -> 0 | M122: 0 | N122: 0 | O122: 0 | P122: 0 | Q122: 0 | R122: 0 | S122: 0 | T122: 0 | U122: 0 | V122: 0 | W122: 0 | X122: 0 | Y122: 0 | Z122: 0 | AA122: 0 | AB122: 0 | AC122: 0 | AD122: 0 | AE122: 0 | AF122: 1964 | AG122: 0
A123: 5 Hierophant | B123: =COUNTIF($H$13:$H$112,5) -> 6 | L123: 0 | M123: 0 | N123: 0 | O123: 0 | P123: 0 | Q123: 0 | R123: 0 | S123: 0 | T123: 0 | U123: 0 | V123: 0 | W123: 0 | X123: 0 | Y123: 0 | Z123: 0 | AA123: 0 | AB123: 0 | AC123: 0 | AD123: 0 | AE123: 0 | AF123: 0 | AG123: 1965
A124: 6 Liebende | B124: =COUNTIF($H$13:$H$112,6) -> 7 | L124: 0 | M124: 0 | N124: 0 | O124: 0 | P124: 1966 | Q124: 0 | R124: 0 | S124: 0 | T124: 0 | U124: 0 | V124: 0 | W124: 0 | X124: 0 | Y124: 0 | Z124: 0 | AA124: 0 | AB124: 0 | AC124: 0 | AD124: 0 | AE124: 0 | AF124: 0 | AG124: 0
A125: 7 Wagen | B125: =COUNTIF($H$13:$H$112,7) -> 8 | L125: 0 | M125: 0 | N125: 0 | O125: 0 | P125: 0 | Q125: 1967 | R125: 0 | S125: 0 | T125: 0 | U125: 0 | V125: 0 | W125: 0 | X125: 0 | Y125: 0 | Z125: 0 | AA125: 0 | AB125: 0 | AC125: 0 | AD125: 0 | AE125: 0 | AF125: 0 | AG125: 0
A126: 8 Kraft | B126: =COUNTIF($H$13:$H$112,8) -> 9 | L126: 0 | M126: 0 | N126: 0 | O126: 0 | P126: 0 | Q126: 0 | R126: 1968 | S126: 0 | T126: 0 | U126: 0 | V126: 0 | W126: 0 | X126: 0 | Y126: 0 | Z126: 0 | AA126: 0 | AB126: 0 | AC126: 0 | AD126: 0 | AE126: 0 | AF126: 0 | AG126: 0
A127: 9 Eremit | B127: =COUNTIF($H$13:$H$112,9) -> 10 | L127: 0 | M127: 0 | N127: 0 | O127: 0 | P127: 0 | Q127: 0 | R127: 0 | S127: 1969 | T127: 0 | U127: 0 | V127: 0 | W127: 0 | X127: 0 | Y127: 0 | Z127: 0 | AA127: 0 | AB127: 0 | AC127: 0 | AD127: 0 | AE127: 0 | AF127: 0 | AG127: 0
A128: 10 Rad | B128: =COUNTIF($H$13:$H$112,10) -> 10 | L128: 0 | M128: 0 | N128: 0 | O128: 0 | P128: 0 | Q128: 0 | R128: 0 | S128: 0 | T128: 1970 | U128: 0 | V128: 0 | W128: 0 | X128: 0 | Y128: 0 | Z128: 0 | AA128: 0 | AB128: 0 | AC128: 0 | AD128: 0 | AE128: 0 | AF128: 0 | AG128: 0
A129: 11 Gerechtigkeit | B129: =COUNTIF($H$13:$H$112,11) -> 8 | L129: 0 | M129: 0 | N129: 0 | O129: 0 | P129: 0 | Q129: 0 | R129: 0 | S129: 0 | T129: 0 | U129: 0 | V129: 0 | W129: 0 | X129: 0 | Y129: 0 | Z129: 0 | AA129: 0 | AB129: 0 | AC129: 0 | AD129: 1971 | AE129: 0 | AF129: 0 | AG129: 0
A130: 12 Gehängter | B130: =COUNTIF($H$13:$H$112,12) -> 7 | L130: 0 | M130: 0 | N130: 0 | O130: 0 | P130: 0 | Q130: 0 | R130: 0 | S130: 0 | T130: 0 | U130: 0 | V130: 0 | W130: 0 | X130: 0 | Y130: 0 | Z130: 0 | AA130: 0 | AB130: 0 | AC130: 0 | AD130: 0 | AE130: 1972 | AF130: 0 | AG130: 0
A131: 13 Tod | B131: =COUNTIF($H$13:$H$112,13) -> 6 | L131: 0 | M131: 0 | N131: 0 | O131: 0 | P131: 0 | Q131: 0 | R131: 0 | S131: 0 | T131: 0 | U131: 0 | V131: 0 | W131: 0 | X131: 0 | Y131: 0 | Z131: 0 | AA131: 0 | AB131: 0 | AC131: 0 | AD131: 0 | AE131: 0 | AF131: 1973 | AG131: 0
A132: 14 Mässigkeit | B132: =COUNTIF($H$13:$H$112,14) -> 5 | L132: 0 | M132: 0 | N132: 0 | O132: 0 | P132: 0 | Q132: 0 | R132: 0 | S132: 0 | T132: 0 | U132: 0 | V132: 0 | W132: 0 | X132: 0 | Y132: 0 | Z132: 0 | AA132: 0 | AB132: 0 | AC132: 0 | AD132: 0 | AE132: 0 | AF132: 0 | AG132: 1974
A133: 15 Teufel | B133: =COUNTIF($H$13:$H$112,15) -> 4 | L133: 0 | M133: 0 | N133: 0 | O133: 0 | P133: 1975 | Q133: 0 | R133: 0 | S133: 0 | T133: 0 | U133: 0 | V133: 0 | W133: 0 | X133: 0 | Y133: 0 | Z133: 0 | AA133: 0 | AB133: 0 | AC133: 0 | AD133: 0 | AE133: 0 | AF133: 0 | AG133: 0
A134: 16 Turm | B134: =COUNTIF($H$13:$H$112,16) -> 3 | L134: 0 | M134: 0 | N134: 0 | O134: 0 | P134: 0 | Q134: 1976 | R134: 0 | S134: 0 | T134: 0 | U134: 0 | V134: 0 | W134: 0 | X134: 0 | Y134: 0 | Z134: 0 | AA134: 0 | AB134: 0 | AC134: 0 | AD134: 0 | AE134: 0 | AF134: 0 | AG134: 0
A135: 17 Stern | B135: =COUNTIF($H$13:$H$112,17) -> 2 | L135: 0 | M135: 0 | N135: 0 | O135: 0 | P135: 0 | Q135: 0 | R135: 1977 | S135: 0 | T135: 0 | U135: 0 | V135: 0 | W135: 0 | X135: 0 | Y135: 0 | Z135: 0 | AA135: 0 | AB135: 0 | AC135: 0 | AD135: 0 | AE135: 0 | AF135: 0 | AG135: 0
A136: 18 Mond | B136: =COUNTIF($H$13:$H$112,18) -> 1 | L136: 0 | M136: 0 | N136: 0 | O136: 0 | P136: 0 | Q136: 0 | R136: 0 | S136: 1978 | T136: 0 | U136: 0 | V136: 0 | W136: 0 | X136: 0 | Y136: 0 | Z136: 0 | AA136: 0 | AB136: 0 | AC136: 0 | AD136: 0 | AE136: 0 | AF136: 0 | AG136: 0
A137: 19 Sonne | B137: =COUNTIF($H$13:$H$112,19) -> 2 | L137: 0 | M137: 0 | N137: 0 | O137: 0 | P137: 0 | Q137: 0 | R137: 0 | S137: 0 | T137: 1979 | U137: 0 | V137: 0 | W137: 0 | X137: 0 | Y137: 0 | Z137: 0 | AA137: 0 | AB137: 0 | AC137: 0 | AD137: 0 | AE137: 0 | AF137: 0 | AG137: 0
A138: 20 Gericht | B138: =COUNTIF($H$13:$H$112,20) -> 2 | L138: 0 | M138: 0 | N138: 0 | O138: 0 | P138: 0 | Q138: 0 | R138: 0 | S138: 0 | T138: 0 | U138: 1980 | V138: 0 | W138: 0 | X138: 0 | Y138: 0 | Z138: 0 | AA138: 0 | AB138: 0 | AC138: 0 | AD138: 0 | AE138: 0 | AF138: 0 | AG138: 0
A139: 21 Welt | B139: =COUNTIF($H$13:$H$112,21) -> 2 | L139: 0 | M139: 1981 | N139: 0 | O139: 0 | P139: 0 | Q139: 0 | R139: 0 | S139: 0 | T139: 0 | U139: 0 | V139: 0 | W139: 0 | X139: 0 | Y139: 0 | Z139: 0 | AA139: 0 | AB139: 0 | AC139: 0 | AD139: 0 | AE139: 0 | AF139: 0 | AG139: 0
A140: 22 Narr | B140: =COUNTIF($H$13:$H$112,22) -> 2 | L140: 0 | M140: 0 | N140: 1982 | O140: 0 | P140: 0 | Q140: 0 | R140: 0 | S140: 0 | T140: 0 | U140: 0 | V140: 0 | W140: 0 | X140: 0 | Y140: 0 | Z140: 0 | AA140: 0 | AB140: 0 | AC140: 0 | AD140: 0 | AE140: 0 | AF140: 0 | AG140: 0
B141: =SUM(B119:B140) -> 100 | L141: 0 | M141: 0 | N141: 0 | O141: 1983 | P141: 0 | Q141: 0 | R141: 0 | S141: 0 | T141: 0 | U141: 0 | V141: 0 | W141: 0 | X141: 0 | Y141: 0 | Z141: 0 | AA141: 0 | AB141: 0 | AC141: 0 | AD141: 0 | AE141: 0 | AF141: 0 | AG141: 0
L142: 0 | M142: 0 | N142: 0 | O142: 0 | P142: 1984 | Q142: 0 | R142: 0 | S142: 0 | T142: 0 | U142: 0 | V142: 0 | W142: 0 | X142: 0 | Y142: 0 | Z142: 0 | AA142: 0 | AB142: 0 | AC142: 0 | AD142: 0 | AE142: 0 | AF142: 0 | AG142: 0
L143: 0 | M143: 0 | N143: 0 | O143: 0 | P143: 0 | Q143: 1985 | R143: 0 | S143: 0 | T143: 0 | U143: 0 | V143: 0 | W143: 0 | X143: 0 | Y143: 0 | Z143: 0 | AA143: 0 | AB143: 0 | AC143: 0 | AD143: 0 | AE143: 0 | AF143: 0 | AG143: 0
L144: 0 | M144: 0 | N144: 0 | O144: 0 | P144: 0 | Q144: 0 | R144: 1986 | S144: 0 | T144: 0 | U144: 0 | V144: 0 | W144: 0 | X144: 0 | Y144: 0 | Z144: 0 | AA144: 0 | AB144: 0 | AC144: 0 | AD144: 0 | AE144: 0 | AF144: 0 | AG144: 0
L145: 0 | M145: 0 | N145: 0 | O145: 0 | P145: 0 | Q145: 0 | R145: 0 | S145: 1987 | T145: 0 | U145: 0 | V145: 0 | W145: 0 | X145: 0 | Y145: 0 | Z145: 0 | AA145: 0 | AB145: 0 | AC145: 0 | AD145: 0 | AE145: 0 | AF145: 0 | AG145: 0
L146: 0 | M146: 0 | N146: 0 | O146: 0 | P146: 0 | Q146: 0 | R146: 0 | S146: 0 | T146: 1988 | U146: 0 | V146: 0 | W146: 0 | X146: 0 | Y146: 0 | Z146: 0 | AA146: 0 | AB146: 0 | AC146: 0 | AD146: 0 | AE146: 0 | AF146: 0 | AG146: 0
L147: 0 | M147: 0 | N147: 0 | O147: 0 | P147: 0 | Q147: 0 | R147: 0 | S147: 0 | T147: 0 | U147: 1989 | V147: 0 | W147: 0 | X147: 0 | Y147: 0 | Z147: 0 | AA147: 0 | AB147: 0 | AC147: 0 | AD147: 0 | AE147: 0 | AF147: 0 | AG147: 0
L148: 0 | M148: 0 | N148: 0 | O148: 0 | P148: 0 | Q148: 0 | R148: 0 | S148: 0 | T148: 0 | U148: 0 | V148: 1990 | W148: 0 | X148: 0 | Y148: 0 | Z148: 0 | AA148: 0 | AB148: 0 | AC148: 0 | AD148: 0 | AE148: 0 | AF148: 0 | AG148: 0
L149: 0 | M149: 0 | N149: 1991 | O149: 0 | P149: 0 | Q149: 0 | R149: 0 | S149: 0 | T149: 0 | U149: 0 | V149: 0 | W149: 0 | X149: 0 | Y149: 0 | Z149: 0 | AA149: 0 | AB149: 0 | AC149: 0 | AD149: 0 | AE149: 0 | AF149: 0 | AG149: 0
L150: 0 | M150: 0 | N150: 0 | O150: 1992 | P150: 0 | Q150: 0 | R150: 0 | S150: 0 | T150: 0 | U150: 0 | V150: 0 | W150: 0 | X150: 0 | Y150: 0 | Z150: 0 | AA150: 0 | AB150: 0 | AC150: 0 | AD150: 0 | AE150: 0 | AF150: 0 | AG150: 0
L151: 0 | M151: 0 | N151: 0 | O151: 0 | P151: 1993 | Q151: 0 | R151: 0 | S151: 0 | T151: 0 | U151: 0 | V151: 0 | W151: 0 | X151: 0 | Y151: 0 | Z151: 0 | AA151: 0 | AB151: 0 | AC151: 0 | AD151: 0 | AE151: 0 | AF151: 0 | AG151: 0
L152: 0 | M152: 0 | N152: 0 | O152: 0 | P152: 0 | Q152: 1994 | R152: 0 | S152: 0 | T152: 0 | U152: 0 | V152: 0 | W152: 0 | X152: 0 | Y152: 0 | Z152: 0 | AA152: 0 | AB152: 0 | AC152: 0 | AD152: 0 | AE152: 0 | AF152: 0 | AG152: 0
L153: 0 | M153: 0 | N153: 0 | O153: 0 | P153: 0 | Q153: 0 | R153: 1995 | S153: 0 | T153: 0 | U153: 0 | V153: 0 | W153: 0 | X153: 0 | Y153: 0 | Z153: 0 | AA153: 0 | AB153: 0 | AC153: 0 | AD153: 0 | AE153: 0 | AF153: 0 | AG153: 0
L154: 0 | M154: 0 | N154: 0 | O154: 0 | P154: 0 | Q154: 0 | R154: 0 | S154: 1996 | T154: 0 | U154: 0 | V154: 0 | W154: 0 | X154: 0 | Y154: 0 | Z154: 0 | AA154: 0 | AB154: 0 | AC154: 0 | AD154: 0 | AE154: 0 | AF154: 0 | AG154: 0
L155: 0 | M155: 0 | N155: 0 | O155: 0 | P155: 0 | Q155: 0 | R155: 0 | S155: 0 | T155: 1997 | U155: 0 | V155: 0 | W155: 0 | X155: 0 | Y155: 0 | Z155: 0 | AA155: 0 | AB155: 0 | AC155: 0 | AD155: 0 | AE155: 0 | AF155: 0 | AG155: 0
L156: 0 | M156: 0 | N156: 0 | O156: 0 | P156: 0 | Q156: 0 | R156: 0 | S156: 0 | T156: 0 | U156: 1998 | V156: 0 | W156: 0 | X156: 0 | Y156: 0 | Z156: 0 | AA156: 0 | AB156: 0 | AC156: 0 | AD156: 0 | AE156: 0 | AF156: 0 | AG156: 0
L157: 0 | M157: 0 | N157: 0 | O157: 0 | P157: 0 | Q157: 0 | R157: 0 | S157: 0 | T157: 0 | U157: 0 | V157: 1999 | W157: 0 | X157: 0 | Y157: 0 | Z157: 0 | AA157: 0 | AB157: 0 | AC157: 0 | AD157: 0 | AE157: 0 | AF157: 0 | AG157: 0
L158: 0 | M158: 0 | N158: 0 | O158: 0 | P158: 0 | Q158: 0 | R158: 0 | S158: 0 | T158: 0 | U158: 0 | V158: 0 | W158: 2000 | X158: 0 | Y158: 0 | Z158: 0 | AA158: 0 | AB158: 0 | AC158: 0 | AD158: 0 | AE158: 0 | AF158: 0 | AG158: 0
L159: 0 | M159: 0 | N159: 0 | O159: 2001 | P159: 0 | Q159: 0 | R159: 0 | S159: 0 | T159: 0 | U159: 0 | V159: 0 | W159: 0 | X159: 0 | Y159: 0 | Z159: 0 | AA159: 0 | AB159: 0 | AC159: 0 | AD159: 0 | AE159: 0 | AF159: 0 | AG159: 0
L160: 0 | M160: 0 | N160: 0 | O160: 0 | P160: 2002 | Q160: 0 | R160: 0 | S160: 0 | T160: 0 | U160: 0 | V160: 0 | W160: 0 | X160: 0 | Y160: 0 | Z160: 0 | AA160: 0 | AB160: 0 | AC160: 0 | AD160: 0 | AE160: 0 | AF160: 0 | AG160: 0
L161: 0 | M161: 0 | N161: 0 | O161: 0 | P161: 0 | Q161: 2003 | R161: 0 | S161: 0 | T161: 0 | U161: 0 | V161: 0 | W161: 0 | X161: 0 | Y161: 0 | Z161: 0 | AA161: 0 | AB161: 0 | AC161: 0 | AD161: 0 | AE161: 0 | AF161: 0 | AG161: 0
L162: 0 | M162: 0 | N162: 0 | O162: 0 | P162: 0 | Q162: 0 | R162: 2004 | S162: 0 | T162: 0 | U162: 0 | V162: 0 | W162: 0 | X162: 0 | Y162: 0 | Z162: 0 | AA162: 0 | AB162: 0 | AC162: 0 | AD162: 0 | AE162: 0 | AF162: 0 | AG162: 0
L163: 0 | M163: 0 | N163: 0 | O163: 0 | P163: 0 | Q163: 0 | R163: 0 | S163: 2005 | T163: 0 | U163: 0 | V163: 0 | W163: 0 | X163: 0 | Y163: 0 | Z163: 0 | AA163: 0 | AB163: 0 | AC163: 0 | AD163: 0 | AE163: 0 | AF163: 0 | AG163: 0
L164: 0 | M164: 0 | N164: 0 | O164: 0 | P164: 0 | Q164: 0 | R164: 0 | S164: 0 | T164: 2006 | U164: 0 | V164: 0 | W164: 0 | X164: 0 | Y164: 0 | Z164: 0 | AA164: 0 | AB164: 0 | AC164: 0 | AD164: 0 | AE164: 0 | AF164: 0 | AG164: 0
L165: 0 | M165: 0 | N165: 0 | O165: 0 | P165: 0 | Q165: 0 | R165: 0 | S165: 0 | T165: 0 | U165: 2007 | V165: 0 | W165: 0 | X165: 0 | Y165: 0 | Z165: 0 | AA165: 0 | AB165: 0 | AC165: 0 | AD165: 0 | AE165: 0 | AF165: 0 | AG165: 0
L166: 0 | M166: 0 | N166: 0 | O166: 0 | P166: 0 | Q166: 0 | R166: 0 | S166: 0 | T166: 0 | U166: 0 | V166: 2008 | W166: 0 | X166: 0 | Y166: 0 | Z166: 0 | AA166: 0 | AB166: 0 | AC166: 0 | AD166: 0 | AE166: 0 | AF166: 0 | AG166: 0
L167: 0 | M167: 0 | N167: 0 | O167: 0 | P167: 0 | Q167: 0 | R167: 0 | S167: 0 | T167: 0 | U167: 0 | V167: 0 | W167: 2009 | X167: 0 | Y167: 0 | Z167: 0 | AA167: 0 | AB167: 0 | AC167: 0 | AD167: 0 | AE167: 0 | AF167: 0 | AG167: 0
L168: 0 | M168: 0 | N168: 0 | O168: 0 | P168: 0 | Q168: 0 | R168: 0 | S168: 0 | T168: 0 | U168: 0 | V168: 0 | W168: 0 | X168: 2010 | Y168: 0 | Z168: 0 | AA168: 0 | AB168: 0 | AC168: 0 | AD168: 0 | AE168: 0 | AF168: 0 | AG168: 0
L169: 0 | M169: 0 | N169: 0 | O169: 0 | P169: 2011 | Q169: 0 | R169: 0 | S169: 0 | T169: 0 | U169: 0 | V169: 0 | W169: 0 | X169: 0 | Y169: 0 | Z169: 0 | AA169: 0 | AB169: 0 | AC169: 0 | AD169: 0 | AE169: 0 | AF169: 0 | AG169: 0
L170: 0 | M170: 0 | N170: 0 | O170: 0 | P170: 0 | Q170: 2012 | R170: 0 | S170: 0 | T170: 0 | U170: 0 | V170: 0 | W170: 0 | X170: 0 | Y170: 0 | Z170: 0 | AA170: 0 | AB170: 0 | AC170: 0 | AD170: 0 | AE170: 0 | AF170: 0 | AG170: 0
L171: 0 | M171: 0 | N171: 0 | O171: 0 | P171: 0 | Q171: 0 | R171: 2013 | S171: 0 | T171: 0 | U171: 0 | V171: 0 | W171: 0 | X171: 0 | Y171: 0 | Z171: 0 | AA171: 0 | AB171: 0 | AC171: 0 | AD171: 0 | AE171: 0 | AF171: 0 | AG171: 0
L172: 0 | M172: 0 | N172: 0 | O172: 0 | P172: 0 | Q172: 0 | R172: 0 | S172: 2014 | T172: 0 | U172: 0 | V172: 0 | W172: 0 | X172: 0 | Y172: 0 | Z172: 0 | AA172: 0 | AB172: 0 | AC172: 0 | AD172: 0 | AE172: 0 | AF172: 0 | AG172: 0
L173: 0 | M173: 0 | N173: 0 | O173: 0 | P173: 0 | Q173: 0 | R173: 0 | S173: 0 | T173: 2015 | U173: 0 | V173: 0 | W173: 0 | X173: 0 | Y173: 0 | Z173: 0 | AA173: 0 | AB173: 0 | AC173: 0 | AD173: 0 | AE173: 0 | AF173: 0 | AG173: 0
L174: 0 | M174: 0 | N174: 0 | O174: 0 | P174: 0 | Q174: 0 | R174: 0 | S174: 0 | T174: 0 | U174: 2016 | V174: 0 | W174: 0 | X174: 0 | Y174: 0 | Z174: 0 | AA174: 0 | AB174: 0 | AC174: 0 | AD174: 0 | AE174: 0 | AF174: 0 | AG174: 0
L175: 0 | M175: 0 | N175: 0 | O175: 0 | P175: 0 | Q175: 0 | R175: 0 | S175: 0 | T175: 0 | U175: 0 | V175: 2017 | W175: 0 | X175: 0 | Y175: 0 | Z175: 0 | AA175: 0 | AB175: 0 | AC175: 0 | AD175: 0 | AE175: 0 | AF175: 0 | AG175: 0
L176: 0 | M176: 0 | N176: 0 | O176: 0 | P176: 0 | Q176: 0 | R176: 0 | S176: 0 | T176: 0 | U176: 0 | V176: 0 | W176: 2018 | X176: 0 | Y176: 0 | Z176: 0 | AA176: 0 | AB176: 0 | AC176: 0 | AD176: 0 | AE176: 0 | AF176: 0 | AG176: 0
L177: 0 | M177: 0 | N177: 0 | O177: 0 | P177: 0 | Q177: 0 | R177: 0 | S177: 0 | T177: 0 | U177: 0 | V177: 0 | W177: 0 | X177: 2019 | Y177: 0 | Z177: 0 | AA177: 0 | AB177: 0 | AC177: 0 | AD177: 0 | AE177: 0 | AF177: 0 | AG177: 0
L178: 0 | M178: 0 | N178: 0 | O178: 0 | P178: 0 | Q178: 0 | R178: 0 | S178: 0 | T178: 0 | U178: 0 | V178: 0 | W178: 0 | X178: 0 | Y178: 2020 | Z178: 0 | AA178: 0 | AB178: 0 | AC178: 0 | AD178: 0 | AE178: 0 | AF178: 0 | AG178: 0
L179: 0 | M179: 0 | N179: 0 | O179: 0 | P179: 0 | Q179: 2021 | R179: 0 | S179: 0 | T179: 0 | U179: 0 | V179: 0 | W179: 0 | X179: 0 | Y179: 0 | Z179: 0 | AA179: 0 | AB179: 0 | AC179: 0 | AD179: 0 | AE179: 0 | AF179: 0 | AG179: 0
L180: 0 | M180: 0 | N180: 0 | O180: 0 | P180: 0 | Q180: 0 | R180: 2022 | S180: 0 | T180: 0 | U180: 0 | V180: 0 | W180: 0 | X180: 0 | Y180: 0 | Z180: 0 | AA180: 0 | AB180: 0 | AC180: 0 | AD180: 0 | AE180: 0 | AF180: 0 | AG180: 0
L181: 0 | M181: 0 | N181: 0 | O181: 0 | P181: 0 | Q181: 0 | R181: 0 | S181: 2023 | T181: 0 | U181: 0 | V181: 0 | W181: 0 | X181: 0 | Y181: 0 | Z181: 0 | AA181: 0 | AB181: 0 | AC181: 0 | AD181: 0 | AE181: 0 | AF181: 0 | AG181: 0
L182: 0 | M182: 0 | N182: 0 | O182: 0 | P182: 0 | Q182: 0 | R182: 0 | S182: 0 | T182: 2024 | U182: 0 | V182: 0 | W182: 0 | X182: 0 | Y182: 0 | Z182: 0 | AA182: 0 | AB182: 0 | AC182: 0 | AD182: 0 | AE182: 0 | AF182: 0 | AG182: 0
L183: 0 | M183: 0 | N183: 0 | O183: 0 | P183: 0 | Q183: 0 | R183: 0 | S183: 0 | T183: 0 | U183: 2025 | V183: 0 | W183: 0 | X183: 0 | Y183: 0 | Z183: 0 | AA183: 0 | AB183: 0 | AC183: 0 | AD183: 0 | AE183: 0 | AF183: 0 | AG183: 0
L184: 0 | M184: 0 | N184: 0 | O184: 0 | P184: 0 | Q184: 0 | R184: 0 | S184: 0 | T184: 0 | U184: 0 | V184: 2026 | W184: 0 | X184: 0 | Y184: 0 | Z184: 0 | AA184: 0 | AB184: 0 | AC184: 0 | AD184: 0 | AE184: 0 | AF184: 0 | AG184: 0
L185: 0 | M185: =IF(H78=2,C78,0) -> 0 | N185: =IF(H78=3,C78,0) -> 0 | O185: =IF(H78=4,C78,0) -> 0 | P185: =IF(H78=5,C78,0) -> 0 | Q185: =IF(H78=6,C78,0) -> 0 | R185: =IF(H78=7,C78,0) -> 0 | S185: =IF(H78=8,C78,0) -> 0 | T185: =IF(H78=9,C78,0) -> 0 | U185: =IF(H78=10,C78,0) -> 0 | V185: =IF(H78=11,C78,0) -> 0 | W185: =IF(H78=12,C78,0) -> 2027 | X185: =IF(H78=13,C78,0) -> 0 | Y185: =IF(H78=14,C78,0) -> 0 | Z185: =IF(H78=15,C78,0) -> 0 | AA185: =IF(H78=16,C78,0) -> 0 | AB185: =IF(H78=17,C78,0) -> 0 | AC185: =IF(H78=18,C78,0) -> 0 | AD185: =IF(H78=19,C78,0) -> 0 | AE185: =IF(H78=20,C78,0) -> 0 | AF185: =IF(H78=21,C78,0) -> 0 | AG185: =IF(H78=22,C78,0) -> 0
L186: =IF(H79=1,C79,0) -> 0 | M186: 0 | N186: 0 | O186: 0 | P186: 0 | Q186: 0 | R186: 0 | S186: 0 | T186: 0 | U186: 0 | V186: 0 | W186: 0 | X186: 2028 | Y186: 0 | Z186: 0 | AA186: 0 | AB186: 0 | AC186: 0 | AD186: 0 | AE186: 0 | AF186: 0 | AG186: 0
L187: 0 | M187: 0 | N187: 0 | O187: 0 | P187: 0 | Q187: 0 | R187: 0 | S187: 0 | T187: 0 | U187: 0 | V187: 0 | W187: 0 | X187: 0 | Y187: 2029 | Z187: 0 | AA187: 0 | AB187: 0 | AC187: 0 | AD187: 0 | AE187: 0 | AF187: 0 | AG187: 0
L188: 0 | M188: 0 | N188: 0 | O188: 0 | P188: 0 | Q188: 0 | R188: 0 | S188: 0 | T188: 0 | U188: 0 | V188: 0 | W188: 0 | X188: 0 | Y188: 0 | Z188: 2030 | AA188: 0 | AB188: 0 | AC188: 0 | AD188: 0 | AE188: 0 | AF188: 0 | AG188: 0
L189: 0 | M189: 0 | N189: 0 | O189: 0 | P189: 0 | Q189: 0 | R189: 2031 | S189: 0 | T189: 0 | U189: 0 | V189: 0 | W189: 0 | X189: 0 | Y189: 0 | Z189: 0 | AA189: 0 | AB189: 0 | AC189: 0 | AD189: 0 | AE189: 0 | AF189: 0 | AG189: 0
L190: 0 | M190: 0 | N190: 0 | O190: 0 | P190: 0 | Q190: 0 | R190: 0 | S190: 2032 | T190: 0 | U190: 0 | V190: 0 | W190: 0 | X190: 0 | Y190: 0 | Z190: 0 | AA190: 0 | AB190: 0 | AC190: 0 | AD190: 0 | AE190: 0 | AF190: 0 | AG190: 0
L191: 0 | M191: 0 | N191: 0 | O191: 0 | P191: 0 | Q191: 0 | R191: 0 | S191: 0 | T191: 2033 | U191: 0 | V191: 0 | W191: 0 | X191: 0 | Y191: 0 | Z191: 0 | AA191: 0 | AB191: 0 | AC191: 0 | AD191: 0 | AE191: 0 | AF191: 0 | AG191: 0
L192: 0 | M192: 0 | N192: 0 | O192: 0 | P192: 0 | Q192: 0 | R192: 0 | S192: 0 | T192: 0 | U192: 2034 | V192: 0 | W192: 0 | X192: 0 | Y192: 0 | Z192: 0 | AA192: 0 | AB192: 0 | AC192: 0 | AD192: 0 | AE192: 0 | AF192: 0 | AG192: 0
L193: 0 | M193: 0 | N193: =IF(H86=3,C86,0) -> 0 | O193: 0 | P193: 0 | Q193: 0 | R193: 0 | S193: 0 | T193: 0 | U193: 0 | V193: 2035 | W193: 0 | X193: 0 | Y193: 0 | Z193: 0 | AA193: 0 | AB193: 0 | AC193: 0 | AD193: 0 | AE193: 0 | AF193: 0 | AG193: 0
L194: 0 | M194: 0 | N194: =IF(H87=3,C87,0) -> 0 | O194: 0 | P194: 0 | Q194: 0 | R194: 0 | S194: 0 | T194: 0 | U194: 0 | V194: 0 | W194: 2036 | X194: 0 | Y194: 0 | Z194: 0 | AA194: 0 | AB194: 0 | AC194: 0 | AD194: 0 | AE194: 0 | AF194: 0 | AG194: 0
L195: 0 | M195: 0 | N195: 0 | O195: 0 | P195: 0 | Q195: 0 | R195: 0 | S195: 0 | T195: 0 | U195: 0 | V195: 0 | W195: 0 | X195: 2037 | Y195: 0 | Z195: 0 | AA195: 0 | AB195: 0 | AC195: 0 | AD195: 0 | AE195: 0 | AF195: 0 | AG195: 0
L196: 0 | M196: 0 | N196: 0 | O196: 0 | P196: 0 | Q196: 0 | R196: 0 | S196: 0 | T196: 0 | U196: 0 | V196: 0 | W196: 0 | X196: 0 | Y196: 2038 | Z196: 0 | AA196: 0 | AB196: 0 | AC196: 0 | AD196: 0 | AE196: 0 | AF196: 0 | AG196: 0
L197: 0 | M197: 0 | N197: 0 | O197: 0 | P197: 0 | Q197: 0 | R197: 0 | S197: 0 | T197: 0 | U197: 0 | V197: 0 | W197: 0 | X197: 0 | Y197: 0 | Z197: 2039 | AA197: 0 | AB197: 0 | AC197: 0 | AD197: 0 | AE197: 0 | AF197: 0 | AG197: 0
L198: 0 | M198: 0 | N198: 0 | O198: 0 | P198: 0 | Q198: 0 | R198: 0 | S198: 0 | T198: 0 | U198: 0 | V198: 0 | W198: 0 | X198: 0 | Y198: 0 | Z198: 0 | AA198: 2040 | AB198: 0 | AC198: 0 | AD198: 0 | AE198: 0 | AF198: 0 | AG198: 0
L199: 0 | M199: 0 | N199: 0 | O199: 0 | P199: 0 | Q199: 0 | R199: 0 | S199: 2041 | T199: 0 | U199: 0 | V199: 0 | W199: 0 | X199: 0 | Y199: 0 | Z199: 0 | AA199: 0 | AB199: 0 | AC199: 0 | AD199: 0 | AE199: 0 | AF199: 0 | AG199: 0
L200: 0 | M200: 0 | N200: 0 | O200: 0 | P200: 0 | Q200: 0 | R200: 0 | S200: 0 | T200: 2042 | U200: 0 | V200: 0 | W200: 0 | X200: 0 | Y200: 0 | Z200: 0 | AA200: 0 | AB200: 0 | AC200: 0 | AD200: 0 | AE200: 0 | AF200: 0 | AG200: 0
L201: 0 | M201: 0 | N201: 0 | O201: 0 | P201: 0 | Q201: 0 | R201: 0 | S201: 0 | T201: 0 | U201: 2043 | V201: 0 | W201: 0 | X201: 0 | Y201: 0 | Z201: 0 | AA201: 0 | AB201: 0 | AC201: 0 | AD201: 0 | AE201: 0 | AF201: 0 | AG201: 0
L202: 0 | M202: 0 | N202: 0 | O202: 0 | P202: 0 | Q202: 0 | R202: 0 | S202: 0 | T202: 0 | U202: 0 | V202: 2044 | W202: 0 | X202: 0 | Y202: 0 | Z202: 0 | AA202: 0 | AB202: 0 | AC202: 0 | AD202: 0 | AE202: 0 | AF202: 0 | AG202: 0
L203: 0 | M203: 0 | N203: 0 | O203: 0 | P203: 0 | Q203: 0 | R203: 0 | S203: 0 | T203: 0 | U203: 0 | V203: 0 | W203: 2045 | X203: 0 | Y203: 0 | Z203: 0 | AA203: 0 | AB203: 0 | AC203: 0 | AD203: 0 | AE203: 0 | AF203: 0 | AG203: 0
L204: 0 | M204: 0 | N204: 0 | O204: 0 | P204: 0 | Q204: 0 | R204: 0 | S204: 0 | T204: 0 | U204: 0 | V204: 0 | W204: 0 | X204: 2046 | Y204: 0 | Z204: 0 | AA204: 0 | AB204: 0 | AC204: 0 | AD204: 0 | AE204: 0 | AF204: 0 | AG204: 0
L205: 0 | M205: 0 | N205: 0 | O205: 0 | P205: 0 | Q205: 0 | R205: 0 | S205: 0 | T205: 0 | U205: 0 | V205: 0 | W205: 0 | X205: 0 | Y205: 2047 | Z205: 0 | AA205: 0 | AB205: 0 | AC205: 0 | AD205: 0 | AE205: 0 | AF205: 0 | AG205: 0
L206: 0 | M206: 0 | N206: 0 | O206: 0 | P206: 0 | Q206: 0 | R206: 0 | S206: 0 | T206: 0 | U206: 0 | V206: 0 | W206: 0 | X206: 0 | Y206: 0 | Z206: 2048 | AA206: 0 | AB206: 0 | AC206: 0 | AD206: 0 | AE206: 0 | AF206: 0 | AG206: 0
L207: 0 | M207: 0 | N207: 0 | O207: 0 | P207: 0 | Q207: 0 | R207: 0 | S207: 0 | T207: 0 | U207: 0 | V207: 0 | W207: 0 | X207: 0 | Y207: 0 | Z207: 0 | AA207: 2049 | AB207: 0 | AC207: 0 | AD207: 0 | AE207: 0 | AF207: 0 | AG207: 0
L208: 0 | M208: 0 | N208: 0 | O208: 0 | P208: 0 | Q208: 0 | R208: 0 | S208: 0 | T208: 0 | U208: 0 | V208: 0 | W208: 0 | X208: 0 | Y208: 0 | Z208: 0 | AA208: 0 | AB208: 2050 | AC208: 0 | AD208: 0 | AE208: 0 | AF208: 0 | AG208: 0
L209: 0 | M209: 0 | N209: 0 | O209: 0 | P209: 0 | Q209: 0 | R209: 0 | S209: 0 | T209: 2051 | U209: 0 | V209: 0 | W209: 0 | X209: 0 | Y209: 0 | Z209: 0 | AA209: 0 | AB209: 0 | AC209: 0 | AD209: 0 | AE209: 0 | AF209: 0 | AG209: 0
L210: 0 | M210: 0 | N210: 0 | O210: 0 | P210: 0 | Q210: 0 | R210: 0 | S210: 0 | T210: 0 | U210: 2052 | V210: 0 | W210: 0 | X210: 0 | Y210: 0 | Z210: 0 | AA210: 0 | AB210: 0 | AC210: 0 | AD210: 0 | AE210: 0 | AF210: 0 | AG210: 0
L211: 0 | M211: 0 | N211: 0 | O211: 0 | P211: 0 | Q211: 0 | R211: 0 | S211: 0 | T211: 0 | U211: 0 | V211: 2053 | W211: 0 | X211: 0 | Y211: 0 | Z211: 0 | AA211: 0 | AB211: 0 | AC211: 0 | AD211: 0 | AE211: 0 | AF211: 0 | AG211: 0
L212: 0 | M212: 0 | N212: 0 | O212: 0 | P212: 0 | Q212: 0 | R212: 0 | S212: 0 | T212: 0 | U212: 0 | V212: 0 | W212: 2054 | X212: 0 | Y212: 0 | Z212: 0 | AA212: 0 | AB212: 0 | AC212: 0 | AD212: 0 | AE212: 0 | AF212: 0 | AG212: 0
... 7 more rows

Sheet Horoskop (hidden)
A22: Jahr JJJJ | B22: Monat | C22: Tag | D22: Stunde | E22: Vorname | F22: Name
A23: 1964 | B23: 8 | C23: 28 | D23: 7 | E23: Beispiel | F23: Aufbau 3
A27: Das Horoskop | B27: für | D27: =$E$23 -> Beispiel | E27: =$F$23 -> Aufbau 3 | G27: Resultat | H27: Bewusst | I27: Unbewusst
A28: Jahr | B28: Atziluth | C28: Feuer | D28: König | E28: Geist, wollen | F28: =$A$23 -> 1964 | G28: =SUMPRODUCT(MID(F28,ROW(INDIRECT("1:"&LEN(F28))),1)*1) -> 20 | H28: =IF(G28>22,SUMPRODUCT(VALUE(MID(G28,ROW(INDIRECT("$b1:$A"&LEN(G28))),1))),G28) -> 20 | I28: =IF(H28>9,SUMPRODUCT(VALUE(MID(H28,ROW(INDIRECT("$b1:$A"&LEN(H28))),1))),H28+9) -> 2
A30: Monat | B30: Briah | C30: Wasser | D30: Königin | E30: Seele, fühlen | F30: =$A$23+$B$23 -> 1972 | G30: =SUMPRODUCT(MID(F30,ROW(INDIRECT("1:"&LEN(F30))),1)*1) -> 19 | H30: =IF(G30>22,SUMPRODUCT(VALUE(MID(G30,ROW(INDIRECT("$b1:$A"&LEN(G30))),1))),G30) -> 19 | I30: =IF(H30>9,SUMPRODUCT(VALUE(MID(H30,ROW(INDIRECT("$b1:$A"&LEN(H30))),1))),H30+9) -> 10
A32: Tag | B32: Jetzirah | C32: Luft | D32: Ritter | E32: Verstand, denken | F32: =$A$23+$B$23+$C$23 -> 2000 | G32: =SUMPRODUCT(MID(F32,ROW(INDIRECT("1:"&LEN(F32))),1)*1) -> 2 | H32: =IF(G32>22,SUMPRODUCT(VALUE(MID(G32,ROW(INDIRECT("$b1:$A"&LEN(G32))),1))),G32) -> 2 | I32: =IF(H32>9,SUMPRODUCT(VALUE(MID(H32,ROW(INDIRECT("$b1:$A"&LEN(H32))),1))),H32+9) -> 11
A34: Stunde | B34: Assiah | C34: Erde | D34: Bube | E34: Körper, handeln | F34: =$A$23+$B$23+$C$23+$D$23 -> 2007 | G34: =SUMPRODUCT(MID(F34,ROW(INDIRECT("1:"&LEN(F34))),1)*1) -> 9 | H34: =IF(G34>22,SUMPRODUCT(VALUE(MID(G34,ROW(INDIRECT("$b1:$A"&LEN(G34))),1))),G34) -> 9 | I34: =IF(H34>9,SUMPRODUCT(VALUE(MID(H34,ROW(INDIRECT("$b1:$A"&LEN(H34))),1))),H34+9) -> 18

Sheet Allg. Jahre
A1: Jahreskarten
A5: Jahr | C5: Jahreskarte | E5: Konstellation | F5: Gruppe | H5: Jahr | J5: Jahreskarte | L5: Konstellation | M5: Gruppe | O5: Jahr | Q5: Jahreskarte | S5: Konstellation | T5: Gruppe
A6: 1800 | B6: =SUMPRODUCT(MID(A6,ROW(INDIRECT("1:"&LEN(A6))),1)*1) -> 9 | C6: =IF(B6>22,SUMPRODUCT(VALUE(MID(B6,ROW(INDIRECT("$b1:$A"&LEN(B6))),1))),B6) -> 9 | D6: =VLOOKUP(C6,$A$111:$D$132,2,FALSE) -> Eremit | E6: =VLOOKUP(C6,$A$111:$D$132,3,FALSE) -> 9 Eremit | F6: =VLOOKUP(C6,$A$111:$D$132,4,FALSE) -> 3 Horus | H6: 1900 | I6: =SUMPRODUCT(MID(H6,ROW(INDIRECT("1:"&LEN(H6))),1)*1) -> 10 | J6: =IF(I6>22,SUMPRODUCT(VALUE(MID(I6,ROW(INDIRECT("$b1:$A"&LEN(I6))),1))),I6) -> 10 | K6: =VLOOKUP(J6,$A$111:$D$132,2,FALSE) -> Rad | L6: =VLOOKUP(J6,$A$111:$D$132,3,FALSE) -> 1 Magier | M6: =VLOOKUP(J6,$A$111:$D$132,4,FALSE) -> 1 Osiris | O6: 2000 | P6: =SUMPRODUCT(MID(O6,ROW(INDIRECT("1:"&LEN(O6))),1)*1) -> 2 | Q6: =IF(P6>22,SUMPRODUCT(VALUE(MID(P6,ROW(INDIRECT("$b1:$A"&LEN(P6))),1))),P6) -> 2 | R6: =VLOOKUP(Q6,$A$111:$D$132,2,FALSE) -> Hohepriesterin | S6: =VLOOKUP(Q6,$A$111:$D$132,3,FALSE) -> 2 Hohepriesterin | T6: =VLOOKUP(Q6,$A$111:$D$132,4,FALSE) -> 2 Isis
A7: 1801 | B7: =SUMPRODUCT(MID(A7,ROW(INDIRECT("1:"&LEN(A7))),1)*1) -> 10 | C7: =IF(B7>22,SUMPRODUCT(VALUE(MID(B7,ROW(INDIRECT("$b1:$A"&LEN(B7))),1))),B7) -> 10 | D7: =VLOOKUP(C7,$A$111:$D$132,2,FALSE) -> Rad | E7: =VLOOKUP(C7,$A$111:$D$132,3,FALSE) -> 1 Magier | F7: =VLOOKUP(C7,$A$111:$D$132,4,FALSE) -> 1 Osiris | H7: 1901 | I7: =SUMPRODUCT(MID(H7,ROW(INDIRECT("1:"&LEN(H7))),1)*1) -> 11 | J7: =IF(I7>22,SUMPRODUCT(VALUE(MID(I7,ROW(INDIRECT("$b1:$A"&LEN(I7))),1))),I7) -> 11 | K7: =VLOOKUP(J7,$A$111:$D$132,2,FALSE) -> Gerechtigkeit | L7: =VLOOKUP(J7,$A$111:$D$132,3,FALSE) -> 2 Hohepriesterin | M7: =VLOOKUP(J7,$A$111:$D$132,4,FALSE) -> 2 Isis | O7: 2001 | P7: =SUMPRODUCT(MID(O7,ROW(INDIRECT("1:"&LEN(O7))),1)*1) -> 3 | Q7: =IF(P7>22,SUMPRODUCT(VALUE(MID(P7,ROW(INDIRECT("$b1:$A"&LEN(P7))),1))),P7) -> 3 | R7: =VLOOKUP(Q7,$A$111:$D$132,2,FALSE) -> Herrscherin | S7: =VLOOKUP(Q7,$A$111:$D$132,3,FALSE) -> 3 Herrscherin | T7: =VLOOKUP(Q7,$A$111:$D$132,4,FALSE) -> 3 Horus
A8: 1802 | B8: 11 | C8: 11 | D8: Gerechtigkeit | E8: 2 Hohepriesterin | F8: 2 Isis | H8: 1902 | I8: 12 | J8: 12 | K8: Gehängter | L8: 3 Herrscherin | M8: 3 Horus | O8: 2002 | P8: 4 | Q8: 4 | R8: Herrscher | S8: 4 Herrscher | T8: 1 Osiris
A9: 1803 | B9: 12 | C9: 12 | D9: Gehängter | E9: 3 Herrscherin | F9: 3 Horus | H9: 1903 | I9: 13 | J9: 13 | K9: Tod | L9: 4 Herrscher | M9: 1 Osiris | O9: 2003 | P9: 5 | Q9: 5 | R9: Hierophant | S9: 5 Hierophant | T9: 2 Isis
A10: 1804 | B10: 13 | C10: 13 | D10: Tod | E10: 4 Herrscher | F10: 1 Osiris | H10: 1904 | I10: 14 | J10: 14 | K10: Mässigkeit | L10: 5 Hierophant | M10: 2 Isis | O10: 2004 | P10: 6 | Q10: 6 | R10: Liebende | S10: 6 Liebende | T10: 3 Horus
A11: 1805 | B11: 14 | C11: 14 | D11: Mässigkeit | E11: 5 Hierophant | F11: 2 Isis | H11: 1905 | I11: 15 | J11: 15 | K11: Teufel | L11: 6 Liebende | M11: 3 Horus | O11: 2005 | P11: 7 | Q11: 7 | R11: Wagen | S11: 7 Wagen | T11: 1 Osiris
A12: 1806 | B12: 15 | C12: 15 | D12: Teufel | E12: 6 Liebende | F12: 3 Horus | H12: 1906 | I12: 16 | J12: 16 | K12: Turm | L12: 7 Wagen | M12: 1 Osiris | O12: 2006 | P12: 8 | Q12: 8 | R12: Kraft | S12: 8 Kraft | T12: 2 Isis
A13: 1807 | B13: 16 | C13: 16 | D13: Turm | E13: 7 Wagen | F13: 1 Osiris | H13: 1907 | I13: 17 | J13: 17 | K13: Stern | L13: 8 Kraft | M13: 2 Isis | O13: 2007 | P13: 9 | Q13: 9 | R13: Eremit | S13: 9 Eremit | T13: 3 Horus
A14: 1808 | B14: 17 | C14: 17 | D14: Stern | E14: 8 Kraft | F14: 2 Isis | H14: 1908 | I14: 18 | J14: 18 | K14: Mond | L14: 9 Eremit | M14: 3 Horus | O14: 2008 | P14: 10 | Q14: 10 | R14: Rad | S14: 1 Magier | T14: 1 Osiris
A15: 1809 | B15: 18 | C15: 18 | D15: Mond | E15: 9 Eremit | F15: 3 Horus | H15: 1909 | I15: 19 | J15: 19 | K15: Sonne | L15: 1 Magier | M15: 1 Osiris | O15: 2009 | P15: 11 | Q15: 11 | R15: Gerechtigkeit | S15: 2 Hohepriesterin | T15: 2 Isis
A16: 1810 | B16: 10 | C16: 10 | D16: Rad | E16: 1 Magier | F16: 1 Osiris | H16: 1910 | I16: 11 | J16: 11 | K16: Gerechtigkeit | L16: 2 Hohepriesterin | M16: 2 Isis | O16: 2010 | P16: 3 | Q16: 3 | R16: Herrscherin | S16: 3 Herrscherin | T16: 3 Horus
A17: 1811 | B17: 11 | C17: 11 | D17: Gerechtigkeit | E17: 2 Hohepriesterin | F17: 2 Isis | H17: 1911 | I17: 12 | J17: 12 | K17: Gehängter | L17: 3 Herrscherin | M17: 3 Horus | O17: 2011 | P17: 4 | Q17: 4 | R17: Herrscher | S17: 4 Herrscher | T17: 1 Osiris
A18: 1812 | B18: 12 | C18: 12 | D18: Gehängter | E18: 3 Herrscherin | F18: 3 Horus | H18: 1912 | I18: 13 | J18: 13 | K18: Tod | L18: 4 Herrscher | M18: 1 Osiris | O18: 2012 | P18: 5 | Q18: 5 | R18: Hierophant | S18: 5 Hierophant | T18: 2 Isis
A19: 1813 | B19: 13 | C19: 13 | D19: Tod | E19: 4 Herrscher | F19: 1 Osiris | H19: 1913 | I19: 14 | J19: 14 | K19: Mässigkeit | L19: 5 Hierophant | M19: 2 Isis | O19: 2013 | P19: 6 | Q19: 6 | R19: Liebende | S19: 6 Liebende | T19: 3 Horus
A20: 1814 | B20: 14 | C20: 14 | D20: Mässigkeit | E20: 5 Hierophant | F20: 2 Isis | H20: 1914 | I20: 15 | J20: 15 | K20: Teufel | L20: 6 Liebende | M20: 3 Horus | O20: 2014 | P20: 7 | Q20: 7 | R20: Wagen | S20: 7 Wagen | T20: 1 Osiris
A21: 1815 | B21: 15 | C21: 15 | D21: Teufel | E21: 6 Liebende | F21: 3 Horus | H21: 1915 | I21: 16 | J21: 16 | K21: Turm | L21: 7 Wagen | M21: 1 Osiris | O21: 2015 | P21: 8 | Q21: 8 | R21: Kraft | S21: 8 Kraft | T21: 2 Isis
A22: 1816 | B22: 16 | C22: 16 | D22: Turm | E22: 7 Wagen | F22: 1 Osiris | H22: 1916 | I22: 17 | J22: 17 | K22: Stern | L22: 8 Kraft | M22: 2 Isis | O22: 2016 | P22: 9 | Q22: 9 | R22: Eremit | S22: 9 Eremit | T22: 3 Horus
A23: 1817 | B23: 17 | C23: 17 | D23: Stern | E23: 8 Kraft | F23: 2 Isis | H23: 1917 | I23: 18 | J23: 18 | K23: Mond | L23: 9 Eremit | M23: 3 Horus | O23: 2017 | P23: 10 | Q23: 10 | R23: Rad | S23: 1 Magier | T23: 1 Osiris
A24: 1818 | B24: 18 | C24: 18 | D24: Mond | E24: 9 Eremit | F24: 3 Horus | H24: 1918 | I24: 19 | J24: 19 | K24: Sonne | L24: 1 Magier | M24: 1 Osiris | O24: 2018 | P24: 11 | Q24: 11 | R24: Gerechtigkeit | S24: 2 Hohepriesterin | T24: 2 Isis
A25: 1819 | B25: 19 | C25: 19 | D25: Sonne | E25: 1 Magier | F25: 1 Osiris | H25: 1919 | I25: 20 | J25: 20 | K25: Gericht | L25: 2 Hohepriesterin | M25: 2 Isis | O25: 2019 | P25: 12 | Q25: 12 | R25: Gehängter | S25: 3 Herrscherin | T25: 3 Horus
A26: 1820 | B26: 11 | C26: 11 | D26: Gerechtigkeit | E26: 2 Hohepriesterin | F26: 2 Isis | H26: 1920 | I26: 12 | J26: 12 | K26: Gehängter | L26: 3 Herrscherin | M26: 3 Horus | O26: 2020 | P26: 4 | Q26: 4 | R26: Herrscher | S26: 4 Herrscher | T26: 1 Osiris
A27: 1821 | B27: 12 | C27: 12 | D27: Gehängter | E27: 3 Herrscherin | F27: 3 Horus | H27: 1921 | I27: 13 | J27: 13 | K27: Tod | L27: 4 Herrscher | M27: 1 Osiris | O27: 2021 | P27: 5 | Q27: 5 | R27: Hierophant | S27: 5 Hierophant | T27: 2 Isis
A28: 1822 | B28: 13 | C28: 13 | D28: Tod | E28: 4 Herrscher | F28: 1 Osiris | H28: 1922 | I28: 14 | J28: 14 | K28: Mässigkeit | L28: 5 Hierophant | M28: 2 Isis | O28: 2022 | P28: 6 | Q28: 6 | R28: Liebende | S28: 6 Liebende | T28: 3 Horus
A29: 1823 | B29: 14 | C29: 14 | D29: Mässigkeit | E29: 5 Hierophant | F29: 2 Isis | H29: 1923 | I29: 15 | J29: 15 | K29: Teufel | L29: 6 Liebende | M29: 3 Horus | O29: 2023 | P29: 7 | Q29: 7 | R29: Wagen | S29: 7 Wagen | T29: 1 Osiris
A30: 1824 | B30: 15 | C30: 15 | D30: Teufel | E30: 6 Liebende | F30: 3 Horus | H30: 1924 | I30: 16 | J30: 16 | K30: Turm | L30: 7 Wagen | M30: 1 Osiris | O30: 2024 | P30: 8 | Q30: 8 | R30: Kraft | S30: 8 Kraft | T30: 2 Isis
A31: 1825 | B31: 16 | C31: 16 | D31: Turm | E31: 7 Wagen | F31: 1 Osiris | H31: 1925 | I31: 17 | J31: 17 | K31: Stern | L31: 8 Kraft | M31: 2 Isis | O31: 2025 | P31: 9 | Q31: 9 | R31: Eremit | S31: 9 Eremit | T31: 3 Horus
A32: 1826 | B32: 17 | C32: 17 | D32: Stern | E32: 8 Kraft | F32: 2 Isis | H32: 1926 | I32: 18 | J32: 18 | K32: Mond | L32: 9 Eremit | M32: 3 Horus | O32: 2026 | P32: 10 | Q32: 10 | R32: Rad | S32: 1 Magier | T32: 1 Osiris
A33: 1827 | B33: 18 | C33: 18 | D33: Mond | E33: 9 Eremit | F33: 3 Horus | H33: 1927 | I33: 19 | J33: 19 | K33: Sonne | L33: 1 Magier | M33: 1 Osiris | O33: 2027 | P33: 11 | Q33: 11 | R33: Gerechtigkeit | S33: 2 Hohepriesterin | T33: 2 Isis
A34: 1828 | B34: 19 | C34: 19 | D34: Sonne | E34: 1 Magier | F34: 1 Osiris | H34: 1928 | I34: 20 | J34: 20 | K34: Gericht | L34: 2 Hohepriesterin | M34: 2 Isis | O34: 2028 | P34: 12 | Q34: 12 | R34: Gehängter | S34: 3 Herrscherin | T34: 3 Horus
A35: 1829 | B35: 20 | C35: 20 | D35: Gericht | E35: 2 Hohepriesterin | F35: 2 Isis | H35: 1929 | I35: 21 | J35: 21 | K35: Welt | L35: 3 Herrscherin | M35: 3 Horus | O35: 2029 | P35: 13 | Q35: 13 | R35: Tod | S35: 4 Herrscher | T35: 1 Osiris
A36: 1830 | B36: 12 | C36: 12 | D36: Gehängter | E36: 3 Herrscherin | F36: 3 Horus | H36: 1930 | I36: 13 | J36: 13 | K36: Tod | L36: 4 Herrscher | M36: 1 Osiris | O36: 2030 | P36: 5 | Q36: 5 | R36: Hierophant | S36: 5 Hierophant | T36: 2 Isis
A37: 1831 | B37: 13 | C37: 13 | D37: Tod | E37: 4 Herrscher | F37: 1 Osiris | H37: 1931 | I37: 14 | J37: 14 | K37: Mässigkeit | L37: 5 Hierophant | M37: 2 Isis | O37: 2031 | P37: 6 | Q37: 6 | R37: Liebende | S37: 6 Liebende | T37: 3 Horus
A38: 1832 | B38: 14 | C38: 14 | D38: Mässigkeit | E38: 5 Hierophant | F38: 2 Isis | H38: 1932 | I38: 15 | J38: 15 | K38: Teufel | L38: 6 Liebende | M38: 3 Horus | O38: 2032 | P38: 7 | Q38: 7 | R38: Wagen | S38: 7 Wagen | T38: 1 Osiris
A39: 1833 | B39: 15 | C39: 15 | D39: Teufel | E39: 6 Liebende | F39: 3 Horus | H39: 1933 | I39: 16 | J39: 16 | K39: Turm | L39: 7 Wagen | M39: 1 Osiris | O39: 2033 | P39: 8 | Q39: 8 | R39: Kraft | S39: 8 Kraft | T39: 2 Isis
A40: 1834 | B40: 16 | C40: 16 | D40: Turm | E40: 7 Wagen | F40: 1 Osiris | H40: 1934 | I40: 17 | J40: 17 | K40: Stern | L40: 8 Kraft | M40: 2 Isis | O40: 2034 | P40: 9 | Q40: 9 | R40: Eremit | S40: 9 Eremit | T40: 3 Horus
A41: 1835 | B41: 17 | C41: 17 | D41: Stern | E41: 8 Kraft | F41: 2 Isis | H41: 1935 | I41: 18 | J41: 18 | K41: Mond | L41: 9 Eremit | M41: 3 Horus | O41: 2035 | P41: 10 | Q41: 10 | R41: Rad | S41: 1 Magier | T41: 1 Osiris
A42: 1836 | B42: 18 | C42: 18 | D42: Mond | E42: 9 Eremit | F42: 3 Horus | H42: 1936 | I42: 19 | J42: 19 | K42: Sonne | L42: 1 Magier | M42: 1 Osiris | O42: 2036 | P42: 11 | Q42: 11 | R42: Gerechtigkeit | S42: 2 Hohepriesterin | T42: 2 Isis
A43: 1837 | B43: 19 | C43: 19 | D43: Sonne | E43: 1 Magier | F43: 1 Osiris | H43: 1937 | I43: 20 | J43: 20 | K43: Gericht | L43: 2 Hohepriesterin | M43: 2 Isis | O43: 2037 | P43: 12 | Q43: 12 | R43: Gehängter | S43: 3 Herrscherin | T43: 3 Horus
A44: 1838 | B44: 20 | C44: 20 | D44: Gericht | E44: 2 Hohepriesterin | F44: 2 Isis | H44: 1938 | I44: 21 | J44: 21 | K44: Welt | L44: 3 Herrscherin | M44: 3 Horus | O44: 2038 | P44: 13 | Q44: 13 | R44: Tod | S44: 4 Herrscher | T44: 1 Osiris
A45: 1839 | B45: 21 | C45: 21 | D45: Welt | E45: 3 Herrscherin | F45: 3 Horus | H45: 1939 | I45: 22 | J45: 22 | K45: Narr | L45: 4 Herrscher | M45: 1 Osiris | O45: 2039 | P45: 14 | Q45: 14 | R45: Mässigkeit | S45: 5 Hierophant | T45: 2 Isis
A46: 1840 | B46: 13 | C46: 13 | D46: Tod | E46: 4 Herrscher | F46: 1 Osiris | H46: 1940 | I46: 14 | J46: 14 | K46: Mässigkeit | L46: 5 Hierophant | M46: 2 Isis | O46: 2040 | P46: 6 | Q46: 6 | R46: Liebende | S46: 6 Liebende | T46: 3 Horus
A47: 1841 | B47: 14 | C47: 14 | D47: Mässigkeit | E47: 5 Hierophant | F47: 2 Isis | H47: 1941 | I47: 15 | J47: 15 | K47: Teufel | L47: 6 Liebende | M47: 3 Horus | O47: 2041 | P47: 7 | Q47: 7 | R47: Wagen | S47: 7 Wagen | T47: 1 Osiris
A48: 1842 | B48: 15 | C48: 15 | D48: Teufel | E48: 6 Liebende | F48: 3 Horus | H48: 1942 | I48: 16 | J48: 16 | K48: Turm | L48: 7 Wagen | M48: 1 Osiris | O48: 2042 | P48: 8 | Q48: 8 | R48: Kraft | S48: 8 Kraft | T48: 2 Isis
A49: 1843 | B49: 16 | C49: 16 | D49: Turm | E49: 7 Wagen | F49: 1 Osiris | H49: 1943 | I49: 17 | J49: 17 | K49: Stern | L49: 8 Kraft | M49: 2 Isis | O49: 2043 | P49: 9 | Q49: 9 | R49: Eremit | S49: 9 Eremit | T49: 3 Horus
A50: 1844 | B50: 17 | C50: 17 | D50: Stern | E50: 8 Kraft | F50: 2 Isis | H50: 1944 | I50: 18 | J50: 18 | K50: Mond | L50: 9 Eremit | M50: 3 Horus | O50: 2044 | P50: 10 | Q50: 10 | R50: Rad | S50: 1 Magier | T50: 1 Osiris
A51: 1845 | B51: 18 | C51: 18 | D51: Mond | E51: 9 Eremit | F51: 3 Horus | H51: 1945 | I51: 19 | J51: 19 | K51: Sonne | L51: 1 Magier | M51: 1 Osiris | O51: 2045 | P51: 11 | Q51: 11 | R51: Gerechtigkeit | S51: 2 Hohepriesterin | T51: 2 Isis
A52: 1846 | B52: 19 | C52: 19 | D52: Sonne | E52: 1 Magier | F52: 1 Osiris | H52: 1946 | I52: 20 | J52: 20 | K52: Gericht | L52: 2 Hohepriesterin | M52: 2 Isis | O52: 2046 | P52: 12 | Q52: 12 | R52: Gehängter | S52: 3 Herrscherin | T52: 3 Horus
A53: 1847 | B53: 20 | C53: 20 | D53: Gericht | E53: 2 Hohepriesterin | F53: 2 Isis | H53: 1947 | I53: 21 | J53: 21 | K53: Welt | L53: 3 Herrscherin | M53: 3 Horus | O53: 2047 | P53: 13 | Q53: 13 | R53: Tod | S53: 4 Herrscher | T53: 1 Osiris
A54: 1848 | B54: 21 | C54: 21 | D54: Welt | E54: 3 Herrscherin | F54: 3 Horus | H54: 1948 | I54: 22 | J54: 22 | K54: Narr | L54: 4 Herrscher | M54: 1 Osiris | O54: 2048 | P54: 14 | Q54: 14 | R54: Mässigkeit | S54: 5 Hierophant | T54: 2 Isis
A55: 1849 | B55: 22 | C55: 22 | D55: Narr | E55: 4 Herrscher | F55: 1 Osiris | H55: 1949 | I55: 23 | J55: 5 | K55: Hierophant | L55: 5 Hierophant | M55: 2 Isis | O55: 2049 | P55: 15 | Q55: 15 | R55: Teufel | S55: 6 Liebende | T55: 3 Horus
A56: 1850 | B56: 14 | C56: 14 | D56: Mässigkeit | E56: 5 Hierophant | F56: 2 Isis | H56: 1950 | I56: 15 | J56: 15 | K56: Teufel | L56: 6 Liebende | M56: 3 Horus | O56: 2050 | P56: 7 | Q56: 7 | R56: Wagen | S56: 7 Wagen | T56: 1 Osiris
A57: 1851 | B57: 15 | C57: 15 | D57: Teufel | E57: 6 Liebende | F57: 3 Horus | H57: 1951 | I57: 16 | J57: 16 | K57: Turm | L57: 7 Wagen | M57: 1 Osiris | O57: 2051 | P57: 8 | Q57: 8 | R57: Kraft | S57: 8 Kraft | T57: 2 Isis
A58: 1852 | B58: 16 | C58: 16 | D58: Turm | E58: 7 Wagen | F58: 1 Osiris | H58: 1952 | I58: 17 | J58: 17 | K58: Stern | L58: 8 Kraft | M58: 2 Isis | O58: 2052 | P58: 9 | Q58: 9 | R58: Eremit | S58: 9 Eremit | T58: 3 Horus
A59: 1853 | B59: 17 | C59: 17 | D59: Stern | E59: 8 Kraft | F59: 2 Isis | H59: 1953 | I59: 18 | J59: 18 | K59: Mond | L59: 9 Eremit | M59: 3 Horus | O59: 2053 | P59: 10 | Q59: 10 | R59: Rad | S59: 1 Magier | T59: 1 Osiris
A60: 1854 | B60: 18 | C60: 18 | D60: Mond | E60: 9 Eremit | F60: 3 Horus | H60: 1954 | I60: 19 | J60: 19 | K60: Sonne | L60: 1 Magier | M60: 1 Osiris | O60: 2054 | P60: 11 | Q60: 11 | R60: Gerechtigkeit | S60: 2 Hohepriesterin | T60: 2 Isis
A61: 1855 | B61: 19 | C61: 19 | D61: Sonne | E61: 1 Magier | F61: 1 Osiris | H61: 1955 | I61: 20 | J61: 20 | K61: Gericht | L61: 2 Hohepriesterin | M61: 2 Isis | O61: 2055 | P61: 12 | Q61: 12 | R61: Gehängter | S61: 3 Herrscherin | T61: 3 Horus
A62: 1856 | B62: 20 | C62: 20 | D62: Gericht | E62: 2 Hohepriesterin | F62: 2 Isis | H62: 1956 | I62: 21 | J62: 21 | K62: Welt | L62: 3 Herrscherin | M62: 3 Horus | O62: 2056 | P62: 13 | Q62: 13 | R62: Tod | S62: 4 Herrscher | T62: 1 Osiris
A63: 1857 | B63: 21 | C63: 21 | D63: Welt | E63: 3 Herrscherin | F63: 3 Horus | H63: 1957 | I63: 22 | J63: 22 | K63: Narr | L63: 4 Herrscher | M63: 1 Osiris | O63: 2057 | P63: 14 | Q63: 14 | R63: Mässigkeit | S63: 5 Hierophant | T63: 2 Isis
A64: 1858 | B64: 22 | C64: 22 | D64: Narr | E64: 4 Herrscher | F64: 1 Osiris | H64: 1958 | I64: 23 | J64: 5 | K64: Hierophant | L64: 5 Hierophant | M64: 2 Isis | O64: 2058 | P64: 15 | Q64: 15 | R64: Teufel | S64: 6 Liebende | T64: 3 Horus
A65: 1859 | B65: 23 | C65: 5 | D65: Hierophant | E65: 5 Hierophant | F65: 2 Isis | H65: 1959 | I65: 24 | J65: 6 | K65: Liebende | L65: 6 Liebende | M65: 3 Horus | O65: 2059 | P65: 16 | Q65: 16 | R65: Turm | S65: 7 Wagen | T65: 1 Osiris
A66: 1860 | B66: 15 | C66: 15 | D66: Teufel | E66: 6 Liebende | F66: 3 Horus | H66: 1960 | I66: 16 | J66: 16 | K66: Turm | L66: 7 Wagen | M66: 1 Osiris | O66: 2060 | P66: 8 | Q66: 8 | R66: Kraft | S66: 8 Kraft | T66: 2 Isis
A67: 1861 | B67: 16 | C67: 16 | D67: Turm | E67: 7 Wagen | F67: 1 Osiris | H67: 1961 | I67: 17 | J67: 17 | K67: Stern | L67: 8 Kraft | M67: 2 Isis | O67: 2061 | P67: 9 | Q67: 9 | R67: Eremit | S67: 9 Eremit | T67: 3 Horus
A68: 1862 | B68: 17 | C68: 17 | D68: Stern | E68: 8 Kraft | F68: 2 Isis | H68: 1962 | I68: 18 | J68: 18 | K68: Mond | L68: 9 Eremit | M68: 3 Horus | O68: 2062 | P68: 10 | Q68: 10 | R68: Rad | S68: 1 Magier | T68: 1 Osiris
A69: 1863 | B69: 18 | C69: 18 | D69: Mond | E69: 9 Eremit | F69: 3 Horus | H69: 1963 | I69: 19 | J69: 19 | K69: Sonne | L69: 1 Magier | M69: 1 Osiris | O69: 2063 | P69: 11 | Q69: 11 | R69: Gerechtigkeit | S69: 2 Hohepriesterin | T69: 2 Isis
A70: 1864 | B70: 19 | C70: 19 | D70: Sonne | E70: 1 Magier | F70: 1 Osiris | H70: 1964 | I70: 20 | J70: 20 | K70: Gericht | L70: 2 Hohepriesterin | M70: 2 Isis | O70: 2064 | P70: 12 | Q70: 12 | R70: Gehängter | S70: 3 Herrscherin | T70: 3 Horus
A71: 1865 | B71: =SUMPRODUCT(MID(A71,ROW(INDIRECT("1:"&LEN(A71))),1)*1) -> 20 | C71: =IF(B71>22,SUMPRODUCT(VALUE(MID(B71,ROW(INDIRECT("$b1:$A"&LEN(B71))),1))),B71) -> 20 | D71: =VLOOKUP(C71,$A$111:$D$132,2,FALSE) -> Gericht | E71: =VLOOKUP(C71,$A$111:$D$132,3,FALSE) -> 2 Hohepriesterin | F71: =VLOOKUP(C71,$A$111:$D$132,4,FALSE) -> 2 Isis | H71: 1965 | I71: =SUMPRODUCT(MID(H71,ROW(INDIRECT("1:"&LEN(H71))),1)*1) -> 21 | J71: =IF(I71>22,SUMPRODUCT(VALUE(MID(I71,ROW(INDIRECT("$b1:$A"&LEN(I71))),1))),I71) -> 21 | K71: =VLOOKUP(J71,$A$111:$D$132,2,FALSE) -> Welt | L71: =VLOOKUP(J71,$A$111:$D$132,3,FALSE) -> 3 Herrscherin | M71: =VLOOKUP(J71,$A$111:$D$132,4,FALSE) -> 3 Horus | O71: 2065 | P71: =SUMPRODUCT(MID(O71,ROW(INDIRECT("1:"&LEN(O71))),1)*1) -> 13 | Q71: =IF(P71>22,SUMPRODUCT(VALUE(MID(P71,ROW(INDIRECT("$b1:$A"&LEN(P71))),1))),P71) -> 13 | R71: =VLOOKUP(Q71,$A$111:$D$132,2,FALSE) -> Tod | S71: =VLOOKUP(Q71,$A$111:$D$132,3,FALSE) -> 4 Herrscher | T71: =VLOOKUP(Q71,$A$111:$D$132,4,FALSE) -> 1 Osiris
A72: 1866 | B72: 21 | C72: 21 | D72: Welt | E72: 3 Herrscherin | F72: 3 Horus | H72: 1966 | I72: 22 | J72: 22 | K72: Narr | L72: 4 Herrscher | M72: 1 Osiris | O72: 2066 | P72: 14 | Q72: 14 | R72: Mässigkeit | S72: 5 Hierophant | T72: 2 Isis
A73: 1867 | B73: 22 | C73: 22 | D73: Narr | E73: 4 Herrscher | F73: 1 Osiris | H73: 1967 | I73: 23 | J73: 5 | K73: Hierophant | L73: 5 Hierophant | M73: 2 Isis | O73: 2067 | P73: 15 | Q73: 15 | R73: Teufel | S73: 6 Liebende | T73: 3 Horus
A74: 1868 | B74: 23 | C74: 5 | D74: Hierophant | E74: 5 Hierophant | F74: 2 Isis | H74: 1968 | I74: 24 | J74: 6 | K74: Liebende | L74: 6 Liebende | M74: 3 Horus | O74: 2068 | P74: 16 | Q74: 16 | R74: Turm | S74: 7 Wagen | T74: 1 Osiris
A75: 1869 | B75: 24 | C75: 6 | D75: Liebende | E75: 6 Liebende | F75: 3 Horus | H75: 1969 | I75: 25 | J75: 7 | K75: Wagen | L75: 7 Wagen | M75: 1 Osiris | O75: 2069 | P75: 17 | Q75: 17 | R75: Stern | S75: 8 Kraft | T75: 2 Isis
A76: 1870 | B76: 16 | C76: 16 | D76: Turm | E76: 7 Wagen | F76: 1 Osiris | H76: 1970 | I76: 17 | J76: 17 | K76: Stern | L76: 8 Kraft | M76: 2 Isis | O76: 2070 | P76: 9 | Q76: 9 | R76: Eremit | S76: 9 Eremit | T76: 3 Horus
A77: 1871 | B77: 17 | C77: 17 | D77: Stern | E77: 8 Kraft | F77: 2 Isis | H77: 1971 | I77: 18 | J77: 18 | K77: Mond | L77: 9 Eremit | M77: 3 Horus | O77: 2071 | P77: 10 | Q77: 10 | R77: Rad | S77: 1 Magier | T77: 1 Osiris
A78: 1872 | B78: 18 | C78: 18 | D78: Mond | E78: 9 Eremit | F78: 3 Horus | H78: 1972 | I78: 19 | J78: 19 | K78: Sonne | L78: 1 Magier | M78: 1 Osiris | O78: 2072 | P78: 11 | Q78: 11 | R78: Gerechtigkeit | S78: 2 Hohepriesterin | T78: 2 Isis
A79: 1873 | B79: 19 | C79: 19 | D79: Sonne | E79: 1 Magier | F79: 1 Osiris | H79: 1973 | I79: 20 | J79: 20 | K79: Gericht | L79: 2 Hohepriesterin | M79: 2 Isis | O79: 2073 | P79: 12 | Q79: 12 | R79: Gehängter | S79: 3 Herrscherin | T79: 3 Horus
A80: 1874 | B80: 20 | C80: 20 | D80: Gericht | E80: 2 Hohepriesterin | F80: 2 Isis | H80: 1974 | I80: 21 | J80: 21 | K80: Welt | L80: 3 Herrscherin | M80: 3 Horus | O80: 2074 | P80: 13 | Q80: 13 | R80: Tod | S80: 4 Herrscher | T80: 1 Osiris
A81: 1875 | B81: 21 | C81: 21 | D81: Welt | E81: 3 Herrscherin | F81: 3 Horus | H81: 1975 | I81: 22 | J81: 22 | K81: Narr | L81: 4 Herrscher | M81: 1 Osiris | O81: 2075 | P81: 14 | Q81: 14 | R81: Mässigkeit | S81: 5 Hierophant | T81: 2 Isis
A82: 1876 | B82: 22 | C82: 22 | D82: Narr | E82: 4 Herrscher | F82: 1 Osiris | H82: 1976 | I82: 23 | J82: 5 | K82: Hierophant | L82: 5 Hierophant | M82: 2 Isis | O82: 2076 | P82: 15 | Q82: 15 | R82: Teufel | S82: 6 Liebende | T82: 3 Horus
A83: 1877 | B83: 23 | C83: 5 | D83: Hierophant | E83: 5 Hierophant | F83: 2 Isis | H83: 1977 | I83: 24 | J83: 6 | K83: Liebende | L83: 6 Liebende | M83: 3 Horus | O83: 2077 | P83: 16 | Q83: 16 | R83: Turm | S83: 7 Wagen | T83: 1 Osiris
A84: 1878 | B84: 24 | C84: 6 | D84: Liebende | E84: 6 Liebende | F84: 3 Horus | H84: 1978 | I84: 25 | J84: 7 | K84: Wagen | L84: 7 Wagen | M84: 1 Osiris | O84: 2078 | P84: 17 | Q84: 17 | R84: Stern | S84: 8 Kraft | T84: 2 Isis
A85: 1879 | B85: 25 | C85: 7 | D85: Wagen | E85: 7 Wagen | F85: 1 Osiris | H85: 1979 | I85: 26 | J85: 8 | K85: Kraft | L85: 8 Kraft | M85: 2 Isis | O85: 2079 | P85: 18 | Q85: 18 | R85: Mond | S85: 9 Eremit | T85: 3 Horus
A86: 1880 | B86: 17 | C86: 17 | D86: Stern | E86: 8 Kraft | F86: 2 Isis | H86: 1980 | I86: 18 | J86: 18 | K86: Mond | L86: 9 Eremit | M86: 3 Horus | O86: 2080 | P86: 10 | Q86: 10 | R86: Rad | S86: 1 Magier | T86: 1 Osiris
A87: 1881 | B87: 18 | C87: 18 | D87: Mond | E87: 9 Eremit | F87: 3 Horus | H87: 1981 | I87: 19 | J87: 19 | K87: Sonne | L87: 1 Magier | M87: 1 Osiris | O87: 2081 | P87: 11 | Q87: 11 | R87: Gerechtigkeit | S87: 2 Hohepriesterin | T87: 2 Isis
A88: 1882 | B88: 19 | C88: 19 | D88: Sonne | E88: 1 Magier | F88: 1 Osiris | H88: 1982 | I88: 20 | J88: 20 | K88: Gericht | L88: 2 Hohepriesterin | M88: 2 Isis | O88: 2082 | P88: 12 | Q88: 12 | R88: Gehängter | S88: 3 Herrscherin | T88: 3 Horus
A89: 1883 | B89: 20 | C89: 20 | D89: Gericht | E89: 2 Hohepriesterin | F89: 2 Isis | H89: 1983 | I89: 21 | J89: 21 | K89: Welt | L89: 3 Herrscherin | M89: 3 Horus | O89: 2083 | P89: 13 | Q89: 13 | R89: Tod | S89: 4 Herrscher | T89: 1 Osiris
A90: 1884 | B90: 21 | C90: 21 | D90: Welt | E90: 3 Herrscherin | F90: 3 Horus | H90: 1984 | I90: 22 | J90: 22 | K90: Narr | L90: 4 Herrscher | M90: 1 Osiris | O90: 2084 | P90: 14 | Q90: 14 | R90: Mässigkeit | S90: 5 Hierophant | T90: 2 Isis
A91: 1885 | B91: 22 | C91: 22 | D91: Narr | E91: 4 Herrscher | F91: 1 Osiris | H91: 1985 | I91: 23 | J91: 5 | K91: Hierophant | L91: 5 Hierophant | M91: 2 Isis | O91: 2085 | P91: 15 | Q91: 15 | R91: Teufel | S91: 6 Liebende | T91: 3 Horus
A92: 1886 | B92: 23 | C92: 5 | D92: Hierophant | E92: 5 Hierophant | F92: 2 Isis | H92: 1986 | I92: 24 | J92: 6 | K92: Liebende | L92: 6 Liebende | M92: 3 Horus | O92: 2086 | P92: 16 | Q92: 16 | R92: Turm | S92: 7 Wagen | T92: 1 Osiris
A93: 1887 | B93: 24 | C93: 6 | D93: Liebende | E93: 6 Liebende | F93: 3 Horus | H93: 1987 | I93: 25 | J93: 7 | K93: Wagen | L93: 7 Wagen | M93: 1 Osiris | O93: 2087 | P93: 17 | Q93: 17 | R93: Stern | S93: 8 Kraft | T93: 2 Isis
A94: 1888 | B94: 25 | C94: 7 | D94: Wagen | E94: 7 Wagen | F94: 1 Osiris | H94: 1988 | I94: 26 | J94: 8 | K94: Kraft | L94: 8 Kraft | M94: 2 Isis | O94: 2088 | P94: 18 | Q94: 18 | R94: Mond | S94: 9 Eremit | T94: 3 Horus
A95: 1889 | B95: 26 | C95: 8 | D95: Kraft | E95: 8 Kraft | F95: 2 Isis | H95: 1989 | I95: 27 | J95: 9 | K95: Eremit | L95: 9 Eremit | M95: 3 Horus | O95: 2089 | P95: 19 | Q95: 19 | R95: Sonne | S95: 1 Magier | T95: 1 Osiris
A96: 1890 | B96: 18 | C96: 18 | D96: Mond | E96: 9 Eremit | F96: 3 Horus | H96: 1990 | I96: 19 | J96: 19 | K96: Sonne | L96: 1 Magier | M96: 1 Osiris | O96: 2090 | P96: 11 | Q96: 11 | R96: Gerechtigkeit | S96: 2 Hohepriesterin | T96: 2 Isis
A97: 1891 | B97: 19 | C97: 19 | D97: Sonne | E97: 1 Magier | F97: 1 Osiris | H97: 1991 | I97: 20 | J97: 20 | K97: Gericht | L97: 2 Hohepriesterin | M97: 2 Isis | O97: 2091 | P97: 12 | Q97: 12 | R97: Gehängter | S97: 3 Herrscherin | T97: 3 Horus
A98: 1892 | B98: 20 | C98: 20 | D98: Gericht | E98: 2 Hohepriesterin | F98: 2 Isis | H98: 1992 | I98: 21 | J98: 21 | K98: Welt | L98: 3 Herrscherin | M98: 3 Horus | O98: 2092 | P98: 13 | Q98: 13 | R98: Tod | S98: 4 Herrscher | T98: 1 Osiris
A99: 1893 | B99: 21 | C99: 21 | D99: Welt | E99: 3 Herrscherin | F99: 3 Horus | H99: 1993 | I99: 22 | J99: 22 | K99: Narr | L99: 4 Herrscher | M99: 1 Osiris | O99: 2093 | P99: 14 | Q99: 14 | R99: Mässigkeit | S99: 5 Hierophant | T99: 2 Isis
A100: 1894 | B100: 22 | C100: 22 | D100: Narr | E100: 4 Herrscher | F100: 1 Osiris | H100: 1994 | I100: 23 | J100: 5 | K100: Hierophant | L100: 5 Hierophant | M100: 2 Isis | O100: 2094 | P100: 15 | Q100: 15 | R100: Teufel | S100: 6 Liebende | T100: 3 Horus
A101: 1895 | B101: 23 | C101: 5 | D101: Hierophant | E101: 5 Hierophant | F101: 2 Isis | H101: 1995 | I101: 24 | J101: 6 | K101: Liebende | L101: 6 Liebende | M101: 3 Horus | O101: 2095 | P101: 16 | Q101: 16 | R101: Turm | S101: 7 Wagen | T101: 1 Osiris
A102: 1896 | B102: 24 | C102: 6 | D102: Liebende | E102: 6 Liebende | F102: 3 Horus | H102: 1996 | I102: 25 | J102: 7 | K102: Wagen | L102: 7 Wagen | M102: 1 Osiris | O102: 2096 | P102: 17 | Q102: 17 | R102: Stern | S102: 8 Kraft | T102: 2 Isis
A103: 1897 | B103: 25 | C103: 7 | D103: Wagen | E103: 7 Wagen | F103: 1 Osiris | H103: 1997 | I103: 26 | J103: 8 | K103: Kraft | L103: 8 Kraft | M103: 2 Isis | O103: 2097 | P103: 18 | Q103: 18 | R103: Mond | S103: 9 Eremit | T103: 3 Horus
A104: 1898 | B104: 26 | C104: 8 | D104: Kraft | E104: 8 Kraft | F104: 2 Isis | H104: 1998 | I104: 27 | J104: 9 | K104: Eremit | L104: 9 Eremit | M104: 3 Horus | O104: 2098 | P104: 19 | Q104: 19 | R104: Sonne | S104: 1 Magier | T104: 1 Osiris
A105: 1899 | B105: 27 | C105: 9 | D105: Eremit | E105: 9 Eremit | F105: 3 Horus | H105: 1999 | I105: 28 | J105: 10 | K105: Rad | L105: 1 Magier | M105: 1 Osiris | O105: 2099 | P105: 20 | Q105: 20 | R105: Gericht | S105: 2 Hohepriesterin | T105: 2 Isis
A111: 1 | B111: Magier | C111: 1 Magier | D111: 1 Osiris
A112: 2 | B112: Hohepriesterin | C112: 2 Hohepriesterin | D112: 2 Isis
A113: 3 | B113: Herrscherin | C113: 3 Herrscherin | D113: 3 Horus
A114: 4 | B114: Herrscher | C114: 4 Herrscher | D114: 1 Osiris
A115: 5 | B115: Hierophant | C115: 5 Hierophant | D115: 2 Isis
A116: 6 | B116: Liebende | C116: 6 Liebende | D116: 3 Horus
A117: 7 | B117: Wagen | C117: 7 Wagen | D117: 1 Osiris
A118: 8 | B118: Kraft | C118: 8 Kraft | D118: 2 Isis
A119: 9 | B119: Eremit | C119: 9 Eremit | D119: 3 Horus
A120: 10 | B120: Rad | C120: 1 Magier | D120: 1 Osiris
A121: 11 | B121: Gerechtigkeit | C121: 2 Hohepriesterin | D121: 2 Isis
A122: 12 | B122: Gehängter | C122: 3 Herrscherin | D122: 3 Horus
A123: 13 | B123: Tod | C123: 4 Herrscher | D123: 1 Osiris
A124: 14 | B124: Mässigkeit | C124: 5 Hierophant | D124: 2 Isis
A125: 15 | B125: Teufel | C125: 6 Liebende | D125: 3 Horus
A126: 16 | B126: Turm | C126: 7 Wagen | D126: 1 Osiris
A127: 17 | B127: Stern | C127: 8 Kraft | D127: 2 Isis
A128: 18 | B128: Mond | C128: 9 Eremit | D128: 3 Horus
A129: 19 | B129: Sonne | C129: 1 Magier | D129: 1 Osiris
A130: 20 | B130: Gericht | C130: 2 Hohepriesterin | D130: 2 Isis
A131: 21 | B131: Welt | C131: 3 Herrscherin | D131: 3 Horus
A132: 22 | B132: Narr | C132: 4 Herrscher | D132: 1 Osiris

Sheet Namensanalyse (hidden)
A1: Die Berechnungen der Namensanalyse | B1: für | C1: =Jahreskarten!E8 -> Zum | D1: =Jahreskarten!F8 -> Beispiel
A2: Bitte denken Sie daran, dass der Buchstabe "Y" ein Vokal oder ein Konsonant sein kann. In Xylophon oder Mary ist es ein Vokal. Er wird als ü oder i gesprochen.
A3: In Yoga, Beyoncé oder Yak ist es ein Konsonant. Dann wird das Y als J gesprochen. Wenn das Y im Namen ein Vokal ist, schreiben Sie es wie gewohnt als y.
A4: Wenn das Y aber ein Konsonant ist, dann tragen Sie im Namen "yj" ein. So kann das Programm erkennen, ob es sich um einen Vokal oder einen Konsonanten handelt.
A5: Schreiben Sie das scharfe S (β) immer als doppeltes S. Statt Straβe schreiben Sie also Strasse. Französische Akzente wie é, è oder ë lassen Sie weg, genauso wie die Tilde bei ñ. Sie verändern den Buchstabenwert nicht.
B6: Jahr | C6: Monat | D6: Tag
A7: Geben Sie auf dem Blatt "Jahreskarten" Ihr Geburtsdatum ein: | B7: =Jahreskarten!A8 -> 1962 | C7: =Jahreskarten!B8 -> 7 | D7: =Jahreskarten!C8 -> 12
A8: Vorname | B8: a | C8: n | D8: d | E8: r | F8: e | G8: 0 | H8: 0
B9: =IF(B8="a",1,IF(B8="b",2,IF(B8="c",3,IF(B8="d",4,IF(B8="e",5,IF(B8="f",6,IF(B8="g",7,IF(B8="h",8,IF(B8="i",9,IF(B8="j",10,IF(B8="k",11,IF(B8="l",12,IF(B8="m",13,IF(B8="n",14,IF(B8="o",15,IF(B8="p",16,IF(B8="q",17,IF(B8="r",18,IF(B8="s",19,IF(B8="t",20,IF(B8="u",21,IF(B8="v",22,IF(B8="w",23,IF(B8="x",24,IF(B8="y",25,IF(B8="yj",25,IF(B8="z",26,0))))))))))))))))))))))))))) -> 1 | C9: =IF(C8="a",1,IF(C8="b",2,IF(C8="c",3,IF(C8="d",4,IF(C8="e",5,IF(C8="f",6,IF(C8="g",7,IF(C8="h",8,IF(C8="i",9,IF(C8="j",10,IF(C8="k",11,IF(C8="l",12,IF(C8="m",13,IF(C8="n",14,IF(C8="o",15,IF(C8="p",16,IF(C8="q",17,IF(C8="r",18,IF(C8="s",19,IF(C8="t",20,IF(C8="u",21,IF(C8="v",22,IF(C8="w",23,IF(C8="x",24,IF(C8="y",25,IF(C8="yj",25,IF(C8="z",26,0))))))))))))))))))))))))))) -> 14 | D9: =IF(D8="a",1,IF(D8="b",2,IF(D8="c",3,IF(D8="d",4,IF(D8="e",5,IF(D8="f",6,IF(D8="g",7,IF(D8="h",8,IF(D8="i",9,IF(D8="j",10,IF(D8="k",11,IF(D8="l",12,IF(D8="m",13,IF(D8="n",14,IF(D8="o",15,IF(D8="p",16,IF(D8="q",17,IF(D8="r",18,IF(D8="s",19,IF(D8="t",20,IF(D8="u",21,IF(D8="v",22,IF(D8="w",23,IF(D8="x",24,IF(D8="y",25,IF(D8="yj",25,IF(D8="z",26,0))))))))))))))))))))))))))) -> 4 | E9: =IF(E8="a",1,IF(E8="b",2,IF(E8="c",3,IF(E8="d",4,IF(E8="e",5,IF(E8="f",6,IF(E8="g",7,IF(E8="h",8,IF(E8="i",9,IF(E8="j",10,IF(E8="k",11,IF(E8="l",12,IF(E8="m",13,IF(E8="n",14,IF(E8="o",15,IF(E8="p",16,IF(E8="q",17,IF(E8="r",18,IF(E8="s",19,IF(E8="t",20,IF(E8="u",21,IF(E8="v",22,IF(E8="w",23,IF(E8="x",24,IF(E8="y",25,IF(E8="yj",25,IF(E8="z",26,0))))))))))))))))))))))))))) -> 18 | F9: =IF(F8="a",1,IF(F8="b",2,IF(F8="c",3,IF(F8="d",4,IF(F8="e",5,IF(F8="f",6,IF(F8="g",7,IF(F8="h",8,IF(F8="i",9,IF(F8="j",10,IF(F8="k",11,IF(F8="l",12,IF(F8="m",13,IF(F8="n",14,IF(F8="o",15,IF(F8="p",16,IF(F8="q",17,IF(F8="r",18,IF(F8="s",19,IF(F8="t",20,IF(F8="u",21,IF(F8="v",22,IF(F8="w",23,IF(F8="x",24,IF(F8="y",25,IF(F8="yj",25,IF(F8="z",26,0))))))))))))))))))))))))))) -> 5 | G9: =IF(G8="a",1,IF(G8="b",2,IF(G8="c",3,IF(G8="d",4,IF(G8="e",5,IF(G8="f",6,IF(G8="g",7,IF(G8="h",8,IF(G8="i",9,IF(G8="j",10,IF(G8="k",11,IF(G8="l",12,IF(G8="m",13,IF(G8="n",14,IF(G8="o",15,IF(G8="p",16,IF(G8="q",17,IF(G8="r",18,IF(G8="s",19,IF(G8="t",20,IF(G8="u",21,IF(G8="v",22,IF(G8="w",23,IF(G8="x",24,IF(G8="y",25,IF(G8="yj",25,IF(G8="z",26,0))))))))))))))))))))))))))) -> 0 | H9: 0 | I9: 0 | J9: 0 | K9: 0 | L9: 0 | M9: 0 | N9: 0 | O9: 0 | P9: 0 | Q9: 0 | R9: 0 | S9: 0 | T9: =SUM(B9:S9) -> 42 | U9: =IF(T9>22,SUMPRODUCT(VALUE(MID(T9,ROW(INDIRECT("$b1:$A"&LEN(T9))),1))),T9) -> 6 | Z9: =B9 -> 1 | AA9: =C9 -> 14 | AB9: =D9 -> 4 | AC9: 18 | AD9: 5 | AE9: 0 | AF9: 0 | AG9: 0 | AH9: 0 | AI9: 0 | AJ9: 0 | AK9: 0 | AL9: 0 | AM9: 0 | AN9: 0 | AO9: 0 | AP9: 0 | AQ9: 0 | AR9: =B11 -> 16 | AS9: =C11 -> 9 | AT9: =D11 -> 5 | AU9: 18 | AV9: 18 | AW9: 5 | AX9: 0 | AY9: 0 | AZ9: 0 | BA9: 0 | BB9: 0 | BC9: 0 | BD9: 0 | BE9: 0 | BF9: 0 | BG9: 0 | BH9: 0 | BI9: 0 | BJ9: =B13 -> 0 | BK9: =C13 -> 0 | BL9: 0 | BM9: 0 | BN9: 0 | BO9: 0 | BP9: 0 | BQ9: 0 | BR9: 0 | BS9: 0 | BT9: 0 | BU9: 0 | BV9: 0 | BW9: 0 | BX9: 0 | BY9: 0 | BZ9: =R13 -> 0 | CA9: =S13 -> 0 | CB9: =B15 -> 0 | CC9: =C15 -> 0 | CD9: 0 | CE9: 0 | CF9: 0 | CG9: 0 | CH9: 0 | CI9: 0 | CJ9: 0 | CK9: 0 | CL9: 0 | CM9: 0 | CN9: 0 | CO9: 0 | CP9: =P15 -> 0 | CQ9: =Q15 -> 0 | CR9: =R15 -> 0 | CS9: =S15 -> 0 | CT9: =B17 -> 16 | CU9: =C17 -> 1 | CV9: 19 | CW9: 20 | CX9: 5 | CY9: 21 | CZ9: 18 | DA9: 0 | DB9: 0 | DC9: 0 | DD9: 0 | DE9: 0 | DF9: 0 | DG9: 0 | DH9: 0 | DI9: 0 | DJ9: 0 | DK9: 0
A10: Mittlerer Name 1 | B10: p | C10: i | D10: e | E10: r | F10: r | G10: e | H10: 0 | I10: 0 | Z10: =IF(Z9>22,SUMPRODUCT(VALUE(MID(Z9,ROW(INDIRECT("$b1:$A"&LEN(Z9))),1))),Z9) -> 1 | AA10: =IF(AA9>22,SUMPRODUCT(VALUE(MID(AA9,ROW(INDIRECT("$b1:$A"&LEN(AA9))),1))),AA9) -> 14 | AB10: 4 | AC10: 18 | AD10: 5 | AE10: 0 | AF10: 0 | AG10: 0 | AH10: 0 | AI10: 0 | AJ10: 0 | AK10: 0 | AL10: 0 | AM10: 0 | AN10: 0 | AO10: 0 | AP10: 0 | AQ10: 0 | AR10: 16 | AS10: 9 | AT10: 5 | AU10: 18 | AV10: 18 | AW10: 5 | AX10: 0 | AY10: 0 | AZ10: 0 | BA10: 0 | BB10: 0 | BC10: 0 | BD10: 0 | BE10: 0 | BF10: 0 | BG10: 0 | BH10: 0 | BI10: 0 | BJ10: 0 | BK10: 0 | BL10: 0 | BM10: 0 | BN10: 0 | BO10: 0 | BP10: 0 | BQ10: 0 | BR10: 0 | BS10: 0 | BT10: 0 | BU10: 0 | BV10: 0 | BW10: 0 | BX10: 0 | BY10: 0 | BZ10: 0 | CA10: 0 | CB10: 0 | CC10: 0 | CD10: 0 | CE10: 0 | CF10: 0 | CG10: 0 | CH10: 0 | CI10: 0 | CJ10: 0 | CK10: 0 | CL10: 0 | CM10: =IF(CM9>22,SUMPRODUCT(VALUE(MID(CM9,ROW(INDIRECT("$b1:$A"&LEN(CM9))),1))),CM9) -> 0 | CN10: 0 | CO10: 0 | CP10: 0 | CQ10: 0 | CR10: 0 | CS10: 0 | CT10: 16 | CU10: 1 | CV10: 19 | CW10: 20 | CX10: 5 | CY10: 21 | CZ10: 18 | DA10: 0 | DB10: 0 | DC10: 0 | DD10: 0 | DE10: 0 | DF10: 0 | DG10: 0 | DH10: 0 | DI10: 0 | DJ10: 0 | DK10: 0 | DL10: =U25 -> 7 | DM10: =U33 -> 8 | DN10: =U9 -> 6 | DO10: =U11 -> 8 | DP10: =U13 -> 0 | DQ10: =U15 -> 0 | DR10: =U17 -> 1 | DS10: =U18 -> 6 | DT10: =AC13 -> 213
B11: =IF(B10="a",1,IF(B10="b",2,IF(B10="c",3,IF(B10="d",4,IF(B10="e",5,IF(B10="f",6,IF(B10="g",7,IF(B10="h",8,IF(B10="i",9,IF(B10="j",10,IF(B10="k",11,IF(B10="l",12,IF(B10="m",13,IF(B10="n",14,IF(B10="o",15,IF(B10="p",16,IF(B10="q",17,IF(B10="r",18,IF(B10="s",19,IF(B10="t",20,IF(B10="u",21,IF(B10="v",22,IF(B10="w",23,IF(B10="x",24,IF(B10="y",25,IF(B10="yj",25,IF(B10="z",26,0))))))))))))))))))))))))))) -> 16 | C11: =IF(C10="a",1,IF(C10="b",2,IF(C10="c",3,IF(C10="d",4,IF(C10="e",5,IF(C10="f",6,IF(C10="g",7,IF(C10="h",8,IF(C10="i",9,IF(C10="j",10,IF(C10="k",11,IF(C10="l",12,IF(C10="m",13,IF(C10="n",14,IF(C10="o",15,IF(C10="p",16,IF(C10="q",17,IF(C10="r",18,IF(C10="s",19,IF(C10="t",20,IF(C10="u",21,IF(C10="v",22,IF(C10="w",23,IF(C10="x",24,IF(C10="y",25,IF(C10="yj",25,IF(C10="z",26,0))))))))))))))))))))))))))) -> 9 | D11: =IF(D10="a",1,IF(D10="b",2,IF(D10="c",3,IF(D10="d",4,IF(D10="e",5,IF(D10="f",6,IF(D10="g",7,IF(D10="h",8,IF(D10="i",9,IF(D10="j",10,IF(D10="k",11,IF(D10="l",12,IF(D10="m",13,IF(D10="n",14,IF(D10="o",15,IF(D10="p",16,IF(D10="q",17,IF(D10="r",18,IF(D10="s",19,IF(D10="t",20,IF(D10="u",21,IF(D10="v",22,IF(D10="w",23,IF(D10="x",24,IF(D10="y",25,IF(D10="yj",25,IF(D10="z",26,0))))))))))))))))))))))))))) -> 5 | E11: 18 | F11: 18 | G11: 5 | H11: 0 | I11: 0 | J11: 0 | K11: 0 | L11: 0 | M11: 0 | N11: 0 | O11: 0 | P11: 0 | Q11: 0 | R11: 0 | S11: 0 | T11: =SUM(B11:S11) -> 71 | U11: =IF(T11>22,SUMPRODUCT(VALUE(MID(T11,ROW(INDIRECT("$b1:$A"&LEN(T11))),1))),T11) -> 8
A12: Mittlerer Name 2 | B12: 0 | C12: 0 | D12: 0 | E12: 0 | F12: 0 | G12: 0
B13: =IF(B12="a",1,IF(B12="b",2,IF(B12="c",3,IF(B12="d",4,IF(B12="e",5,IF(B12="f",6,IF(B12="g",7,IF(B12="h",8,IF(B12="i",9,IF(B12="j",10,IF(B12="k",11,IF(B12="l",12,IF(B12="m",13,IF(B12="n",14,IF(B12="o",15,IF(B12="p",16,IF(B12="q",17,IF(B12="r",18,IF(B12="s",19,IF(B12="t",20,IF(B12="u",21,IF(B12="v",22,IF(B12="w",23,IF(B12="x",24,IF(B12="y",25,IF(B12="yj",25,IF(B12="z",26,0))))))))))))))))))))))))))) -> 0 | C13: =IF(C12="a",1,IF(C12="b",2,IF(C12="c",3,IF(C12="d",4,IF(C12="e",5,IF(C12="f",6,IF(C12="g",7,IF(C12="h",8,IF(C12="i",9,IF(C12="j",10,IF(C12="k",11,IF(C12="l",12,IF(C12="m",13,IF(C12="n",14,IF(C12="o",15,IF(C12="p",16,IF(C12="q",17,IF(C12="r",18,IF(C12="s",19,IF(C12="t",20,IF(C12="u",21,IF(C12="v",22,IF(C12="w",23,IF(C12="x",24,IF(C12="y",25,IF(C12="yj",25,IF(C12="z",26,0))))))))))))))))))))))))))) -> 0 | D13: 0 | E13: 0 | F13: 0 | G13: 0 | H13: 0 | I13: 0 | J13: 0 | K13: 0 | L13: 0 | M13: 0 | N13: 0 | O13: 0 | P13: 0 | Q13: 0 | R13: 0 | S13: 0 | T13: =SUM(B13:S13) -> 0 | U13: =IF(T13>22,SUMPRODUCT(VALUE(MID(T13,ROW(INDIRECT("$b1:$A"&LEN(T13))),1))),T13) -> 0 | Z13: =B7 -> 1962 | AA13: =C7 -> 7 | AB13: =D7 -> 12 | AC13: =T18 -> 213 | AD13: =SUM(Z13:AC13) -> 2194 | AE13: =IF(AD13>22,SUMPRODUCT(VALUE(MID(AD13,ROW(INDIRECT("$b1:$A"&LEN(AD13))),1))),AD13) -> 16 | AF13: =IF(AE13>22,SUMPRODUCT(VALUE(MID(AE13,ROW(INDIRECT("$b1:$A"&LEN(AE13))),1))),AE13) -> 16
A14: Mittlerer Name 3 | B14: 0 | C14: 0 | D14: 0 | E14: 0 | F14: 0 | G14: 0 | AD14: =SUM(Z13+AA13+AB13) -> 1981 | AE14: =IF(AD14>22,SUMPRODUCT(VALUE(MID(AD14,ROW(INDIRECT("$b1:$A"&LEN(AD14))),1))),AD14) -> 19 | AF14: =IF(AE14>22,SUMPRODUCT(VALUE(MID(AE14,ROW(INDIRECT("$b1:$A"&LEN(AE14))),1))),AE14) -> 19
B15: =IF(B14="a",1,IF(B14="b",2,IF(B14="c",3,IF(B14="d",4,IF(B14="e",5,IF(B14="f",6,IF(B14="g",7,IF(B14="h",8,IF(B14="i",9,IF(B14="j",10,IF(B14="k",11,IF(B14="l",12,IF(B14="m",13,IF(B14="n",14,IF(B14="o",15,IF(B14="p",16,IF(B14="q",17,IF(B14="r",18,IF(B14="s",19,IF(B14="t",20,IF(B14="u",21,IF(B14="v",22,IF(B14="w",23,IF(B14="x",24,IF(B14="y",25,IF(B14="yj",25,IF(B14="z",26,0))))))))))))))))))))))))))) -> 0 | C15: =IF(C14="a",1,IF(C14="b",2,IF(C14="c",3,IF(C14="d",4,IF(C14="e",5,IF(C14="f",6,IF(C14="g",7,IF(C14="h",8,IF(C14="i",9,IF(C14="j",10,IF(C14="k",11,IF(C14="l",12,IF(C14="m",13,IF(C14="n",14,IF(C14="o",15,IF(C14="p",16,IF(C14="q",17,IF(C14="r",18,IF(C14="s",19,IF(C14="t",20,IF(C14="u",21,IF(C14="v",22,IF(C14="w",23,IF(C14="x",24,IF(C14="y",25,IF(C14="yj",25,IF(C14="z",26,0))))))))))))))))))))))))))) -> 0 | D15: 0 | E15: 0 | F15: 0 | G15: 0 | H15: 0 | I15: 0 | J15: 0 | K15: 0 | L15: 0 | M15: 0 | N15: 0 | O15: 0 | P15: 0 | Q15: 0 | R15: 0 | S15: 0 | T15: =SUM(B15:S15) -> 0 | U15: =IF(T15>22,SUMPRODUCT(VALUE(MID(T15,ROW(INDIRECT("$b1:$A"&LEN(T15))),1))),T15) -> 0
A16: Nachname | B16: p | C16: a | D16: s | E16: t | F16: e | G16: u | H16: r | I16: 0
B17: =IF(B16="a",1,IF(B16="b",2,IF(B16="c",3,IF(B16="d",4,IF(B16="e",5,IF(B16="f",6,IF(B16="g",7,IF(B16="h",8,IF(B16="i",9,IF(B16="j",10,IF(B16="k",11,IF(B16="l",12,IF(B16="m",13,IF(B16="n",14,IF(B16="o",15,IF(B16="p",16,IF(B16="q",17,IF(B16="r",18,IF(B16="s",19,IF(B16="t",20,IF(B16="u",21,IF(B16="v",22,IF(B16="w",23,IF(B16="x",24,IF(B16="y",25,IF(B16="yj",25,IF(B16="z",26,0))))))))))))))))))))))))))) -> 16 | C17: =IF(C16="a",1,IF(C16="b",2,IF(C16="c",3,IF(C16="d",4,IF(C16="e",5,IF(C16="f",6,IF(C16="g",7,IF(C16="h",8,IF(C16="i",9,IF(C16="j",10,IF(C16="k",11,IF(C16="l",12,IF(C16="m",13,IF(C16="n",14,IF(C16="o",15,IF(C16="p",16,IF(C16="q",17,IF(C16="r",18,IF(C16="s",19,IF(C16="t",20,IF(C16="u",21,IF(C16="v",22,IF(C16="w",23,IF(C16="x",24,IF(C16="y",25,IF(C16="yj",25,IF(C16="z",26,0))))))))))))))))))))))))))) -> 1 | D17: =IF(D16="a",1,IF(D16="b",2,IF(D16="c",3,IF(D16="d",4,IF(D16="e",5,IF(D16="f",6,IF(D16="g",7,IF(D16="h",8,IF(D16="i",9,IF(D16="j",10,IF(D16="k",11,IF(D16="l",12,IF(D16="m",13,IF(D16="n",14,IF(D16="o",15,IF(D16="p",16,IF(D16="q",17,IF(D16="r",18,IF(D16="s",19,IF(D16="t",20,IF(D16="u",21,IF(D16="v",22,IF(D16="w",23,IF(D16="x",24,IF(D16="y",25,IF(D16="yj",25,IF(D16="z",26,0))))))))))))))))))))))))))) -> 19 | E17: 20 | F17: 5 | G17: 21 | H17: 18 | I17: 0 | J17: 0 | K17: 0 | L17: 0 | M17: 0 | N17: 0 | O17: 0 | P17: 0 | Q17: 0 | R17: 0 | S17: 0 | T17: =SUM(B17:S17) -> 100 | U17: =IF(T17>22,SUMPRODUCT(VALUE(MID(T17,ROW(INDIRECT("$b1:$A"&LEN(T17))),1))),T17) -> 1
A18: Summe aller Namen | T18: =SUM(T9:T17) -> 213 | U18: =IF(T18>22,SUMPRODUCT(VALUE(MID(T18,ROW(INDIRECT("$b1:$A"&LEN(T18))),1))),T18) -> 6
A20: Die Vokale des Vornamens | B20: =IF(B8="a",1,IF(B8="e",5,IF(B8="i",9,IF(B8="o",15,IF(B8="u",21,IF(B8="y",25,IF(B8="ä",1,IF(B8="ö",15,IF(B8="ü",21,0))))))))) -> 1 | C20: =IF(C8="a",1,IF(C8="e",5,IF(C8="i",9,IF(C8="o",15,IF(C8="u",21,IF(C8="y",25,IF(C8="ä",1,IF(C8="ö",15,IF(C8="ü",21,0))))))))) -> 0 | D20: 0 | E20: 0 | F20: 5 | G20: 0 | H20: 0 | I20: 0 | J20: 0 | K20: 0 | L20: 0 | M20: 0 | N20: 0 | O20: 0 | P20: 0 | Q20: 0 | R20: 0 | S20: 0 | T20: =SUM(B20:S20) -> 6
A21: Die Vokale des mittleren Namens 1 | B21: =IF(B10="a",1,IF(B10="e",5,IF(B10="i",9,IF(B10="o",15,IF(B10="u",21,IF(B10="y",25,IF(B10="ä",1,IF(B10="ö",15,IF(B10="ü",21,0))))))))) -> 0 | C21: =IF(C10="a",1,IF(C10="e",5,IF(C10="i",9,IF(C10="o",15,IF(C10="u",21,IF(C10="y",25,IF(C10="ä",1,IF(C10="ö",15,IF(C10="ü",21,0))))))))) -> 9 | D21: 5 | E21: 0 | F21: 0 | G21: 5 | H21: 0 | I21: 0 | J21: 0 | K21: 0 | L21: 0 | M21: 0 | N21: 0 | O21: 0 | P21: 0 | Q21: 0 | R21: 0 | S21: 0 | T21: =SUM(B21:S21) -> 19
A22: Die Vokale des mittleren Namens 2 | B22: =IF(B12="a",1,IF(B12="e",5,IF(B12="i",9,IF(B12="o",15,IF(B12="u",21,IF(B12="y",25,IF(B12="ä",1,IF(B12="ö",15,IF(B12="ü",21,0))))))))) -> 0 | C22: =IF(C12="a",1,IF(C12="e",5,IF(C12="i",9,IF(C12="o",15,IF(C12="u",21,IF(C12="y",25,IF(C12="ä",1,IF(C12="ö",15,IF(C12="ü",21,0))))))))) -> 0 | D22: 0 | E22: 0 | F22: 0 | G22: 0 | H22: 0 | I22: 0 | J22: 0 | K22: 0 | L22: 0 | M22: 0 | N22: 0 | O22: 0 | P22: 0 | Q22: 0 | R22: 0 | S22: 0 | T22: =SUM(B22:S22) -> 0
A23: Die Vokale des mittleren Namens 3 | B23: =IF(B14="a",1,IF(B14="e",5,IF(B14="i",9,IF(B14="o",15,IF(B14="u",21,IF(B14="y",25,IF(B14="ä",1,IF(B14="ö",15,IF(B14="ü",21,0))))))))) -> 0 | C23: =IF(C14="a",1,IF(C14="e",5,IF(C14="i",9,IF(C14="o",15,IF(C14="u",21,IF(C14="y",25,IF(C14="ä",1,IF(C14="ö",15,IF(C14="ü",21,0))))))))) -> 0 | D23: 0 | E23: 0 | F23: 0 | G23: 0 | H23: 0 | I23: 0 | J23: 0 | K23: 0 | L23: 0 | M23: 0 | N23: 0 | O23: 0 | P23: 0 | Q23: 0 | R23: 0 | S23: 0 | T23: =SUM(B23:S23) -> 0
A24: Die Vokale des Nachnamens | B24: =IF(B16="a",1,IF(B16="e",5,IF(B16="i",9,IF(B16="o",15,IF(B16="u",21,IF(B16="y",25,IF(B16="ä",1,IF(B16="ö",15,IF(B16="ü",21,0))))))))) -> 0 | C24: =IF(C16="a",1,IF(C16="e",5,IF(C16="i",9,IF(C16="o",15,IF(C16="u",21,IF(C16="y",25,IF(C16="ä",1,IF(C16="ö",15,IF(C16="ü",21,0))))))))) -> 1 | D24: 0 | E24: 0 | F24: 5 | G24: 21 | H24: 0 | I24: 0 | J24: 0 | K24: 0 | L24: 0 | M24: 0 | N24: 0 | O24: 0 | P24: 0 | Q24: 0 | R24: 0 | S24: 0 | T24: =SUM(B23:S24) -> 27
A25: Summe aller Vokale | T25: =SUM(T20:T24) -> 52 | U25: =IF(T25>22,SUMPRODUCT(VALUE(MID(T25,ROW(INDIRECT("$b1:$A"&LEN(T25))),1))),T25) -> 7
A28: Die Konsonanten des Vornamens | B28: =IF(B8="a",0,IF(B8="b",2,IF(B8="c",3,IF(B8="d",4,IF(B8="e",0,IF(B8="f",6,IF(B8="g",7,IF(B8="h",8,IF(B8="i",0,IF(B8="j",10,IF(B8="k",11,IF(B8="l",12,IF(B8="m",13,IF(B8="n",14,IF(B8="o",0,IF(B8="p",16,IF(B8="q",17,IF(B8="r",18,IF(B8="s",19,IF(B8="t",20,IF(B8="u",0,IF(B8="v",22,IF(B8="w",23,IF(B8="x",24,IF(B8="y",25,IF(B8="yj",25,IF(B8="z",26,0))))))))))))))))))))))))))) -> 0 | C28: =IF(C8="a",0,IF(C8="b",2,IF(C8="c",3,IF(C8="d",4,IF(C8="e",0,IF(C8="f",6,IF(C8="g",7,IF(C8="h",8,IF(C8="i",0,IF(C8="j",10,IF(C8="k",11,IF(C8="l",12,IF(C8="m",13,IF(C8="n",14,IF(C8="o",0,IF(C8="p",16,IF(C8="q",17,IF(C8="r",18,IF(C8="s",19,IF(C8="t",20,IF(C8="u",0,IF(C8="v",22,IF(C8="w",23,IF(C8="x",24,IF(C8="y",25,IF(C8="yj",25,IF(C8="z",26,0))))))))))))))))))))))))))) -> 14 | D28: =IF(D8="a",0,IF(D8="b",2,IF(D8="c",3,IF(D8="d",4,IF(D8="e",0,IF(D8="f",6,IF(D8="g",7,IF(D8="h",8,IF(D8="i",0,IF(D8="j",10,IF(D8="k",11,IF(D8="l",12,IF(D8="m",13,IF(D8="n",14,IF(D8="o",0,IF(D8="p",16,IF(D8="q",17,IF(D8="r",18,IF(D8="s",19,IF(D8="t",20,IF(D8="u",0,IF(D8="v",22,IF(D8="w",23,IF(D8="x",24,IF(D8="y",25,IF(D8="yj",25,IF(D8="z",26,0))))))))))))))))))))))))))) -> 4 | E28: 18 | F28: 0 | G28: 0 | H28: 0 | I28: 0 | J28: 0 | K28: 0 | L28: 0 | M28: 0 | N28: 0 | O28: 0 | P28: 0 | Q28: 0 | R28: 0 | S28: 0 | T28: =SUM(B28:S28) -> 36
A29: Die Konsonanten des mittleren Namens 1 | B29: =IF(B10="a",0,IF(B10="b",2,IF(B10="c",3,IF(B10="d",4,IF(B10="e",0,IF(B10="f",6,IF(B10="g",7,IF(B10="h",8,IF(B10="i",0,IF(B10="j",10,IF(B10="k",11,IF(B10="l",12,IF(B10="m",13,IF(B10="n",14,IF(B10="o",0,IF(B10="p",16,IF(B10="q",17,IF(B10="r",18,IF(B10="s",19,IF(B10="t",20,IF(B10="u",0,IF(B10="v",22,IF(B10="w",23,IF(B10="x",24,IF(B10="y",25,IF(B10="yj",25,IF(B10="z",26,0))))))))))))))))))))))))))) -> 16 | C29: =IF(C10="a",0,IF(C10="b",2,IF(C10="c",3,IF(C10="d",4,IF(C10="e",0,IF(C10="f",6,IF(C10="g",7,IF(C10="h",8,IF(C10="i",0,IF(C10="j",10,IF(C10="k",11,IF(C10="l",12,IF(C10="m",13,IF(C10="n",14,IF(C10="o",0,IF(C10="p",16,IF(C10="q",17,IF(C10="r",18,IF(C10="s",19,IF(C10="t",20,IF(C10="u",0,IF(C10="v",22,IF(C10="w",23,IF(C10="x",24,IF(C10="y",25,IF(C10="yj",25,IF(C10="z",26,0))))))))))))))))))))))))))) -> 0 | D29: =IF(D10="a",0,IF(D10="b",2,IF(D10="c",3,IF(D10="d",4,IF(D10="e",0,IF(D10="f",6,IF(D10="g",7,IF(D10="h",8,IF(D10="i",0,IF(D10="j",10,IF(D10="k",11,IF(D10="l",12,IF(D10="m",13,IF(D10="n",14,IF(D10="o",0,IF(D10="p",16,IF(D10="q",17,IF(D10="r",18,IF(D10="s",19,IF(D10="t",20,IF(D10="u",0,IF(D10="v",22,IF(D10="w",23,IF(D10="x",24,IF(D10="y",0,IF(D10="yj",25,IF(D10="z",26,0))))))))))))))))))))))))))) -> 0 | E29: 18 | F29: 18 | G29: 0 | H29: 0 | I29: 0 | J29: 0 | K29: 0 | L29: 0 | M29: 0 | N29: 0 | O29: 0 | P29: 0 | Q29: 0 | R29: 0 | S29: 0 | T29: =SUM(B29:S29) -> 52
A30: Die Konsonanten des mittleren Namens 2 | B30: =IF(B12="a",0,IF(B12="b",2,IF(B12="c",3,IF(B12="d",4,IF(B12="e",0,IF(B12="f",6,IF(B12="g",7,IF(B12="h",8,IF(B12="i",0,IF(B12="j",10,IF(B12="k",11,IF(B12="l",12,IF(B12="m",13,IF(B12="n",14,IF(B12="o",0,IF(B12="p",16,IF(B12="q",17,IF(B12="r",18,IF(B12="s",19,IF(B12="t",20,IF(B12="u",0,IF(B12="v",22,IF(B12="w",23,IF(B12="x",24,IF(B12="y",25,IF(B12="yj",25,IF(B12="z",26,0))))))))))))))))))))))))))) -> 0 | C30: =IF(C12="a",0,IF(C12="b",2,IF(C12="c",3,IF(C12="d",4,IF(C12="e",0,IF(C12="f",6,IF(C12="g",7,IF(C12="h",8,IF(C12="i",0,IF(C12="j",10,IF(C12="k",11,IF(C12="l",12,IF(C12="m",13,IF(C12="n",14,IF(C12="o",0,IF(C12="p",16,IF(C12="q",17,IF(C12="r",18,IF(C12="s",19,IF(C12="t",20,IF(C12="u",0,IF(C12="v",22,IF(C12="w",23,IF(C12="x",24,IF(C12="y",25,IF(C12="yj",25,IF(C12="z",26,0))))))))))))))))))))))))))) -> 0 | D30: =IF(D12="a",0,IF(D12="b",2,IF(D12="c",3,IF(D12="d",4,IF(D12="e",0,IF(D12="f",6,IF(D12="g",7,IF(D12="h",8,IF(D12="i",0,IF(D12="j",10,IF(D12="k",11,IF(D12="l",12,IF(D12="m",13,IF(D12="n",14,IF(D12="o",0,IF(D12="p",16,IF(D12="q",17,IF(D12="r",18,IF(D12="s",19,IF(D12="t",20,IF(D12="u",0,IF(D12="v",22,IF(D12="w",23,IF(D12="x",24,IF(D12="y",0,IF(D12="yj",25,IF(D12="z",26,0))))))))))))))))))))))))))) -> 0 | E30: 0 | F30: 0 | G30: 0 | H30: 0 | I30: 0 | J30: 0 | K30: 0 | L30: 0 | M30: 0 | N30: 0 | O30: 0 | P30: 0 | Q30: 0 | R30: 0 | S30: =IF(S12="a",0,IF(S12="b",2,IF(S12="c",3,IF(S12="d",4,IF(S12="e",0,IF(S12="f",6,IF(S12="g",7,IF(S12="h",8,IF(S12="i",0,IF(S12="j",10,IF(S12="k",11,IF(S12="l",12,IF(S12="m",13,IF(S12="n",14,IF(S12="o",0,IF(S12="p",16,IF(S12="q",17,IF(S12="r",18,IF(S12="s",19,IF(S12="t",20,IF(S12="u",0,IF(S12="v",22,IF(S12="w",23,IF(S12="x",24,IF(S12="y",25,IF(S12="yj",25,IF(S12="z",26,0))))))))))))))))))))))))))) -> 0 | T30: =SUM(B30:S30) -> 0
A31: Die Konsonanten des mittleren Namens 3 | B31: =IF(B14="a",0,IF(B14="b",2,IF(B14="c",3,IF(B14="d",4,IF(B14="e",0,IF(B14="f",6,IF(B14="g",7,IF(B14="h",8,IF(B14="i",0,IF(B14="j",10,IF(B14="k",11,IF(B14="l",12,IF(B14="m",13,IF(B14="n",14,IF(B14="o",0,IF(B14="p",16,IF(B14="q",17,IF(B14="r",18,IF(B14="s",19,IF(B14="t",20,IF(B14="u",0,IF(B14="v",22,IF(B14="w",23,IF(B14="x",24,IF(B14="y",25,IF(B14="yj",25,IF(B14="z",26,0))))))))))))))))))))))))))) -> 0 | C31: =IF(C14="a",0,IF(C14="b",2,IF(C14="c",3,IF(C14="d",4,IF(C14="e",0,IF(C14="f",6,IF(C14="g",7,IF(C14="h",8,IF(C14="i",0,IF(C14="j",10,IF(C14="k",11,IF(C14="l",12,IF(C14="m",13,IF(C14="n",14,IF(C14="o",0,IF(C14="p",16,IF(C14="q",17,IF(C14="r",18,IF(C14="s",19,IF(C14="t",20,IF(C14="u",0,IF(C14="v",22,IF(C14="w",23,IF(C14="x",24,IF(C14="y",25,IF(C14="yj",25,IF(C14="z",26,0))))))))))))))))))))))))))) -> 0 | D31: =IF(D14="a",0,IF(D14="b",2,IF(D14="c",3,IF(D14="d",4,IF(D14="e",0,IF(D14="f",6,IF(D14="g",7,IF(D14="h",8,IF(D14="i",0,IF(D14="j",10,IF(D14="k",11,IF(D14="l",12,IF(D14="m",13,IF(D14="n",14,IF(D14="o",0,IF(D14="p",16,IF(D14="q",17,IF(D14="r",18,IF(D14="s",19,IF(D14="t",20,IF(D14="u",0,IF(D14="v",22,IF(D14="w",23,IF(D14="x",24,IF(D14="y",0,IF(D14="yj",25,IF(D14="z",26,0))))))))))))))))))))))))))) -> 0 | E31: 0 | F31: 0 | G31: 0 | H31: 0 | I31: 0 | J31: 0 | K31: 0 | L31: 0 | M31: 0 | N31: 0 | O31: 0 | P31: 0 | Q31: 0 | R31: 0 | S31: 0 | T31: =SUM(B31:S31) -> 0
A32: Die Konsonanten des Nachnamens | B32: =IF(B16="a",0,IF(B16="b",2,IF(B16="c",3,IF(B16="d",4,IF(B16="e",0,IF(B16="f",6,IF(B16="g",7,IF(B16="h",8,IF(B16="i",0,IF(B16="j",10,IF(B16="k",11,IF(B16="l",12,IF(B16="m",13,IF(B16="n",14,IF(B16="o",0,IF(B16="p",16,IF(B16="q",17,IF(B16="r",18,IF(B16="s",19,IF(B16="t",20,IF(B16="u",0,IF(B16="v",22,IF(B16="w",23,IF(B16="x",24,IF(B16="y",25,IF(B16="yj",25,IF(B16="z",26,0))))))))))))))))))))))))))) -> 16 | C32: =IF(C16="a",0,IF(C16="b",2,IF(C16="c",3,IF(C16="d",4,IF(C16="e",0,IF(C16="f",6,IF(C16="g",7,IF(C16="h",8,IF(C16="i",0,IF(C16="j",10,IF(C16="k",11,IF(C16="l",12,IF(C16="m",13,IF(C16="n",14,IF(C16="o",0,IF(C16="p",16,IF(C16="q",17,IF(C16="r",18,IF(C16="s",19,IF(C16="t",20,IF(C16="u",0,IF(C16="v",22,IF(C16="w",23,IF(C16="x",24,IF(C16="y",25,IF(C16="yj",25,IF(C16="z",26,0))))))))))))))))))))))))))) -> 0 | D32: =IF(D16="a",0,IF(D16="b",2,IF(D16="c",3,IF(D16="d",4,IF(D16="e",0,IF(D16="f",6,IF(D16="g",7,IF(D16="h",8,IF(D16="i",0,IF(D16="j",10,IF(D16="k",11,IF(D16="l",12,IF(D16="m",13,IF(D16="n",14,IF(D16="o",0,IF(D16="p",16,IF(D16="q",17,IF(D16="r",18,IF(D16="s",19,IF(D16="t",20,IF(D16="u",0,IF(D16="v",22,IF(D16="w",23,IF(D16="x",24,IF(D16="y",0,IF(D16="yj",25,IF(D16="z",26,0))))))))))))))))))))))))))) -> 19 | E32: 20 | F32: 0 | G32: 0 | H32: 18 | I32: 0 | J32: 0 | K32: 0 | L32: 0 | M32: 0 | N32: 0 | O32: 0 | P32: 0 | Q32: 0 | R32: 0 | S32: 0 | T32: =SUM(B32:S32) -> 73 | V32: Kontrollsumme
A33: Summe aller Konsonanten | T33: =SUM(T28:T32) -> 161 | U33: =IF(T33>22,SUMPRODUCT(VALUE(MID(T33,ROW(INDIRECT("$b1:$A"&LEN(T33))),1))),T33) -> 8 | V33: =SUM(T25+T33) -> 213
A36: Die Häufigkeit der Karten | C36: Konstellationen | D36: Summe | E36: Gruppen | F36: Summe
A37: 1 Der Magier | B37: =(COUNTIF($Z$10:$DK$10,1)) -> 2 | C37: 1 Der Magier | D37: =SUM(B37+B46+B55) -> 3 | E37: Osiris | F37: =SUM(B37+B40+B43+B46+B49+B52+B55+B58) -> 6
A38: 2 Die Hohepriesterin | B38: =(COUNTIF($Z$10:$DK$10,2)) -> 0 | C38: 2 Die Hohepriesterin | D38: =SUM(B38+B47+B56) -> 1 | E38: Isis | F38: =SUM(B38+B41+B44+B47+B50+B53+B56) -> 6
A39: 3 Die Herrscherin | B39: =(COUNTIF($Z$10:$DK$10,3)) -> 0 | C39: 3 Die Herrscherin | D39: =SUM(B39+B48+B57) -> 1 | E39: Horus | F39: =SUM(B39+B42+B45+B48+B51+B54+B57) -> 6
A40: 4 Der Herrscher | B40: =(COUNTIF($Z$10:$DK$10,4)) -> 1 | C40: 4 Der Herrscher | D40: =SUM(B40+B49+B58) -> 1 | E40: Osiris
A41: 5 Der Hierophant | B41: =(COUNTIF($Z$10:$DK$10,5)) -> 4 | C41: 5 Der Hierophant | D41: =SUM(B41+B50) -> 5 | E41: Isis
A42: 6 Die Liebenden | B42: =(COUNTIF($Z$10:$DK$10,6)) -> 0 | C42: 6 Die Liebenden | D42: =SUM(B42+B51) -> 0 | E42: Horus
A43: 7 Der Wagen | B43: =(COUNTIF($Z$10:$DK$10,7)) -> 0 | C43: 7 Der Wagen | D43: =SUM(B43+B52) -> 2 | E43: Osiris
A44: 8 Die Kraft | B44: =(COUNTIF($Z$10:$DK$10,8)) -> 0 | C44: 8 Die Kraft | D44: =SUM(B44+B53) -> 0 | E44: Isis
A45: 9 Der Eremit | B45: =(COUNTIF($Z$10:$DK$10,9)) -> 1 | C45: 9 Der Eremit | D45: =SUM(B45+B54) -> 5 | E45: Horus
A46: 10 Das Rad des Schicksals | B46: =(COUNTIF($Z$10:$DK$10,10)) -> 0 | C46: 1 Der Magier | E46: Osiris
A47: 11 Die Gerechtigkeit | B47: =(COUNTIF($Z$10:$DK$10,11)) -> 0 | C47: 2 Die Hohepriesterin | E47: Isis
A48: 12 Der Gehängte | B48: =(COUNTIF($Z$10:$DK$10,12)) -> 0 | C48: 3 Die Herrscherin | E48: Horus
A49: 13 Der Tod | B49: =(COUNTIF($Z$10:$DK$10,13)) -> 0 | C49: 4 Der Herrscher | E49: Osiris
A50: 14 Die Mässigkeit | B50: =(COUNTIF($Z$10:$DK$10,14)) -> 1 | C50: 5 Der Hierophant | E50: Isis
A51: 15 Der Teufel | B51: =(COUNTIF($Z$10:$DK$10,15)) -> 0 | C51: 6 Die Liebenden | E51: Horus
A52: 16 Der Turm | B52: =(COUNTIF($Z$10:$DK$10,16)) -> 2 | C52: 7 Der Wagen | E52: Osiris
A53: 17 Der Stern | B53: =(COUNTIF($Z$10:$DK$10,17)) -> 0 | C53: 8 Die Kraft | E53: Isis
A54: 18 Der Mond | B54: =(COUNTIF($Z$10:$DK$10,18)) -> 4 | C54: 9 Der Eremit | E54: Horus
A55: 19 Die Sonne | B55: =(COUNTIF($Z$10:$DK$10,19)) -> 1 | C55: 1 Der Magier | E55: Osiris
A56: 20 Das Gericht | B56: =(COUNTIF($Z$10:$DK$10,20)) -> 1 | C56: 2 Die Hohepriesterin | E56: Isis
A57: 21 Die Welt | B57: =(COUNTIF($Z$10:$DK$10,21)) -> 1 | C57: 3 Die Herrscherin | E57: Horus
A58: 22 Der Narr | B58: =(COUNTIF($Z$10:$DK$10,22)) -> 0 | C58: 4 Der Herrscher | E58: Osiris
A59: Summe aller Buchstaben | B59: =SUM(B37:B58) -> 18
A62: Die Namenskarten | B62: Nr. | C62: Karte | D62: Konstellation | E62: Gruppe
A63: Die Seelenkarte (Summe aller Vokale) | B63: =U25 -> 7 | C63: =IF(B63=1,"Der Magier",IF(B63=2,"Die Hohepriesterin",IF(B63=3,"Die Herrscherin",IF(B63=4,"Der Herrscher",IF(B63=5,"Der Hierophant",IF(B63=6,"Die Liebenden",IF(B63=7,"Der Wagen",IF(B63=8,"Die Kraft",IF(B63=9,"Der Eremit",IF(B63=10,"Das Rad",IF(B63=11,"Die Gerechtigkeit",IF(B63=12,"Der Gehängte",IF(B63=13,"Der Tod",IF(B63=14,"Die Mässigkeit",IF(B63=15,"Der Teufel",IF(B63=16,"Der Turm",IF(B63=17,"Der Stern",IF(B63=18,"Der Mond",IF(B63=19,"Die Sonne",IF(B63=20,"Das Gericht",IF(B63=21,"Die Welt",IF(B63=22,"Der Narr")))))))))))))))))))))) -> Der Wagen | D63: =IF(OR(B63=1,B63=10,B63=19),"1 Der Magier",IF(OR(B63=2,B63=11,B63=20),"2 Die Hohepriesterin",IF(OR(B63=3,B63=12,B63=21),"3 Die Herrscherin",IF(OR(B63=4,B63=13,B63=22),"4 Der Herrscher",IF(OR(B63=5,B63=14),"5 Der Hierophant",IF(OR(B63=6,B63=15),"6 Die Liebenden",IF(OR(B63=7,B63=16),"7 DerWagen",IF(OR(B63 =8,B63=17),"8 Die Kraft",IF(OR(B63=9,B63=18),"9 Der Eremit"))))))))) -> 7 DerWagen | E63: =IF(OR(B63=1,B63=4,B63=7,B63=10,B63=13,B63=16,B63=19,B63=22),"Osiris",IF(OR(B63=2,B63=5,B63=8,B63=11,B63=14,B63=17,B63=20),"Isis",IF(OR(B63=3,B63=6,B63=9,B63=12,B63=15,B63=18,B63=21),"Horus"))) -> Osiris
A64: Die Persönlichkeitskarte (Summe aller Konsonanten) | B64: =U33 -> 8 | C64: =IF(B64=1,"Der Magier",IF(B64=2,"Die Hohepriesterin",IF(B64=3,"Die Herrscherin",IF(B64=4,"Der Herrscher",IF(B64=5,"Der Hierophant",IF(B64=6,"Die Liebenden",IF(B64=7,"Der Wagen",IF(B64=8,"Die Kraft",IF(B64=9,"Der Eremit",IF(B64=10,"Das Rad",IF(B64=11,"Die Gerechtigkeit",IF(B64=12,"Der Gehängte",IF(B64=13,"Der Tod",IF(B64=14,"Die Mässigkeit",IF(B64=15,"Der Teufel",IF(B64=16,"Der Turm",IF(B64=17,"Der Stern",IF(B64=18,"Der Mond",IF(B64=19,"Die Sonne",IF(B64=20,"Das Gericht",IF(B64=21,"Die Welt",IF(B64=22,"Der Narr")))))))))))))))))))))) -> Die Kraft | D64: =IF(OR(B64=1,B64=10,B64=19),"1 Der Magier",IF(OR(B64=2,B64=11,B64=20),"2 Die Hohepriesterin",IF(OR(B64=3,B64=12,B64=21),"3 Die Herrscherin",IF(OR(B64=4,B64=13,B64=22),"4 Der Herrscher",IF(OR(B64=5,B64=14),"5 Der Hierophant",IF(OR(B64=6,B64=15),"6 Die Liebenden",IF(OR(B64=7,B64=16),"7 DerWagen",IF(OR(B64 =8,B64=17),"8 Die Kraft",IF(OR(B64=9,B64=18),"9 Der Eremit"))))))))) -> 8 Die Kraft | E64: =IF(OR(B64=1,B64=4,B64=7,B64=10,B64=13,B64=16,B64=19,B64=22),"Osiris",IF(OR(B64=2,B64=5,B64=8,B64=11,B64=14,B64=17,B64=20),"Isis",IF(OR(B64=3,B64=6,B64=9,B64=12,B64=15,B64=18,B64=21),"Horus"))) -> Isis
A65: Die Schicksalskarte (Zahlen des gesamten Namens) | B65: =U18 -> 6 | C65: =IF(B65=1,"Der Magier",IF(B65=2,"Die Hohepriesterin",IF(B65=3,"Die Herrscherin",IF(B65=4,"Der Herrscher",IF(B65=5,"Der Hierophant",IF(B65=6,"Die Liebenden",IF(B65=7,"Der Wagen",IF(B65=8,"Die Kraft",IF(B65=9,"Der Eremit",IF(B65=10,"Das Rad",IF(B65=11,"Die Gerechtigkeit",IF(B65=12,"Der Gehängte",IF(B65=13,"Der Tod",IF(B65=14,"Die Mässigkeit",IF(B65=15,"Der Teufel",IF(B65=16,"Der Turm",IF(B65=17,"Der Stern",IF(B65=18,"Der Mond",IF(B65=19,"Die Sonne",IF(B65=20,"Das Gericht",IF(B65=21,"Die Welt",IF(B65=22,"Der Narr")))))))))))))))))))))) -> Die Liebenden | D65: =IF(OR(B65=1,B65=10,B65=19),"1 Der Magier",IF(OR(B65=2,B65=11,B65=20),"2 Die Hohepriesterin",IF(OR(B65=3,B65=12,B65=21),"3 Die Herrscherin",IF(OR(B65=4,B65=13,B65=22),"4 Der Herrscher",IF(OR(B65=5,B65=14),"5 Der Hierophant",IF(OR(B65=6,B65=15),"6 Die Liebenden",IF(OR(B65=7,B65=16),"7 DerWagen",IF(OR(B65 =8,B65=17),"8 Die Kraft",IF(OR(B65=9,B65=18),"9 Der Eremit"))))))))) -> 6 Die Liebenden | E65: =IF(OR(B65=1,B65=4,B65=7,B65=10,B65=13,B65=16,B65=19,B65=22),"Osiris",IF(OR(B65=2,B65=5,B65=8,B65=11,B65=14,B65=17,B65=20),"Isis",IF(OR(B65=3,B65=6,B65=9,B65=12,B65=15,B65=18,B65=21),"Horus"))) -> Horus
A66: Das individuelle Selbst (Rufname) | B66: =U9 -> 6 | C66: =IF(B66=1,"Der Magier",IF(B66=2,"Die Hohepriesterin",IF(B66=3,"Die Herrscherin",IF(B66=4,"Der Herrscher",IF(B66=5,"Der Hierophant",IF(B66=6,"Die Liebenden",IF(B66=7,"Der Wagen",IF(B66=8,"Die Kraft",IF(B66=9,"Der Eremit",IF(B66=10,"Das Rad",IF(B66=11,"Die Gerechtigkeit",IF(B66=12,"Der Gehängte",IF(B66=13,"Der Tod",IF(B66=14,"Die Mässigkeit",IF(B66=15,"Der Teufel",IF(B66=16,"Der Turm",IF(B66=17,"Der Stern",IF(B66=18,"Der Mond",IF(B66=19,"Die Sonne",IF(B66=20,"Das Gericht",IF(B66=21,"Die Welt",IF(B66=22,"Der Narr")))))))))))))))))))))) -> Die Liebenden | D66: =IF(OR(B66=1,B66=10,B66=19),"1 Der Magier",IF(OR(B66=2,B66=11,B66=20),"2 Die Hohepriesterin",IF(OR(B66=3,B66=12,B66=21),"3 Die Herrscherin",IF(OR(B66=4,B66=13,B66=22),"4 Der Herrscher",IF(OR(B66=5,B66=14),"5 Der Hierophant",IF(OR(B66=6,B66=15),"6 Die Liebenden",IF(OR(B66=7,B66=16),"7 DerWagen",IF(OR(B66 =8,B66=17),"8 Die Kraft",IF(OR(B66=9,B66=18),"9 Der Eremit"))))))))) -> 6 Die Liebenden | E66: =IF(OR(B66=1,B66=4,B66=7,B66=10,B66=13,B66=16,B66=19,B66=22),"Osiris",IF(OR(B66=2,B66=5,B66=8,B66=11,B66=14,B66=17,B66=20),"Isis",IF(OR(B66=3,B66=6,B66=9,B66=12,B66=15,B66=18,B66=21),"Horus"))) -> Horus
A67: Das verborgene Selbst (mittlerer Name 1) | B67: =U11 -> 8 | C67: =IF(B67=1,"Der Magier",IF(B67=2,"Die Hohepriesterin",IF(B67=3,"Die Herrscherin",IF(B67=4,"Der Herrscher",IF(B67=5,"Der Hierophant",IF(B67=6,"Die Liebenden",IF(B67=7,"Der Wagen",IF(B67=8,"Die Kraft",IF(B67=9,"Der Eremit",IF(B67=10,"Das Rad",IF(B67=11,"Die Gerechtigkeit",IF(B67=12,"Der Gehängte",IF(B67=13,"Der Tod",IF(B67=14,"Die Mässigkeit",IF(B67=15,"Der Teufel",IF(B67=16,"Der Turm",IF(B67=17,"Der Stern",IF(B67=18,"Der Mond",IF(B67=19,"Die Sonne",IF(B67=20,"Das Gericht",IF(B67=21,"Die Welt",IF(B67=22,"Der Narr",0)))))))))))))))))))))) -> Die Kraft | D67: =IF(OR(B67=1,B67=10,B67=19),"1 Der Magier",IF(OR(B67=2,B67=11,B67=20),"2 Die Hohepriesterin",IF(OR(B67=3,B67=12,B67=21),"3 Die Herrscherin",IF(OR(B67=4,B67=13,B67=22),"4 Der Herrscher",IF(OR(B67=5,B67=14),"5 Der Hierophant",IF(OR(B67=6,B67=15),"6 Die Liebenden",IF(OR(B67=7,B67=16),"7 DerWagen",IF(OR(B67 =8,B67=17),"8 Die Kraft",IF(OR(B67=9,B67=18),"9 Der Eremit",0))))))))) -> 8 Die Kraft | E67: =IF(OR(B67=1,B67=4,B67=7,B67=10,B67=13,B67=16,B67=19,B67=22),"Osiris",IF(OR(B67=2,B67=5,B67=8,B67=11,B67=14,B67=17,B67=20),"Isis",IF(OR(B67=3,B67=6,B67=9,B67=12,B67=15,B67=18,B67=21),"Horus",0))) -> Isis
A68: Das verborgene Selbst (mittlerer Name 2) | B68: =U13 -> 0 | C68: 0 | D68: 0 | E68: 0
A69: Das verborgene Selbst (mittlerer Name 3) | B69: =U15 -> 0 | C69: 0 | D69: 0 | E69: 0
A70: Das soziale Selbst (Nachname) | B70: =U17 -> 1 | C70: Der Magier | D70: 1 Der Magier | E70: Osiris
A71: Die Persönlichkeitskarte (Geburtsdatum) | B71: =AF14 -> 19 | C71: Die Sonne | D71: 1 Der Magier | E71: Osiris
A72: Lebenspotential (Geburtsdatum und Namen) | B72: =AF13 -> 16 | C72: Der Turm | D72: 7 DerWagen | E72: Osiris
A78: Pasteur | B78: =SUMPRODUCT(CODE(MID(UPPER(A78),ROW(INDIRECT("1:"&LEN(A78))),1))-64) -> 100 | C78: =LEN(A78) -> 7
A79: Andre | B79: =SUMPRODUCT(CODE(MID(UPPER(A79),ROW(INDIRECT("1:"&LEN(A79))),1))-64) -> 42

Sheet Tabelle1 (hidden)
A1: Numerologie nach Glynis McCants | B1: für | C1: =Jahreskarten!E8 -> Zum | D1: =Jahreskarten!F8 -> Beispiel
A2: Geben Sie Ihren Namen auf der Seite "Numerologie 2" und Ihren Geburtstag auf der Seite "Jahreskarten" ein.
B4: Summe | C4: Quersumme | D4: Karte Nr. | E4: Karte | F4: Numerologie | G4: Partnerzahlen | H4: Kompatible Zahlen | I4: Problemzahlen | J4: Neutrale Zahlen
A5: Seelenzahl (Vokale im Namen) | B5: ='Numerologie 2'!X42 -> 51 | C5: =IF(B5>22,SUMPRODUCT(MID(B5,ROW(INDIRECT("1:"&LEN(B5))),1)*1),B5) -> 6 | D5: =IF(C5>22,SUMPRODUCT(VALUE(MID(C5,ROW(INDIRECT("$b1:$A"&LEN(C5))),1))),C5) -> 6 | E5: =IF(D5=1,"Der Magier",IF(D5=2,"Die Hohepriesterin",IF(D5=3,"Die Herrscherin",IF(D5=4,"Der Herrscher",IF(D5=5,"Der Hierophant",IF(D5=6,"Die Liebenden",IF(D5=7,"Der Wagen",IF(D5=8,"Die Kraft",IF(D5=9,"Der Eremit",IF(D5=10,"Das Rad",IF(D5=11,"Die Gerechtigkeit",IF(D5=12,"Der Gehängte",IF(D5=13,"Der Tod",IF(D5=14,"Die Mässigkeit",IF(D5=15,"Der Teufel",IF(D5=16,"Der Turm",IF(D5=17,"Der Stern",IF(D5=18,"Der Mond",IF(D5=19,"Die Sonne",IF(D5=20,"Das Gericht",IF(D5=21,"Die Welt",IF(D5=22,"Der Narr")))))))))))))))))))))) -> Die Liebenden | F5: =(MOD(D5-TRUNC(D5/9)*9,-9)+9)*(D5>0) -> 6 | G5: =IF(OR(F5=1,F5=5,F5=7),"1, 5, 7",IF(OR(F5=2,F5=4,F5=8),"2, 4, 8",IF(OR(F5=3,F5=6,F5=9),"3, 6, 9",))) -> 3, 6, 9 | H5: =IF(F5=1,"2, 3, 9",IF(F5=2,"1, 3, 6, 9",IF(F5=3,"1, 2, 5",IF(F5=4,"7, 6",IF(F5=5,"3, 9",IF(F5=6,"2, 4, 8",IF(F5=7,"4",IF(F5=8,"6",IF(F5=9,"1, 2, 5"))))))))) -> 2, 4, 8 | I5: =IF(F5=1,"4, 6",IF(F5=2,"5, 7",IF(F5=3,"4, 7, 8",IF(F5=4,"1, 3, 5, 9",IF(F5=5,"2, 4, 6",IF(F5=6,"1, 5, 7",IF(F5=7,"2, 3, 6, 8, 9",IF(F5=8,"3, 7, 9",IF(F5=9,"4, 7, 8",))))))))) -> 1, 5, 7 | J5: =IF(F5=1,8,IF(F5=5,8,IF(F5=8,"1, 5",0))) -> 0
A6: Persönlichkeitszahl (Konsonanten im Namen) | B6: ='Numerologie 2'!AA42 -> 106 | C6: =IF(B6>22,SUMPRODUCT(MID(B6,ROW(INDIRECT("1:"&LEN(B6))),1)*1),B6) -> 7 | D6: =IF(C6>22,SUMPRODUCT(VALUE(MID(C6,ROW(INDIRECT("$b1:$A"&LEN(C6))),1))),C6) -> 7 | E6: Der Wagen | F6: =(MOD(D6-TRUNC(D6/9)*9,-9)+9)*(D6>0) -> 7 | G6: 1, 5, 7 | H6: =IF(F6=1,"2, 3, 9",IF(F6=2,"1, 3, 6, 9",IF(F6=3,"1, 2, 5",IF(F6=4,"7, 6",IF(F6=5,"3, 9",IF(F6=6,"2, 4, 8",IF(F6=7,"4",IF(F6=8,"6",IF(F6=9,"1, 2, 5"))))))))) -> 4 | I6: =IF(F6=1,"4, 6",IF(F6=2,"5, 7",IF(F6=3,"4, 7, 8",IF(F6=4,"1, 3, 5, 9",IF(F6=5,"2, 4, 6",IF(F6=6,"1, 5, 7",IF(F6=7,"2, 3, 6, 8, 9",IF(F6=8,"3, 7, 9",IF(F6=9,"4, 7, 8",))))))))) -> 2, 3, 6, 8, 9 | J6: =IF(F6=1,8,IF(F6=5,8,IF(F6=8,"1, 5",0))) -> 0
A7: Namenszahl (Summe aller Buchstaben im Namen) | B7: ='Numerologie 2'!C15 -> 157 | C7: 13 | D7: 13 | E7: Der Tod | F7: 4 | G7: 2, 4, 8 | H7: 7, 6 | I7: 1, 3, 5, 9 | J7: 0
A8: Geburtstagszahl (Tag der Geburt) | B8: =Jahreskarten!C8 -> 12 | C8: 12 | D8: 12 | E8: Der Gehängte | F8: 3 | G8: 3, 6, 9 | H8: 1, 2, 5 | I8: 4, 7, 8 | J8: 0
A9: Lebensaufgabenzahl (Summe des Geburtsdatums) | B9: =Jahreskarten!J13 -> 1981 | C9: 19 | D9: 19 | E9: Die Sonne | F9: 1 | G9: 1, 5, 7 | H9: 2, 3, 9 | I9: 4, 6 | J9: 8
A10: Einstellungszahl (Tag und Monat der Geburt) | B10: =Jahreskarten!B8+Jahreskarten!C8 -> 19 | C10: 19 | D10: 19 | E10: Die Sonne | F10: 1 | G10: 1, 5, 7 | H10: 2, 3, 9 | I10: 4, 6 | J10: 8
A11: Machtzahl | B11: =B7+B9 -> 2138 | C11: 14 | D11: 14 | E11: Die Mässigkeit | F11: 5 | G11: 1, 5, 7 | H11: 3, 9 | I11: 2, 4, 6 | J11: 8

Sheet Numerologie
A2: Tragen Sie immer zuerst auf dem Blatt "Jahreskarten" Ihren Geburtstag ein!
A5: Die Persönlichkeits- und Wesenskarten für | B5: =Jahreskarten!E8 -> Zum | C5: =Jahreskarten!F8 -> Beispiel
A6: Die Persönlichkeitskarte | B6: =Jahreskarten!H13 -> 19 | C6: =IF(B6=1,"Der Magier",IF(B6=2,"Die Hohepriesterin",IF(B6=3,"Die Herrscherin",IF(B6=4,"Der Herrscher",IF(B6=5,"Der Hierophant",IF(B6=6,"Die Liebenden",IF(B6=7,"Der Wagen",IF(B6=8,"Die Kraft",IF(B6=9,"Der Eremit",IF(B6=10,"Das Rad",IF(B6=11,"Die Gerechtigkeit",IF(B6=12,"Der Gehängte",IF(B6=13,"Der Tod",IF(B6=14,"Die Mässigkeit",IF(B6=15,"Der Teufel",IF(B6=16,"Der Turm",IF(B6=17,"Der Stern",IF(B6=18,"Der Mond",IF(B6=19,"Die Sonne",IF(B6=20,"Das Gericht",IF(B6=21,"Die Welt",IF(B6=22,"Der Narr")))))))))))))))))))))) -> Die Sonne | D6: =IF(B6<11,"Tagesbogen",IF(B6=22,"Tagesbogen","Nachtbogen")) -> Nachtbogen
A7: Die Wesenskarte | B7: =Jahreskarten!I13 -> 10 | C7: =IF(B7=1,"Der Magier",IF(B7=2,"Die Hohepriesterin",IF(B7=3,"Die Herrscherin",IF(B7=4,"Der Herrscher",IF(B7=5,"Der Hierophant",IF(B7=6,"Die Liebenden",IF(B7=7,"Der Wagen",IF(B7=8,"Die Kraft",IF(B7=9,"Der Eremit",IF(B7=10,"Das Rad",IF(B7=11,"Die Gerechtigkeit",IF(B7=12,"Der Gehängte",IF(B7=13,"Der Tod",IF(B7=14,"Die Mässigkeit",IF(B7=15,"Der Teufel",IF(B7=16,"Der Turm",IF(B7=17,"Der Stern",IF(B7=18,"Der Mond",IF(B7=19,"Die Sonne",IF(B7=20,"Das Gericht",IF(B7=21,"Die Welt",IF(B7=22,"Der Narr")))))))))))))))))))))) -> Das Rad | D7: =IF(B7<11,"Tagesbogen",IF(B7=22,"Tagesbogen","Nachtbogen")) -> Tagesbogen
A8: Ev. zweite Wesenskarte | B8: =IF(B6=1,19,IF(B6=2,20,IF(B6=3,21,IF(B6=4,22,IF(B6=10,19,IF(B6=11,20,IF(B6=12,21,IF(B6=13,22,IF(B6=19,1,IF(B6=20,11,IF(B6=21,12,IF(B6=22,13,"Keine")))))))))))) -> 1 | C8: =IF(B8=1,"Der Magier",IF(B8=2,"Die Hohepriesterin",IF(B8=3,"Die Herrscherin",IF(B8=4,"Der Herrscher",IF(B8=5,"Der Hierophant",IF(B8=6,"Die Liebenden",IF(B8=7,"Der Wagen",IF(B8=8,"Die Kraft",IF(B8=9,"Der Eremit",IF(B8=10,"Das Rad",IF(B8=11,"Die Gerechtigkeit",IF(B8=12,"Der Gehängte",IF(B8=13,"Der Tod",IF(B8=14,"Die Mässigkeit",IF(B8=15,"Der Teufel",IF(B8=16,"Der Turm",IF(B8=17,"Der Stern",IF(B8=18,"Der Mond",IF(B8=19,"Die Sonne",IF(B8=20,"Das Gericht",IF(B8=21,"Die Welt",IF(B8=22,"Der Narr",0)))))))))))))))))))))) -> Der Magier | D8: =IF(B8<11,"Tagesbogen",IF(B8=22,"Tagesbogen",IF(B8="Keine","-","Nachtbogen"))) -> Tagesbogen
A9: Typus normal oder besonders | B9: =IF(B6=11,"Besonders",IF(B6=12,"Besonders",IF(B6=13,"Besonders",IF(B6=14,"Besonders",IF(B6=15,"Besonders",IF(B6=16,"Besonders",IF(B6=17,"Besonders",IF(B6=18,"Besonders","Normal")))))))) -> Normal
A10: Karmisches Jahr | B10: =Jahreskarten!J13 -> 1981
A11: Karten der Aufgaben und Gelegenheiten | B11: Persönliche Ziele: | C11: =IF($B$6=22,"As Stäbe",IF($B$6=1,"As Stäbe",IF($B$6=2,"As Stäbe",IF($B$6=3,"2 Stäbe",IF($B$6=4,"2 Stäbe",IF($B$6=5,"2 Stäbe",IF($B$6=6,"3 Stäbe",IF($B$6=7,"3 Stäbe",IF($B$6=8,"4 Stäbe",IF($B$6=9,"4 Stäbe",IF($B$6=10,"4 Stäbe",IF($B$6=11,"5 Stäbe",IF($B$6=12,"5 Stäbe",IF($B$6=13,"6 Stäbe",IF($B$6=14,"6 Stäbe",IF($B$6=15,"6 Stäbe",IF($B$6=16,"7 Stäbe",IF($B$6=17,"7 Stäbe",IF($B$6=18,"7 Stäbe",IF($B$6=19,"8 Stäbe",IF($B$6=20,"8 Stäbe",IF($B$6=21,"9 Stäbe")))))))))))))))))))))) -> 8 Stäbe | D11: =IF($B$6=22,"2 Stäbe",IF($B$6=1,"3 Stäbe",IF($B$6=2,"6 Stäbe",IF($B$6=3,"3 Stäbe",IF($B$6=4,"6 Stäbe",IF($B$6=5,"4 Stäbe",IF($B$6=6,"6 Stäbe",IF($B$6=7,"5 Stäbe",IF($B$6=8,"5 Stäbe",IF($B$6=9,"6 Stäbe",IF($B$6=10,"7 Stäbe",IF($B$6=11,"6 Stäbe",IF($B$6=12,"8 Stäbe",IF($B$6=13,"7 Stäbe",IF($B$6=14,"9 Stäbe",IF($B$6=15,"8 Stäbe",IF($B$6=16,"8 Stäbe",IF($B$6=17,"9 Stäbe",IF($B$6=18,"10 Stäbe",IF($B$6=19,"9 Stäbe",IF($B$6=20,"10 Stäbe",IF($B$6=21,"10 Stäbe")))))))))))))))))))))) -> 9 Stäbe
B12: Beziehung: | C12: =IF($B$6=22,"As Kelche",IF($B$6=1,"As Kelche",IF($B$6=2,"As Kelche",IF($B$6=3,"2 Kelche",IF($B$6=4,"2 Kelche",IF($B$6=5,"2 Kelche",IF($B$6=6,"3 Kelche",IF($B$6=7,"3 Kelche",IF($B$6=8,"4 Kelche",IF($B$6=9,"4 Kelche",IF($B$6=10,"4 Kelche",IF($B$6=11,"5 Kelche",IF($B$6=12,"5 Kelche",IF($B$6=13,"6 Kelche",IF($B$6=14,"6 Kelche",IF($B$6=15,"6 Kelche",IF($B$6=16,"7 Kelche",IF($B$6=17,"7 Kelche",IF($B$6=18,"7 Kelche",IF($B$6=19,"8 Kelche",IF($B$6=20,"8 Kelche",IF($B$6=21,"9 Kelche")))))))))))))))))))))) -> 8 Kelche | D12: =IF($B$6=22,"2 Kelche",IF($B$6=1,"3 Kelche",IF($B$6=2,"6 Kelche",IF($B$6=3,"3 Kelche",IF($B$6=4,"6 Kelche",IF($B$6=5,"4 Kelche",IF($B$6=6,"6 Kelche",IF($B$6=7,"5 Kelche",IF($B$6=8,"5 Kelche",IF($B$6=9,"6 Kelche",IF($B$6=10,"7 Kelche",IF($B$6=11,"6 Kelche",IF($B$6=12,"8 Kelche",IF($B$6=13,"7 Kelche",IF($B$6=14,"9 Kelche",IF($B$6=15,"8 Kelche",IF($B$6=16,"8 Kelche",IF($B$6=17,"9 Kelche",IF($B$6=18,"10 Kelche",IF($B$6=19,"9 Kelche",IF($B$6=20,"10 Kelche",IF($B$6=21,"10 Kelche")))))))))))))))))))))) -> 9 Kelche
B13: Soziales Umfeld: | C13: =IF($B$6=22,"As Schwerter",IF($B$6=1,"As Schwerter",IF($B$6=2,"As Schwerter",IF($B$6=3,"2 Schwerter",IF($B$6=4,"2 Schwerter",IF($B$6=5,"2 Schwerter",IF($B$6=6,"3 Schwerter",IF($B$6=7,"3 Schwerter",IF($B$6=8,"4 Schwerter",IF($B$6=9,"4 Schwerter",IF($B$6=10,"4 Schwerter",IF($B$6=11,"5 Schwerter",IF($B$6=12,"5 Schwerter",IF($B$6=13,"6 Schwerter",IF($B$6=14,"6 Schwerter",IF($B$6=15,"6 Schwerter",IF($B$6=16,"7 Schwerter",IF($B$6=17,"7 Schwerter",IF($B$6=18,"7 Schwerter",IF($B$6=19,"8 Schwerter",IF($B$6=20,"8 Schwerter",IF($B$6=21,"9 Schwerter")))))))))))))))))))))) -> 8 Schwerter | D13: =IF($B$6=22,"2 Schwerter",IF($B$6=1,"3 Schwerter",IF($B$6=2,"6 Schwerter",IF($B$6=3,"3 Schwerter",IF($B$6=4,"6 Schwerter",IF($B$6=5,"4 Schwerter",IF($B$6=6,"6 Schwerter",IF($B$6=7,"5 Schwerter",IF($B$6=8,"5 Schwerter",IF($B$6=9,"6 Kelche",IF($B$6=10,"7 Schwerter",IF($B$6=11,"6 Schwerter",IF($B$6=12,"8 Schwerter",IF($B$6=13,"7 Schwerter",IF($B$6=14,"9 Schwerter",IF($B$6=15,"8 Schwerter",IF($B$6=16,"8 Schwerter",IF($B$6=17,"9 Schwerter",IF($B$6=18,"10 Schwerter",IF($B$6=19,"9 Schwerter",IF($B$6=20,"10 Schwerter",IF($B$6=21,"10 Schwerter")))))))))))))))))))))) -> 9 Schwerter
B14: Beruf, Geld: | C14: =IF($B$6=22,"As Münzen",IF($B$6=1,"As Münzen",IF($B$6=2,"As Münzen",IF($B$6=3,"2 Münzen",IF($B$6=4,"2 Münzen",IF($B$6=5,"2 Münzen",IF($B$6=6,"3 Münzen",IF($B$6=7,"3 Münzen",IF($B$6=8,"4 Münzen",IF($B$6=9,"4 Münzen",IF($B$6=10,"4 Münzen",IF($B$6=11,"5 Münzen",IF($B$6=12,"5 Münzen",IF($B$6=13,"6 Münzen",IF($B$6=14,"6 Münzen",IF($B$6=15,"6 Münzen",IF($B$6=16,"7 Münzen",IF($B$6=17,"7 Münzen",IF($B$6=18,"7 Münzen",IF($B$6=19,"8 Münzen",IF($B$6=20,"8 Münzen",IF($B$6=21,"9 Münzen")))))))))))))))))))))) -> 8 Münzen | D14: =IF($B$6=22,"2 Münzen",IF($B$6=1,"3 Münzen",IF($B$6=2,"6 Münzen",IF($B$6=3,"3 Münzen",IF($B$6=4,"6 Münzen",IF($B$6=5,"4 Münzen",IF($B$6=6,"6 Münzen",IF($B$6=7,"5 Münzen",IF($B$6=8,"5 Münzen",IF($B$6=9,"6 Münzen",IF($B$6=10,"7 Münzen",IF($B$6=11,"6 Münzen",IF($B$6=12,"8 Münzen",IF($B$6=13,"7 Münzen",IF($B$6=14,"9 Kelche",IF($B$6=15,"8 Münzen",IF($B$6=16,"8 Münzen",IF($B$6=17,"9 Münzen",IF($B$6=18,"10 Münzen",IF($B$6=19,"9 Münzen",IF($B$6=20,"10 Münzen",IF($B$6=21,"10 Münzen")))))))))))))))))))))) -> 9 Münzen
A15: Konstellation der Persönlichkeitskarte | B15: =IF(OR(B6=1,B6=10,B6=19),"1 Der Magier",IF(OR(B6=2,B6=11,B6=20),"2 Die Hohepriesterin",IF(OR(B6=3,B6=12,B6=21),"3 Die Herrscherin",IF(OR(B6=4,B6=13,B6=22),"4 Der Herrscher",IF(OR(B6=5,B6=14),"5 Der Hierophant",IF(OR(B6=6,B6=15),"6 Die Liebenden",IF(OR(B6=7,B6=16),"7 DerWagen",IF(OR(B6=8,B6=17),"8 Die Kraft",IF(OR(B6=9,B6=18),"9 Der Eremit"))))))))) -> 1 Der Magier
A16: Gruppe der Persönlichkeitskarte | B16: =IF(OR(B6=1,B6=4,B6=7,B6=10,B6=13,B6=16,B6=19,B6=22),"Osiris",IF(OR(B6=2,B6=5,B6=8,B6=11,B6=14,B6=17,B6=20),"Isis",IF(OR(B6=3,B6=6,B6=9,B6=12,B6=15,B6=18,B6=21),"Horus"))) -> Osiris
A18: Die Geburtstagskarte | B18: =F18 -> 12 | C18: =IF(B18=1,"Der Magier",IF(B18=2,"Die Hohepriesterin",IF(B18=3,"Die Herrscherin",IF(B18=4,"Der Herrscher",IF(B18=5,"Der Hierophant",IF(B18=6,"Die Liebenden",IF(B18=7,"Der Wagen",IF(B18=8,"Die Kraft",IF(B18=9,"Der Eremit",IF(B18=10,"Das Rad",IF(B18=11,"Die Gerechtigkeit",IF(B18=12,"Der Gehängte",IF(B18=13,"Der Tod",IF(B18=14,"Die Mässigkeit",IF(B18=15,"Der Teufel",IF(B18=16,"Der Turm",IF(B18=17,"Der Stern",IF(B18=18,"Der Mond",IF(B18=19,"Die Sonne",IF(B18=20,"Das Gericht",IF(B18=21,"Die Welt",IF(B18=22,"Der Narr")))))))))))))))))))))) -> Der Gehängte | E18: =Jahreskarten!C8 -> 12 | F18: =IF(E18>22,SUMPRODUCT(VALUE(MID(E18,ROW(INDIRECT("$b1:$A"&LEN(E18))),1))),E18) -> 12
A19: Die Konstellation der Geburtstagskarte | B19: =IF(B18>9,SUMPRODUCT(VALUE(MID(B18,ROW(INDIRECT("$b1:$A"&LEN(B18))),1))),B18) -> 3 | C19: =IF(B19=1,"Der Magier",IF(B19=2,"Die Hohepriesterin",IF(B19=3,"Die Herrscherin",IF(B19=4,"Der Herrscher",IF(B19=5,"Der Hierophant",IF(B19=6,"Die Liebenden",IF(B19=7,"Der Wagen",IF(B19=8,"Die Kraft",IF(B19=9,"Der Eremit",IF(B19=10,"Das Rad",IF(B19=11,"Die Gerechtigkeit",IF(B19=12,"Der Gehängte",IF(B19=13,"Der Tod",IF(B19=14,"Die Mässigkeit",IF(B19=15,"Der Teufel",IF(B19=16,"Der Turm",IF(B19=17,"Der Stern",IF(B19=18,"Der Mond",IF(B19=19,"Die Sonne",IF(B19=20,"Das Gericht",IF(B19=21,"Die Welt",IF(B19=22,"Der Narr")))))))))))))))))))))) -> Die Herrscherin
A20: Die Gruppe der Geburtstagskarte | B20: =IF(OR(B18=1,B18=4,B18=7,B18=10,B18=13,B18=16,B18=19,B18=22),"Osiris",IF(OR(B18=2,B18=5,B18=8,B18=11,B18=14,B18=17,B18=20),"Isis",IF(OR(B18=3,B18=6,B18=9,B18=12,B18=15,B18=18,B18=21),"Horus"))) -> Horus
D21: Hier das gewünschte
A22: Die Jahreskarten | B22: Geburtsmonat | C22: Geburtstag | D22: Jahr eintragen: | E22: Summe | F22: Quersumme
A23: Die Berechnung | B23: =Jahreskarten!B8 -> 7 | C23: =Jahreskarten!C8 -> 12 | D23: 2023 | E23: =B23+C23+D23 -> 2042 | F23: =SUMPRODUCT(MID(E23,ROW(INDIRECT("1:"&LEN(E23))),1)*1) -> 8
A24: Die Jahreskarte | B24: =IF(F23>22,SUMPRODUCT(VALUE(MID(F23,ROW(INDIRECT("$b1:$A"&LEN(F23))),1))),F23) -> 8 | C24: =IF(B24=1,"Der Magier",IF(B24=2,"Die Hohepriesterin",IF(B24=3,"Die Herrscherin",IF(B24=4,"Der Herrscher",IF(B24=5,"Der Hierophant",IF(B24=6,"Die Liebenden",IF(B24=7,"Der Wagen",IF(B24=8,"Die Kraft",IF(B24=9,"Der Eremit",IF(B24=10,"Das Rad",IF(B24=11,"Die Gerechtigkeit",IF(B24=12,"Der Gehängte",IF(B24=13,"Der Tod",IF(B24=14,"Die Mässigkeit",IF(B24=15,"Der Teufel",IF(B24=16,"Der Turm",IF(B24=17,"Der Stern",IF(B24=18,"Der Mond",IF(B24=19,"Die Sonne",IF(B24=20,"Das Gericht",IF(B24=21,"Die Welt",IF(B24=22,"Der Narr")))))))))))))))))))))) -> Die Kraft | D24: =IF(B24<11,"Tagesbogen",IF(B24=22,"-",IF(B24=21,"-","Nachtbogen"))) -> Tagesbogen
A25: Die Wesenskarte des Jahres | B25: =IF(B24>9,SUMPRODUCT(VALUE(MID(B24,ROW(INDIRECT("$b1:$A"&LEN(B24))),1))),B24+9) -> 17 | C25: =IF(B25=1,"Der Magier",IF(B25=2,"Die Hohepriesterin",IF(B25=3,"Die Herrscherin",IF(B25=4,"Der Herrscher",IF(B25=5,"Der Hierophant",IF(B25=6,"Die Liebenden",IF(B25=7,"Der Wagen",IF(B25=8,"Die Kraft",IF(B25=9,"Der Eremit",IF(B25=10,"Das Rad",IF(B25=11,"Die Gerechtigkeit",IF(B25=12,"Der Gehängte",IF(B25=13,"Der Tod",IF(B25=14,"Die Mässigkeit",IF(B25=15,"Der Teufel",IF(B25=16,"Der Turm",IF(B25=17,"Der Stern",IF(B25=18,"Der Mond",IF(B25=19,"Die Sonne",IF(B25=20,"Das Gericht",IF(B25=21,"Die Welt",IF(B25=22,"Der Narr")))))))))))))))))))))) -> Der Stern | D25: =IF(B25<11,"Tagesbogen",IF(B25=22,"-",IF(B25=21,"-","Nachtbogen"))) -> Nachtbogen
A26: Ev. zweite Wesenskarte des Jahres | B26: =IF(B24=1,19,IF(B24=2,20,IF(B24=3,21,IF(B24=4,22,IF(B24=10,19,IF(B24=11,20,IF(B24=12,21,IF(B24=13,22,IF(B24=19,1,IF(B24=20,11,IF(B24=21,12,IF(B24=22,13,"Keine")))))))))))) -> Keine | C26: =IF(B26=1,"Der Magier",IF(B26=2,"Die Hohepriesterin",IF(B26=3,"Die Herrscherin",IF(B26=4,"Der Herrscher",IF(B26=5,"Der Hierophant",IF(B26=6,"Die Liebenden",IF(B26=7,"Der Wagen",IF(B26=8,"Die Kraft",IF(B26=9,"Der Eremit",IF(B26=10,"Das Rad",IF(B26=11,"Die Gerechtigkeit",IF(B26=12,"Der Gehängte",IF(B26=13,"Der Tod",IF(B26=14,"Die Mässigkeit",IF(B26=15,"Der Teufel",IF(B26=16,"Der Turm",IF(B26=17,"Der Stern",IF(B26=18,"Der Mond",IF(B26=19,"Die Sonne",IF(B26=20,"Das Gericht",IF(B26=21,"Die Welt",IF(B26=22,"Der Narr",0)))))))))))))))))))))) -> 0 | D26: =IF(B26<11,"Tagesbogen",IF(B26=22,"-",IF(B26=21,"-",IF(B26="Keine","-","Nachtbogen")))) -> -
A27: Typus normal oder besonders | B27: =IF(B24=11,"Besonders",IF(B24=12,"Besonders",IF(B24=13,"Besonders",IF(B24=14,"Besonders",IF(B24=15,"Besonders",IF(B24=16,"Besonders",IF(B24=17,"Besonders",IF(B24=18,"Besonders","Normal")))))))) -> Normal
A28: Karmisches Jahr | B28: =Jahreskarten!J13 -> 1981
A29: Karten der Aufgaben und Gelegenheiten | B29: Persönliche Ziele: | C29: =IF($B$24=22,"As Stäbe",IF($B$24=1,"As Stäbe",IF($B$24=2,"As Stäbe",IF($B$24=3,"2 Stäbe",IF($B$24=4,"2 Stäbe",IF($B$24=5,"2 Stäbe",IF($B$24=6,"3 Stäbe",IF($B$24=7,"3 Stäbe",IF($B$24=8,"4 Stäbe",IF($B$24=9,"4 Stäbe",IF($B$24=10,"4 Stäbe",IF($B$24=11,"5 Stäbe",IF($B$24=12,"5 Stäbe",IF($B$24=13,"6 Stäbe",IF($B$24=14,"6 Stäbe",IF($B$24=15,"6 Stäbe",IF($B$24=16,"7 Stäbe",IF($B$24=17,"7 Stäbe",IF($B$24=18,"7 Stäbe",IF($B$24=19,"8 Stäbe",IF($B$24=20,"8 Stäbe",IF($B$24=21,"9 Stäbe")))))))))))))))))))))) -> 4 Stäbe | D29: =IF($B$24=22,"2 Stäbe",IF($B$24=1,"3 Stäbe",IF($B$24=2,"6 Stäbe",IF($B$24=3,"3 Stäbe",IF($B$24=4,"6 Stäbe",IF($B$24=5,"4 Stäbe",IF($B$24=6,"6 Stäbe",IF($B$24=7,"5 Stäbe",IF($B$24=8,"5 Stäbe",IF($B$24=9,"6 Stäbe",IF($B$24=10,"7 Stäbe",IF($B$24=11,"6 Stäbe",IF($B$24=12,"8 Stäbe",IF($B$24=13,"7 Stäbe",IF($B$24=14,"9 Stäbe",IF($B$24=15,"8 Stäbe",IF($B$24=16,"8 Stäbe",IF($B$24=17,"9 Stäbe",IF($B$24=18,"10 Stäbe",IF($B$24=19,"9 Stäbe",IF($B$24=20,"10 Stäbe",IF($B$24=21,"10 Stäbe")))))))))))))))))))))) -> 5 Stäbe
B30: Beziehung: | C30: =IF($B$24=22,"As Kelche",IF($B$24=1,"As Kelche",IF($B$24=2,"As Kelche",IF($B$24=3,"2 Kelche",IF($B$24=4,"2 Kelche",IF($B$24=5,"2 Kelche",IF($B$24=6,"3 Kelche",IF($B$24=7,"3 Kelche",IF($B$24=8,"4 Kelche",IF($B$24=9,"4 Kelche",IF($B$24=10,"4 Kelche",IF($B$24=11,"5 Kelche",IF($B$24=12,"5 Kelche",IF($B$24=13,"6 Kelche",IF($B$24=14,"6 Kelche",IF($B$24=15,"6 Kelche",IF($B$24=16,"7 Kelche",IF($B$24=17,"7 Kelche",IF($B$24=18,"7 Kelche",IF($B$24=19,"8 Kelche",IF($B$24=20,"8 Kelche",IF($B$24=21,"9 Kelche")))))))))))))))))))))) -> 4 Kelche | D30: =IF($B$24=22,"2 Kelche",IF($B$24=1,"3 Kelche",IF($B$24=2,"6 Kelche",IF($B$24=3,"3 Kelche",IF($B$24=4,"6 Kelche",IF($B$24=5,"4 Kelche",IF($B$24=6,"6 Kelche",IF($B$24=7,"5 Kelche",IF($B$24=8,"5 Kelche",IF($B$24=9,"6 Kelche",IF($B$24=10,"7 Kelche",IF($B$24=11,"6 Kelche",IF($B$24=12,"8 Kelche",IF($B$24=13,"7 Kelche",IF($B$24=14,"9 Kelche",IF($B$24=15,"8 Kelche",IF($B$24=16,"8 Kelche",IF($B$24=17,"9 Kelche",IF($B$24=18,"10 Kelche",IF($B$24=19,"9 Kelche",IF($B$24=20,"10 Kelche",IF($B$24=21,"10 Kelche")))))))))))))))))))))) -> 5 Kelche
B31: Soziales Umfeld: | C31: =IF($B$24=22,"As Schwerter",IF($B$24=1,"As Schwerter",IF($B$24=2,"As Schwerter",IF($B$24=3,"2 Schwerter",IF($B$24=4,"2 Schwerter",IF($B$24=5,"2 Schwerter",IF($B$24=6,"3 Schwerter",IF($B$24=7,"3 Schwerter",IF($B$24=8,"4 Schwerter",IF($B$24=9,"4 Schwerter",IF($B$24=10,"4 Schwerter",IF($B$24=11,"5 Schwerter",IF($B$24=12,"5 Schwerter",IF($B$24=13,"6 Schwerter",IF($B$24=14,"6 Schwerter",IF($B$24=15,"6 Schwerter",IF($B$24=16,"7 Schwerter",IF($B$24=17,"7 Schwerter",IF($B$24=18,"7 Schwerter",IF($B$24=19,"8 Schwerter",IF($B$24=20,"8 Schwerter",IF($B$24=21,"9 Schwerter")))))))))))))))))))))) -> 4 Schwerter | D31: =IF($B$24=22,"2 Schwerter",IF($B$24=1,"3 Schwerter",IF($B$24=2,"6 Schwerter",IF($B$24=3,"3 Schwerter",IF($B$24=4,"6 Schwerter",IF($B$24=5,"4 Schwerter",IF($B$24=6,"6 Schwerter",IF($B$24=7,"5 Schwerter",IF($B$24=8,"5 Schwerter",IF($B$24=9,"6 Schwerter",IF($B$24=10,"7 Schwerter",IF($B$24=11,"6 Schwerter",IF($B$24=12,"8 Schwerter",IF($B$24=13,"7 Schwerter",IF($B$24=14,"9 Schwerter",IF($B$24=15,"8 Schwerter",IF($B$24=16,"8 Schwerter",IF($B$24=17,"9 Schwerter",IF($B$24=18,"10 Schwerter",IF($B$24=19,"9 Schwerter",IF($B$24=20,"10 Schwerter",IF($B$24=21,"10 Schwerter")))))))))))))))))))))) -> 5 Schwerter
B32: Beruf, Geld: | C32: =IF($B$24=22,"As Münzen",IF($B$24=1,"As Münzen",IF($B$24=2,"As Münzen",IF($B$24=3,"2 Münzen",IF($B$24=4,"2 Münzen",IF($B$24=5,"2 Münzen",IF($B$24=6,"3 Münzen",IF($B$24=7,"3 Münzen",IF($B$24=8,"4 Münzen",IF($B$24=9,"4 Münzen",IF($B$24=10,"4 Münzen",IF($B$24=11,"5 Münzen",IF($B$24=12,"5 Münzen",IF($B$24=13,"6 Münzen",IF($B$24=14,"6 Münzen",IF($B$24=15,"6 Münzen",IF($B$24=16,"7 Münzen",IF($B$24=17,"7 Münzen",IF($B$24=18,"7 Münzen",IF($B$24=19,"8 Münzen",IF($B$24=20,"8 Münzen",IF($B$24=21,"9 Münzen")))))))))))))))))))))) -> 4 Münzen | D32: =IF($B$24=22,"2 Münzen",IF($B$24=1,"3 Münzen",IF($B$24=2,"6 Münzen",IF($B$24=3,"3 Münzen",IF($B$24=4,"6 Münzen",IF($B$24=5,"4 Münzen",IF($B$24=6,"6 Münzen",IF($B$24=7,"5 Münzen",IF($B$24=8,"5 Münzen",IF($B$24=9,"6 Münzen",IF($B$24=10,"7 Münzen",IF($B$24=11,"6 Münzen",IF($B$24=12,"8 Münzen",IF($B$24=13,"7 Münzen",IF($B$24=14,"9 Münzen",IF($B$24=15,"8 Münzen",IF($B$24=16,"8 Münzen",IF($B$24=17,"9 Münzen",IF($B$24=18,"10 Münzen",IF($B$24=19,"9 Münzen",IF($B$24=20,"10 Münzen",IF($B$24=21,"10 Münzen")))))))))))))))))))))) -> 5 Münzen
A33: Konstellation der Jahreskarte | B33: =IF(OR(B24=1,B24=10,B24=19),"1 Der Magier",IF(OR(B24=2,B24=11,B24=20),"2 Die Hohepriesterin",IF(OR(B24=3,B24=12,B24=21),"3 Die Herrscherin",IF(OR(B24=4,B24=13,B24=22),"4 Der Herrscher",IF(OR(B24=5,B24=14),"5 Der Hierophant",IF(OR(B24=6,B24=15),"6 Die Liebenden",IF(OR(B24=7,B24=16),"7 DerWagen",IF(OR(B24=8,B24=17),"8 Die Kraft",IF(OR(B24=9,B24=18),"9 Der Eremit"))))))))) -> 8 Die Kraft
A34: Gruppe der Jahreskarte | B34: =IF(OR(B24=1,B24=4,B24=7,B24=10,B24=13,B24=16,B24=19,B24=22),"Osiris",IF(OR(B24=2,B24=5,B24=8,B24=11,B24=14,B24=17,B24=20),"Isis",IF(OR(B24=3,B24=6,B24=9,B24=12,B24=15,B24=18,B24=21),"Horus"))) -> Isis
A35: Die Jahreskarte entspricht der Persönlichkeitskarte | B35: =IF(B24=B6,"Ja","Nein") -> Nein
A36: Die Jahreskarte entspricht der Wesenskarte | B36: =IF(B24=B7,"Ja","Nein") -> Nein
A37: Die Jahreskarte entspricht der zweiten Wesenskarte | B37: =IF(B24=B8,"Ja","Nein") -> Nein
A38: Grundthema des aktuellen Zyklus | B38: Erstes Jahr im Zyklus
A39: Die Jahreskarten im Leben | B39: Siehe bei "Jahreskarten"
A40: In welchen Jahren tauchen neue Karten auf? | B40: Siehe bei "Jahreskarten"
A41: In welchen Jahren fallen Karten für immer weg? | B41: Siehe bei "Jahreskarten"
A42: Beginn des nächsten Lebenszyklus | B42: Siehe bei "Jahreskarten"

Sheet Numerologie 2
A1: Die Berechnungen der Namensanalyse | B1: für | C1: =Jahreskarten!E8 -> Zum | D1: =Jahreskarten!F8 -> Beispiel
A2: Bitte denken Sie daran, dass der Buchstabe "Y" ein Vokal oder ein Konsonant sein kann. In Xylophon, Marley oder Mary ist es ein Vokal. Er wird als ü oder i gesprochen.
A3: In Yoga, Beyoncé oder Yak ist es ein Konsonant. Dann wird das Y als J gesprochen. Wenn das Y im Namen ein Vokal ist, schreiben Sie es wie gewohnt als y.
A4: Wenn das Y aber ein Konsonant ist, dann tragen Sie im Namen "$" ein. So kann das Programm erkennen, ob es sich um einen Vokal oder einen Konsonanten handelt. Z.B. Yara = $ara.
A5: Schreiben Sie das scharfe S (β) immer als doppeltes S. Statt Straβe schreiben Sie also Strasse. Französische Akzente wie é, è oder ë lassen Sie weg, genauso wie die Tilde bei ñ. Sie verändern den Buchstabenwert nicht.
A6: Die Umläute ä, ö und ü schreiben Sie ganz normal.
A7: Falls Sie mehrere mittlere Namen haben, schreiben Sie diese alle zusammen. Z.B. Susanne Margarete = Susannemargarete. Auch Namenszusätze wie "von" oder "de" sollten zusammengeschrieben werden. Z.B. von Kleist = vonkleist.
B9: Jahr | C9: Monat | D9: Tag | F9: Summe | G9: Quersumme | H9: Karte
A10: Geben Sie auf dem Blatt "Jahreskarten" Ihr Geburtsdatum ein: | B10: =Jahreskarten!A8 -> 1962 | C10: =Jahreskarten!B8 -> 7 | D10: =Jahreskarten!C8 -> 12 | M10: Stelle | N10: Vorname | O10: Wert | P10: Stelle | Q10: Mittlere Namen | R10: Wert | S10: Stelle | T10: Nachname | U10: Wert | V10: Vokale Vornamen | W10: Vokale mittlere Namen | X10: Vokale Nachnamen | Y10: Konsonanten Vornamen | Z10: Konsonanten mittlere Namen | AA10: Konsonanten Nachnamen
C11: Buchstabenwerte | D11: Anzahl Buchstaben | K11: a | L11: 1 | M11: 1 | N11: =IF(MID($B$12,M11,1)=""," ",MID($B$12,M11,1)) -> m | O11: =IF(ISERROR(VLOOKUP(N11,$K$11:$L$40,2,FALSE)),0,VLOOKUP(N11,$K$11:$L$40,2,FALSE)) -> 13 | P11: 1 | Q11: =IF(MID($B$13,P11,1)=""," ",MID($B$13,P11,1)) ->  | R11: =IF(ISERROR(VLOOKUP(Q11,$K$11:$L$40,2,FALSE)),0,VLOOKUP(Q11,$K$11:$L$40,2,FALSE)) -> 0 | S11: 1 | T11: =IF(MID($B$14,S11,1)=""," ",MID($B$14,S11,1)) -> t | U11: =IF(ISERROR(VLOOKUP(T11,$K$11:$L$40,2,FALSE)),0,VLOOKUP(T11,$K$11:$L$40,2,FALSE)) -> 20 | V11: =IF(N11="a",1,IF(N11="e",5,IF(N11="i",9,IF(N11="o",15,IF(N11="u",21,IF(N11="y",25,IF(N11="ä",1,IF(N11="ö",15,IF(N11="ü",21,0))))))))) -> 0 | W11: =IF(Q11="a",1,IF(Q11="e",5,IF(Q11="i",9,IF(Q11="o",15,IF(Q11="u",21,IF(Q11="y",25,IF(Q11="ä",1,IF(Q11="ö",15,IF(Q11="ü",21,0))))))))) -> 0 | X11: =IF(T11="a",1,IF(T11="e",5,IF(T11="i",9,IF(T11="o",15,IF(T11="u",21,IF(T11="y",25,IF(T11="ä",1,IF(T11="ö",15,IF(T11="ü",21,0))))))))) -> 0 | Y11: =IF(N11="a",0,IF(N11="b",2,IF(N11="c",3,IF(N11="d",4,IF(N11="e",0,IF(N11="f",6,IF(N11="g",7,IF(N11="h",8,IF(N11="i",0,IF(N11="j",10,IF(N11="k",11,IF(N11="l",12,IF(N11="m",13,IF(N11="n",14,IF(N11="o",0,IF(N11="p",16,IF(N11="q",17,IF(N11="r",18,IF(N11="s",19,IF(N11="t",20,IF(N11="u",0,IF(N11="v",22,IF(N11="w",23,IF(N11="x",24,IF(N11="y",0,IF(N11="$",25,IF(N11="z",26,0))))))))))))))))))))))))))) -> 13 | Z11: =IF(Q11="a",0,IF(Q11="b",2,IF(Q11="c",3,IF(Q11="d",4,IF(Q11="e",0,IF(Q11="f",6,IF(Q11="g",7,IF(Q11="h",8,IF(Q11="i",0,IF(Q11="j",10,IF(Q11="k",11,IF(Q11="l",12,IF(Q11="m",13,IF(Q11="n",14,IF(Q11="o",0,IF(Q11="p",16,IF(Q11="q",17,IF(Q11="r",18,IF(Q11="s",19,IF(Q11="t",20,IF(Q11="u",0,IF(Q11="v",22,IF(Q11="w",23,IF(Q11="x",24,IF(Q11="y",0,IF(Q11="$",25,IF(Q11="z",26,0))))))))))))))))))))))))))) -> 0 | AA11: =IF(T11="a",0,IF(T11="b",2,IF(T11="c",3,IF(T11="d",4,IF(T11="e",0,IF(T11="f",6,IF(T11="g",7,IF(T11="h",8,IF(T11="i",0,IF(T11="j",10,IF(T11="k",11,IF(T11="l",12,IF(T11="m",13,IF(T11="n",14,IF(T11="o",0,IF(T11="p",16,IF(T11="q",17,IF(T11="r",18,IF(T11="s",19,IF(T11="t",20,IF(T11="u",0,IF(T11="v",22,IF(T11="w",23,IF(T11="x",24,IF(T11="y",0,IF(T11="$",25,IF(T11="z",26,0))))))))))))))))))))))))))) -> 20
A12: Vorname | B12: maria | C12: =O41 -> 42 | D12: =LEN(B12) -> 5 | F12: =C12 -> 42 | G12: =IF(F12>22,SUMPRODUCT(VALUE(MID(F12,ROW(INDIRECT("$b1:$A"&LEN(F12))),1))),F12) -> 6 | H12: =IF(G12>22,SUMPRODUCT(VALUE(MID(G12,ROW(INDIRECT("$b1:$A"&LEN(G12))),1))),G12) -> 6 | K12: ä | L12: 1 | M12: 2 | N12: =IF(MID($B$12,M12,1)=""," ",MID($B$12,M12,1)) -> a | O12: 1 | P12: 2 | Q12: =IF(MID($B$13,P12,1)=""," ",MID($B$13,P12,1)) ->  | R12: 0 | S12: 2 | T12: =IF(MID($B$14,S12,1)=""," ",MID($B$14,S12,1)) -> i | U12: 9 | V12: =IF(N12="a",1,IF(N12="e",5,IF(N12="i",9,IF(N12="o",15,IF(N12="u",21,IF(N12="y",25,IF(N12="ä",1,IF(N12="ö",15,IF(N12="ü",21,0))))))))) -> 1 | W12: =IF(Q12="a",1,IF(Q12="e",5,IF(Q12="i",9,IF(Q12="o",15,IF(Q12="u",21,IF(Q12="y",25,IF(Q12="ä",1,IF(Q12="ö",15,IF(Q12="ü",21,0))))))))) -> 0 | X12: =IF(T12="a",1,IF(T12="e",5,IF(T12="i",9,IF(T12="o",15,IF(T12="u",21,IF(T12="y",25,IF(T12="ä",1,IF(T12="ö",15,IF(T12="ü",21,0))))))))) -> 9 | Y12: =IF(N12="a",0,IF(N12="b",2,IF(N12="c",3,IF(N12="d",4,IF(N12="e",0,IF(N12="f",6,IF(N12="g",7,IF(N12="h",8,IF(N12="i",0,IF(N12="j",10,IF(N12="k",11,IF(N12="l",12,IF(N12="m",13,IF(N12="n",14,IF(N12="o",0,IF(N12="p",16,IF(N12="q",17,IF(N12="r",18,IF(N12="s",19,IF(N12="t",20,IF(N12="u",0,IF(N12="v",22,IF(N12="w",23,IF(N12="x",24,IF(N12="y",0,IF(N12="$",25,IF(N12="z",26,0))))))))))))))))))))))))))) -> 0 | Z12: =IF(Q12="a",0,IF(Q12="b",2,IF(Q12="c",3,IF(Q12="d",4,IF(Q12="e",0,IF(Q12="f",6,IF(Q12="g",7,IF(Q12="h",8,IF(Q12="i",0,IF(Q12="j",10,IF(Q12="k",11,IF(Q12="l",12,IF(Q12="m",13,IF(Q12="n",14,IF(Q12="o",0,IF(Q12="p",16,IF(Q12="q",17,IF(Q12="r",18,IF(Q12="s",19,IF(Q12="t",20,IF(Q12="u",0,IF(Q12="v",22,IF(Q12="w",23,IF(Q12="x",24,IF(Q12="y",0,IF(Q12="$",25,IF(Q12="z",26,0))))))))))))))))))))))))))) -> 0 | AA12: =IF(T12="a",0,IF(T12="b",2,IF(T12="c",3,IF(T12="d",4,IF(T12="e",0,IF(T12="f",6,IF(T12="g",7,IF(T12="h",8,IF(T12="i",0,IF(T12="j",10,IF(T12="k",11,IF(T12="l",12,IF(T12="m",13,IF(T12="n",14,IF(T12="o",0,IF(T12="p",16,IF(T12="q",17,IF(T12="r",18,IF(T12="s",19,IF(T12="t",20,IF(T12="u",0,IF(T12="v",22,IF(T12="w",23,IF(T12="x",24,IF(T12="y",0,IF(T12="$",25,IF(T12="z",26,0))))))))))))))))))))))))))) -> 0
A13: Alle mittleren Namen | C13: =R41 -> 0 | D13: =LEN(B13) -> 0 | F13: =C13 -> 0 | G13: =IF(F13>22,SUMPRODUCT(VALUE(MID(F13,ROW(INDIRECT("$b1:$A"&LEN(F13))),1))),F13) -> 0 | H13: =IF(G13>22,SUMPRODUCT(VALUE(MID(G13,ROW(INDIRECT("$b1:$A"&LEN(G13))),1))),G13) -> 0 | K13: b | L13: 2 | M13: 3 | N13: r | O13: 18 | P13: 3 | R13: 0 | S13: 3 | T13: k | U13: 11 | V13: 0 | W13: 0 | X13: 0 | Y13: 18 | Z13: 0 | AA13: 11
A14: Nachname | B14: tikhonova | C14: =U41 -> 115 | D14: 9 | F14: 115 | G14: 7 | H14: 7 | K14: c | L14: 3 | M14: 4 | N14: i | O14: 9 | P14: 4 | R14: 0 | S14: 4 | T14: h | U14: 8 | V14: 9 | W14: 0 | X14: 0 | Y14: 0 | Z14: 0 | AA14: 8
C15: =SUM(C12:C14) -> 157 | D15: =SUM(D12:D14) -> 14 | F15: 157 | G15: 13 | H15: 13 | K15: d | L15: 4 | M15: 5 | N15: a | O15: 1 | P15: 5 | R15: 0 | S15: 5 | T15: o | U15: 15 | V15: 1 | W15: 0 | X15: 15 | Y15: 0 | Z15: 0 | AA15: 0
A16: Ersten Buchstaben des Vornamens eingeben | B16: m | F16: =D10 -> 12 | G16: 12 | H16: 12 | K16: e | L16: 5 | M16: 6 | O16: 0 | P16: 6 | R16: 0 | S16: 6 | T16: n | U16: 14 | V16: 0 | W16: 0 | X16: 0 | Y16: 0 | Z16: 0 | AA16: 14
A17: Ersten Vokal des Vornamens eingeben | B17: a | F17: =SUM(B10+C10+D10) -> 1981 | G17: 19 | H17: 19 | K17: f | L17: 6 | M17: 7 | N17: =IF(MID($B$12,M17,1)=""," ",MID($B$12,M17,1)) ->  | O17: 0 | P17: 7 | R17: 0 | S17: 7 | T17: o | U17: 15 | V17: 0 | W17: 0 | X17: 15 | Y17: 0 | Z17: 0 | AA17: 0
F18: =SUM(C15+F17) -> 2138 | G18: 14 | H18: 14 | K18: g | L18: 7 | M18: 8 | O18: 0 | P18: 8 | R18: 0 | S18: 8 | T18: v | U18: 22 | V18: 0 | W18: 0 | X18: 0 | Y18: 0 | Z18: 0 | AA18: 22
F19: =X42 -> 51 | G19: 6 | H19: 6 | K19: h | L19: 8 | M19: 9 | O19: 0 | P19: 9 | R19: 0 | S19: 9 | T19: a | U19: 1 | V19: 0 | W19: 0 | X19: 1 | Y19: 0 | Z19: 0 | AA19: 0
A20: Die numerologischen Karten | B20: Nr. | C20: Karte | D20: Konstellation | E20: Gruppe | F20: =AA42 -> 106 | G20: 7 | H20: 7 | K20: i | L20: 9 | M20: 10 | O20: 0 | P20: 10 | R20: 0 | S20: 10 | U20: 0 | V20: 0 | W20: 0 | X20: 0 | Y20: 0 | Z20: 0 | AA20: 0
A21: Die Seelenkarte (Summe aller Vokale) | B21: =H19 -> 6 | C21: =IF(B21=1,"Der Magier",IF(B21=2,"Die Hohepriesterin",IF(B21=3,"Die Herrscherin",IF(B21=4,"Der Herrscher",IF(B21=5,"Der Hierophant",IF(B21=6,"Die Liebenden",IF(B21=7,"Der Wagen",IF(B21=8,"Die Kraft",IF(B21=9,"Der Eremit",IF(B21=10,"Das Rad",IF(B21=11,"Die Gerechtigkeit",IF(B21=12,"Der Gehängte",IF(B21=13,"Der Tod",IF(B21=14,"Die Mässigkeit",IF(B21=15,"Der Teufel",IF(B21=16,"Der Turm",IF(B21=17,"Der Stern",IF(B21=18,"Der Mond",IF(B21=19,"Die Sonne",IF(B21=20,"Das Gericht",IF(B21=21,"Die Welt",IF(B21=22,"Der Narr")))))))))))))))))))))) -> Die Liebenden | D21: =IF(OR(B21=1,B21=10,B21=19),"1 Der Magier",IF(OR(B21=2,B21=11,B21=20),"2 Die Hohepriesterin",IF(OR(B21=3,B21=12,B21=21),"3 Die Herrscherin",IF(OR(B21=4,B21=13,B21=22),"4 Der Herrscher",IF(OR(B21=5,B21=14),"5 Der Hierophant",IF(OR(B21=6,B21=15),"6 Die Liebenden",IF(OR(B21=7,B21=16),"7 DerWagen",IF(OR(B21 =8,B21=17),"8 Die Kraft",IF(OR(B21=9,B21=18),"9 Der Eremit"))))))))) -> 6 Die Liebenden | E21: =IF(OR(B21=1,B21=4,B21=7,B21=10,B21=13,B21=16,B21=19,B21=22),"Osiris",IF(OR(B21=2,B21=5,B21=8,B21=11,B21=14,B21=17,B21=20),"Isis",IF(OR(B21=3,B21=6,B21=9,B21=12,B21=15,B21=18,B21=21),"Horus"))) -> Horus | F21: =(MOD(B21-TRUNC(B21/9)*9,-9)+9)*(B21>0) -> 6 | K21: j | L21: 10 | M21: 11 | O21: 0 | P21: 11 | R21: 0 | S21: 11 | U21: 0 | V21: 0 | W21: 0 | X21: 0 | Y21: 0 | Z21: 0 | AA21: 0
A22: Die Karte der Persönlichkeit (Summe aller Konsonanten) | B22: =H20 -> 7 | C22: Der Wagen | D22: 7 DerWagen | E22: Osiris | F22: =(MOD(B22-TRUNC(B22/9)*9,-9)+9)*(B22>0) -> 7 | K22: k | L22: 11 | M22: 12 | O22: 0 | P22: 12 | R22: 0 | S22: 12 | U22: 0 | V22: 0 | W22: 0 | X22: 0 | Y22: 0 | Z22: 0 | AA22: 0
A23: Die Schicksalskarte (Zahlen des gesamten Namens) | B23: =H15 -> 13 | C23: Der Tod | D23: 4 Der Herrscher | E23: Osiris | F23: 4 | K23: l | L23: 12 | M23: 13 | O23: 0 | P23: 13 | R23: 0 | S23: 13 | U23: 0 | V23: 0 | W23: 0 | X23: 0 | Y23: 0 | Z23: 0 | AA23: 0
A24: Die Geburtstagskarte (Tag der Geburt) | B24: =H16 -> 12 | C24: Der Gehängte | D24: 3 Die Herrscherin | E24: Horus | F24: 3 | K24: m | L24: 13 | M24: 14 | O24: 0 | P24: 14 | R24: 0 | S24: 14 | U24: 0 | V24: 0 | W24: 0 | X24: 0 | Y24: 0 | Z24: 0 | AA24: 0
A25: Die Persönlichkeitskarte (Geburtsdatum) | B25: =H17 -> 19 | C25: Die Sonne | D25: 1 Der Magier | E25: Osiris | F25: 1 | K25: n | L25: 14 | M25: 15 | O25: 0 | P25: 15 | R25: 0 | S25: 15 | U25: 0 | V25: 0 | W25: 0 | X25: 0 | Y25: 0 | Z25: 0 | AA25: 0
A26: Das individuelle Selbst (Rufname) | B26: =H12 -> 6 | C26: Die Liebenden | D26: 6 Die Liebenden | E26: Horus | F26: 6 | K26: o | L26: 15 | M26: 16 | O26: 0 | P26: 16 | R26: 0 | S26: 16 | U26: 0 | V26: 0 | W26: 0 | X26: 0 | Y26: 0 | Z26: 0 | AA26: 0
A27: Das verborgene Selbst (alle mittleren Namen) | B27: =H13 -> 0 | C27: =IF(B27=1,"Der Magier",IF(B27=2,"Die Hohepriesterin",IF(B27=3,"Die Herrscherin",IF(B27=4,"Der Herrscher",IF(B27=5,"Der Hierophant",IF(B27=6,"Die Liebenden",IF(B27=7,"Der Wagen",IF(B27=8,"Die Kraft",IF(B27=9,"Der Eremit",IF(B27=10,"Das Rad",IF(B27=11,"Die Gerechtigkeit",IF(B27=12,"Der Gehängte",IF(B27=13,"Der Tod",IF(B27=14,"Die Mässigkeit",IF(B27=15,"Der Teufel",IF(B27=16,"Der Turm",IF(B27=17,"Der Stern",IF(B27=18,"Der Mond",IF(B27=19,"Die Sonne",IF(B27=20,"Das Gericht",IF(B27=21,"Die Welt",IF(B27=22,"Der Narr",0)))))))))))))))))))))) -> 0 | D27: =IF(OR(B27=1,B27=10,B27=19),"1 Der Magier",IF(OR(B27=2,B27=11,B27=20),"2 Die Hohepriesterin",IF(OR(B27=3,B27=12,B27=21),"3 Die Herrscherin",IF(OR(B27=4,B27=13,B27=22),"4 Der Herrscher",IF(OR(B27=5,B27=14),"5 Der Hierophant",IF(OR(B27=6,B27=15),"6 Die Liebenden",IF(OR(B27=7,B27=16),"7 DerWagen",IF(OR(B27 =8,B27=17),"8 Die Kraft",IF(OR(B27=9,B27=18),"9 Der Eremit",0))))))))) -> 0 | E27: =IF(OR(B27=1,B27=4,B27=7,B27=10,B27=13,B27=16,B27=19,B27=22),"Osiris",IF(OR(B27=2,B27=5,B27=8,B27=11,B27=14,B27=17,B27=20),"Isis",IF(OR(B27=3,B27=6,B27=9,B27=12,B27=15,B27=18,B27=21),"Horus",0))) -> 0 | F27: 0 | K27: ö | L27: 15 | M27: 17 | O27: 0 | P27: 17 | R27: 0 | S27: 17 | U27: 0 | V27: 0 | W27: 0 | X27: 0 | Y27: 0 | Z27: 0 | AA27: 0
A28: Das soziale Selbst (Nachname) | B28: =H14 -> 7 | C28: =IF(B28=1,"Der Magier",IF(B28=2,"Die Hohepriesterin",IF(B28=3,"Die Herrscherin",IF(B28=4,"Der Herrscher",IF(B28=5,"Der Hierophant",IF(B28=6,"Die Liebenden",IF(B28=7,"Der Wagen",IF(B28=8,"Die Kraft",IF(B28=9,"Der Eremit",IF(B28=10,"Das Rad",IF(B28=11,"Die Gerechtigkeit",IF(B28=12,"Der Gehängte",IF(B28=13,"Der Tod",IF(B28=14,"Die Mässigkeit",IF(B28=15,"Der Teufel",IF(B28=16,"Der Turm",IF(B28=17,"Der Stern",IF(B28=18,"Der Mond",IF(B28=19,"Die Sonne",IF(B28=20,"Das Gericht",IF(B28=21,"Die Welt",IF(B28=22,"Der Narr")))))))))))))))))))))) -> Der Wagen | D28: =IF(OR(B28=1,B28=10,B28=19),"1 Der Magier",IF(OR(B28=2,B28=11,B28=20),"2 Die Hohepriesterin",IF(OR(B28=3,B28=12,B28=21),"3 Die Herrscherin",IF(OR(B28=4,B28=13,B28=22),"4 Der Herrscher",IF(OR(B28=5,B28=14),"5 Der Hierophant",IF(OR(B28=6,B28=15),"6 Die Liebenden",IF(OR(B28=7,B28=16),"7 DerWagen",IF(OR(B28 =8,B28=17),"8 Die Kraft",IF(OR(B28=9,B28=18),"9 Der Eremit"))))))))) -> 7 DerWagen | E28: =IF(OR(B28=1,B28=4,B28=7,B28=10,B28=13,B28=16,B28=19,B28=22),"Osiris",IF(OR(B28=2,B28=5,B28=8,B28=11,B28=14,B28=17,B28=20),"Isis",IF(OR(B28=3,B28=6,B28=9,B28=12,B28=15,B28=18,B28=21),"Horus"))) -> Osiris | F28: 7 | K28: p | L28: 16 | M28: 18 | O28: 0 | P28: 18 | R28: 0 | S28: 18 | U28: 0 | V28: 0 | W28: 0 | X28: 0 | Y28: 0 | Z28: 0 | AA28: 0
A29: Das Lebenspotential (Geburtsdatum und Namen) | B29: =H18 -> 14 | C29: Die Mässigkeit | D29: 5 Der Hierophant | E29: Isis | F29: 5 | K29: q | L29: 17 | M29: 19 | O29: 0 | P29: 19 | R29: 0 | S29: 19 | U29: 0 | V29: 0 | W29: 0 | X29: 0 | Y29: 0 | Z29: 0 | AA29: 0
A30: Die Karte des ersten Buchstabens | B30: =VLOOKUP(B16,A106:E131,2,FALSE) -> 13 | C30: =VLOOKUP($B$16,$A$106:$E$131,3,FALSE) -> Der Tod | D30: =VLOOKUP($B$16,$A$106:$E$131,4,FALSE) -> 4 Der Herrscher | E30: =VLOOKUP(B16,A106:E131,5,FALSE) -> Osiris | F30: 4 | K30: r | L30: 18 | M30: 20 | O30: =IF(ISERROR(VLOOKUP(N32,$K$11:$L$40,2,FALSE)),0,VLOOKUP(N32,$K$11:$L$40,2,FALSE)) -> 0 | P30: 20 | R30: =IF(ISERROR(VLOOKUP(Q32,$K$11:$L$40,2,FALSE)),0,VLOOKUP(Q32,$K$11:$L$40,2,FALSE)) -> 0 | S30: 20 | U30: =IF(ISERROR(VLOOKUP(T32,$K$11:$L$40,2,FALSE)),0,VLOOKUP(T32,$K$11:$L$40,2,FALSE)) -> 0 | V30: =IF(N32="a",1,IF(N32="e",5,IF(N32="i",9,IF(N32="o",15,IF(N32="u",21,IF(N32="y",25,IF(N32="ä",1,IF(N32="ö",15,IF(N32="ü",21,0))))))))) -> 0 | W30: =IF(Q32="a",1,IF(Q32="e",5,IF(Q32="i",9,IF(Q32="o",15,IF(Q32="u",21,IF(Q32="y",25,IF(Q32="ä",1,IF(Q32="ö",15,IF(Q32="ü",21,0))))))))) -> 0 | X30: =IF(T32="a",1,IF(T32="e",5,IF(T32="i",9,IF(T32="o",15,IF(T32="u",21,IF(T32="y",25,IF(T32="ä",1,IF(T32="ö",15,IF(T32="ü",21,0))))))))) -> 0 | Y30: =IF(N32="a",0,IF(N32="b",2,IF(N32="c",3,IF(N32="d",4,IF(N32="e",0,IF(N32="f",6,IF(N32="g",7,IF(N32="h",8,IF(N32="i",0,IF(N32="j",10,IF(N32="k",11,IF(N32="l",12,IF(N32="m",13,IF(N32="n",14,IF(N32="o",0,IF(N32="p",16,IF(N32="q",17,IF(N32="r",18,IF(N32="s",19,IF(N32="t",20,IF(N32="u",0,IF(N32="v",22,IF(N32="w",23,IF(N32="x",24,IF(N32="y",0,IF(N32="$",25,IF(N32="z",26,0))))))))))))))))))))))))))) -> 0 | Z30: =IF(Q32="a",0,IF(Q32="b",2,IF(Q32="c",3,IF(Q32="d",4,IF(Q32="e",0,IF(Q32="f",6,IF(Q32="g",7,IF(Q32="h",8,IF(Q32="i",0,IF(Q32="j",10,IF(Q32="k",11,IF(Q32="l",12,IF(Q32="m",13,IF(Q32="n",14,IF(Q32="o",0,IF(Q32="p",16,IF(Q32="q",17,IF(Q32="r",18,IF(Q32="s",19,IF(Q32="t",20,IF(Q32="u",0,IF(Q32="v",22,IF(Q32="w",23,IF(Q32="x",24,IF(Q32="y",0,IF(Q32="$",25,IF(Q32="z",26,0))))))))))))))))))))))))))) -> 0 | AA30: =IF(T32="a",0,IF(T32="b",2,IF(T32="c",3,IF(T32="d",4,IF(T32="e",0,IF(T32="f",6,IF(T32="g",7,IF(T32="h",8,IF(T32="i",0,IF(T32="j",10,IF(T32="k",11,IF(T32="l",12,IF(T32="m",13,IF(T32="n",14,IF(T32="o",0,IF(T32="p",16,IF(T32="q",17,IF(T32="r",18,IF(T32="s",19,IF(T32="t",20,IF(T32="u",0,IF(T32="v",22,IF(T32="w",23,IF(T32="x",24,IF(T32="y",0,IF(T32="$",25,IF(T32="z",26,0))))))))))))))))))))))))))) -> 0
A31: Die Karte des ersten Vokals | B31: =VLOOKUP($B$17,$A$106:$E$131,2,FALSE) -> 1 | C31: =VLOOKUP($B$17,$A$106:$E$131,3,FALSE) -> Der Magier | D31: =VLOOKUP($B$17,$A$106:$E$131,4,FALSE) -> 1 Der Magier | E31: =VLOOKUP($B$17,$A$106:$E$131,5,FALSE) -> Osiris | F31: 1 | K31: s | L31: 19 | M31: 21 | O31: 0 | P31: 21 | R31: 0 | S31: 21 | U31: 0 | V31: 0 | W31: 0 | X31: 0 | Y31: 0 | Z31: 0 | AA31: 0
K32: t | L32: 20 | M32: 22 | N32: =IF(MID($B$12,M30,1)=""," ",MID($B$12,M30,1)) ->  | O32: 0 | P32: 22 | Q32: =IF(MID($B$13,P30,1)=""," ",MID($B$13,P30,1)) ->  | R32: 0 | S32: 22 | T32: =IF(MID($B$14,S30,1)=""," ",MID($B$14,S30,1)) ->  | U32: 0 | V32: 0 | W32: 0 | X32: 0 | Y32: 0 | Z32: 0 | AA32: 0
K33: u | L33: 21 | M33: 23 | O33: 0 | P33: 23 | R33: 0 | S33: 23 | U33: 0 | V33: 0 | W33: 0 | X33: 0 | Y33: 0 | Z33: 0 | AA33: 0
B34: Jahr | C34: Monat | D34: Tag | K34: ü | L34: 21 | M34: 24 | O34: 0 | P34: 24 | R34: 0 | S34: 24 | U34: 0 | V34: 0 | W34: 0 | X34: 0 | Y34: 0 | Z34: 0 | AA34: 0
A35: Wichtiger Termin | B35: 2021 | C35: 11 | D35: 19 | E35: =SUM(B35:D35) -> 2051 | F35: =SUMPRODUCT(MID(E35,ROW(INDIRECT("1:"&LEN(E35))),1)*1) -> 8 | G35: =IF(F35>22,SUMPRODUCT(VALUE(MID(F35,ROW(INDIRECT("$b1:$A"&LEN(F35))),1))),F35) -> 8 | K35: v | L35: 22 | M35: 25 | O35: 0 | P35: 25 | R35: 0 | S35: 25 | U35: 0 | V35: 0 | W35: 0 | X35: 0 | Y35: 0 | Z35: 0 | AA35: 0
K36: w | L36: 23 | M36: 26 | O36: 0 | P36: 26 | R36: 0 | S36: 26 | U36: 0 | V36: 0 | W36: 0 | X36: 0 | Y36: 0 | Z36: 0 | AA36: 0
K37: x | L37: 24 | M37: 27 | O37: 0 | P37: 27 | R37: 0 | S37: 27 | U37: 0 | V37: 0 | W37: 0 | X37: 0 | Y37: 0 | Z37: 0 | AA37: 0
A38: Die Häufigkeit der Karten | B38: Menge | C38: Konstellationen | D38: Summe | E38: Gruppen | F38: Summe | K38: y | L38: 25 | M38: 28 | O38: 0 | P38: 28 | R38: 0 | S38: 28 | U38: 0 | V38: 0 | W38: 0 | X38: 0 | Y38: 0 | Z38: 0 | AA38: 0
A39: 1 Der Magier | B39: =V45 -> 3 | C39: 1 Der Magier | D39: =SUM(B39+B48+B57) -> 3 | E39: Osiris | F39: =SUM(B39+B42+B45+B48+B51+B54+B57+B60) -> 5 | K39: $ | L39: 25 | M39: 29 | O39: 0 | P39: 29 | R39: 0 | S39: 29 | U39: 0 | V39: 0 | W39: 0 | X39: 0 | Y39: 0 | Z39: 0 | AA39: 0
A40: 2 Die Hohepriesterin | B40: =V46 -> 0 | C40: 2 Die Hohepriesterin | D40: =SUM(B40+B49+B58) -> 2 | E40: Isis | F40: =SUM(B40+B43+B46+B49+B52+B55+B58) -> 4 | K40: z | L40: 26 | M40: 30 | O40: 0 | P40: 30 | R40: 0 | S40: 30 | U40: 0 | V40: 0 | W40: 0 | X40: 0 | Y40: 0 | Z40: 0 | AA40: 0
A41: 3 Die Herrscherin | B41: =V47 -> 0 | C41: 3 Die Herrscherin | D41: =SUM(B41+B50+B59) -> 0 | E41: Horus | F41: =SUM(B41+B44+B47+B50+B53+B56+B59) -> 5 | O41: =SUM(O11:O40) -> 42 | R41: =SUM(R11:R40) -> 0 | U41: =SUM(U11:U40) -> 115 | V41: 11 | W41: 0 | X41: 40 | Y41: 31 | Z41: 0 | AA41: 75
A42: 4 Der Herrscher | B42: 0 | C42: 4 Der Herrscher | D42: =SUM(B42+B51+B60) -> 2 | E42: Osiris | F42: =SUM(F39:F41) -> 14 | W42: Summe aller Vokale | X42: =SUM(V41+W41+X41) -> 51 | Z42: Summe aller Konsonanten | AA42: =SUM(Y41+Z41+AA41) -> 106
A43: 5 Der Hierophant | B43: 0 | C43: 5 Der Hierophant | D43: =SUM(B43+B52) -> 1 | E43: Isis
A44: 6 Die Liebenden | B44: 0 | C44: 6 Die Liebenden | D44: =SUM(B44+B53) -> 2 | E44: Horus
A45: 7 Der Wagen | B45: 0 | C45: 7 Der Wagen | D45: =SUM(B45+B54) -> 0 | E45: Osiris | N45: 1 Der Magier | O45: =COUNTIF($O$11:$O$40,1) -> 2 | P45: 0 | Q45: 0 | R45: =COUNTIF($R$11:$R$40,1) -> 0 | S45: 0 | T45: 0 | U45: =COUNTIF($U$11:$U$40,1) -> 1 | V45: =SUM(O45:U45) -> 3
A46: 8 Die Kraft | B46: 1 | C46: 8 Die Kraft | D46: =SUM(B46+B55) -> 1 | E46: Isis | N46: 2 Die Hohepriesterin | O46: =COUNTIF($O$11:$O$40,2) -> 0 | P46: 0 | Q46: 0 | R46: =COUNTIF($R$11:$R$40,2) -> 0 | S46: 0 | T46: 0 | U46: =COUNTIF($U$11:$U$40,2) -> 0 | V46: =SUM(O46:U46) -> 0
A47: 9 Der Eremit | B47: 2 | C47: 9 Der Eremit | D47: =SUM(B47+B56) -> 3 | E47: Horus | N47: 3 Die Herrscherin | O47: =COUNTIF($O$11:$O$40,3) -> 0 | P47: 0 | Q47: 0 | R47: =COUNTIF($R$11:$R$40,3) -> 0 | S47: 0 | T47: 0 | U47: =COUNTIF($U$11:$U$40,3) -> 0 | V47: =SUM(O47:U47) -> 0
A48: 10 Das Rad des Schicksals | B48: 0 | C48: 1 Der Magier | D48: =SUM(D39:D47) -> 14 | E48: Osiris | N48: 4 Der Herrscher | O48: =COUNTIF($O$11:$O$40,4) -> 0 | P48: 0 | Q48: 0 | R48: =COUNTIF($R$11:$R$40,4) -> 0 | S48: 0 | T48: 0 | U48: =COUNTIF($U$11:$U$40,4) -> 0 | V48: 0
A49: 11 Die Gerechtigkeit | B49: 1 | C49: 2 Die Hohepriesterin | E49: Isis | N49: 5 Der Hierophant | O49: =COUNTIF($O$11:$O$40,5) -> 0 | P49: 0 | Q49: 0 | R49: =COUNTIF($R$11:$R$40,5) -> 0 | S49: 0 | T49: 0 | U49: =COUNTIF($U$11:$U$40,5) -> 0 | V49: 0
A50: 12 Der Gehängte | B50: 0 | C50: 3 Die Herrscherin | E50: Horus | N50: 6 Die Liebenden | O50: =COUNTIF($O$11:$O$40,6) -> 0 | P50: 0 | Q50: 0 | R50: =COUNTIF($R$11:$R$40,6) -> 0 | S50: 0 | T50: 0 | U50: =COUNTIF($U$11:$U$40,6) -> 0 | V50: 0
A51: 13 Der Tod | B51: 1 | C51: 4 Der Herrscher | E51: Osiris | N51: 7 Der Wagen | O51: =COUNTIF($O$11:$O$40,7) -> 0 | P51: 0 | Q51: 0 | R51: =COUNTIF($R$11:$R$40,7) -> 0 | S51: 0 | T51: 0 | U51: =COUNTIF($U$11:$U$40,7) -> 0 | V51: 0
A52: 14 Die Mässigkeit | B52: 1 | C52: 5 Der Hierophant | E52: Isis | N52: 8 Die Kraft | O52: =COUNTIF($O$11:$O$40,8) -> 0 | P52: 0 | Q52: 0 | R52: =COUNTIF($R$11:$R$40,8) -> 0 | S52: 0 | T52: 0 | U52: =COUNTIF($U$11:$U$40,8) -> 1 | V52: 1
A53: 15 Der Teufel | B53: 2 | C53: 6 Die Liebenden | E53: Horus | N53: 9 Der Eremit | O53: =COUNTIF($O$11:$O$40,9) -> 1 | P53: 0 | Q53: 0 | R53: =COUNTIF($R$11:$R$40,9) -> 0 | S53: 0 | T53: 0 | U53: =COUNTIF($U$11:$U$40,9) -> 1 | V53: 2
A54: 16 Der Turm | B54: 0 | C54: 7 Der Wagen | E54: Osiris | N54: 10 Das Rad des Schicksals | O54: =COUNTIF($O$11:$O$40,10) -> 0 | P54: 0 | Q54: 0 | R54: =COUNTIF($R$11:$R$40,10) -> 0 | S54: 0 | T54: 0 | U54: =COUNTIF($U$11:$U$40,10) -> 0 | V54: 0
A55: 17 Der Stern | B55: 0 | C55: 8 Die Kraft | E55: Isis | N55: 11 Die Gerechtigkeit | O55: =COUNTIF($O$11:$O$40,11) -> 0 | P55: 0 | Q55: 0 | R55: =COUNTIF($R$11:$R$40,11) -> 0 | S55: 0 | T55: 0 | U55: =COUNTIF($U$11:$U$40,11) -> 1 | V55: 1
A56: 18 Der Mond | B56: 1 | C56: 9 Der Eremit | E56: Horus | N56: 12 Der Gehängte | O56: =COUNTIF($O$11:$O$40,12) -> 0 | P56: 0 | Q56: 0 | R56: =COUNTIF($R$11:$R$40,12) -> 0 | S56: 0 | T56: 0 | U56: =COUNTIF($U$11:$U$40,12) -> 0 | V56: 0
A57: 19 Die Sonne | B57: 0 | C57: 1 Der Magier | E57: Osiris | N57: 13 Der Tod | O57: =COUNTIF($O$11:$O$40,13) -> 1 | P57: 0 | Q57: 0 | R57: =COUNTIF($R$11:$R$40,13) -> 0 | S57: 0 | T57: 0 | U57: =COUNTIF($U$11:$U$40,13) -> 0 | V57: 1
A58: 20 Das Gericht | B58: 1 | C58: 2 Die Hohepriesterin | E58: Isis | N58: 14 Die Mässigkeit | O58: =COUNTIF($O$11:$O$40,14) -> 0 | P58: 0 | Q58: 0 | R58: =COUNTIF($R$11:$R$40,14) -> 0 | S58: 0 | T58: 0 | U58: =COUNTIF($U$11:$U$40,14) -> 1 | V58: 1
A59: 21 Die Welt | B59: 0 | C59: 3 Die Herrscherin | E59: Horus | N59: 15 Der Teufel | O59: =COUNTIF($O$11:$O$40,15) -> 0 | P59: 0 | Q59: 0 | R59: =COUNTIF($R$11:$R$40,15) -> 0 | S59: 0 | T59: 0 | U59: =COUNTIF($U$11:$U$40,15) -> 2 | V59: 2
A60: 22 Der Narr | B60: 1 | C60: 4 Der Herrscher | E60: Osiris | N60: 16 Der Turm | O60: =COUNTIF($O$11:$O$40,16) -> 0 | P60: 0 | Q60: 0 | R60: =COUNTIF($R$11:$R$40,16) -> 0 | S60: 0 | T60: 0 | U60: =COUNTIF($U$11:$U$40,16) -> 0 | V60: 0
A61: Summe aller Buchstaben | B61: =SUM(B39:B60) -> 14 | N61: 17 Der Stern | O61: =COUNTIF($O$11:$O$40,17) -> 0 | P61: 0 | Q61: 0 | R61: =COUNTIF($R$11:$R$40,17) -> 0 | S61: 0 | T61: 0 | U61: =COUNTIF($U$11:$U$40,17) -> 0 | V61: 0
N62: 18 Der Mond | O62: =COUNTIF($O$11:$O$40,18) -> 1 | P62: 0 | Q62: 0 | R62: =COUNTIF($R$11:$R$40,18) -> 0 | S62: 0 | T62: 0 | U62: =COUNTIF($U$11:$U$40,18) -> 0 | V62: 1
N63: 19 Die Sonne | O63: =COUNTIF($O$11:$O$40,19) -> 0 | P63: 0 | Q63: 0 | R63: =COUNTIF($R$11:$R$40,19) -> 0 | S63: 0 | T63: 0 | U63: =COUNTIF($U$11:$U$40,19) -> 0 | V63: 0
N64: 20 Das Gericht | O64: =COUNTIF($O$11:$O$40,20) -> 0 | P64: 0 | Q64: 0 | R64: =COUNTIF($R$11:$R$40,20) -> 0 | S64: 0 | T64: 0 | U64: =COUNTIF($U$11:$U$40,20) -> 1 | V64: 1
N65: 21 Die Welt | O65: =COUNTIF($O$11:$O$40,21) -> 0 | P65: 0 | Q65: 0 | R65: =COUNTIF($R$11:$R$40,21) -> 0 | S65: 0 | T65: 0 | U65: =COUNTIF($U$11:$U$40,21) -> 0 | V65: 0
N66: 22 Der Narr | O66: =COUNTIF($O$11:$O$40,22) -> 0 | P66: 0 | Q66: 0 | R66: =COUNTIF($R$11:$R$40,22) -> 0 | S66: 0 | T66: 0 | U66: =COUNTIF($U$11:$U$40,22) -> 1 | V66: 1
A87: Weitere Informationen | D87: Nr. | E87: Karte | F87: Konstellation | G87: Gruppe
A88: Die Karte des Landes | B88: deutschland | D88: =J88 -> 3 | E88: =IF(D88=1,"Der Magier",IF(D88=2,"Die Hohepriesterin",IF(D88=3,"Die Herrscherin",IF(D88=4,"Der Herrscher",IF(D88=5,"Der Hierophant",IF(D88=6,"Die Liebenden",IF(D88=7,"Der Wagen",IF(D88=8,"Die Kraft",IF(D88=9,"Der Eremit",IF(D88=10,"Das Rad",IF(D88=11,"Die Gerechtigkeit",IF(D88=12,"Der Gehängte",IF(D88=13,"Der Tod",IF(D88=14,"Die Mässigkeit",IF(D88=15,"Der Teufel",IF(D88=16,"Der Turm",IF(D88=17,"Der Stern",IF(D88=18,"Der Mond",IF(D88=19,"Die Sonne",IF(D88=20,"Das Gericht",IF(D88=21,"Die Welt",IF(D88=22,"Der Narr",0)))))))))))))))))))))) -> Die Herrscherin | F88: =IF(OR(D88=1,D88=10,D88=19),"1 Der Magier",IF(OR(D88=2,D88=11,D88=20),"2 Die Hohepriesterin",IF(OR(D88=3,D88=12,D88=21),"3 Die Herrscherin",IF(OR(D88=4,D88=13,D88=22),"4 Der Herrscher",IF(OR(D88=5,D88=14),"5 Der Hierophant",IF(OR(D88=6,D88=15),"6 Die Liebenden",IF(OR(D88=7,D88=16),"7 DerWagen",IF(OR(D88 =8,D88=17),"8 Die Kraft",IF(OR(D88=9,D88=18),"9 Der Eremit",0))))))))) -> 3 Die Herrscherin | G88: =IF(OR(D88=1,D88=4,D88=7,D88=10,D88=13,D88=16,D88=19,D88=22),"Osiris",IF(OR(D88=2,D88=5,D88=8,D88=11,D88=14,D88=17,D88=20),"Isis",IF(OR(D88=3,D88=6,D88=9,D88=12,D88=15,D88=18,D88=21),"Horus",0))) -> Horus | H88: =M119 -> 111 | I88: =IF(H88>22,SUMPRODUCT(VALUE(MID(H88,ROW(INDIRECT("$b1:$A"&LEN(H88))),1))),H88) -> 3 | J88: 3 | K88: Stelle | L88: Land | M88: Wert | N88: Stelle | O88: Stadt | P88: Wert | Q88: Stelle | R88: Stadtteil | S88: Wert | T88: Stelle | U88: Strasse | V88: Wert | W88: Stelle | X88: Autonummer | Y88: Wert | Z88: Stelle | AA88: Firmenname | AB88: Wert
A89: Die Karte der Stadt | B89: zürich | D89: 13 | E89: =IF(D89=1,"Der Magier",IF(D89=2,"Die Hohepriesterin",IF(D89=3,"Die Herrscherin",IF(D89=4,"Der Herrscher",IF(D89=5,"Der Hierophant",IF(D89=6,"Die Liebenden",IF(D89=7,"Der Wagen",IF(D89=8,"Die Kraft",IF(D89=9,"Der Eremit",IF(D89=10,"Das Rad",IF(D89=11,"Die Gerechtigkeit",IF(D89=12,"Der Gehängte",IF(D89=13,"Der Tod",IF(D89=14,"Die Mässigkeit",IF(D89=15,"Der Teufel",IF(D89=16,"Der Turm",IF(D89=17,"Der Stern",IF(D89=18,"Der Mond",IF(D89=19,"Die Sonne",IF(D89=20,"Das Gericht",IF(D89=21,"Die Welt",IF(D89=22,"Der Narr",0)))))))))))))))))))))) -> Der Tod | F89: =IF(OR(D89=1,D89=10,D89=19),"1 Der Magier",IF(OR(D89=2,D89=11,D89=20),"2 Die Hohepriesterin",IF(OR(D89=3,D89=12,D89=21),"3 Die Herrscherin",IF(OR(D89=4,D89=13,D89=22),"4 Der Herrscher",IF(OR(D89=5,D89=14),"5 Der Hierophant",IF(OR(D89=6,D89=15),"6 Die Liebenden",IF(OR(D89=7,D89=16),"7 DerWagen",IF(OR(D89 =8,D89=17),"8 Die Kraft",IF(OR(D89=9,D89=18),"9 Der Eremit",0))))))))) -> 4 Der Herrscher | G89: =IF(OR(D89=1,D89=4,D89=7,D89=10,D89=13,D89=16,D89=19,D89=22),"Osiris",IF(OR(D89=2,D89=5,D89=8,D89=11,D89=14,D89=17,D89=20),"Isis",IF(OR(D89=3,D89=6,D89=9,D89=12,D89=15,D89=18,D89=21),"Horus",0))) -> Osiris | H89: =P119 -> 85 | I89: 13 | J89: 13 | K89: 1 | L89: =IF(MID($B$88,K89,1)=""," ",MID($B$88,K89,1)) -> d | M89: =IF(ISERROR(VLOOKUP(L89,$K$11:$L$40,2,FALSE)),0,VLOOKUP(L89,$K$11:$L$40,2,FALSE)) -> 4 | N89: 1 | O89: =IF(MID($B$89,N89,1)=""," ",MID($B$89,N89,1)) -> z | P89: =IF(ISERROR(VLOOKUP(O89,$K$11:$L$40,2,FALSE)),0,VLOOKUP(O89,$K$11:$L$40,2,FALSE)) -> 26 | Q89: 1 | R89: =IF(MID($B$90,Q89,1)=""," ",MID($B$90,Q89,1)) -> w | S89: =IF(ISERROR(VLOOKUP(R89,$K$11:$L$40,2,FALSE)),0,VLOOKUP(R89,$K$11:$L$40,2,FALSE)) -> 23 | T89: 1 | U89: =IF(MID($B$91,T89,1)=""," ",MID($B$91,T89,1)) ->  | V89: =IF(ISERROR(VLOOKUP(U89,$K$11:$L$40,2,FALSE)),0,VLOOKUP(U89,$K$11:$L$40,2,FALSE)) -> 0 | W89: 1 | X89: =IF(MID($B$93,W89,1)=""," ",MID($B$93,W89,1)) -> Z | Y89: =IF(ISERROR(VLOOKUP(X89,$K$11:$L$40,2,FALSE)),0,VLOOKUP(X89,$K$11:$L$40,2,FALSE)) -> 26 | Z89: 1 | AA89: =IF(MID($B$94,Z89,1)=""," ",MID($B$94,Z89,1)) -> i | AB89: =IF(ISERROR(VLOOKUP(AA89,$K$11:$L$40,2,FALSE)),0,VLOOKUP(AA89,$K$11:$L$40,2,FALSE)) -> 9
A90: Stadtteil/Region (z.B. Zürich Oerlikon oder Weinland) | B90: weinland | D90: 10 | E90: Das Rad | F90: 1 Der Magier | G90: Osiris | H90: =S119 -> 82 | I90: 10 | J90: 10 | K90: 2 | L90: =IF(MID($B$88,K90,1)=""," ",MID($B$88,K90,1)) -> e | M90: 5 | N90: 2 | O90: =IF(MID($B$89,N90,1)=""," ",MID($B$89,N90,1)) -> ü | P90: 21 | Q90: 2 | R90: =IF(MID($B$90,Q90,1)=""," ",MID($B$90,Q90,1)) -> e | S90: 5 | T90: 2 | U90: =IF(MID($B$91,T90,1)=""," ",MID($B$91,T90,1)) ->  | V90: 0 | W90: 2 | X90: =IF(MID($B$93,W90,1)=""," ",MID($B$93,W90,1)) -> H | Y90: 8 | Z90: 2 | AA90: =IF(MID($B$94,Z90,1)=""," ",MID($B$94,Z90,1)) -> n | AB90: 14
A91: Strasse (Bitte den Strassennamen und die Nummer separat eingeben) | C91: 22 | D91: 22 | E91: Der Narr | F91: 4 Der Herrscher | G91: Osiris | H91: =V119+C91 -> 22 | I91: 22 | J91: 22 | K91: 3 | L91: u | M91: 21 | N91: 3 | O91: r | P91: 18 | Q91: 3 | R91: i | S91: 9 | T91: 3 | V91: 0 | W91: 3 | Y91: 0 | Z91: 3 | AA91: f | AB91: 6
A92: Telefonnummer (ohne Landesvorwahl, ohne Leerzeichen) | B92: 222222222 | D92: 18 | E92: Der Mond | F92: 9 Der Eremit | G92: Horus | H92: =B92 -> 222222222 | I92: 18 | J92: 18 | K92: 4 | L92: t | M92: 20 | N92: 4 | O92: i | P92: 9 | Q92: 4 | R92: n | S92: 14 | T92: 4 | V92: 0 | W92: 4 | Y92: 0 | Z92: 4 | AA92: i | AB92: 9
A93: Autokennzeichen (Buchstaben und Nummern separat eingeben) | B93: ZH | C93: 306608 | D93: 21 | E93: Die Welt | F93: 3 Die Herrscherin | G93: Horus | H93: =Y119+C93 -> 306642 | I93: 21 | J93: 21 | K93: 5 | L93: s | M93: 19 | N93: 5 | O93: c | P93: 3 | Q93: 5 | R93: l | S93: 12 | T93: 5 | V93: 0 | W93: 5 | Y93: 0 | Z93: 5 | AA93: s | AB93: 19
A94: Firmenname | B94: infis | D94: 12 | E94: Der Gehängte | F94: 3 Die Herrscherin | G94: Horus | H94: =AB119 -> 57 | I94: 12 | J94: 12 | K94: 6 | L94: c | M94: 3 | N94: 6 | O94: h | P94: 8 | Q94: 6 | R94: a | S94: 1 | T94: 6 | V94: 0 | W94: 6 | Y94: 0 | Z94: 6 | AB94: 0
A95: Wichtiger Termin (bitte oben eingeben) | B95: Bitte | C95: oben eingeben | D95: =G35 -> 8 | E95: Die Kraft | F95: 8 Die Kraft | G95: Isis | K95: 7 | L95: h | M95: 8 | N95: 7 | P95: 0 | Q95: 7 | R95: n | S95: 14 | T95: 7 | V95: 0 | W95: 7 | Y95: 0 | Z95: 7 | AB95: 0
K96: 8 | L96: l | M96: 12 | N96: 8 | P96: 0 | Q96: 8 | R96: d | S96: 4 | T96: 8 | V96: 0 | W96: 8 | Y96: 0 | Z96: 8 | AB96: 0
A97: Die Kompatibilität ergibt sich aus der Gleichheit von Karten, Konstellationen und Gruppen | H97: Kontrolle | K97: 9 | L97: a | M97: 1 | N97: 9 | P97: 0 | Q97: 9 | S97: 0 | T97: 9 | V97: 0 | W97: 9 | Y97: 0 | Z97: 9 | AB97: 0
A98: Die Seelenkarte (Summe aller Vokale) | D98: =H19 -> 6 | E98: =IF(D98=1,"Der Magier",IF(D98=2,"Die Hohepriesterin",IF(D98=3,"Die Herrscherin",IF(D98=4,"Der Herrscher",IF(D98=5,"Der Hierophant",IF(D98=6,"Die Liebenden",IF(D98=7,"Der Wagen",IF(D98=8,"Die Kraft",IF(D98=9,"Der Eremit",IF(D98=10,"Das Rad",IF(D98=11,"Die Gerechtigkeit",IF(D98=12,"Der Gehängte",IF(D98=13,"Der Tod",IF(D98=14,"Die Mässigkeit",IF(D98=15,"Der Teufel",IF(D98=16,"Der Turm",IF(D98=17,"Der Stern",IF(D98=18,"Der Mond",IF(D98=19,"Die Sonne",IF(D98=20,"Das Gericht",IF(D98=21,"Die Welt",IF(D98=22,"Der Narr")))))))))))))))))))))) -> Die Liebenden | F98: =IF(OR(D98=1,D98=10,D98=19),"1 Der Magier",IF(OR(D98=2,D98=11,D98=20),"2 Die Hohepriesterin",IF(OR(D98=3,D98=12,D98=21),"3 Die Herrscherin",IF(OR(D98=4,D98=13,D98=22),"4 Der Herrscher",IF(OR(D98=5,D98=14),"5 Der Hierophant",IF(OR(D98=6,D98=15),"6 Die Liebenden",IF(OR(D98=7,D98=16),"7 DerWagen",IF(OR(D98 =8,D98=17),"8 Die Kraft",IF(OR(D98=9,D98=18),"9 Der Eremit"))))))))) -> 6 Die Liebenden | G98: =IF(OR(D98=1,D98=4,D98=7,D98=10,D98=13,D98=16,D98=19,D98=22),"Osiris",IF(OR(D98=2,D98=5,D98=8,D98=11,D98=14,D98=17,D98=20),"Isis",IF(OR(D98=3,D98=6,D98=9,D98=12,D98=15,D98=18,D98=21),"Horus"))) -> Horus | H98: =F19 -> 51 | K98: 10 | L98: n | M98: 14 | N98: 10 | P98: 0 | Q98: 10 | S98: 0 | T98: 10 | V98: 0 | W98: 10 | Y98: 0 | Z98: 10 | AB98: 0
A99: Die Karte der Persönlichkeit (Summe aller Konsonanten) | D99: =H20 -> 7 | E99: Der Wagen | F99: 7 DerWagen | G99: Osiris | H99: =F20 -> 106 | K99: 11 | L99: d | M99: 4 | N99: 11 | P99: 0 | Q99: 11 | S99: 0 | T99: 11 | V99: 0 | W99: 11 | Y99: 0 | Z99: 11 | AB99: 0
A100: Die Schicksalskarte (Zahlen des gesamten Namens) | D100: =H15 -> 13 | E100: Der Tod | F100: 4 Der Herrscher | G100: Osiris | H100: =F15 -> 157 | K100: 12 | M100: 0 | N100: 12 | P100: 0 | Q100: 12 | S100: 0 | T100: 12 | V100: 0 | W100: 12 | Y100: 0 | Z100: 12 | AB100: 0
A101: Die Geburtstagskarte (Tag der Geburt) | D101: =H16 -> 12 | E101: Der Gehängte | F101: 3 Die Herrscherin | G101: Horus | H101: =D10 -> 12 | K101: 13 | M101: 0 | N101: 13 | P101: 0 | Q101: 13 | S101: 0 | T101: 13 | V101: 0 | W101: 13 | Y101: 0 | Z101: 13 | AB101: 0
A102: Die Persönlichkeitskarte (Geburtsdatum) | D102: =H17 -> 19 | E102: Die Sonne | F102: 1 Der Magier | G102: Osiris | H102: =F17 -> 1981 | K102: 14 | M102: 0 | N102: 14 | P102: 0 | Q102: 14 | S102: 0 | T102: 14 | V102: 0 | W102: 14 | Y102: 0 | Z102: 14 | AB102: 0
A103: Das Lebenspotential (Geburtsdatum und Namen) | D103: =H18 -> 14 | E103: Die Mässigkeit | F103: 5 Der Hierophant | G103: Isis | H103: =F18 -> 2138 | K103: 15 | M103: 0 | N103: 15 | P103: 0 | Q103: 15 | S103: 0 | T103: 15 | V103: 0 | W103: 15 | Y103: 0 | Z103: 15 | AB103: 0
K104: 16 | M104: 0 | N104: 16 | P104: 0 | Q104: 16 | S104: 0 | T104: 16 | V104: 0 | W104: 16 | Y104: 0 | Z104: 16 | AB104: 0
K105: 17 | M105: 0 | N105: 17 | P105: 0 | Q105: 17 | S105: 0 | T105: 17 | V105: 0 | W105: 17 | Y105: 0 | Z105: 17 | AB105: 0
A106: a | B106: 1 | C106: Der Magier | D106: 1 Der Magier | E106: Osiris | K106: 18 | M106: 0 | N106: 18 | P106: 0 | Q106: 18 | S106: 0 | T106: 18 | V106: 0 | W106: 18 | Y106: 0 | Z106: 18 | AB106: 0
A107: b | B107: 2 | C107: Die Hohepriesterin | D107: 2 Die Hohepriesterin | E107: Isis | K107: 19 | M107: 0 | N107: 19 | P107: 0 | Q107: 19 | S107: 0 | T107: 19 | V107: 0 | W107: 19 | Y107: 0 | Z107: 19 | AB107: 0
A108: c | B108: 3 | C108: Die Herrscherin | D108: 3 Die Herrscherin | E108: Horus | K108: 20 | M108: 0 | N108: 20 | P108: 0 | Q108: 20 | S108: 0 | T108: 20 | V108: 0 | W108: 20 | Y108: 0 | Z108: 20 | AB108: 0
A109: d | B109: 4 | C109: Der Herrscher | D109: 4 Der Herrscher | E109: Osiris | K109: 21 | M109: 0 | N109: 21 | P109: 0 | Q109: 21 | S109: 0 | T109: 21 | V109: 0 | W109: 21 | Y109: 0 | Z109: 21 | AB109: 0
A110: e | B110: 5 | C110: Der Hierophant | D110: 5 Der Hierophant | E110: Isis | K110: 22 | M110: 0 | N110: 22 | P110: 0 | Q110: 22 | S110: 0 | T110: 22 | V110: 0 | W110: 22 | Y110: 0 | Z110: 22 | AB110: 0
A111: f | B111: 6 | C111: Die Liebenden | D111: 6 Die Liebenden | E111: Horus | K111: 23 | M111: 0 | N111: 23 | P111: 0 | Q111: 23 | S111: 0 | T111: 23 | V111: 0 | W111: 23 | Y111: 0 | Z111: 23 | AB111: 0
A112: g | B112: 7 | C112: Der Wagen | D112: 7 Der Wagen | E112: Osiris | K112: 24 | M112: 0 | N112: 24 | P112: 0 | Q112: 24 | S112: 0 | T112: 24 | V112: 0 | W112: 24 | Y112: 0 | Z112: 24 | AB112: 0
A113: h | B113: 8 | C113: Die Kraft | D113: 8 Die Kraft | E113: Isis | K113: 25 | M113: 0 | N113: 25 | P113: 0 | Q113: 25 | S113: 0 | T113: 25 | V113: 0 | W113: 25 | Y113: 0 | Z113: 25 | AB113: 0
A114: i | B114: 9 | C114: Der Eremit | D114: 9 Der Eremit | E114: Horus | K114: 26 | M114: 0 | N114: 26 | P114: 0 | Q114: 26 | S114: 0 | T114: 26 | V114: 0 | W114: 26 | Y114: 0 | Z114: 26 | AB114: 0
A115: j | B115: 10 | C115: Das Rad des Schicksals | D115: 1 Der Magier | E115: Osiris | K115: 27 | M115: 0 | N115: 27 | P115: 0 | Q115: 27 | S115: 0 | T115: 27 | V115: 0 | W115: 27 | Y115: 0 | Z115: 27 | AB115: 0
A116: k | B116: 11 | C116: Die Gerechtigkeit | D116: 2 Die Hohepriesterin | E116: Isis | K116: 28 | M116: 0 | N116: 28 | P116: 0 | Q116: 28 | S116: 0 | T116: 28 | V116: 0 | W116: 28 | Y116: 0 | Z116: 28 | AB116: 0
A117: l | B117: 12 | C117: Der Gehängte | D117: 3 Die Herrscherin | E117: Horus | K117: 29 | M117: 0 | N117: 29 | P117: 0 | Q117: 29 | S117: 0 | T117: 29 | V117: 0 | W117: 29 | Y117: 0 | Z117: 29 | AB117: 0
A118: m | B118: 13 | C118: Der Tod | D118: 4 Der Herrscher | E118: Osiris | K118: 30 | M118: 0 | N118: 30 | P118: 0 | Q118: 30 | S118: 0 | T118: 30 | V118: 0 | W118: 30 | Y118: 0 | Z118: 30 | AB118: 0
A119: n | B119: 14 | C119: Die Mässigkeit | D119: 5 Der Hierophant | E119: Isis | M119: =SUM(M89:M118) -> 111 | P119: =SUM(P89:P118) -> 85 | S119: =SUM(S89:S118) -> 82 | V119: =SUM(V89:V118) -> 0 | Y119: =SUM(Y89:Y118) -> 34 | AB119: =SUM(AB89:AB118) -> 57
A120: o | B120: 15 | C120: Der Teufel | D120: 6 Die Liebenden | E120: Horus
A121: p | B121: 16 | C121: Der Turm | D121: 7 Der Wagen | E121: Osiris
A122: q | B122: 17 | C122: Der Stern | D122: 8 Die Kraft | E122: Isis
A123: r | B123: 18 | C123: Der Mond | D123: 9 Der Eremit | E123: Horus
A124: s | B124: 19 | C124: Die Sonne | D124: 1 Der Magier | E124: Osiris
A125: t | B125: 20 | C125: Das Gericht | D125: 2 Die Hohepriesterin | E125: Isis
A126: u | B126: 21 | C126: Die Welt | D126: 3 Die Herrscherin | E126: Horus
A127: v | B127: 22 | C127: Der Narr | D127: 4 Der Herrscher | E127: Osiris
A128: w | B128: 5 | C128: Der Hierophant | D128: 5 Der Hierophant | E128: Isis
A129: x | B129: 6 | C129: Die Liebenden | D129: 6 Die Liebenden | E129: Horus
A130: y | B130: 7 | C130: Der Wagen | D130: 7 Der Wagen | E130: Osiris
A131: z | B131: 8 | C131: Die Kraft | D131: 8 Die Kraft | E131: Isis

Sheet Numerologie 3
L4: 0 | M4: Keine Angabe | N4: 0
A5: Die numerologischen Karten | B5: Nr. | C5: Karte | D5: Konstellation | E5: Gruppe | F5: Kristalle | L5: 1 | M5: Der Magier | N5: Opal, Achat
A6: Die Seelenkarte (Summe aller Vokale) | B6: ='Numerologie 2'!B21 -> 6 | C6: =IF(B6=1,"Der Magier",IF(B6=2,"Die Hohepriesterin",IF(B6=3,"Die Herrscherin",IF(B6=4,"Der Herrscher",IF(B6=5,"Der Hierophant",IF(B6=6,"Die Liebenden",IF(B6=7,"Der Wagen",IF(B6=8,"Die Kraft",IF(B6=9,"Der Eremit",IF(B6=10,"Das Rad",IF(B6=11,"Die Gerechtigkeit",IF(B6=12,"Der Gehängte",IF(B6=13,"Der Tod",IF(B6=14,"Die Mässigkeit",IF(B6=15,"Der Teufel",IF(B6=16,"Der Turm",IF(B6=17,"Der Stern",IF(B6=18,"Der Mond",IF(B6=19,"Die Sonne",IF(B6=20,"Das Gericht",IF(B6=21,"Die Welt",IF(B6=22,"Der Narr")))))))))))))))))))))) -> Die Liebenden | D6: =IF(OR(B6=1,B6=10,B6=19),"1 Der Magier",IF(OR(B6=2,B6=11,B6=20),"2 Die Hohepriesterin",IF(OR(B6=3,B6=12,B6=21),"3 Die Herrscherin",IF(OR(B6=4,B6=13,B6=22),"4 Der Herrscher",IF(OR(B6=5,B6=14),"5 Der Hierophant",IF(OR(B6=6,B6=15),"6 Die Liebenden",IF(OR(B6=7,B6=16),"7 DerWagen",IF(OR(B6 =8,B6=17),"8 Die Kraft",IF(OR(B6=9,B6=18),"9 Der Eremit"))))))))) -> 6 Die Liebenden | E6: =IF(OR(B6=1,B6=4,B6=7,B6=10,B6=13,B6=16,B6=19,B6=22),"Osiris",IF(OR(B6=2,B6=5,B6=8,B6=11,B6=14,B6=17,B6=20),"Isis",IF(OR(B6=3,B6=6,B6=9,B6=12,B6=15,B6=18,B6=21),"Horus"))) -> Horus | F6: =VLOOKUP(B6,$L$4:$N$26,3,FALSE) -> Alexandrit, Chrysoberyll, Turmalin, durchsichtiger Calcit | L6: 2 | M6: Die Hohepriesterin | N6: Mondstein, Perle, Bergkristall
A7: Die Karte der Persönlichkeit (Summe aller Konsonanten) | B7: ='Numerologie 2'!B22 -> 7 | C7: Der Wagen | D7: 7 DerWagen | E7: Osiris | F7: =VLOOKUP(B7,$L$4:$N$26,3,FALSE) -> Bernstein | L7: 3 | M7: Die Herrscherin | N7: Smaragd, Türkis
A8: Die Schicksalskarte (Zahlen des gesamten Namens) | B8: ='Numerologie 2'!B23 -> 13 | C8: Der Tod | D8: 4 Der Herrscher | E8: Osiris | F8: Schlangenstein (Ammonit) | L8: 4 | M8: Der Herrscher | N8: Rubin
A9: Die Geburtstagskarte (Tag der Geburt) | B9: ='Numerologie 2'!B24 -> 12 | C9: Der Gehängte | D9: 3 Die Herrscherin | E9: Horus | F9: Aquamarin, Mondstein | L9: 5 | M9: Der Hierophant | N9: Topas
A10: Die Persönlichkeitskarte (Geburtsdatum) | B10: ='Numerologie 2'!B25 -> 19 | C10: Die Sonne | D10: 1 Der Magier | E10: Osiris | F10: Heliodor, Citrin | L10: 6 | M10: Die Liebenden | N10: Alexandrit, Chrysoberyll, Turmalin, durchsichtiger Calcit
A11: Das individuelle Selbst (Rufname) | B11: ='Numerologie 2'!B26 -> 6 | C11: Die Liebenden | D11: 6 Die Liebenden | E11: Horus | F11: Alexandrit, Chrysoberyll, Turmalin, durchsichtiger Calcit | L11: 7 | M11: Der Wagen | N11: Bernstein
A12: Das verborgene Selbst (alle mittleren Namen) | B12: ='Numerologie 2'!B27 -> 0 | C12: =IF(B12=1,"Der Magier",IF(B12=2,"Die Hohepriesterin",IF(B12=3,"Die Herrscherin",IF(B12=4,"Der Herrscher",IF(B12=5,"Der Hierophant",IF(B12=6,"Die Liebenden",IF(B12=7,"Der Wagen",IF(B12=8,"Die Kraft",IF(B12=9,"Der Eremit",IF(B12=10,"Das Rad",IF(B12=11,"Die Gerechtigkeit",IF(B12=12,"Der Gehängte",IF(B12=13,"Der Tod",IF(B12=14,"Die Mässigkeit",IF(B12=15,"Der Teufel",IF(B12=16,"Der Turm",IF(B12=17,"Der Stern",IF(B12=18,"Der Mond",IF(B12=19,"Die Sonne",IF(B12=20,"Das Gericht",IF(B12=21,"Die Welt",IF(B12=22,"Der Narr",0)))))))))))))))))))))) -> 0 | D12: =IF(OR(B12=1,B12=10,B12=19),"1 Der Magier",IF(OR(B12=2,B12=11,B12=20),"2 Die Hohepriesterin",IF(OR(B12=3,B12=12,B12=21),"3 Die Herrscherin",IF(OR(B12=4,B12=13,B12=22),"4 Der Herrscher",IF(OR(B12=5,B12=14),"5 Der Hierophant",IF(OR(B12=6,B12=15),"6 Die Liebenden",IF(OR(B12=7,B12=16),"7 DerWagen",IF(OR(B12 =8,B12=17),"8 Die Kraft",IF(OR(B12=9,B12=18),"9 Der Eremit",0))))))))) -> 0 | E12: =IF(OR(B12=1,B12=4,B12=7,B12=10,B12=13,B12=16,B12=19,B12=22),"Osiris",IF(OR(B12=2,B12=5,B12=8,B12=11,B12=14,B12=17,B12=20),"Isis",IF(OR(B12=3,B12=6,B12=9,B12=12,B12=15,B12=18,B12=21),"Horus",0))) -> 0 | F12: 0 | L12: 8 | M12: Die Kraft | N12: Tigerauge
A13: Das soziale Selbst (Nachname) | B13: ='Numerologie 2'!B28 -> 7 | C13: =IF(B13=1,"Der Magier",IF(B13=2,"Die Hohepriesterin",IF(B13=3,"Die Herrscherin",IF(B13=4,"Der Herrscher",IF(B13=5,"Der Hierophant",IF(B13=6,"Die Liebenden",IF(B13=7,"Der Wagen",IF(B13=8,"Die Kraft",IF(B13=9,"Der Eremit",IF(B13=10,"Das Rad",IF(B13=11,"Die Gerechtigkeit",IF(B13=12,"Der Gehängte",IF(B13=13,"Der Tod",IF(B13=14,"Die Mässigkeit",IF(B13=15,"Der Teufel",IF(B13=16,"Der Turm",IF(B13=17,"Der Stern",IF(B13=18,"Der Mond",IF(B13=19,"Die Sonne",IF(B13=20,"Das Gericht",IF(B13=21,"Die Welt",IF(B13=22,"Der Narr")))))))))))))))))))))) -> Der Wagen | D13: =IF(OR(B13=1,B13=10,B13=19),"1 Der Magier",IF(OR(B13=2,B13=11,B13=20),"2 Die Hohepriesterin",IF(OR(B13=3,B13=12,B13=21),"3 Die Herrscherin",IF(OR(B13=4,B13=13,B13=22),"4 Der Herrscher",IF(OR(B13=5,B13=14),"5 Der Hierophant",IF(OR(B13=6,B13=15),"6 Die Liebenden",IF(OR(B13=7,B13=16),"7 DerWagen",IF(OR(B13 =8,B13=17),"8 Die Kraft",IF(OR(B13=9,B13=18),"9 Der Eremit"))))))))) -> 7 DerWagen | E13: =IF(OR(B13=1,B13=4,B13=7,B13=10,B13=13,B13=16,B13=19,B13=22),"Osiris",IF(OR(B13=2,B13=5,B13=8,B13=11,B13=14,B13=17,B13=20),"Isis",IF(OR(B13=3,B13=6,B13=9,B13=12,B13=15,B13=18,B13=21),"Horus"))) -> Osiris | F13: Bernstein | L13: 9 | M13: Der Eremit | N13: Peridot, (Chrysolith)
A14: Das Lebenspotential (Geburtsdatum und Namen) | B14: ='Numerologie 2'!B29 -> 14 | C14: Die Mässigkeit | D14: 5 Der Hierophant | E14: Isis | F14: Hyazinth, Jacinth (roter bis brauner Zirkon) | L14: 10 | M14: Das Rad des Schicksals | N14: Amethyst, Lapislazuli
A15: Die Karte des ersten Buchstabens | B15: ='Numerologie 2'!B30 -> 13 | C15: ='Numerologie 2'!C30 -> Der Tod | D15: ='Numerologie 2'!D30 -> 4 Der Herrscher | E15: ='Numerologie 2'!E30 -> Osiris | F15: Schlangenstein (Ammonit) | L15: 11 | M15: Die Gerechtigkeit | N15: Smaragd
A16: Die Karte des ersten Vokals | B16: ='Numerologie 2'!B31 -> 1 | C16: ='Numerologie 2'!C31 -> Der Magier | D16: ='Numerologie 2'!D31 -> 1 Der Magier | E16: ='Numerologie 2'!E31 -> Osiris | F16: Opal, Achat | L16: 12 | M16: Der Gehängte | N16: Aquamarin, Mondstein
L17: 13 | M17: Der Tod | N17: Schlangenstein (Ammonit)
L18: 14 | M18: Die Mässigkeit | N18: Hyazinth, Jacinth (roter bis brauner Zirkon)
A19: Die Kompatibilitäten | L19: 15 | M19: Der Teufel | N19: Schwarzer Diamant, Onyx, Gagat
A20: 1. Rang | B20: Karte | C20: Konstellation | D20: Gruppe | L20: 16 | M20: Der Turm | N20: Rubin
A21: Seelenkarte + Geburtstagskarte | B21: =IF(B6=B9,1,0) -> 0 | C21: =IF(D6=D9,1,0) -> 0 | D21: =IF(E6=E9,1,0) -> 1 | L21: 17 | M21: Der Stern | N21: Strass
A22: Seelenkarte + Persönlichkeitskarte | B22: =IF(B6=B10,1,0) -> 0 | C22: =IF(D6=D10,1,0) -> 0 | D22: =IF(E6=E10,1,0) -> 0 | L22: 18 | M22: Der Mond | N22: Perle
A23: Karte der Persönlichkeit + Geburtstagskarte | B23: =IF(B7=B9,1,0) -> 0 | C23: =IF(D7=D9,1,0) -> 0 | D23: =IF(E7=E9,1,0) -> 0 | L23: 19 | M23: Die Sonne | N23: Heliodor, Citrin
A24: Karte der Persönlichkeit + Persönlichkeitskarte | B24: =IF(B7=B10,1,0) -> 0 | C24: =IF(D7=D10,1,0) -> 0 | D24: =IF(E7=E10,1,0) -> 1 | L24: 20 | M24: Das Gericht | N24: Feueropal, Rubin, Diamant, Herkimer Diamant, klarer Topas
A25: Schicksalskarte + Geburtstagskarte | B25: =IF(B8=B9,1,0) -> 0 | C25: =IF(D8=D9,1,0) -> 0 | D25: =IF(E8=E9,1,0) -> 0 | L25: 21 | M25: Die Welt | N25: Onyx, Salz, Halit, Moosachat
A26: Schicksalskarte + Persönlichkeitskarte | B26: =IF(B8=B10,1,0) -> 0 | C26: =IF(D8=D10,1,0) -> 0 | D26: =IF(E8=E10,1,0) -> 1 | L26: 22 | M26: Der Narr | N26: Topas, Chalcedon, Opal
A27: Lebenspotential + Geburtstagskarte | B27: =IF(B14=B9,1,0) -> 0 | C27: =IF(D14=D9,1,0) -> 0 | D27: =IF(E14=E9,1,0) -> 0
A28: Lebenspotential + Persönlichkeitskarte | B28: =IF(B14=B10,1,0) -> 0 | C28: =IF(D14=D10,1,0) -> 0 | D28: =IF(E14=E10,1,0) -> 0
A29: Summe | B29: =SUM(B21:B28) -> 0 | C29: =SUM(C21:C28) -> 0 | D29: =SUM(D21:D28) -> 3 | E29: =SUM(B29:D29) -> 3
A32: 2. Rang | B32: Karte | C32: Konstellation | D32: Gruppe
A33: Seelenkarte + Karte der Persönlichkeit | B33: =IF(B6=B7,1,0) -> 0 | C33: =IF(D6=D7,1,0) -> 0 | D33: =IF(E6=E7,1,0) -> 0
A34: Seelenkarte + Schicksalskarte | B34: =IF(B6=B8,1,0) -> 0 | C34: =IF(D6=D8,1,0) -> 0 | D34: =IF(E6=E8,1,0) -> 0
A35: Karte der Persönlichkeit + Schicksalskarte | B35: =IF(B7=B8,1,0) -> 0 | C35: =IF(D7=D8,1,0) -> 0 | D35: =IF(E7=E8,1,0) -> 1
A36: Seelenkarte + Lebenspotential | B36: =IF(B6=B14,1,0) -> 0 | C36: =IF(D6=D14,1,0) -> 0 | D36: =IF(E6=E14,1,0) -> 0
A37: Karte der Persönlichkeit + Lebenspotential | B37: =IF(B7=B14,1,0) -> 0 | C37: =IF(D7=D14,1,0) -> 0 | D37: =IF(E7=E14,1,0) -> 0
A38: Schicksalskarte + Lebenspotential | B38: =IF(B8=B14,1,0) -> 0 | C38: =IF(D8=D14,1,0) -> 0 | D38: =IF(E8=E14,1,0) -> 0
A39: Geburtstagskarte + Persönlichkeitskarte | B39: =IF(B9=B10,1,0) -> 0 | C39: =IF(D9=D10,1,0) -> 0 | D39: =IF(E9=E10,1,0) -> 0
A40: Summe | B40: =SUM(B33:B39) -> 0 | C40: =SUM(C33:C39) -> 0 | D40: =SUM(D33:D39) -> 1 | E40: =SUM(B40:D40) -> 1
A41: Summe 1. Rang + 2. Rang | E41: =E29+E40 -> 4
A43: Die gemeinsame Beziehungskarte | B43: Jahr | C43: Monat | D43: Tag
A44: Geburtstag Person 1 | B44: 1976 | C44: 4 | D44: 20 | E44: =SUM(B44:D44) -> 2000 | F44: =SUMPRODUCT(MID(E44,ROW(INDIRECT("1:"&LEN(E44))),1)*1) -> 2 | G44: =IF(F44>22,SUMPRODUCT(VALUE(MID(F44,ROW(INDIRECT("$b1:$A"&LEN(F44))),1))),F44) -> 2
A45: Geburtstag Person 2 | B45: 1984 | C45: 4 | D45: 18 | E45: =SUM(B45:D45) -> 2006 | F45: =SUMPRODUCT(MID(E45,ROW(INDIRECT("1:"&LEN(E45))),1)*1) -> 8 | G45: =IF(F45>22,SUMPRODUCT(VALUE(MID(F45,ROW(INDIRECT("$b1:$A"&LEN(F45))),1))),F45) -> 8
E46: =SUM(E44:E45) -> 4006 | F46: =SUMPRODUCT(MID(E46,ROW(INDIRECT("1:"&LEN(E46))),1)*1) -> 10 | G46: =IF(F46>22,SUMPRODUCT(VALUE(MID(F46,ROW(INDIRECT("$b1:$A"&LEN(F46))),1))),F46) -> 10
B51: Nr. | C51: Karte | D51: Wesenskarte | F51: Zweite Wesenskarte
A52: Persönlichkeitskarte Person 1 | B52: =G44 -> 2 | C52: =IF(B52=1,"Der Magier",IF(B52=2,"Die Hohepriesterin",IF(B52=3,"Die Herrscherin",IF(B52=4,"Der Herrscher",IF(B52=5,"Der Hierophant",IF(B52=6,"Die Liebenden",IF(B52=7,"Der Wagen",IF(B52=8,"Die Kraft",IF(B52=9,"Der Eremit",IF(B52=10,"Das Rad",IF(B52=11,"Die Gerechtigkeit",IF(B52=12,"Der Gehängte",IF(B52=13,"Der Tod",IF(B52=14,"Die Mässigkeit",IF(B52=15,"Der Teufel",IF(B52=16,"Der Turm",IF(B52=17,"Der Stern",IF(B52=18,"Der Mond",IF(B52=19,"Die Sonne",IF(B52=20,"Das Gericht",IF(B52=21,"Die Welt",IF(B52=22,"Der Narr")))))))))))))))))))))) -> Die Hohepriesterin | D52: =IF(B52>9,SUMPRODUCT(VALUE(MID(B52,ROW(INDIRECT("$b1:$A"&LEN(B52))),1))),B52+9) -> 11 | E52: Die Gerechtigkeit | F52: =IF(B52=1,19,IF(B52=2,20,IF(B52=3,21,IF(B52=4,22,IF(B52=10,19,IF(B52=11,20,IF(B52=12,21,IF(B52=13,22,IF(B52=19,1,IF(B52=20,11,IF(B52=21,12,IF(B52=22,13,"Keine")))))))))))) -> 20
A53: Persönlichkeitskarte Person 2 | B53: =G45 -> 8 | C53: Die Kraft | D53: =IF(B53>9,SUMPRODUCT(VALUE(MID(B53,ROW(INDIRECT("$b1:$A"&LEN(B53))),1))),B53+9) -> 17 | E53: Der Stern | F53: =IF(B53=1,19,IF(B53=2,20,IF(B53=3,21,IF(B53=4,22,IF(B53=10,19,IF(B53=11,20,IF(B53=12,21,IF(B53=13,22,IF(B53=19,1,IF(B53=20,11,IF(B53=21,12,IF(B53=22,13,"Keine")))))))))))) -> Keine
A54: Gemeinsame Beziehungskarte | B54: =G46 -> 10 | C54: Das Rad | D54: 1 | E54: Der Magier | F54: 19

Sheet Astrologie 1
A3: Astrologische Karten für | B3: =Jahreskarten!E8 -> Zum | C3: =Jahreskarten!F8 -> Beispiel
A4: Lassen Sie zuerst das Horoskop berechnen und geben Sie dann die entsprechenden Informationen im Formularfeld ein. Die Felder für Ihre Eingaben sind rot markiert.
A5: Die Karten, die Sie in den zwölf Häusern finden, sind violett markiert. Verwenden Sie diese für die Interpretation.
A7: Die Planeten | B7: Haus | C7: Tierkreiszeichen | D7: Dekanat | E7: Die Häuser | F7: Tierkreiszeichen | G7: Häuser | H7: Tierkreiszeichen | I7: Dekanat Aszendent
A8: 3 Saturn | B8: 7. Haus | C8: 10 Steinbock | D8: 2. Dekanat | E8: 1. Haus AC | F8: 4 Krebs | G8: 7. Haus DC | H8: 10 Steinbock | I8: 2. Dekanat
A9: 4 Jupiter | B9: 12. Haus | C9: 3 Zwillinge | D9: 2. Dekanat | E9: 2. Haus | F9: 4 Krebs | G9: 8. Haus | H9: 10 Steinbock
A10: 5 Mars | B10: 12. Haus | C10: 4 Krebs | D10: 1. Dekanat | E10: 3. Haus | F10: 5 Löwe | G10: 9. Haus | H10: 11 Wassermann
A11: 6 Sonne | B11: 11. Haus | C11: 2 Stier | D11: 3. Dekanat | E11: 4. Haus IC | F11: 6 Jungfrau | G11: 10. Haus MC | H11: 12 Fische
A12: 7 Venus | B12: 12. Haus | C12: 3 Zwillinge | D12: 1. Dekanat | E12: 5. Haus | F12: 7 Waage | G12: 11. Haus | H12: 1 Widder
A13: 8 Merkur | B13: 12. Haus | C13: 3 Zwillinge | D13: 1. Dekanat | E13: 6. Haus | F13: 9 Schütze | G13: 12. Haus | H13: 3 Zwillinge
A14: 9 Mond | B14: 4. Haus | C14: 6 Jungfrau | D14: 3. Dekanat
A15: Uranus | B15: 6. Haus | C15: 10 Steinbock | D15: 1. Dekanat
A16: Neptun | B16: 7. Haus | C16: 10 Steinbock | D16: 2. Dekanat
A17: Pluto | B17: 5. Haus | C17: 8 Skorpion | D17: 2. Dekanat
Q19: 0 | R19: 0 | S19: 0 | T19: 0 | U19: 0
A20: Die zwölf Häuser | B20: Spitze | C20: Karte der Spitze | D20: Herrscher | E20: Karte des Herrschers | F20: Ev. Planet | G20: Karte des Planeten | H20: Zeichen des Planeten | I20: Karte des Zeichens | J20: Stärke des Planeten | M20: Kleine Arkana | Q20: 1 Widder | R20: Herrscher | S20: 3 Saturn | T20: 1. Dekanat | U20: 1. Haus
A21: 1. Haus: ^ Persönlichkeit, Individualität (Aszendent) | B21: =F8 -> 4 Krebs | C21: =IF(B21="1 Widder","4 Der Herrscher",IF(B21="2 Stier","5 Der Hierophant",IF(B21="3 Zwillinge","6 Die Liebenden",IF(B21="4 Krebs","7 Der Wagen",IF(B21="5 Löwe","8 Die Kraft",IF(B21="6 Jungfrau","9 Der Eremit",IF(B21="7 Waage","11 Die Gerechtigkeit",IF(B21="8 Skorpion","13 Der Tod",IF(B21="9 Schütze","14 Die Mässigkeit",IF(B21="10 Steinbock","15 Der Teufel",IF(B21="11 Wassermann","17 Der Stern",IF(B21="12 Fische","18 Der Mond")))))))))))) -> 7 Der Wagen | D21: =IF(B21="1 Widder","5 Mars",IF(B21="2 Stier","7 Venus",IF(B21="3 Zwillinge","8 Merkur",IF(B21="4 Krebs","9 Mond",IF(B21="5 Löwe","6 Sonne",IF(B21="6 Jungfrau","8 Merkur",IF(B21="7 Waage","7 Venus",IF(B21="8 Skorpion","5 Mars",IF(B21="9 Schütze","4 Jupiter",IF(B21="10 Steinbock","3 Saturn",IF(B21="11 Wassermann","3 Saturn",IF(B21="12 Fische","4 Jupiter")))))))))))) -> 9 Mond | E21: =IF(D21="3 Saturn","21 Die Welt",IF(D21="4 Jupiter","10 Das Rad",IF(D21="5 Mars","16 Der Turm",IF(D21="6 Sonne","19 Die Sonne",IF(D21="7 Venus","3 Die Herrscherin",IF(D21="8 Merkur","1 Der Magier",IF(D21="9 Mond","2 Die Hohepriesterin",IF(D21=0,0)))))))) -> 2 Die Hohepriesterin | F21: =IF($B$8="1. Haus","3 Saturn",0) -> 0 | G21: =IF(F21="3 Saturn","21 Die Welt",IF(F21="4 Jupiter","10 Das Rad",IF(F21="5 Mars","16 Der Turm",IF(F21="6 Sonne","19 Die Sonne",IF(F21="7 Venus","3 Die Herrscherin",IF(F21="8 Merkur","1 Der Magier",IF(F21="9 Mond","2 Die Hohepriesterin",IF(F21="Uranus","0 Der Narr",IF(F21="Neptun","12 Der Gehängte",IF(F21="Pluto","20 Das Gericht",IF(F21=0,0))))))))))) -> 0 | H21: =IF(F21<>0,$C$8,0) -> 0 | I21: =IF(H21="1 Widder","4 Der Herrscher",IF(H21="2 Stier","5 Der Hierophant",IF(H21="3 Zwillinge","6 Die Liebenden",IF(H21="4 Krebs","7 Der Wagen",IF(H21="5 Löwe","8 Die Kraft",IF(H21="6 Jungfrau","9 Der Eremit",IF(H21="7 Waage","11 Die Gerechtigkeit",IF(H21="8 Skorpion","13 Der Tod",IF(H21="9 Schütze","14 Die Mässigkeit",IF(H21="10 Steinbock","15 Der Teufel",IF(H21="11 Wassermann","17 Der Stern",IF(H21="12 Fische","18 Der Mond",IF(H21=0,0))))))))))))) -> 0 | J21: =IF(OR(H21="10 Steinbock",H21="11 Wassermann"),"Herrscher",IF(H21="7 Waage","Erhöhung",IF(H21="1 Widder","Fall",IF(OR(H21="4 Krebs",H21="5 Löwe"),"Exil",0)))) -> 0 | K21: =IF(G21<>0,D8,0) -> 0 | L21: =IF(OR(H21="1 Widder",H21="4 Krebs",H21="7 Waage",H21="10 Steinbock"),"Kardinal",IF(OR(H21="2 Stier",H21="5 Löwe",H21="8 Skorpion",H21="11 Wassermann"),"Fix",IF(OR(H21="3 Zwillinge",H21="6 Jungfrau",H21="9 Schütze",H21="12 Fische"),"Veränderlich",0))) -> 0 | M21: =IF(AND(L21="Kardinal",K21="1. Dekanat"),2,IF(AND(L21="Kardinal",K21="2. Dekanat"),3,IF(AND(L21="Kardinal",K21="3. Dekanat"),4,IF(AND(L21="Fix",K21="1. Dekanat"),5,IF(AND(L21="Fix",K21="2. Dekanat"),6,IF(AND(L21="Fix",K21="3. Dekanat"),7,IF(AND(L21="Veränderlich",K21="1. Dekanat"),8,IF(AND(L21="Veränderlich",K21="2. Dekanat"),9,IF(AND(L21="Veränderlich",K21="3. Dekanat"),10,0))))))))) -> 0 | N21: =IF(OR(H21="1 Widder",H21="5 Löwe",H21="9 Schütze"),"Stäbe",IF(OR(H21="2 Stier",H21="6 Jungfrau",H21="10 Steinbock"),"Münzen",IF(OR(H21="3 Zwillinge",H21="7 Waage",H21="11 Wassermann"),"Schwerter",IF(OR(H21="4 Krebs",H21="8 Skorpion",H21="12 Fische"),"Kelche",0)))) -> 0 | Q21: 2 Stier | R21: Erhöhung | S21: 4 Jupiter | T21: 2. Dekanat | U21: 2. Haus
A22: Ich bin. | D22: =IF(B21="8 Skorpion","Pluto",IF(B21="11 Wassermann","Uranus",IF(B21="12 Fische","Neptun",0))) -> 0 | E22: =IF(D22="Pluto","20 Das Gericht",IF(D22="Uranus","0 Der Narr",IF(D22="Neptun","12 Der Gehängte",0))) -> 0 | F22: =IF($B$9="1. Haus","4 Jupiter",0) -> 0 | G22: =IF(F22="3 Saturn","21 Die Welt",IF(F22="4 Jupiter","10 Das Rad",IF(F22="5 Mars","16 Der Turm",IF(F22="6 Sonne","19 Die Sonne",IF(F22="7 Venus","3 Die Herrscherin",IF(F22="8 Merkur","1 Der Magier",IF(F22="9 Mond","2 Die Hohepriesterin",IF(F22="Uranus","0 Der Narr",IF(F22="Neptun","12 Der Gehängte",IF(F22="Pluto","20 Das Gericht",IF(F22=0,0))))))))))) -> 0 | H22: =IF(F22<>0,$C$9,0) -> 0 | I22: =IF(H22="1 Widder","4 Der Herrscher",IF(H22="2 Stier","5 Der Hierophant",IF(H22="3 Zwillinge","6 Die Liebenden",IF(H22="4 Krebs","7 Der Wagen",IF(H22="5 Löwe","8 Die Kraft",IF(H22="6 Jungfrau","9 Der Eremit",IF(H22="7 Waage","11 Die Gerechtigkeit",IF(H22="8 Skorpion","13 Der Tod",IF(H22="9 Schütze","14 Die Mässigkeit",IF(H22="10 Steinbock","15 Der Teufel",IF(H22="11 Wassermann","17 Der Stern",IF(H22="12 Fische","18 Der Mond",IF(H22=0,0))))))))))))) -> 0 | J22: =IF(OR(H22="9 Schütze",H22="12 Fische"),"Herrscher",IF(H22="4 Krebs","Erhöhung",IF(H22="10 Steinbock","Fall",IF(OR(H22="3 Zwillinge",H22="6 Jungfrau"),"Exil",0)))) -> 0 | K22: =IF(G22<>0,D9,0) -> 0 | L22: =IF(OR(H22="1 Widder",H22="4 Krebs",H22="7 Waage",H22="10 Steinbock"),"Kardinal",IF(OR(H22="2 Stier",H22="5 Löwe",H22="8 Skorpion",H22="11 Wassermann"),"Fix",IF(OR(H22="3 Zwillinge",H22="6 Jungfrau",H22="9 Schütze",H22="12 Fische"),"Veränderlich",0))) -> 0 | M22: =IF(AND(L22="Kardinal",K22="1. Dekanat"),2,IF(AND(L22="Kardinal",K22="2. Dekanat"),3,IF(AND(L22="Kardinal",K22="3. Dekanat"),4,IF(AND(L22="Fix",K22="1. Dekanat"),5,IF(AND(L22="Fix",K22="2. Dekanat"),6,IF(AND(L22="Fix",K22="3. Dekanat"),7,IF(AND(L22="Veränderlich",K22="1. Dekanat"),8,IF(AND(L22="Veränderlich",K22="2. Dekanat"),9,IF(AND(L22="Veränderlich",K22="3. Dekanat"),10,0))))))))) -> 0 | N22: =IF(OR(H22="1 Widder",H22="5 Löwe",H22="9 Schütze"),"Stäbe",IF(OR(H22="2 Stier",H22="6 Jungfrau",H22="10 Steinbock"),"Münzen",IF(OR(H22="3 Zwillinge",H22="7 Waage",H22="11 Wassermann"),"Schwerter",IF(OR(H22="4 Krebs",H22="8 Skorpion",H22="12 Fische"),"Kelche",0)))) -> 0 | Q22: 3 Zwillinge | R22: Fall | S22: 5 Mars | T22: 3. Dekanat | U22: 3. Haus
A23: Physischer Körper, physische Erscheinung und Gesundheit. | F23: =IF($B$10="1. Haus","5 Mars",0) -> 0 | G23: 0 | H23: =IF(F23<>0,$C$10,0) -> 0 | I23: =IF(H23="1 Widder","4 Der Herrscher",IF(H23="2 Stier","5 Der Hierophant",IF(H23="3 Zwillinge","6 Die Liebenden",IF(H23="4 Krebs","7 Der Wagen",IF(H23="5 Löwe","8 Die Kraft",IF(H23="6 Jungfrau","9 Der Eremit",IF(H23="7 Waage","11 Die Gerechtigkeit",IF(H23="8 Skorpion","13 Der Tod",IF(H23="9 Schütze","14 Die Mässigkeit",IF(H23="10 Steinbock","15 Der Teufel",IF(H23="11 Wassermann","17 Der Stern",IF(H23="12 Fische","18 Der Mond",IF(H23=0,0))))))))))))) -> 0 | J23: =IF(OR(H23="1 Widder",H23="8 Skorpion"),"Herrscher",IF(H23="10 Steinbock","Erhöhung",IF(H23="4 Krebs","Fall",IF(OR(H23="2 Stier",H23="7 Waage"),"Exil",0)))) -> 0 | K23: 0 | L23: 0 | M23: 0 | N23: 0 | Q23: 4 Krebs | R23: Exil | S23: 6 Sonne | U23: 4. Haus
A24: Persönlichkeit, das Ich, Selbstausdruck, Ichgefühl, | F24: =IF($B$11="1. Haus","6 Sonne",0) -> 0 | G24: 0 | H24: =IF(F24<>0,$C$11,0) -> 0 | I24: 0 | J24: =IF(H24="5 Löwe","Herrscher",0) -> 0 | K24: 0 | L24: 0 | M24: 0 | N24: 0 | Q24: 5 Löwe | R24: Herrscher + Erhöhung | S24: 7 Venus | U24: 5. Haus
A25: Grundstimmung, das Auftreten. Interessen. Selbstbehauptung, | F25: =IF($B$12="1. Haus","7 Venus",0) -> 0 | G25: 0 | H25: =IF(F25<>0,$C$12,0) -> 0 | I25: 0 | J25: =IF(OR(H25="2 Stier",H25="7 Waage"),"Herrscher",IF(H25="12 Fische","Erhöhung",IF(H25="6 Jungfrau","Fall",IF(OR(H25="8 Skorpion",H25="1 Widder"),"Exil",0)))) -> 0 | K25: 0 | L25: 0 | M25: 0 | N25: 0 | Q25: 6 Jungfrau | R25: Fall + Exil | S25: 8 Merkur | U25: 6. Haus
A26: Durchsetzungskraft, Anfänge. Die Persona oder Maske, | F26: =IF($B$13="1. Haus","8 Merkur",0) -> 0 | G26: 0 | H26: =IF(F26<>0,$C$13,0) -> 0 | I26: 0 | J26: =IF(H26="3 Zwillinge","Herrscher",IF(H26="6 Jungfrau","Herrscher u. Erhöhung",IF(H26="12 Fische","Fall u. Exil",IF(H26="9 Schütze","Exil",0)))) -> 0 | K26: 0 | L26: 0 | M26: 0 | N26: 0 | Q26: 7 Waage | S26: 9 Mond | U26: 7. Haus
A27: die nach aussen gezeigt wird. Kindliche Umgebung. | F27: =IF($B$14="1. Haus","9 Mond",0) -> 0 | G27: 0 | H27: =IF(F27<>0,$C$14,0) -> 0 | I27: =IF(H27="1 Widder","4 Der Herrscher",IF(H27="2 Stier","5 Der Hierophant",IF(H27="3 Zwillinge","6 Die Liebenden",IF(H27="4 Krebs","7 Der Wagen",IF(H27="5 Löwe","8 Die Kraft",IF(H27="6 Jungfrau","9 Der Eremit",IF(H27="7 Waage","11 Die Gerechtigkeit",IF(H27="8 Skorpion","13 Der Tod",IF(H27="9 Schütze","14 Die Mässigkeit",IF(H27="10 Steinbock","15 Der Teufel",IF(H27="11 Wassermann","17 Der Stern",IF(H27="12 Fische","18 Der Mond",IF(H27=0,0))))))))))))) -> 0 | J27: =IF(H27="4 Krebs","Herrscher",IF(H27="2 Stier","Erhöhung",IF(H27="8 Skorpion","Fall",IF(H27="10 Steinbock","Exil",0)))) -> 0 | K27: 0 | L27: 0 | M27: 0 | N27: 0 | Q27: 8 Skorpion | U27: 8. Haus
F28: =IF($B$15="1. Haus","Uranus",0) -> 0 | G28: 0 | H28: =IF(F28<>0,$C$15,0) -> 0 | I28: =IF(H28="1 Widder","4 Der Herrscher",IF(H28="2 Stier","5 Der Hierophant",IF(H28="3 Zwillinge","6 Die Liebenden",IF(H28="4 Krebs","7 Der Wagen",IF(H28="5 Löwe","8 Die Kraft",IF(H28="6 Jungfrau","9 Der Eremit",IF(H28="7 Waage","11 Die Gerechtigkeit",IF(H28="8 Skorpion","13 Der Tod",IF(H28="9 Schütze","14 Die Mässigkeit",IF(H28="10 Steinbock","15 Der Teufel",IF(H28="11 Wassermann","17 Der Stern",IF(H28="12 Fische","18 Der Mond",IF(H28=0,0))))))))))))) -> 0 | J28: =IF(H28="11 Wassermann","Herrscher",IF(H28="5 Löwe","Exil",0)) -> 0 | K28: 0 | L28: 0 | M28: 0 | N28: 0 | Q28: 9 Schütze | U28: 9. Haus
F29: =IF($B$16="1. Haus","Neptun",0) -> 0 | G29: 0 | H29: =IF(F29<>0,$C$16,0) -> 0 | I29: 0 | J29: =IF(H29="12 Fische","Herrscher",IF(H29="6 Jungfrau","Exil",0)) -> 0 | K29: 0 | L29: 0 | M29: 0 | N29: 0 | Q29: 10 Steinbock | U29: 10. Haus
F30: =IF($B$17="1. Haus","Pluto",0) -> 0 | G30: 0 | H30: =IF(F30<>0,$C$17,0) -> 0 | I30: 0 | J30: =IF(H30="8 Skorpion","Herrscher",IF(H30="2 Stier","Exil",0)) -> 0 | K30: 0 | L30: 0 | M30: 0 | N30: 0 | Q30: 11 Wassermann | U30: 11. Haus
A31: 2. Haus: _ Erwerb und Besitz | B31: =F9 -> 4 Krebs | C31: =IF(B31="1 Widder","4 Der Herrscher",IF(B31="2 Stier","5 Der Hierophant",IF(B31="3 Zwillinge","6 Die Liebenden",IF(B31="4 Krebs","7 Der Wagen",IF(B31="5 Löwe","8 Die Kraft",IF(B31="6 Jungfrau","9 Der Eremit",IF(B31="7 Waage","11 Die Gerechtigkeit",IF(B31="8 Skorpion","13 Der Tod",IF(B31="9 Schütze","14 Die Mässigkeit",IF(B31="10 Steinbock","15 Der Teufel",IF(B31="11 Wassermann","17 Der Stern",IF(B31="12 Fische","18 Der Mond")))))))))))) -> 7 Der Wagen | D31: =IF(B31="1 Widder","5 Mars",IF(B31="2 Stier","7 Venus",IF(B31="3 Zwillinge","8 Merkur",IF(B31="4 Krebs","9 Mond",IF(B31="5 Löwe","6 Sonne",IF(B31="6 Jungfrau","8 Merkur",IF(B31="7 Waage","7 Venus",IF(B31="8 Skorpion","5 Mars",IF(B31="9 Schütze","4 Jupiter",IF(B31="10 Steinbock","3 Saturn",IF(B31="11 Wassermann","3 Saturn",IF(B31="12 Fische","4 Jupiter")))))))))))) -> 9 Mond | E31: =IF(D31="3 Saturn","21 Die Welt",IF(D31="4 Jupiter","10 Das Rad",IF(D31="5 Mars","16 Der Turm",IF(D31="6 Sonne","19 Die Sonne",IF(D31="7 Venus","3 Die Herrscherin",IF(D31="8 Merkur","1 Der Magier",IF(D31="9 Mond","2 Die Hohepriesterin",IF(D31=0,0)))))))) -> 2 Die Hohepriesterin | F31: =IF($B$8="2. Haus","3 Saturn",0) -> 0 | G31: 0 | H31: =IF(F31<>0,$C$8,0) -> 0 | I31: 0 | J31: =IF(OR(H31="10 Steinbock",H31="11 Wassermann"),"Herrscher",IF(H31="7 Waage","Erhöhung",IF(H31="1 Widder","Fall",IF(OR(H31="4 Krebs",H31="5 Löwe"),"Exil",0)))) -> 0 | K31: =IF(G31<>0,D8,0) -> 0 | L31: 0 | M31: 0 | N31: =IF(OR(H31="1 Widder",H31="5 Löwe",H31="9 Schütze"),"Stäbe",IF(OR(H31="2 Stier",H31="6 Jungfrau",H31="10 Steinbock"),"Münzen",IF(OR(H31="3 Zwillinge",H31="7 Waage",H31="11 Wassermann"),"Schwerter",IF(OR(H31="4 Krebs",H31="8 Skorpion",H31="12 Fische"),"Kelche",0)))) -> 0 | Q31: 12 Fische | U31: 12. Haus
A32: Ich besitze. | D32: =IF(B31="8 Skorpion","Pluto",IF(B31="11 Wassermann","Uranus",IF(B31="12 Fische","Neptun",0))) -> 0 | E32: =IF(D32="Pluto","20 Das Gericht",IF(D32="Uranus","0 Der Narr",IF(D32="Neptun","12 Der Gehängte",0))) -> 0 | F32: =IF($B$9="2. Haus","4 Jupiter",0) -> 0 | G32: 0 | H32: =IF(F32<>0,$C$9,0) -> 0 | I32: 0 | J32: =IF(OR(H32="9 Schütze",H32="12 Fische"),"Herrscher",IF(H32="4 Krebs","Erhöhung",IF(H32="10 Steinbock","Fall",IF(OR(H32="3 Zwillinge",H32="6 Jungfrau"),"Exil",0)))) -> 0 | K32: =IF(G32<>0,D9,0) -> 0 | L32: 0 | M32: 0 | N32: 0
A33: Besitz, finanzielle Situation, Gewinn oder Verlust, Vermögen, | F33: =IF($B$10="2. Haus","5 Mars",0) -> 0 | G33: 0 | H33: =IF(F33<>0,$C$10,0) -> 0 | I33: 0 | J33: =IF(OR(H33="1 Widder",H33="8 Skorpion"),"Herrscher",IF(H33="10 Steinbock","Erhöhung",IF(H33="4 Krebs","Fall",IF(OR(H33="2 Stier",H33="7 Waage"),"Exil",0)))) -> 0 | K33: 0 | L33: 0 | M33: 0 | N33: 0
A34: Schulden. Werte, was wertgeschätzt wird. Kreative | F34: =IF($B$11="2. Haus","6 Sonne",0) -> 0 | G34: 0 | H34: =IF(F34<>0,$C$11,0) -> 0 | I34: 0 | J34: =IF(H34="5 Löwe","Herrscher",0) -> 0 | K34: 0 | L34: 0 | M34: 0 | N34: 0
A35: Fähigkeiten, Talente. Sicherheit. Einnahmen und Ausgaben. | F35: =IF($B$12="2. Haus","7 Venus",0) -> 0 | G35: 0 | H35: =IF(F35<>0,$C$12,0) -> 0 | I35: 0 | J35: =IF(OR(H35="2 Stier",H35="7 Waage"),"Herrscher",IF(H35="12 Fische","Erhöhung",IF(H35="6 Jungfrau","Fall",IF(OR(H35="8 Skorpion",H35="1 Widder"),"Exil",0)))) -> 0 | K35: 0 | L35: 0 | M35: 0 | N35: 0
A36: Zufriedenheit, Eitelkeit. Persönliche Freiheit, die durch Geld | F36: =IF($B$13="2. Haus","8 Merkur",0) -> 0 | G36: 0 | H36: =IF(F36<>0,$C$13,0) -> 0 | I36: 0 | J36: =IF(H36="3 Zwillinge","Herrscher",IF(H36="6 Jungfrau","Herrscher u. Erhöhung",IF(H36="12 Fische","Fall u. Exil",IF(H36="9 Schütze","Exil",0)))) -> 0 | K36: 0 | L36: 0 | M36: 0 | N36: 0
A37: erlangt oder nicht erlangt wird. | F37: =IF($B$14="2. Haus","9 Mond",0) -> 0 | G37: 0 | H37: =IF(F37<>0,$C$14,0) -> 0 | I37: 0 | J37: =IF(H37="4 Krebs","Herrscher",IF(H37="2 Stier","Erhöhung",IF(H37="8 Skorpion","Fall",IF(H37="10 Steinbock","Exil",0)))) -> 0 | K37: 0 | L37: 0 | M37: 0 | N37: 0
F38: =IF($B$15="2. Haus","Uranus",0) -> 0 | G38: 0 | H38: =IF(F38<>0,$C$15,0) -> 0 | I38: 0 | J38: =IF(H38="11 Wassermann","Herrscher",IF(H38="5 Löwe","Exil",0)) -> 0 | K38: 0 | L38: 0 | M38: 0 | N38: 0
F39: =IF($B$16="2. Haus","Neptun",0) -> 0 | G39: 0 | H39: =IF(F39<>0,$C$16,0) -> 0 | I39: 0 | J39: =IF(H39="12 Fische","Herrscher",IF(H39="6 Jungfrau","Exil",0)) -> 0 | K39: 0 | L39: 0 | M39: 0 | N39: 0
F40: =IF($B$17="2. Haus","Pluto",0) -> 0 | G40: 0 | H40: =IF(F40<>0,$C$17,0) -> 0 | I40: 0 | J40: =IF(H40="8 Skorpion","Herrscher",IF(H40="2 Stier","Exil",0)) -> 0 | K40: 0 | L40: 0 | M40: 0 | N40: 0
A41: 3. Haus: ` Unmittelbare Interessen und Beziehungen | B41: =F10 -> 5 Löwe | C41: =IF(B41="1 Widder","4 Der Herrscher",IF(B41="2 Stier","5 Der Hierophant",IF(B41="3 Zwillinge","6 Die Liebenden",IF(B41="4 Krebs","7 Der Wagen",IF(B41="5 Löwe","8 Die Kraft",IF(B41="6 Jungfrau","9 Der Eremit",IF(B41="7 Waage","11 Die Gerechtigkeit",IF(B41="8 Skorpion","13 Der Tod",IF(B41="9 Schütze","14 Die Mässigkeit",IF(B41="10 Steinbock","15 Der Teufel",IF(B41="11 Wassermann","17 Der Stern",IF(B41="12 Fische","18 Der Mond")))))))))))) -> 8 Die Kraft | D41: =IF(B41="1 Widder","5 Mars",IF(B41="2 Stier","7 Venus",IF(B41="3 Zwillinge","8 Merkur",IF(B41="4 Krebs","9 Mond",IF(B41="5 Löwe","6 Sonne",IF(B41="6 Jungfrau","8 Merkur",IF(B41="7 Waage","7 Venus",IF(B41="8 Skorpion","5 Mars",IF(B41="9 Schütze","4 Jupiter",IF(B41="10 Steinbock","3 Saturn",IF(B41="11 Wassermann","3 Saturn",IF(B41="12 Fische","4 Jupiter")))))))))))) -> 6 Sonne | E41: =IF(D41="3 Saturn","21 Die Welt",IF(D41="4 Jupiter","10 Das Rad",IF(D41="5 Mars","16 Der Turm",IF(D41="6 Sonne","19 Die Sonne",IF(D41="7 Venus","3 Die Herrscherin",IF(D41="8 Merkur","1 Der Magier",IF(D41="9 Mond","2 Die Hohepriesterin",IF(D41=0,0)))))))) -> 19 Die Sonne | F41: =IF($B$8="3. Haus","3 Saturn",0) -> 0 | G41: 0 | H41: =IF(F41<>0,$C$8,0) -> 0 | I41: 0 | J41: =IF(OR(H41="10 Steinbock",H41="11 Wassermann"),"Herrscher",IF(H41="7 Waage","Erhöhung",IF(H41="1 Widder","Fall",IF(OR(H41="4 Krebs",H41="5 Löwe"),"Exil",0)))) -> 0 | K41: =IF(G41<>0,D8,0) -> 0 | L41: 0 | M41: 0 | N41: =IF(OR(H41="1 Widder",H41="5 Löwe",H41="9 Schütze"),"Stäbe",IF(OR(H41="2 Stier",H41="6 Jungfrau",H41="10 Steinbock"),"Münzen",IF(OR(H41="3 Zwillinge",H41="7 Waage",H41="11 Wassermann"),"Schwerter",IF(OR(H41="4 Krebs",H41="8 Skorpion",H41="12 Fische"),"Kelche",0)))) -> 0
A42: Ich denke. | D42: =IF(B41="8 Skorpion","Pluto",IF(B41="11 Wassermann","Uranus",IF(B41="12 Fische","Neptun",0))) -> 0 | E42: =IF(D42="Pluto","20 Das Gericht",IF(D42="Uranus","0 Der Narr",IF(D42="Neptun","12 Der Gehängte",0))) -> 0 | F42: =IF($B$9="3. Haus","4 Jupiter",0) -> 0 | G42: 0 | H42: =IF(F42<>0,$C$9,0) -> 0 | I42: 0 | J42: =IF(OR(H42="9 Schütze",H42="12 Fische"),"Herrscher",IF(H42="4 Krebs","Erhöhung",IF(H42="10 Steinbock","Fall",IF(OR(H42="3 Zwillinge",H42="6 Jungfrau"),"Exil",0)))) -> 0 | K42: =IF(G42<>0,D9,0) -> 0 | L42: 0 | M42: 0 | N42: 0
A43: Das Denken, Studieren, Lernen, Reden, Vortragen. | F43: =IF($B$10="3. Haus","5 Mars",0) -> 0 | G43: 0 | H43: =IF(F43<>0,$C$10,0) -> 0 | I43: 0 | J43: =IF(OR(H43="1 Widder",H43="8 Skorpion"),"Herrscher",IF(H43="10 Steinbock","Erhöhung",IF(H43="4 Krebs","Fall",IF(OR(H43="2 Stier",H43="7 Waage"),"Exil",0)))) -> 0 | K43: 0 | L43: 0 | M43: 0 | N43: 0
A44: Kommunikation, Medien, intellektuelle Fähigkeiten. Kurze | F44: =IF($B$11="3. Haus","6 Sonne",0) -> 0 | G44: 0 | H44: =IF(F44<>0,$C$11,0) -> 0 | I44: 0 | J44: =IF(H44="5 Löwe","Herrscher",0) -> 0 | K44: 0 | L44: 0 | M44: 0 | N44: 0
A45: Reisen, Geschäftsreisen. Die Fähigkeit, sich in das Umfeld | F45: =IF($B$12="3. Haus","7 Venus",0) -> 0 | G45: 0 | H45: =IF(F45<>0,$C$12,0) -> 0 | I45: 0 | J45: =IF(OR(H45="2 Stier",H45="7 Waage"),"Herrscher",IF(H45="12 Fische","Erhöhung",IF(H45="6 Jungfrau","Fall",IF(OR(H45="8 Skorpion",H45="1 Widder"),"Exil",0)))) -> 0 | K45: 0 | L45: 0 | M45: 0 | N45: 0
A46: zu integrieren. Brüder und Schwestern, Nachbarn. Alltag, | F46: =IF($B$13="3. Haus","8 Merkur",0) -> 0 | G46: 0 | H46: =IF(F46<>0,$C$13,0) -> 0 | I46: 0 | J46: =IF(H46="3 Zwillinge","Herrscher",IF(H46="6 Jungfrau","Herrscher u. Erhöhung",IF(H46="12 Fische","Fall u. Exil",IF(H46="9 Schütze","Exil",0)))) -> 0 | K46: 0 | L46: 0 | M46: 0 | N46: 0
A47: gesunder Menschenverstand, Schriften, geistige Vorlieben. | F47: =IF($B$14="3. Haus","9 Mond",0) -> 0 | G47: 0 | H47: =IF(F47<>0,$C$14,0) -> 0 | I47: 0 | J47: =IF(H47="4 Krebs","Herrscher",IF(H47="2 Stier","Erhöhung",IF(H47="8 Skorpion","Fall",IF(H47="10 Steinbock","Exil",0)))) -> 0 | K47: 0 | L47: 0 | M47: 0 | N47: 0
A48: Die Fähigkeit auf neue Situationen zu reagieren. | F48: =IF($B$15="3. Haus","Uranus",0) -> 0 | G48: 0 | H48: =IF(F48<>0,$C$15,0) -> 0 | I48: 0 | J48: =IF(H48="11 Wassermann","Herrscher",IF(H48="5 Löwe","Exil",0)) -> 0 | K48: 0 | L48: 0 | M48: 0 | N48: 0
F49: =IF($B$16="3. Haus","Neptun",0) -> 0 | G49: 0 | H49: =IF(F49<>0,$C$16,0) -> 0 | I49: 0 | J49: =IF(H49="12 Fische","Herrscher",IF(H49="6 Jungfrau","Exil",0)) -> 0 | K49: 0 | L49: 0 | M49: 0 | N49: 0
F50: =IF($B$17="3. Haus","Pluto",0) -> 0 | G50: 0 | H50: =IF(F50<>0,$C$17,0) -> 0 | I50: 0 | J50: =IF(H50="8 Skorpion","Herrscher",IF(H50="2 Stier","Exil",0)) -> 0 | K50: 0 | L50: 0 | M50: 0 | N50: 0
A51: 4. Haus: a Herkunft und Familie (Imum Coeli) | B51: =F11 -> 6 Jungfrau | C51: =IF(B51="1 Widder","4 Der Herrscher",IF(B51="2 Stier","5 Der Hierophant",IF(B51="3 Zwillinge","6 Die Liebenden",IF(B51="4 Krebs","7 Der Wagen",IF(B51="5 Löwe","8 Die Kraft",IF(B51="6 Jungfrau","9 Der Eremit",IF(B51="7 Waage","11 Die Gerechtigkeit",IF(B51="8 Skorpion","13 Der Tod",IF(B51="9 Schütze","14 Die Mässigkeit",IF(B51="10 Steinbock","15 Der Teufel",IF(B51="11 Wassermann","17 Der Stern",IF(B51="12 Fische","18 Der Mond")))))))))))) -> 9 Der Eremit | D51: =IF(B51="1 Widder","5 Mars",IF(B51="2 Stier","7 Venus",IF(B51="3 Zwillinge","8 Merkur",IF(B51="4 Krebs","9 Mond",IF(B51="5 Löwe","6 Sonne",IF(B51="6 Jungfrau","8 Merkur",IF(B51="7 Waage","7 Venus",IF(B51="8 Skorpion","5 Mars",IF(B51="9 Schütze","4 Jupiter",IF(B51="10 Steinbock","3 Saturn",IF(B51="11 Wassermann","3 Saturn",IF(B51="12 Fische","4 Jupiter")))))))))))) -> 8 Merkur | E51: =IF(D51="3 Saturn","21 Die Welt",IF(D51="4 Jupiter","10 Das Rad",IF(D51="5 Mars","16 Der Turm",IF(D51="6 Sonne","19 Die Sonne",IF(D51="7 Venus","3 Die Herrscherin",IF(D51="8 Merkur","1 Der Magier",IF(D51="9 Mond","2 Die Hohepriesterin",IF(D51=0,0)))))))) -> 1 Der Magier | F51: =IF($B$8="4. Haus","3 Saturn",0) -> 0 | G51: 0 | H51: =IF(F51<>0,$C$8,0) -> 0 | I51: 0 | J51: =IF(OR(H51="10 Steinbock",H51="11 Wassermann"),"Herrscher",IF(H51="7 Waage","Erhöhung",IF(H51="1 Widder","Fall",IF(OR(H51="4 Krebs",H51="5 Löwe"),"Exil",0)))) -> 0 | K51: =IF(G51<>0,D8,0) -> 0 | L51: 0 | M51: 0 | N51: =IF(OR(H51="1 Widder",H51="5 Löwe",H51="9 Schütze"),"Stäbe",IF(OR(H51="2 Stier",H51="6 Jungfrau",H51="10 Steinbock"),"Münzen",IF(OR(H51="3 Zwillinge",H51="7 Waage",H51="11 Wassermann"),"Schwerter",IF(OR(H51="4 Krebs",H51="8 Skorpion",H51="12 Fische"),"Kelche",0)))) -> 0
A52: Ich bin geborgen. | D52: =IF(B51="8 Skorpion","Pluto",IF(B51="11 Wassermann","Uranus",IF(B51="12 Fische","Neptun",0))) -> 0 | E52: =IF(D52="Pluto","20 Das Gericht",IF(D52="Uranus","0 Der Narr",IF(D52="Neptun","12 Der Gehängte",0))) -> 0 | F52: =IF($B$9="4. Haus","4 Jupiter",0) -> 0 | G52: 0 | H52: =IF(F52<>0,$C$9,0) -> 0 | I52: 0 | J52: =IF(OR(H52="9 Schütze",H52="12 Fische"),"Herrscher",IF(H52="4 Krebs","Erhöhung",IF(H52="10 Steinbock","Fall",IF(OR(H52="3 Zwillinge",H52="6 Jungfrau"),"Exil",0)))) -> 0 | K52: =IF(G52<>0,D9,0) -> 0 | L52: 0 | M52: 0 | N52: 0
A53: Erbliche Anlagen. Das Zuhause, die Eltern, die Herkunft, | F53: =IF($B$10="4. Haus","5 Mars",0) -> 0 | G53: 0 | H53: =IF(F53<>0,$C$10,0) -> 0 | I53: 0 | J53: =IF(OR(H53="1 Widder",H53="8 Skorpion"),"Herrscher",IF(H53="10 Steinbock","Erhöhung",IF(H53="4 Krebs","Fall",IF(OR(H53="2 Stier",H53="7 Waage"),"Exil",0)))) -> 0 | K53: 0 | L53: 0 | M53: =IF(AND(L53="Kardinal",K53="1. Dekanat"),2,IF(AND(L53="Kardinal",K53="2. Dekanat"),3,IF(AND(L53="Kardinal",K53="3. Dekanat"),4,IF(AND(L53="Fix",K53="1. Dekanat"),5,IF(AND(L53="Fix",K53="2. Dekanat"),6,IF(AND(L53="Fix",K53="3. Dekanat"),7,IF(AND(L53="Veränderlich",K53="1. Dekanat"),8,IF(AND(L53="Veränderlich",K53="2. Dekanat"),9,IF(AND(L53="Veränderlich",K53="3. Dekanat"),10,0))))))))) -> 0 | N53: 0
A54: physische und psychische Geborgenheit, die Familie, | F54: =IF($B$11="4. Haus","6 Sonne",0) -> 0 | G54: 0 | H54: =IF(F54<>0,$C$11,0) -> 0 | I54: 0 | J54: =IF(H54="5 Löwe","Herrscher",0) -> 0 | K54: 0 | L54: 0 | M54: 0 | N54: 0
A55: emotionale Wurzeln, häusliche Angelegenheiten, die | F55: =IF($B$12="4. Haus","7 Venus",0) -> 0 | G55: 0 | H55: =IF(F55<>0,$C$12,0) -> 0 | I55: 0 | J55: =IF(OR(H55="2 Stier",H55="7 Waage"),"Herrscher",IF(H55="12 Fische","Erhöhung",IF(H55="6 Jungfrau","Fall",IF(OR(H55="8 Skorpion",H55="1 Widder"),"Exil",0)))) -> 0 | K55: 0 | L55: 0 | M55: 0 | N55: 0
A56: häusliche Umgebung, Immobilien, familiäre Themen, | F56: =IF($B$13="4. Haus","8 Merkur",0) -> 0 | G56: 0 | H56: =IF(F56<>0,$C$13,0) -> 0 | I56: 0 | J56: =IF(H56="3 Zwillinge","Herrscher",IF(H56="6 Jungfrau","Herrscher u. Erhöhung",IF(H56="12 Fische","Fall u. Exil",IF(H56="9 Schütze","Exil",0)))) -> 0 | K56: 0 | L56: 0 | M56: 0 | N56: 0
A57: Liegenschaften, seelische Prägungen, der Elternteil, zu dem | F57: =IF($B$14="4. Haus","9 Mond",0) -> 9 Mond | G57: 2 Die Hohepriesterin | H57: =IF(F57<>0,$C$14,0) -> 6 Jungfrau | I57: 9 Der Eremit | J57: =IF(H57="4 Krebs","Herrscher",IF(H57="2 Stier","Erhöhung",IF(H57="8 Skorpion","Fall",IF(H57="10 Steinbock","Exil",0)))) -> 0 | K57: 3. Dekanat | L57: Veränderlich | M57: 10 | N57: Münzen
A58: man eine stärkere Bindung hat. Das Alter, die letzten Jahre | F58: =IF($B$15="4. Haus","Uranus",0) -> 0 | G58: 0 | H58: =IF(F58<>0,$C$15,0) -> 0 | I58: 0 | J58: =IF(H58="11 Wassermann","Herrscher",IF(H58="5 Löwe","Exil",0)) -> 0 | K58: 0 | L58: 0 | M58: =IF(AND(L58="Kardinal",K58="1. Dekanat"),2,IF(AND(L58="Kardinal",K58="2. Dekanat"),3,IF(AND(L58="Kardinal",K58="3. Dekanat"),4,IF(AND(L58="Fix",K58="1. Dekanat"),5,IF(AND(L58="Fix",K58="2. Dekanat"),6,IF(AND(L58="Fix",K58="3. Dekanat"),7,IF(AND(L58="Veränderlich",K58="1. Dekanat"),8,IF(AND(L58="Veränderlich",K58="2. Dekanat"),9,IF(AND(L58="Veränderlich",K58="3. Dekanat"),10,0))))))))) -> 0 | N58: 0
A59: vor dem Tod. | F59: =IF($B$16="4. Haus","Neptun",0) -> 0 | G59: 0 | H59: =IF(F59<>0,$C$16,0) -> 0 | I59: 0 | J59: =IF(H59="12 Fische","Herrscher",IF(H59="6 Jungfrau","Exil",0)) -> 0 | K59: 0 | L59: 0 | M59: 0 | N59: 0
F60: =IF($B$17="4. Haus","Pluto",0) -> 0 | G60: 0 | H60: =IF(F60<>0,$C$17,0) -> 0 | I60: 0 | J60: =IF(H60="8 Skorpion","Herrscher",IF(H60="2 Stier","Exil",0)) -> 0 | K60: 0 | L60: 0 | M60: 0 | N60: 0
A61: 5. Haus: b Kreativität und Vergnügen | B61: =F12 -> 7 Waage | C61: =IF(B61="1 Widder","4 Der Herrscher",IF(B61="2 Stier","5 Der Hierophant",IF(B61="3 Zwillinge","6 Die Liebenden",IF(B61="4 Krebs","7 Der Wagen",IF(B61="5 Löwe","8 Die Kraft",IF(B61="6 Jungfrau","9 Der Eremit",IF(B61="7 Waage","11 Die Gerechtigkeit",IF(B61="8 Skorpion","13 Der Tod",IF(B61="9 Schütze","14 Die Mässigkeit",IF(B61="10 Steinbock","15 Der Teufel",IF(B61="11 Wassermann","17 Der Stern",IF(B61="12 Fische","18 Der Mond")))))))))))) -> 11 Die Gerechtigkeit | D61: =IF(B61="1 Widder","5 Mars",IF(B61="2 Stier","7 Venus",IF(B61="3 Zwillinge","8 Merkur",IF(B61="4 Krebs","9 Mond",IF(B61="5 Löwe","6 Sonne",IF(B61="6 Jungfrau","8 Merkur",IF(B61="7 Waage","7 Venus",IF(B61="8 Skorpion","5 Mars",IF(B61="9 Schütze","4 Jupiter",IF(B61="10 Steinbock","3 Saturn",IF(B61="11 Wassermann","3 Saturn",IF(B61="12 Fische","4 Jupiter")))))))))))) -> 7 Venus | E61: =IF(D61="3 Saturn","21 Die Welt",IF(D61="4 Jupiter","10 Das Rad",IF(D61="5 Mars","16 Der Turm",IF(D61="6 Sonne","19 Die Sonne",IF(D61="7 Venus","3 Die Herrscherin",IF(D61="8 Merkur","1 Der Magier",IF(D61="9 Mond","2 Die Hohepriesterin",IF(D61=0,0)))))))) -> 3 Die Herrscherin | F61: =IF($B$8="5. Haus","3 Saturn",0) -> 0 | G61: 0 | H61: =IF(F61<>0,$C$8,0) -> 0 | I61: 0 | J61: =IF(OR(H61="10 Steinbock",H61="11 Wassermann"),"Herrscher",IF(H61="7 Waage","Erhöhung",IF(H61="1 Widder","Fall",IF(OR(H61="4 Krebs",H61="5 Löwe"),"Exil",0)))) -> 0 | K61: =IF(G61<>0,D8,0) -> 0 | L61: 0 | M61: 0 | N61: =IF(OR(H61="1 Widder",H61="5 Löwe",H61="9 Schütze"),"Stäbe",IF(OR(H61="2 Stier",H61="6 Jungfrau",H61="10 Steinbock"),"Münzen",IF(OR(H61="3 Zwillinge",H61="7 Waage",H61="11 Wassermann"),"Schwerter",IF(OR(H61="4 Krebs",H61="8 Skorpion",H61="12 Fische"),"Kelche",0)))) -> 0
A62: Ich mag, ich spiele. | D62: =IF(B61="8 Skorpion","Pluto",IF(B61="11 Wassermann","Uranus",IF(B61="12 Fische","Neptun",0))) -> 0 | E62: =IF(D62="Pluto","20 Das Gericht",IF(D62="Uranus","0 Der Narr",IF(D62="Neptun","12 Der Gehängte",0))) -> 0 | F62: =IF($B$9="5. Haus","4 Jupiter",0) -> 0 | G62: 0 | H62: =IF(F62<>0,$C$9,0) -> 0 | I62: 0 | J62: =IF(OR(H62="9 Schütze",H62="12 Fische"),"Herrscher",IF(H62="4 Krebs","Erhöhung",IF(H62="10 Steinbock","Fall",IF(OR(H62="3 Zwillinge",H62="6 Jungfrau"),"Exil",0)))) -> 0 | K62: =IF(G62<>0,D9,0) -> 0 | L62: 0 | M62: 0 | N62: =IF(OR(H62="1 Widder",H62="5 Löwe",H62="9 Schütze"),"Stäbe",IF(OR(H62="2 Stier",H62="6 Jungfrau",H62="10 Steinbock"),"Münzen",IF(OR(H62="3 Zwillinge",H62="7 Waage",H62="11 Wassermann"),"Schwerter",IF(OR(H62="4 Krebs",H62="8 Skorpion",H62="12 Fische"),"Kelche",0)))) -> 0
A63: Kreativer Ausdruck, Selbstausdruck, Hobbys, | F63: =IF($B$10="5. Haus","5 Mars",0) -> 0 | G63: 0 | H63: =IF(F63<>0,$C$10,0) -> 0 | I63: 0 | J63: =IF(OR(H63="1 Widder",H63="8 Skorpion"),"Herrscher",IF(H63="10 Steinbock","Erhöhung",IF(H63="4 Krebs","Fall",IF(OR(H63="2 Stier",H63="7 Waage"),"Exil",0)))) -> 0 | K63: 0 | L63: 0 | M63: 0 | N63: 0
A64: Nebenerwerb, Spiel und Spass, Vergnügen. Fortpflanzung | F64: =IF($B$11="5. Haus","6 Sonne",0) -> 0 | G64: 0 | H64: =IF(F64<>0,$C$11,0) -> 0 | I64: 0 | J64: =IF(H64="5 Löwe","Herrscher",0) -> 0 | K64: 0 | L64: =IF(OR(H64="1 Widder",H64="4 Krebs",H64="7 Waage",H64="10 Steinbock"),"Kardinal",IF(OR(H64="2 Stier",H64="5 Löwe",H64="8 Skorpion",H64="11 Wassermann"),"Fix",IF(OR(H64="3 Zwillinge",H64="6 Jungfrau",H64="9 Schütze",H64="12 Fische"),"Veränderlich",0))) -> 0 | M64: 0 | N64: 0
A65: und Kinder. Liebesaffären, Romanzen. Urlaub, Abenteuer, | F65: =IF($B$12="5. Haus","7 Venus",0) -> 0 | G65: 0 | H65: =IF(F65<>0,$C$12,0) -> 0 | I65: 0 | J65: =IF(OR(H65="2 Stier",H65="7 Waage"),"Herrscher",IF(H65="12 Fische","Erhöhung",IF(H65="6 Jungfrau","Fall",IF(OR(H65="8 Skorpion",H65="1 Widder"),"Exil",0)))) -> 0 | K65: 0 | L65: 0 | M65: 0 | N65: 0
A66: Spekulationen, Glücksspiele, Unterhaltung, Kunst, Sport. | F66: =IF($B$13="5. Haus","8 Merkur",0) -> 0 | G66: 0 | H66: =IF(F66<>0,$C$13,0) -> 0 | I66: 0 | J66: =IF(H66="3 Zwillinge","Herrscher",IF(H66="6 Jungfrau","Herrscher u. Erhöhung",IF(H66="12 Fische","Fall u. Exil",IF(H66="9 Schütze","Exil",0)))) -> 0 | K66: 0 | L66: 0 | M66: 0 | N66: 0
F67: =IF($B$14="5. Haus","9 Mond",0) -> 0 | G67: 0 | H67: =IF(F67<>0,$C$14,0) -> 0 | I67: 0 | J67: =IF(H67="4 Krebs","Herrscher",IF(H67="2 Stier","Erhöhung",IF(H67="8 Skorpion","Fall",IF(H67="10 Steinbock","Exil",0)))) -> 0 | K67: 0 | L67: 0 | M67: 0 | N67: 0
F68: =IF($B$15="5. Haus","Uranus",0) -> 0 | G68: 0 | H68: =IF(F68<>0,$C$15,0) -> 0 | I68: 0 | J68: =IF(H68="11 Wassermann","Herrscher",IF(H68="5 Löwe","Exil",0)) -> 0 | K68: 0 | L68: 0 | M68: 0 | N68: 0
F69: =IF($B$16="5. Haus","Neptun",0) -> 0 | G69: 0 | H69: =IF(F69<>0,$C$16,0) -> 0 | I69: 0 | J69: =IF(H69="12 Fische","Herrscher",IF(H69="6 Jungfrau","Exil",0)) -> 0 | K69: 0 | L69: 0 | M69: 0 | N69: 0
F70: =IF($B$17="5. Haus","Pluto",0) -> Pluto | G70: 20 Das Gericht | H70: =IF(F70<>0,$C$17,0) -> 8 Skorpion | I70: 13 Der Tod | J70: =IF(H70="8 Skorpion","Herrscher",IF(H70="2 Stier","Exil",0)) -> Herrscher | K70: 2. Dekanat | L70: Fix | M70: 6 | N70: Kelche
A71: 6. Haus: c Alltag und Arbeit | B71: =F13 -> 9 Schütze | C71: =IF(B71="1 Widder","4 Der Herrscher",IF(B71="2 Stier","5 Der Hierophant",IF(B71="3 Zwillinge","6 Die Liebenden",IF(B71="4 Krebs","7 Der Wagen",IF(B71="5 Löwe","8 Die Kraft",IF(B71="6 Jungfrau","9 Der Eremit",IF(B71="7 Waage","11 Die Gerechtigkeit",IF(B71="8 Skorpion","13 Der Tod",IF(B71="9 Schütze","14 Die Mässigkeit",IF(B71="10 Steinbock","15 Der Teufel",IF(B71="11 Wassermann","17 Der Stern",IF(B71="12 Fische","18 Der Mond")))))))))))) -> 14 Die Mässigkeit | D71: =IF(B71="1 Widder","5 Mars",IF(B71="2 Stier","7 Venus",IF(B71="3 Zwillinge","8 Merkur",IF(B71="4 Krebs","9 Mond",IF(B71="5 Löwe","6 Sonne",IF(B71="6 Jungfrau","8 Merkur",IF(B71="7 Waage","7 Venus",IF(B71="8 Skorpion","5 Mars",IF(B71="9 Schütze","4 Jupiter",IF(B71="10 Steinbock","3 Saturn",IF(B71="11 Wassermann","3 Saturn",IF(B71="12 Fische","4 Jupiter")))))))))))) -> 4 Jupiter | E71: =IF(D71="3 Saturn","21 Die Welt",IF(D71="4 Jupiter","10 Das Rad",IF(D71="5 Mars","16 Der Turm",IF(D71="6 Sonne","19 Die Sonne",IF(D71="7 Venus","3 Die Herrscherin",IF(D71="8 Merkur","1 Der Magier",IF(D71="9 Mond","2 Die Hohepriesterin",IF(D71=0,0)))))))) -> 10 Das Rad | F71: =IF($B$8="6. Haus","3 Saturn",0) -> 0 | G71: 0 | H71: =IF(F71<>0,$C$8,0) -> 0 | I71: 0 | J71: =IF(OR(H71="10 Steinbock",H71="11 Wassermann"),"Herrscher",IF(H71="7 Waage","Erhöhung",IF(H71="1 Widder","Fall",IF(OR(H71="4 Krebs",H71="5 Löwe"),"Exil",0)))) -> 0 | K71: =IF(G71<>0,D8,0) -> 0 | L71: 0 | M71: =IF(AND(L71="Kardinal",K71="1. Dekanat"),2,IF(AND(L71="Kardinal",K71="2. Dekanat"),3,IF(AND(L71="Kardinal",K71="3. Dekanat"),4,IF(AND(L71="Fix",K71="1. Dekanat"),5,IF(AND(L71="Fix",K71="2. Dekanat"),6,IF(AND(L71="Fix",K71="3. Dekanat"),7,IF(AND(L71="Veränderlich",K71="1. Dekanat"),8,IF(AND(L71="Veränderlich",K71="2. Dekanat"),9,IF(AND(L71="Veränderlich",K71="3. Dekanat"),10,0))))))))) -> 0 | N71: =IF(OR(H71="1 Widder",H71="5 Löwe",H71="9 Schütze"),"Stäbe",IF(OR(H71="2 Stier",H71="6 Jungfrau",H71="10 Steinbock"),"Münzen",IF(OR(H71="3 Zwillinge",H71="7 Waage",H71="11 Wassermann"),"Schwerter",IF(OR(H71="4 Krebs",H71="8 Skorpion",H71="12 Fische"),"Kelche",0)))) -> 0
A72: Ich arbeite. | D72: =IF(B71="8 Skorpion","Pluto",IF(B71="11 Wassermann","Uranus",IF(B71="12 Fische","Neptun",0))) -> 0 | E72: =IF(D72="Pluto","20 Das Gericht",IF(D72="Uranus","0 Der Narr",IF(D72="Neptun","12 Der Gehängte",0))) -> 0 | F72: =IF($B$9="6. Haus","4 Jupiter",0) -> 0 | G72: 0 | H72: =IF(F72<>0,$C$9,0) -> 0 | I72: 0 | J72: =IF(OR(H72="9 Schütze",H72="12 Fische"),"Herrscher",IF(H72="4 Krebs","Erhöhung",IF(H72="10 Steinbock","Fall",IF(OR(H72="3 Zwillinge",H72="6 Jungfrau"),"Exil",0)))) -> 0 | K72: =IF(G72<>0,D9,0) -> 0 | L72: 0 | M72: 0 | N72: 0
A73: Selbstentwicklung. Gesundheit, Krankheit. Ernährung, | F73: =IF($B$10="6. Haus","5 Mars",0) -> 0 | G73: 0 | H73: =IF(F73<>0,$C$10,0) -> 0 | I73: 0 | J73: =IF(OR(H73="1 Widder",H73="8 Skorpion"),"Herrscher",IF(H73="10 Steinbock","Erhöhung",IF(H73="4 Krebs","Fall",IF(OR(H73="2 Stier",H73="7 Waage"),"Exil",0)))) -> 0 | K73: 0 | L73: 0 | M73: 0 | N73: 0
A74: Kleidung, Hygiene. Arbeit, Arbeitgeber, Dienstleistung, | F74: =IF($B$11="6. Haus","6 Sonne",0) -> 0 | G74: 0 | H74: =IF(F74<>0,$C$11,0) -> 0 | I74: 0 | J74: =IF(H74="5 Löwe","Herrscher",0) -> 0 | K74: 0 | L74: 0 | M74: 0 | N74: 0
A75: Arbeitsalltag, Arbeitsplatz, soziales Verhalten, soziale | F75: =IF($B$12="6. Haus","7 Venus",0) -> 0 | G75: 0 | H75: =IF(F75<>0,$C$12,0) -> 0 | I75: 0 | J75: =IF(OR(H75="2 Stier",H75="7 Waage"),"Herrscher",IF(H75="12 Fische","Erhöhung",IF(H75="6 Jungfrau","Fall",IF(OR(H75="8 Skorpion",H75="1 Widder"),"Exil",0)))) -> 0 | K75: 0 | L75: 0 | M75: 0 | N75: 0
A76: Integration, Anpassung. Umgang mit Kollegen, Vorgesetzten, | F76: =IF($B$13="6. Haus","8 Merkur",0) -> 0 | G76: 0 | H76: =IF(F76<>0,$C$13,0) -> 0 | I76: 0 | J76: =IF(H76="3 Zwillinge","Herrscher",IF(H76="6 Jungfrau","Herrscher u. Erhöhung",IF(H76="12 Fische","Fall u. Exil",IF(H76="9 Schütze","Exil",0)))) -> 0 | K76: 0 | L76: 0 | M76: 0 | N76: 0
A77: Dienstpersonal und Angestellten. Kastendenken, | F77: =IF($B$14="6. Haus","9 Mond",0) -> 0 | G77: 0 | H77: =IF(F77<>0,$C$14,0) -> 0 | I77: 0 | J77: =IF(H77="4 Krebs","Herrscher",IF(H77="2 Stier","Erhöhung",IF(H77="8 Skorpion","Fall",IF(H77="10 Steinbock","Exil",0)))) -> 0 | K77: 0 | L77: 0 | M77: 0 | N77: 0
A78: Standesbewusstsein, Gewohnheiten. Kleine Tiere, Haustiere. | F78: =IF($B$15="6. Haus","Uranus",0) -> Uranus | G78: 0 Der Narr | H78: =IF(F78<>0,$C$15,0) -> 10 Steinbock | I78: 15 Der Teufel | J78: =IF(H78="11 Wassermann","Herrscher",IF(H78="5 Löwe","Exil",0)) -> 0 | K78: 1. Dekanat | L78: Kardinal | M78: 2 | N78: Münzen
A79: Interesse an einem gesunden Lebensstil. Onkel und Tanten. | F79: =IF($B$16="6. Haus","Neptun",0) -> 0 | G79: 0 | H79: =IF(F79<>0,$C$16,0) -> 0 | I79: 0 | J79: =IF(H79="12 Fische","Herrscher",IF(H79="6 Jungfrau","Exil",0)) -> 0 | K79: 0 | L79: 0 | M79: =IF(AND(L79="Kardinal",K79="1. Dekanat"),2,IF(AND(L79="Kardinal",K79="2. Dekanat"),3,IF(AND(L79="Kardinal",K79="3. Dekanat"),4,IF(AND(L79="Fix",K79="1. Dekanat"),5,IF(AND(L79="Fix",K79="2. Dekanat"),6,IF(AND(L79="Fix",K79="3. Dekanat"),7,IF(AND(L79="Veränderlich",K79="1. Dekanat"),8,IF(AND(L79="Veränderlich",K79="2. Dekanat"),9,IF(AND(L79="Veränderlich",K79="3. Dekanat"),10,0))))))))) -> 0 | N79: =IF(OR(H79="1 Widder",H79="5 Löwe",H79="9 Schütze"),"Stäbe",IF(OR(H79="2 Stier",H79="6 Jungfrau",H79="10 Steinbock"),"Münzen",IF(OR(H79="3 Zwillinge",H79="7 Waage",H79="11 Wassermann"),"Schwerter",IF(OR(H79="4 Krebs",H79="8 Skorpion",H79="12 Fische"),"Kelche",0)))) -> 0
F80: =IF($B$17="6. Haus","Pluto",0) -> 0 | G80: 0 | H80: =IF(F80<>0,$C$17,0) -> 0 | I80: 0 | J80: =IF(H80="8 Skorpion","Herrscher",IF(H80="2 Stier","Exil",0)) -> 0 | K80: 0 | L80: 0 | M80: 0 | N80: 0
A81: 7. Haus: d Beziehungen und Partnerschaft (Deszendent) | B81: =H8 -> 10 Steinbock | C81: =IF(B81="1 Widder","4 Der Herrscher",IF(B81="2 Stier","5 Der Hierophant",IF(B81="3 Zwillinge","6 Die Liebenden",IF(B81="4 Krebs","7 Der Wagen",IF(B81="5 Löwe","8 Die Kraft",IF(B81="6 Jungfrau","9 Der Eremit",IF(B81="7 Waage","11 Die Gerechtigkeit",IF(B81="8 Skorpion","13 Der Tod",IF(B81="9 Schütze","14 Die Mässigkeit",IF(B81="10 Steinbock","15 Der Teufel",IF(B81="11 Wassermann","17 Der Stern",IF(B81="12 Fische","18 Der Mond")))))))))))) -> 15 Der Teufel | D81: =IF(B81="1 Widder","5 Mars",IF(B81="2 Stier","7 Venus",IF(B81="3 Zwillinge","8 Merkur",IF(B81="4 Krebs","9 Mond",IF(B81="5 Löwe","6 Sonne",IF(B81="6 Jungfrau","8 Merkur",IF(B81="7 Waage","7 Venus",IF(B81="8 Skorpion","5 Mars",IF(B81="9 Schütze","4 Jupiter",IF(B81="10 Steinbock","3 Saturn",IF(B81="11 Wassermann","3 Saturn",IF(B81="12 Fische","4 Jupiter")))))))))))) -> 3 Saturn | E81: =IF(D81="3 Saturn","21 Die Welt",IF(D81="4 Jupiter","10 Das Rad",IF(D81="5 Mars","16 Der Turm",IF(D81="6 Sonne","19 Die Sonne",IF(D81="7 Venus","3 Die Herrscherin",IF(D81="8 Merkur","1 Der Magier",IF(D81="9 Mond","2 Die Hohepriesterin",IF(D81=0,0)))))))) -> 21 Die Welt | F81: =IF($B$8="7. Haus","3 Saturn",0) -> 3 Saturn | G81: 21 Die Welt | H81: =IF(F81<>0,$C$8,0) -> 10 Steinbock | I81: 15 Der Teufel | J81: =IF(OR(H81="10 Steinbock",H81="11 Wassermann"),"Herrscher",IF(H81="7 Waage","Erhöhung",IF(H81="1 Widder","Fall",IF(OR(H81="4 Krebs",H81="5 Löwe"),"Exil",0)))) -> Herrscher | K81: =IF(G81<>0,D8,0) -> 2. Dekanat | L81: Kardinal | M81: 3 | N81: Münzen
A82: Ich liebe. | D82: =IF(B81="8 Skorpion","Pluto",IF(B81="11 Wassermann","Uranus",IF(B81="12 Fische","Neptun",0))) -> 0 | E82: =IF(D82="Pluto","20 Das Gericht",IF(D82="Uranus","0 Der Narr",IF(D82="Neptun","12 Der Gehängte",0))) -> 0 | F82: =IF($B$9="7. Haus","4 Jupiter",0) -> 0 | G82: 0 | H82: =IF(F82<>0,$C$9,0) -> 0 | I82: 0 | J82: =IF(OR(H82="9 Schütze",H82="12 Fische"),"Herrscher",IF(H82="4 Krebs","Erhöhung",IF(H82="10 Steinbock","Fall",IF(OR(H82="3 Zwillinge",H82="6 Jungfrau"),"Exil",0)))) -> 0 | K82: =IF(G82<>0,D9,0) -> 0 | L82: 0 | M82: =IF(AND(L82="Kardinal",K82="1. Dekanat"),2,IF(AND(L82="Kardinal",K82="2. Dekanat"),3,IF(AND(L82="Kardinal",K82="3. Dekanat"),4,IF(AND(L82="Fix",K82="1. Dekanat"),5,IF(AND(L82="Fix",K82="2. Dekanat"),6,IF(AND(L82="Fix",K82="3. Dekanat"),7,IF(AND(L82="Veränderlich",K82="1. Dekanat"),8,IF(AND(L82="Veränderlich",K82="2. Dekanat"),9,IF(AND(L82="Veränderlich",K82="3. Dekanat"),10,0))))))))) -> 0 | N82: 0
A83: Beziehungen, geschäftliche und private Partnerschaften, Ehe, | F83: =IF($B$10="7. Haus","5 Mars",0) -> 0 | G83: 0 | H83: =IF(F83<>0,$C$10,0) -> 0 | I83: 0 | J83: =IF(OR(H83="1 Widder",H83="8 Skorpion"),"Herrscher",IF(H83="10 Steinbock","Erhöhung",IF(H83="4 Krebs","Fall",IF(OR(H83="2 Stier",H83="7 Waage"),"Exil",0)))) -> 0 | K83: 0 | L83: 0 | M83: 0 | N83: 0
A84: Begegnung mit dem Du. Trennungen, Scheidungen. | F84: =IF($B$11="7. Haus","6 Sonne",0) -> 0 | G84: 0 | H84: =IF(F84<>0,$C$11,0) -> 0 | I84: 0 | J84: =IF(H84="5 Löwe","Herrscher",0) -> 0 | K84: 0 | L84: 0 | M84: 0 | N84: =IF(OR(H84="1 Widder",H84="5 Löwe",H84="9 Schütze"),"Stäbe",IF(OR(H84="2 Stier",H84="6 Jungfrau",H84="10 Steinbock"),"Münzen",IF(OR(H84="3 Zwillinge",H84="7 Waage",H84="11 Wassermann"),"Schwerter",IF(OR(H84="4 Krebs",H84="8 Skorpion",H84="12 Fische"),"Kelche",0)))) -> 0
A85: Juristische Belange. Verträge und Vereinbarungen. | F85: =IF($B$12="7. Haus","7 Venus",0) -> 0 | G85: 0 | H85: =IF(F85<>0,$C$12,0) -> 0 | I85: 0 | J85: =IF(OR(H85="2 Stier",H85="7 Waage"),"Herrscher",IF(H85="12 Fische","Erhöhung",IF(H85="6 Jungfrau","Fall",IF(OR(H85="8 Skorpion",H85="1 Widder"),"Exil",0)))) -> 0 | K85: 0 | L85: 0 | M85: 0 | N85: 0
A86: Zusammenarbeit oder Konkurrenz. Umgang mit anderen | F86: =IF($B$13="7. Haus","8 Merkur",0) -> 0 | G86: =IF(F86="3 Saturn","21 Die Welt",IF(F86="4 Jupiter","10 Das Rad",IF(F86="5 Mars","16 Der Turm",IF(F86="6 Sonne","19 Die Sonne",IF(F86="7 Venus","3 Die Herrscherin",IF(F86="8 Merkur","1 Der Magier",IF(F86="9 Mond","2 Die Hohepriesterin",IF(F86="Uranus","0 Der Narr",IF(F86="Neptun","12 Der Gehängte",IF(F86="Pluto","20 Das Gericht",IF(F86=0,0))))))))))) -> 0 | H86: =IF(F86<>0,$C$13,0) -> 0 | I86: 0 | J86: =IF(H86="3 Zwillinge","Herrscher",IF(H86="6 Jungfrau","Herrscher u. Erhöhung",IF(H86="12 Fische","Fall u. Exil",IF(H86="9 Schütze","Exil",0)))) -> 0 | K86: 0 | L86: =IF(OR(H86="1 Widder",H86="4 Krebs",H86="7 Waage",H86="10 Steinbock"),"Kardinal",IF(OR(H86="2 Stier",H86="5 Löwe",H86="8 Skorpion",H86="11 Wassermann"),"Fix",IF(OR(H86="3 Zwillinge",H86="6 Jungfrau",H86="9 Schütze",H86="12 Fische"),"Veränderlich",0))) -> 0 | M86: =IF(AND(L86="Kardinal",K86="1. Dekanat"),2,IF(AND(L86="Kardinal",K86="2. Dekanat"),3,IF(AND(L86="Kardinal",K86="3. Dekanat"),4,IF(AND(L86="Fix",K86="1. Dekanat"),5,IF(AND(L86="Fix",K86="2. Dekanat"),6,IF(AND(L86="Fix",K86="3. Dekanat"),7,IF(AND(L86="Veränderlich",K86="1. Dekanat"),8,IF(AND(L86="Veränderlich",K86="2. Dekanat"),9,IF(AND(L86="Veränderlich",K86="3. Dekanat"),10,0))))))))) -> 0 | N86: 0
A87: Menschen und der Öffentlichkeit. Offene Feindschaften. | F87: =IF($B$14="7. Haus","9 Mond",0) -> 0 | G87: 0 | H87: =IF(F87<>0,$C$14,0) -> 0 | I87: 0 | J87: =IF(H87="4 Krebs","Herrscher",IF(H87="2 Stier","Erhöhung",IF(H87="8 Skorpion","Fall",IF(H87="10 Steinbock","Exil",0)))) -> 0 | K87: 0 | L87: 0 | M87: 0 | N87: 0
A88: Das, was uns fehlt und wir in anderen suchen. Die Grosseltern | F88: =IF($B$15="7. Haus","Uranus",0) -> 0 | G88: 0 | H88: =IF(F88<>0,$C$15,0) -> 0 | I88: 0 | J88: =IF(H88="11 Wassermann","Herrscher",IF(H88="5 Löwe","Exil",0)) -> 0 | K88: 0 | L88: 0 | M88: 0 | N88: 0
A89: und alle Menschen, die in unserem Auftrag handeln, z.B. ein | F89: =IF($B$16="7. Haus","Neptun",0) -> Neptun | G89: 12 Der Gehängte | H89: =IF(F89<>0,$C$16,0) -> 10 Steinbock | I89: 15 Der Teufel | J89: =IF(H89="12 Fische","Herrscher",IF(H89="6 Jungfrau","Exil",0)) -> 0 | K89: 2. Dekanat | L89: Kardinal | M89: 3 | N89: Münzen
A90: Anwalt. | F90: =IF($B$17="7. Haus","Pluto",0) -> 0 | G90: 0 | H90: =IF(F90<>0,$C$17,0) -> 0 | I90: 0 | J90: =IF(H90="8 Skorpion","Herrscher",IF(H90="2 Stier","Exil",0)) -> 0 | K90: 0 | L90: 0 | M90: =IF(AND(L90="Kardinal",K90="1. Dekanat"),2,IF(AND(L90="Kardinal",K90="2. Dekanat"),3,IF(AND(L90="Kardinal",K90="3. Dekanat"),4,IF(AND(L90="Fix",K90="1. Dekanat"),5,IF(AND(L90="Fix",K90="2. Dekanat"),6,IF(AND(L90="Fix",K90="3. Dekanat"),7,IF(AND(L90="Veränderlich",K90="1. Dekanat"),8,IF(AND(L90="Veränderlich",K90="2. Dekanat"),9,IF(AND(L90="Veränderlich",K90="3. Dekanat"),10,0))))))))) -> 0 | N90: 0
A91: 8. Haus: e Materielle Verluste, gemeinschaftliches Gut | B91: =H9 -> 10 Steinbock | C91: =IF(B91="1 Widder","4 Der Herrscher",IF(B91="2 Stier","5 Der Hierophant",IF(B91="3 Zwillinge","6 Die Liebenden",IF(B91="4 Krebs","7 Der Wagen",IF(B91="5 Löwe","8 Die Kraft",IF(B91="6 Jungfrau","9 Der Eremit",IF(B91="7 Waage","11 Die Gerechtigkeit",IF(B91="8 Skorpion","13 Der Tod",IF(B91="9 Schütze","14 Die Mässigkeit",IF(B91="10 Steinbock","15 Der Teufel",IF(B91="11 Wassermann","17 Der Stern",IF(B91="12 Fische","18 Der Mond")))))))))))) -> 15 Der Teufel | D91: =IF(B91="1 Widder","5 Mars",IF(B91="2 Stier","7 Venus",IF(B91="3 Zwillinge","8 Merkur",IF(B91="4 Krebs","9 Mond",IF(B91="5 Löwe","6 Sonne",IF(B91="6 Jungfrau","8 Merkur",IF(B91="7 Waage","7 Venus",IF(B91="8 Skorpion","5 Mars",IF(B91="9 Schütze","4 Jupiter",IF(B91="10 Steinbock","3 Saturn",IF(B91="11 Wassermann","3 Saturn",IF(B91="12 Fische","4 Jupiter")))))))))))) -> 3 Saturn | E91: =IF(D91="3 Saturn","21 Die Welt",IF(D91="4 Jupiter","10 Das Rad",IF(D91="5 Mars","16 Der Turm",IF(D91="6 Sonne","19 Die Sonne",IF(D91="7 Venus","3 Die Herrscherin",IF(D91="8 Merkur","1 Der Magier",IF(D91="9 Mond","2 Die Hohepriesterin",IF(D91=0,0)))))))) -> 21 Die Welt | F91: =IF($B$8="8. Haus","3 Saturn",0) -> 0 | G91: 0 | H91: =IF(F91<>0,$C$8,0) -> 0 | I91: 0 | J91: =IF(OR(H91="10 Steinbock",H91="11 Wassermann"),"Herrscher",IF(H91="7 Waage","Erhöhung",IF(H91="1 Widder","Fall",IF(OR(H91="4 Krebs",H91="5 Löwe"),"Exil",0)))) -> 0 | K91: =IF(G91<>0,D8,0) -> 0 | L91: 0 | M91: =IF(AND(L91="Kardinal",K91="1. Dekanat"),2,IF(AND(L91="Kardinal",K91="2. Dekanat"),3,IF(AND(L91="Kardinal",K91="3. Dekanat"),4,IF(AND(L91="Fix",K91="1. Dekanat"),5,IF(AND(L91="Fix",K91="2. Dekanat"),6,IF(AND(L91="Fix",K91="3. Dekanat"),7,IF(AND(L91="Veränderlich",K91="1. Dekanat"),8,IF(AND(L91="Veränderlich",K91="2. Dekanat"),9,IF(AND(L91="Veränderlich",K91="3. Dekanat"),10,0))))))))) -> 0 | N91: =IF(OR(H91="1 Widder",H91="5 Löwe",H91="9 Schütze"),"Stäbe",IF(OR(H91="2 Stier",H91="6 Jungfrau",H91="10 Steinbock"),"Münzen",IF(OR(H91="3 Zwillinge",H91="7 Waage",H91="11 Wassermann"),"Schwerter",IF(OR(H91="4 Krebs",H91="8 Skorpion",H91="12 Fische"),"Kelche",0)))) -> 0
A92: Ich ergründe. | D92: =IF(B91="8 Skorpion","Pluto",IF(B91="11 Wassermann","Uranus",IF(B91="12 Fische","Neptun",0))) -> 0 | E92: =IF(D92="Pluto","20 Das Gericht",IF(D92="Uranus","0 Der Narr",IF(D92="Neptun","12 Der Gehängte",0))) -> 0 | F92: =IF($B$9="8. Haus","4 Jupiter",0) -> 0 | G92: 0 | H92: =IF(F92<>0,$C$9,0) -> 0 | I92: 0 | J92: =IF(OR(H92="9 Schütze",H92="12 Fische"),"Herrscher",IF(H92="4 Krebs","Erhöhung",IF(H92="10 Steinbock","Fall",IF(OR(H92="3 Zwillinge",H92="6 Jungfrau"),"Exil",0)))) -> 0 | K92: =IF(G92<>0,D9,0) -> 0 | L92: 0 | M92: 0 | N92: 0
A93: Archaische Urkräfte, Sexualität, Tod, Wandlung, | F93: =IF($B$10="8. Haus","5 Mars",0) -> 0 | G93: 0 | H93: =IF(F93<>0,$C$10,0) -> 0 | I93: 0 | J93: =IF(OR(H93="1 Widder",H93="8 Skorpion"),"Herrscher",IF(H93="10 Steinbock","Erhöhung",IF(H93="4 Krebs","Fall",IF(OR(H93="2 Stier",H93="7 Waage"),"Exil",0)))) -> 0 | K93: 0 | L93: 0 | M93: 0 | N93: 0
A94: Transformation, übersinnliche Erfahrungen, Loslassen, Tabus. | F94: =IF($B$11="8. Haus","6 Sonne",0) -> 0 | G94: 0 | H94: =IF(F94<>0,$C$11,0) -> 0 | I94: 0 | J94: =IF(H94="5 Löwe","Herrscher",0) -> 0 | K94: 0 | L94: 0 | M94: 0 | N94: 0
A95: Das Geld von anderen, Geld von Geschäfts- oder | F95: =IF($B$12="8. Haus","7 Venus",0) -> 0 | G95: 0 | H95: =IF(F95<>0,$C$12,0) -> 0 | I95: 0 | J95: =IF(OR(H95="2 Stier",H95="7 Waage"),"Herrscher",IF(H95="12 Fische","Erhöhung",IF(H95="6 Jungfrau","Fall",IF(OR(H95="8 Skorpion",H95="1 Widder"),"Exil",0)))) -> 0 | K95: 0 | L95: 0 | M95: 0 | N95: 0
A96: Lebenspartnern, Erbschaften, Steuern, Versicherungen. | F96: =IF($B$13="7. Haus","8 Merkur",0) -> 0 | G96: 0 | H96: =IF(F96<>0,$C$13,0) -> 0 | I96: 0 | J96: =IF(H96="3 Zwillinge","Herrscher",IF(H96="6 Jungfrau","Herrscher u. Erhöhung",IF(H96="12 Fische","Fall u. Exil",IF(H96="9 Schütze","Exil",0)))) -> 0 | K96: 0 | L96: 0 | M96: 0 | N96: 0
A97: Esoterik, Okkultes, Geheimnisse, übernatürliche Kräfte, | F97: =IF($B$14="8. Haus","9 Mond",0) -> 0 | G97: 0 | H97: =IF(F97<>0,$C$14,0) -> 0 | I97: 0 | J97: =IF(H97="4 Krebs","Herrscher",IF(H97="2 Stier","Erhöhung",IF(H97="8 Skorpion","Fall",IF(H97="10 Steinbock","Exil",0)))) -> 0 | K97: 0 | L97: 0 | M97: 0 | N97: 0
A98: Magie, Schamanismus, Hexen. Die Unterstützung durch | F98: =IF($B$15="8. Haus","Uranus",0) -> 0 | G98: 0 | H98: =IF(F98<>0,$C$15,0) -> 0 | I98: 0 | J98: =IF(H98="11 Wassermann","Herrscher",IF(H98="5 Löwe","Exil",0)) -> 0 | K98: 0 | L98: 0 | M98: 0 | N98: 0
A99: andere Personen auf allen Ebenen. Das Suchen in der Tiefe, | F99: =IF($B$16="8. Haus","Neptun",0) -> 0 | G99: 0 | H99: =IF(F99<>0,$C$16,0) -> 0 | I99: 0 | J99: =IF(H99="12 Fische","Herrscher",IF(H99="6 Jungfrau","Exil",0)) -> 0 | K99: 0 | L99: 0 | M99: 0 | N99: 0
A100: Forschung. Operationen. | F100: =IF($B$17="8. Haus","Pluto",0) -> 0 | G100: 0 | H100: =IF(F100<>0,$C$17,0) -> 0 | I100: 0 | J100: =IF(H100="8 Skorpion","Herrscher",IF(H100="2 Stier","Exil",0)) -> 0 | K100: 0 | L100: 0 | M100: 0 | N100: 0
A101: 9. Haus: f Weltanschauung und ferne Länder | B101: =H10 -> 11 Wassermann | C101: =IF(B101="1 Widder","4 Der Herrscher",IF(B101="2 Stier","5 Der Hierophant",IF(B101="3 Zwillinge","6 Die Liebenden",IF(B101="4 Krebs","7 Der Wagen",IF(B101="5 Löwe","8 Die Kraft",IF(B101="6 Jungfrau","9 Der Eremit",IF(B101="7 Waage","11 Die Gerechtigkeit",IF(B101="8 Skorpion","13 Der Tod",IF(B101="9 Schütze","14 Die Mässigkeit",IF(B101="10 Steinbock","15 Der Teufel",IF(B101="11 Wassermann","17 Der Stern",IF(B101="12 Fische","18 Der Mond")))))))))))) -> 17 Der Stern | D101: =IF(B101="1 Widder","5 Mars",IF(B101="2 Stier","7 Venus",IF(B101="3 Zwillinge","8 Merkur",IF(B101="4 Krebs","9 Mond",IF(B101="5 Löwe","6 Sonne",IF(B101="6 Jungfrau","8 Merkur",IF(B101="7 Waage","7 Venus",IF(B101="8 Skorpion","5 Mars",IF(B101="9 Schütze","4 Jupiter",IF(B101="10 Steinbock","3 Saturn",IF(B101="11 Wassermann","3 Saturn",IF(B101="12 Fische","4 Jupiter")))))))))))) -> 3 Saturn | E101: =IF(D101="3 Saturn","21 Die Welt",IF(D101="4 Jupiter","10 Das Rad",IF(D101="5 Mars","16 Der Turm",IF(D101="6 Sonne","19 Die Sonne",IF(D101="7 Venus","3 Die Herrscherin",IF(D101="8 Merkur","1 Der Magier",IF(D101="9 Mond","2 Die Hohepriesterin",IF(D101=0,0)))))))) -> 21 Die Welt | F101: =IF($B$8="9. Haus","3 Saturn",0) -> 0 | G101: 0 | H101: =IF(F101<>0,$C$8,0) -> 0 | I101: 0 | J101: =IF(OR(H101="10 Steinbock",H101="11 Wassermann"),"Herrscher",IF(H101="7 Waage","Erhöhung",IF(H101="1 Widder","Fall",IF(OR(H101="4 Krebs",H101="5 Löwe"),"Exil",0)))) -> 0 | K101: =IF(G101<>0,D8,0) -> 0 | L101: 0 | M101: 0 | N101: =IF(OR(H101="1 Widder",H101="5 Löwe",H101="9 Schütze"),"Stäbe",IF(OR(H101="2 Stier",H101="6 Jungfrau",H101="10 Steinbock"),"Münzen",IF(OR(H101="3 Zwillinge",H101="7 Waage",H101="11 Wassermann"),"Schwerter",IF(OR(H101="4 Krebs",H101="8 Skorpion",H101="12 Fische"),"Kelche",0)))) -> 0
A102: Ich glaube. | D102: =IF(B101="8 Skorpion","Pluto",IF(B101="11 Wassermann","Uranus",IF(B101="12 Fische","Neptun",0))) -> Uranus | E102: =IF(D102="Pluto","20 Das Gericht",IF(D102="Uranus","0 Der Narr",IF(D102="Neptun","12 Der Gehängte",0))) -> 0 Der Narr | F102: =IF($B$9="9. Haus","4 Jupiter",0) -> 0 | G102: 0 | H102: =IF(F102<>0,$C$9,0) -> 0 | I102: 0 | J102: =IF(OR(H102="9 Schütze",H102="12 Fische"),"Herrscher",IF(H102="4 Krebs","Erhöhung",IF(H102="10 Steinbock","Fall",IF(OR(H102="3 Zwillinge",H102="6 Jungfrau"),"Exil",0)))) -> 0 | K102: =IF(G102<>0,D9,0) -> 0 | L102: 0 | M102: 0 | N102: 0
A103: Die persönliche Suche nach dem Sinn des Lebens, Philosophie, | F103: =IF($B$10="9. Haus","5 Mars",0) -> 0 | G103: 0 | H103: =IF(F103<>0,$C$10,0) -> 0 | I103: 0 | J103: =IF(OR(H103="1 Widder",H103="8 Skorpion"),"Herrscher",IF(H103="10 Steinbock","Erhöhung",IF(H103="4 Krebs","Fall",IF(OR(H103="2 Stier",H103="7 Waage"),"Exil",0)))) -> 0 | K103: 0 | L103: =IF(OR(H103="1 Widder",H103="4 Krebs",H103="7 Waage",H103="10 Steinbock"),"Kardinal",IF(OR(H103="2 Stier",H103="5 Löwe",H103="8 Skorpion",H103="11 Wassermann"),"Fix",IF(OR(H103="3 Zwillinge",H103="6 Jungfrau",H103="9 Schütze",H103="12 Fische"),"Veränderlich",0))) -> 0 | M103: 0 | N103: 0
A104: Ausbildung, Erziehung, Religion, Psychologie, Träume, | F104: =IF($B$11="9. Haus","6 Sonne",0) -> 0 | G104: 0 | H104: =IF(F104<>0,$C$11,0) -> 0 | I104: 0 | J104: =IF(H104="5 Löwe","Herrscher",0) -> 0 | K104: 0 | L104: =IF(OR(H104="1 Widder",H104="4 Krebs",H104="7 Waage",H104="10 Steinbock"),"Kardinal",IF(OR(H104="2 Stier",H104="5 Löwe",H104="8 Skorpion",H104="11 Wassermann"),"Fix",IF(OR(H104="3 Zwillinge",H104="6 Jungfrau",H104="9 Schütze",H104="12 Fische"),"Veränderlich",0))) -> 0 | M104: 0 | N104: 0
A105: Visionen, Ideale, Ethik, Überzeugungen, Weltbild. Lange | F105: =IF($B$12="9. Haus","7 Venus",0) -> 0 | G105: 0 | H105: =IF(F105<>0,$C$12,0) -> 0 | I105: 0 | J105: =IF(OR(H105="2 Stier",H105="7 Waage"),"Herrscher",IF(H105="12 Fische","Erhöhung",IF(H105="6 Jungfrau","Fall",IF(OR(H105="8 Skorpion",H105="1 Widder"),"Exil",0)))) -> 0 | K105: 0 | L105: 0 | M105: 0 | N105: 0
A106: Reisen, ferne Länder, Urlaub, Veröffentlichungen, Lehrtätigkeit. | F106: =IF($B$13="9. Haus","8 Merkur",0) -> 0 | G106: 0 | H106: =IF(F106<>0,$C$13,0) -> 0 | I106: 0 | J106: =IF(H106="3 Zwillinge","Herrscher",IF(H106="6 Jungfrau","Herrscher u. Erhöhung",IF(H106="12 Fische","Fall u. Exil",IF(H106="9 Schütze","Exil",0)))) -> 0 | K106: 0 | L106: 0 | M106: 0 | N106: 0
A107: Wertvorstellungen, Gerechtigkeitsempfinden, Denkweise, | F107: =IF($B$14="9. Haus","9 Mond",0) -> 0 | G107: 0 | H107: =IF(F107<>0,$C$14,0) -> 0 | I107: 0 | J107: =IF(H107="4 Krebs","Herrscher",IF(H107="2 Stier","Erhöhung",IF(H107="8 Skorpion","Fall",IF(H107="10 Steinbock","Exil",0)))) -> 0 | K107: 0 | L107: 0 | M107: 0 | N107: 0
A108: Denkmuster, das höhere Bewusstsein. Handel mit fernen | F108: =IF($B$15="9. Haus","Uranus",0) -> 0 | G108: 0 | H108: =IF(F108<>0,$C$15,0) -> 0 | I108: 0 | J108: =IF(H108="11 Wassermann","Herrscher",IF(H108="5 Löwe","Exil",0)) -> 0 | K108: 0 | L108: 0 | M108: 0 | N108: 0
A109: Ländern, Grossindustrie, Importe, Exporte. Die Kirche, der Klerus, | F109: =IF($B$16="9. Haus","Neptun",0) -> 0 | G109: 0 | H109: =IF(F109<>0,$C$16,0) -> 0 | I109: 0 | J109: =IF(H109="12 Fische","Herrscher",IF(H109="6 Jungfrau","Exil",0)) -> 0 | K109: 0 | L109: 0 | M109: 0 | N109: =IF(OR(H109="1 Widder",H109="5 Löwe",H109="9 Schütze"),"Stäbe",IF(OR(H109="2 Stier",H109="6 Jungfrau",H109="10 Steinbock"),"Münzen",IF(OR(H109="3 Zwillinge",H109="7 Waage",H109="11 Wassermann"),"Schwerter",IF(OR(H109="4 Krebs",H109="8 Skorpion",H109="12 Fische"),"Kelche",0)))) -> 0
A110: die angeheiratete Verwandtschaft, Enkel. | F110: =IF($B$17="9. Haus","Pluto",0) -> 0 | G110: 0 | H110: =IF(F110<>0,$C$17,0) -> 0 | I110: 0 | J110: =IF(H110="8 Skorpion","Herrscher",IF(H110="2 Stier","Exil",0)) -> 0 | K110: 0 | L110: 0 | M110: 0 | N110: 0
A111: 10. Haus: ♑ Beruf und Berufung (Medium Coeli) | B111: =H11 -> 12 Fische | C111: =IF(B111="1 Widder","4 Der Herrscher",IF(B111="2 Stier","5 Der Hierophant",IF(B111="3 Zwillinge","6 Die Liebenden",IF(B111="4 Krebs","7 Der Wagen",IF(B111="5 Löwe","8 Die Kraft",IF(B111="6 Jungfrau","9 Der Eremit",IF(B111="7 Waage","11 Die Gerechtigkeit",IF(B111="8 Skorpion","13 Der Tod",IF(B111="9 Schütze","14 Die Mässigkeit",IF(B111="10 Steinbock","15 Der Teufel",IF(B111="11 Wassermann","17 Der Stern",IF(B111="12 Fische","18 Der Mond")))))))))))) -> 18 Der Mond | D111: =IF(B111="1 Widder","5 Mars",IF(B111="2 Stier","7 Venus",IF(B111="3 Zwillinge","8 Merkur",IF(B111="4 Krebs","9 Mond",IF(B111="5 Löwe","6 Sonne",IF(B111="6 Jungfrau","8 Merkur",IF(B111="7 Waage","7 Venus",IF(B111="8 Skorpion","5 Mars",IF(B111="9 Schütze","4 Jupiter",IF(B111="10 Steinbock","3 Saturn",IF(B111="11 Wassermann","3 Saturn",IF(B111="12 Fische","4 Jupiter")))))))))))) -> 4 Jupiter | E111: =IF(D111="3 Saturn","21 Die Welt",IF(D111="4 Jupiter","10 Das Rad",IF(D111="5 Mars","16 Der Turm",IF(D111="6 Sonne","19 Die Sonne",IF(D111="7 Venus","3 Die Herrscherin",IF(D111="8 Merkur","1 Der Magier",IF(D111="9 Mond","2 Die Hohepriesterin",IF(D111=0,0)))))))) -> 10 Das Rad | F111: =IF($B$8="10. Haus","3 Saturn",0) -> 0 | G111: 0 | H111: =IF(F111<>0,$C$8,0) -> 0 | I111: 0 | J111: =IF(OR(H111="10 Steinbock",H111="11 Wassermann"),"Herrscher",IF(H111="7 Waage","Erhöhung",IF(H111="1 Widder","Fall",IF(OR(H111="4 Krebs",H111="5 Löwe"),"Exil",0)))) -> 0 | K111: =IF(G111<>0,D8,0) -> 0 | L111: 0 | M111: 0 | N111: =IF(OR(H111="1 Widder",H111="5 Löwe",H111="9 Schütze"),"Stäbe",IF(OR(H111="2 Stier",H111="6 Jungfrau",H111="10 Steinbock"),"Münzen",IF(OR(H111="3 Zwillinge",H111="7 Waage",H111="11 Wassermann"),"Schwerter",IF(OR(H111="4 Krebs",H111="8 Skorpion",H111="12 Fische"),"Kelche",0)))) -> 0
A112: Ich erstrebe. | D112: =IF(B111="8 Skorpion","Pluto",IF(B111="11 Wassermann","Uranus",IF(B111="12 Fische","Neptun",0))) -> Neptun | E112: =IF(D112="Pluto","20 Das Gericht",IF(D112="Uranus","0 Der Narr",IF(D112="Neptun","12 Der Gehängte",0))) -> 12 Der Gehängte | F112: =IF($B$9="10. Haus","4 Jupiter",0) -> 0 | G112: 0 | H112: =IF(F112<>0,$C$9,0) -> 0 | I112: 0 | J112: =IF(OR(H112="9 Schütze",H112="12 Fische"),"Herrscher",IF(H112="4 Krebs","Erhöhung",IF(H112="10 Steinbock","Fall",IF(OR(H112="3 Zwillinge",H112="6 Jungfrau"),"Exil",0)))) -> 0 | K112: =IF(G112<>0,D9,0) -> 0 | L112: 0 | M112: 0 | N112: 0
A113: Ehre, Status, Ruhm, Prestige, Ego, Anerkennung. Berufliche | F113: =IF($B$10="10. Haus","5 Mars",0) -> 0 | G113: 0 | H113: =IF(F113<>0,$C$10,0) -> 0 | I113: 0 | J113: =IF(OR(H113="1 Widder",H113="8 Skorpion"),"Herrscher",IF(H113="10 Steinbock","Erhöhung",IF(H113="4 Krebs","Fall",IF(OR(H113="2 Stier",H113="7 Waage"),"Exil",0)))) -> 0 | K113: 0 | L113: 0 | M113: 0 | N113: 0
A114: Karriere, beruflicher Erfolg, Ambitionen. Arbeitgeber, behördliche | F114: =IF($B$11="10. Haus","6 Sonne",0) -> 0 | G114: 0 | H114: =IF(F114<>0,$C$11,0) -> 0 | I114: 0 | J114: =IF(H114="5 Löwe","Herrscher",0) -> 0 | K114: 0 | L114: 0 | M114: 0 | N114: 0
A115: Angelegenheiten. Verwirklichung der Lebensziele. Entfaltung der | F115: =IF($B$12="10. Haus","7 Venus",0) -> 0 | G115: 0 | H115: =IF(F115<>0,$C$12,0) -> 0 | I115: 0 | J115: =IF(OR(H115="2 Stier",H115="7 Waage"),"Herrscher",IF(H115="12 Fische","Erhöhung",IF(H115="6 Jungfrau","Fall",IF(OR(H115="8 Skorpion",H115="1 Widder"),"Exil",0)))) -> 0 | K115: 0 | L115: 0 | M115: 0 | N115: 0
A116: Talente, Berufung. Der Elternteil, zu dem man eine distanziertere | F116: =IF($B$13="10. Haus","8 Merkur",0) -> 0 | G116: 0 | H116: =IF(F116<>0,$C$13,0) -> 0 | I116: 0 | J116: =IF(H116="3 Zwillinge","Herrscher",IF(H116="6 Jungfrau","Herrscher u. Erhöhung",IF(H116="12 Fische","Fall u. Exil",IF(H116="9 Schütze","Exil",0)))) -> 0 | K116: 0 | L116: 0 | M116: 0 | N116: 0
A117: Beziehung hat, der autoritärere Elternteil. Alle | F117: =IF($B$14="10. Haus","9 Mond",0) -> 0 | G117: 0 | H117: =IF(F117<>0,$C$14,0) -> 0 | I117: 0 | J117: =IF(H117="4 Krebs","Herrscher",IF(H117="2 Stier","Erhöhung",IF(H117="8 Skorpion","Fall",IF(H117="10 Steinbock","Exil",0)))) -> 0 | K117: 0 | L117: 0 | M117: 0 | N117: 0
A118: Autoritätspersonen und Institutionen, die Macht über uns haben. | F118: =IF($B$15="10. Haus","Uranus",0) -> 0 | G118: 0 | H118: =IF(F118<>0,$C$15,0) -> 0 | I118: 0 | J118: =IF(H118="11 Wassermann","Herrscher",IF(H118="5 Löwe","Exil",0)) -> 0 | K118: 0 | L118: 0 | M118: 0 | N118: 0
F119: =IF($B$16="10. Haus","Neptun",0) -> 0 | G119: 0 | H119: =IF(F119<>0,$C$16,0) -> 0 | I119: 0 | J119: =IF(H119="12 Fische","Herrscher",IF(H119="6 Jungfrau","Exil",0)) -> 0 | K119: 0 | L119: 0 | M119: 0 | N119: 0
F120: =IF($B$17="10. Haus","Pluto",0) -> 0 | G120: 0 | H120: =IF(F120<>0,$C$17,0) -> 0 | I120: 0 | J120: =IF(H120="8 Skorpion","Herrscher",IF(H120="2 Stier","Exil",0)) -> 0 | K120: 0 | L120: 0 | M120: =IF(AND(L120="Kardinal",K120="1. Dekanat"),2,IF(AND(L120="Kardinal",K120="2. Dekanat"),3,IF(AND(L120="Kardinal",K120="3. Dekanat"),4,IF(AND(L120="Fix",K120="1. Dekanat"),5,IF(AND(L120="Fix",K120="2. Dekanat"),6,IF(AND(L120="Fix",K120="3. Dekanat"),7,IF(AND(L120="Veränderlich",K120="1. Dekanat"),8,IF(AND(L120="Veränderlich",K120="2. Dekanat"),9,IF(AND(L120="Veränderlich",K120="3. Dekanat"),10,0))))))))) -> 0 | N120: 0
A121: 11. Haus: h Freunde und Gesellschaft | B121: =H12 -> 1 Widder | C121: =IF(B121="1 Widder","4 Der Herrscher",IF(B121="2 Stier","5 Der Hierophant",IF(B121="3 Zwillinge","6 Die Liebenden",IF(B121="4 Krebs","7 Der Wagen",IF(B121="5 Löwe","8 Die Kraft",IF(B121="6 Jungfrau","9 Der Eremit",IF(B121="7 Waage","11 Die Gerechtigkeit",IF(B121="8 Skorpion","13 Der Tod",IF(B121="9 Schütze","14 Die Mässigkeit",IF(B121="10 Steinbock","15 Der Teufel",IF(B121="11 Wassermann","17 Der Stern",IF(B121="12 Fische","18 Der Mond")))))))))))) -> 4 Der Herrscher | D121: =IF(B121="1 Widder","5 Mars",IF(B121="2 Stier","7 Venus",IF(B121="3 Zwillinge","8 Merkur",IF(B121="4 Krebs","9 Mond",IF(B121="5 Löwe","6 Sonne",IF(B121="6 Jungfrau","8 Merkur",IF(B121="7 Waage","7 Venus",IF(B121="8 Skorpion","5 Mars",IF(B121="9 Schütze","4 Jupiter",IF(B121="10 Steinbock","3 Saturn",IF(B121="11 Wassermann","3 Saturn",IF(B121="12 Fische","4 Jupiter")))))))))))) -> 5 Mars | E121: =IF(D121="3 Saturn","21 Die Welt",IF(D121="4 Jupiter","10 Das Rad",IF(D121="5 Mars","16 Der Turm",IF(D121="6 Sonne","19 Die Sonne",IF(D121="7 Venus","3 Die Herrscherin",IF(D121="8 Merkur","1 Der Magier",IF(D121="9 Mond","2 Die Hohepriesterin",IF(D121=0,0)))))))) -> 16 Der Turm | F121: =IF($B$8="11. Haus","3 Saturn",0) -> 0 | G121: 0 | H121: =IF(F121<>0,$C$8,0) -> 0 | I121: 0 | J121: =IF(OR(H121="10 Steinbock",H121="11 Wassermann"),"Herrscher",IF(H121="7 Waage","Erhöhung",IF(H121="1 Widder","Fall",IF(OR(H121="4 Krebs",H121="5 Löwe"),"Exil",0)))) -> 0 | K121: =IF(G121<>0,D8,0) -> 0 | L121: 0 | M121: =IF(AND(L121="Kardinal",K121="1. Dekanat"),2,IF(AND(L121="Kardinal",K121="2. Dekanat"),3,IF(AND(L121="Kardinal",K121="3. Dekanat"),4,IF(AND(L121="Fix",K121="1. Dekanat"),5,IF(AND(L121="Fix",K121="2. Dekanat"),6,IF(AND(L121="Fix",K121="3. Dekanat"),7,IF(AND(L121="Veränderlich",K121="1. Dekanat"),8,IF(AND(L121="Veränderlich",K121="2. Dekanat"),9,IF(AND(L121="Veränderlich",K121="3. Dekanat"),10,0))))))))) -> 0 | N121: =IF(OR(H121="1 Widder",H121="5 Löwe",H121="9 Schütze"),"Stäbe",IF(OR(H121="2 Stier",H121="6 Jungfrau",H121="10 Steinbock"),"Münzen",IF(OR(H121="3 Zwillinge",H121="7 Waage",H121="11 Wassermann"),"Schwerter",IF(OR(H121="4 Krebs",H121="8 Skorpion",H121="12 Fische"),"Kelche",0)))) -> 0
A122: Meine Freunde. | D122: =IF(B121="8 Skorpion","Pluto",IF(B121="11 Wassermann","Uranus",IF(B121="12 Fische","Neptun",0))) -> 0 | E122: =IF(D122="Pluto","20 Das Gericht",IF(D122="Uranus","0 Der Narr",IF(D122="Neptun","12 Der Gehängte",0))) -> 0 | F122: =IF($B$9="11. Haus","4 Jupiter",0) -> 0 | G122: 0 | H122: =IF(F122<>0,$C$9,0) -> 0 | I122: 0 | J122: =IF(OR(H122="9 Schütze",H122="12 Fische"),"Herrscher",IF(H122="4 Krebs","Erhöhung",IF(H122="10 Steinbock","Fall",IF(OR(H122="3 Zwillinge",H122="6 Jungfrau"),"Exil",0)))) -> 0 | K122: =IF(G122<>0,D9,0) -> 0 | L122: 0 | M122: 0 | N122: 0
A123: Ziele. Freunde, soziales Umfeld, Netzwerk, Gruppen, Vereine. | F123: =IF($B$10="11. Haus","5 Mars",0) -> 0 | G123: 0 | H123: =IF(F123<>0,$C$10,0) -> 0 | I123: 0 | J123: =IF(OR(H123="1 Widder",H123="8 Skorpion"),"Herrscher",IF(H123="10 Steinbock","Erhöhung",IF(H123="4 Krebs","Fall",IF(OR(H123="2 Stier",H123="7 Waage"),"Exil",0)))) -> 0 | K123: 0 | L123: 0 | M123: 0 | N123: 0
A124: Veränderungen und Revolutionen. Humanität, Hoffnungen | F124: =IF($B$11="11. Haus","6 Sonne",0) -> 6 Sonne | G124: 19 Die Sonne | H124: =IF(F124<>0,$C$11,0) -> 2 Stier | I124: 5 Der Hierophant | J124: =IF(H124="5 Löwe","Herrscher",0) -> 0 | K124: 3. Dekanat | L124: Fix | M124: 7 | N124: Münzen
A125: und Ängste, humanitäre Ideale, Erwartungen. Weltbürgertum. | F125: =IF($B$12="11. Haus","7 Venus",0) -> 0 | G125: 0 | H125: =IF(F125<>0,$C$12,0) -> 0 | I125: 0 | J125: =IF(OR(H125="2 Stier",H125="7 Waage"),"Herrscher",IF(H125="12 Fische","Erhöhung",IF(H125="6 Jungfrau","Fall",IF(OR(H125="8 Skorpion",H125="1 Widder"),"Exil",0)))) -> 0 | K125: 0 | L125: 0 | M125: =IF(AND(L125="Kardinal",K125="1. Dekanat"),2,IF(AND(L125="Kardinal",K125="2. Dekanat"),3,IF(AND(L125="Kardinal",K125="3. Dekanat"),4,IF(AND(L125="Fix",K125="1. Dekanat"),5,IF(AND(L125="Fix",K125="2. Dekanat"),6,IF(AND(L125="Fix",K125="3. Dekanat"),7,IF(AND(L125="Veränderlich",K125="1. Dekanat"),8,IF(AND(L125="Veränderlich",K125="2. Dekanat"),9,IF(AND(L125="Veränderlich",K125="3. Dekanat"),10,0))))))))) -> 0 | N125: 0
A126: Das, was man vom Leben erwartet, die Lebensziele. Die | F126: =IF($B$13="11. Haus","8 Merkur",0) -> 0 | G126: 0 | H126: =IF(F126<>0,$C$13,0) -> 0 | I126: 0 | J126: =IF(H126="3 Zwillinge","Herrscher",IF(H126="6 Jungfrau","Herrscher u. Erhöhung",IF(H126="12 Fische","Fall u. Exil",IF(H126="9 Schütze","Exil",0)))) -> 0 | K126: 0 | L126: 0 | M126: =IF(AND(L126="Kardinal",K126="1. Dekanat"),2,IF(AND(L126="Kardinal",K126="2. Dekanat"),3,IF(AND(L126="Kardinal",K126="3. Dekanat"),4,IF(AND(L126="Fix",K126="1. Dekanat"),5,IF(AND(L126="Fix",K126="2. Dekanat"),6,IF(AND(L126="Fix",K126="3. Dekanat"),7,IF(AND(L126="Veränderlich",K126="1. Dekanat"),8,IF(AND(L126="Veränderlich",K126="2. Dekanat"),9,IF(AND(L126="Veränderlich",K126="3. Dekanat"),10,0))))))))) -> 0 | N126: =IF(OR(H126="1 Widder",H126="5 Löwe",H126="9 Schütze"),"Stäbe",IF(OR(H126="2 Stier",H126="6 Jungfrau",H126="10 Steinbock"),"Münzen",IF(OR(H126="3 Zwillinge",H126="7 Waage",H126="11 Wassermann"),"Schwerter",IF(OR(H126="4 Krebs",H126="8 Skorpion",H126="12 Fische"),"Kelche",0)))) -> 0
A127: Zuwendung, die man von anderen erhält. Das Geld, das man sich | F127: =IF($B$14="11. Haus","9 Mond",0) -> 0 | G127: 0 | H127: =IF(F127<>0,$C$14,0) -> 0 | I127: 0 | J127: =IF(H127="4 Krebs","Herrscher",IF(H127="2 Stier","Erhöhung",IF(H127="8 Skorpion","Fall",IF(H127="10 Steinbock","Exil",0)))) -> 0 | K127: 0 | L127: 0 | M127: 0 | N127: =IF(OR(H127="1 Widder",H127="5 Löwe",H127="9 Schütze"),"Stäbe",IF(OR(H127="2 Stier",H127="6 Jungfrau",H127="10 Steinbock"),"Münzen",IF(OR(H127="3 Zwillinge",H127="7 Waage",H127="11 Wassermann"),"Schwerter",IF(OR(H127="4 Krebs",H127="8 Skorpion",H127="12 Fische"),"Kelche",0)))) -> 0
A128: aus der beruflichen Tätigkeit erarbeitet. Adoptivkinder, Stiefkinder. | F128: =IF($B$15="11. Haus","Uranus",0) -> 0 | G128: 0 | H128: =IF(F128<>0,$C$15,0) -> 0 | I128: 0 | J128: =IF(H128="11 Wassermann","Herrscher",IF(H128="5 Löwe","Exil",0)) -> 0 | K128: 0 | L128: 0 | M128: 0 | N128: =IF(OR(H128="1 Widder",H128="5 Löwe",H128="9 Schütze"),"Stäbe",IF(OR(H128="2 Stier",H128="6 Jungfrau",H128="10 Steinbock"),"Münzen",IF(OR(H128="3 Zwillinge",H128="7 Waage",H128="11 Wassermann"),"Schwerter",IF(OR(H128="4 Krebs",H128="8 Skorpion",H128="12 Fische"),"Kelche",0)))) -> 0
F129: =IF($B$16="11. Haus","Neptun",0) -> 0 | G129: 0 | H129: =IF(F129<>0,$C$16,0) -> 0 | I129: 0 | J129: =IF(H129="12 Fische","Herrscher",IF(H129="6 Jungfrau","Exil",0)) -> 0 | K129: 0 | L129: 0 | M129: 0 | N129: 0
F130: =IF($B$17="11. Haus","Pluto",0) -> 0 | G130: 0 | H130: =IF(F130<>0,$C$17,0) -> 0 | I130: 0 | J130: =IF(H130="8 Skorpion","Herrscher",IF(H130="2 Stier","Exil",0)) -> 0 | K130: 0 | L130: 0 | M130: 0 | N130: 0
A131: 12. Haus: i Anonymität und Überpersönliches | B131: =H13 -> 3 Zwillinge | C131: =IF(B131="1 Widder","4 Der Herrscher",IF(B131="2 Stier","5 Der Hierophant",IF(B131="3 Zwillinge","6 Die Liebenden",IF(B131="4 Krebs","7 Der Wagen",IF(B131="5 Löwe","8 Die Kraft",IF(B131="6 Jungfrau","9 Der Eremit",IF(B131="7 Waage","11 Die Gerechtigkeit",IF(B131="8 Skorpion","13 Der Tod",IF(B131="9 Schütze","14 Die Mässigkeit",IF(B131="10 Steinbock","15 Der Teufel",IF(B131="11 Wassermann","17 Der Stern",IF(B131="12 Fische","18 Der Mond")))))))))))) -> 6 Die Liebenden | D131: =IF(B131="1 Widder","5 Mars",IF(B131="2 Stier","7 Venus",IF(B131="3 Zwillinge","8 Merkur",IF(B131="4 Krebs","9 Mond",IF(B131="5 Löwe","6 Sonne",IF(B131="6 Jungfrau","8 Merkur",IF(B131="7 Waage","7 Venus",IF(B131="8 Skorpion","5 Mars",IF(B131="9 Schütze","4 Jupiter",IF(B131="10 Steinbock","3 Saturn",IF(B131="11 Wassermann","3 Saturn",IF(B131="12 Fische","4 Jupiter")))))))))))) -> 8 Merkur | E131: =IF(D131="3 Saturn","21 Die Welt",IF(D131="4 Jupiter","10 Das Rad",IF(D131="5 Mars","16 Der Turm",IF(D131="6 Sonne","19 Die Sonne",IF(D131="7 Venus","3 Die Herrscherin",IF(D131="8 Merkur","1 Der Magier",IF(D131="9 Mond","2 Die Hohepriesterin",IF(D131=0,0)))))))) -> 1 Der Magier | F131: =IF($B$8="12. Haus","3 Saturn",0) -> 0 | G131: 0 | H131: =IF(F131<>0,$C$8,0) -> 0 | I131: 0 | J131: =IF(OR(H131="10 Steinbock",H131="11 Wassermann"),"Herrscher",IF(H131="7 Waage","Erhöhung",IF(H131="1 Widder","Fall",IF(OR(H131="4 Krebs",H131="5 Löwe"),"Exil",0)))) -> 0 | K131: =IF(G131<>0,D8,0) -> 0 | L131: 0 | M131: 0 | N131: 0
A132: Ich ersehne. | D132: =IF(B131="8 Skorpion","Pluto",IF(B131="11 Wassermann","Uranus",IF(B131="12 Fische","Neptun",0))) -> 0 | E132: =IF(D132="Pluto","20 Das Gericht",IF(D132="Uranus","0 Der Narr",IF(D132="Neptun","12 Der Gehängte",0))) -> 0 | F132: =IF($B$9="12. Haus","4 Jupiter",0) -> 4 Jupiter | G132: 10 Das Rad | H132: =IF(F132<>0,$C$9,0) -> 3 Zwillinge | I132: 6 Die Liebenden | J132: =IF(OR(H132="9 Schütze",H132="12 Fische"),"Herrscher",IF(H132="4 Krebs","Erhöhung",IF(H132="10 Steinbock","Fall",IF(OR(H132="3 Zwillinge",H132="6 Jungfrau"),"Exil",0)))) -> Exil | K132: =IF(G132<>0,D9,0) -> 2. Dekanat | L132: Veränderlich | M132: 9 | N132: Schwerter
A133: Alles Verborgene, nicht Sichtbare und Unerwartete. Die inneren | F133: =IF($B$10="12. Haus","5 Mars",0) -> 5 Mars | G133: 16 Der Turm | H133: =IF(F133<>0,$C$10,0) -> 4 Krebs | I133: 7 Der Wagen | J133: =IF(OR(H133="1 Widder",H133="8 Skorpion"),"Herrscher",IF(H133="10 Steinbock","Erhöhung",IF(H133="4 Krebs","Fall",IF(OR(H133="2 Stier",H133="7 Waage"),"Exil",0)))) -> Fall | K133: 1. Dekanat | L133: Kardinal | M133: =IF(AND(L133="Kardinal",K133="1. Dekanat"),2,IF(AND(L133="Kardinal",K133="2. Dekanat"),3,IF(AND(L133="Kardinal",K133="3. Dekanat"),4,IF(AND(L133="Fix",K133="1. Dekanat"),5,IF(AND(L133="Fix",K133="2. Dekanat"),6,IF(AND(L133="Fix",K133="3. Dekanat"),7,IF(AND(L133="Veränderlich",K133="1. Dekanat"),8,IF(AND(L133="Veränderlich",K133="2. Dekanat"),9,IF(AND(L133="Veränderlich",K133="3. Dekanat"),10,0))))))))) -> 2 | N133: Kelche
A134: Stärken und Schwächen. Das persönliche und das kollektive | F134: =IF($B$11="12. Haus","6 Sonne",0) -> 0 | G134: 0 | H134: =IF(F134<>0,$C$11,0) -> 0 | I134: 0 | J134: =IF(H134="5 Löwe","Herrscher",0) -> 0 | K134: 0 | L134: 0 | M134: =IF(AND(L134="Kardinal",K134="1. Dekanat"),2,IF(AND(L134="Kardinal",K134="2. Dekanat"),3,IF(AND(L134="Kardinal",K134="3. Dekanat"),4,IF(AND(L134="Fix",K134="1. Dekanat"),5,IF(AND(L134="Fix",K134="2. Dekanat"),6,IF(AND(L134="Fix",K134="3. Dekanat"),7,IF(AND(L134="Veränderlich",K134="1. Dekanat"),8,IF(AND(L134="Veränderlich",K134="2. Dekanat"),9,IF(AND(L134="Veränderlich",K134="3. Dekanat"),10,0))))))))) -> 0 | N134: 0
A135: Unterbewusstsein. Die Einstellung zu den Rollen und Strukturen | F135: =IF($B$12="12. Haus","7 Venus",0) -> 7 Venus | G135: 3 Die Herrscherin | H135: =IF(F135<>0,$C$12,0) -> 3 Zwillinge | I135: 6 Die Liebenden | J135: =IF(OR(H135="2 Stier",H135="7 Waage"),"Herrscher",IF(H135="12 Fische","Erhöhung",IF(H135="6 Jungfrau","Fall",IF(OR(H135="8 Skorpion",H135="1 Widder"),"Exil",0)))) -> 0 | K135: 1. Dekanat | L135: Veränderlich | M135: =IF(AND(L135="Kardinal",K135="1. Dekanat"),2,IF(AND(L135="Kardinal",K135="2. Dekanat"),3,IF(AND(L135="Kardinal",K135="3. Dekanat"),4,IF(AND(L135="Fix",K135="1. Dekanat"),5,IF(AND(L135="Fix",K135="2. Dekanat"),6,IF(AND(L135="Fix",K135="3. Dekanat"),7,IF(AND(L135="Veränderlich",K135="1. Dekanat"),8,IF(AND(L135="Veränderlich",K135="2. Dekanat"),9,IF(AND(L135="Veränderlich",K135="3. Dekanat"),10,0))))))))) -> 8 | N135: Schwerter
A136: der Gesellschaft. Sich selber im Weg stehen, Hindernisse, | F136: =IF($B$13="12. Haus","8 Merkur",0) -> 8 Merkur | G136: 1 Der Magier | H136: =IF(F136<>0,$C$13,0) -> 3 Zwillinge | I136: 6 Die Liebenden | J136: =IF(H136="3 Zwillinge","Herrscher",IF(H136="6 Jungfrau","Herrscher u. Erhöhung",IF(H136="12 Fische","Fall u. Exil",IF(H136="9 Schütze","Exil",0)))) -> Herrscher | K136: 1. Dekanat | L136: Veränderlich | M136: =IF(AND(L136="Kardinal",K136="1. Dekanat"),2,IF(AND(L136="Kardinal",K136="2. Dekanat"),3,IF(AND(L136="Kardinal",K136="3. Dekanat"),4,IF(AND(L136="Fix",K136="1. Dekanat"),5,IF(AND(L136="Fix",K136="2. Dekanat"),6,IF(AND(L136="Fix",K136="3. Dekanat"),7,IF(AND(L136="Veränderlich",K136="1. Dekanat"),8,IF(AND(L136="Veränderlich",K136="2. Dekanat"),9,IF(AND(L136="Veränderlich",K136="3. Dekanat"),10,0))))))))) -> 8 | N136: Schwerter
A137: Beschränkungen, unerwartete Probleme, Begrenzungen, Karma, | F137: =IF($B$14="12. Haus","9 Mond",0) -> 0 | G137: 0 | H137: =IF(F137<>0,$C$14,0) -> 0 | I137: =IF(H137="1 Widder","4 Der Herrscher",IF(H137="2 Stier","5 Der Hierophant",IF(H137="3 Zwillinge","6 Die Liebenden",IF(H137="4 Krebs","7 Der Wagen",IF(H137="5 Löwe","8 Die Kraft",IF(H137="6 Jungfrau","9 Der Eremit",IF(H137="7 Waage","11 Die Gerechtigkeit",IF(H137="8 Skorpion","13 Der Tod",IF(H137="9 Schütze","14 Die Mässigkeit",IF(H137="10 Steinbock","15 Der Teufel",IF(H137="11 Wassermann","17 Der Stern",IF(H137="12 Fische","18 Der Mond",IF(H137=0,0))))))))))))) -> 0 | J137: =IF(H137="4 Krebs","Herrscher",IF(H137="2 Stier","Erhöhung",IF(H137="8 Skorpion","Fall",IF(H137="10 Steinbock","Exil",0)))) -> 0 | K137: 0 | L137: 0 | M137: =IF(AND(L137="Kardinal",K137="1. Dekanat"),2,IF(AND(L137="Kardinal",K137="2. Dekanat"),3,IF(AND(L137="Kardinal",K137="3. Dekanat"),4,IF(AND(L137="Fix",K137="1. Dekanat"),5,IF(AND(L137="Fix",K137="2. Dekanat"),6,IF(AND(L137="Fix",K137="3. Dekanat"),7,IF(AND(L137="Veränderlich",K137="1. Dekanat"),8,IF(AND(L137="Veränderlich",K137="2. Dekanat"),9,IF(AND(L137="Veränderlich",K137="3. Dekanat"),10,0))))))))) -> 0 | N137: =IF(OR(H137="1 Widder",H137="5 Löwe",H137="9 Schütze"),"Stäbe",IF(OR(H137="2 Stier",H137="6 Jungfrau",H137="10 Steinbock"),"Münzen",IF(OR(H137="3 Zwillinge",H137="7 Waage",H137="11 Wassermann"),"Schwerter",IF(OR(H137="4 Krebs",H137="8 Skorpion",H137="12 Fische"),"Kelche",0)))) -> 0
A138: Trennung, Einsamkeit. Der Schatten, das Unbewusste, das | F138: =IF($B$15="12. Haus","Uranus",0) -> 0 | G138: 0 | H138: =IF(F138<>0,$C$15,0) -> 0 | I138: =IF(H138="1 Widder","4 Der Herrscher",IF(H138="2 Stier","5 Der Hierophant",IF(H138="3 Zwillinge","6 Die Liebenden",IF(H138="4 Krebs","7 Der Wagen",IF(H138="5 Löwe","8 Die Kraft",IF(H138="6 Jungfrau","9 Der Eremit",IF(H138="7 Waage","11 Die Gerechtigkeit",IF(H138="8 Skorpion","13 Der Tod",IF(H138="9 Schütze","14 Die Mässigkeit",IF(H138="10 Steinbock","15 Der Teufel",IF(H138="11 Wassermann","17 Der Stern",IF(H138="12 Fische","18 Der Mond",IF(H138=0,0))))))))))))) -> 0 | J138: =IF(H138="11 Wassermann","Herrscher",IF(H138="5 Löwe","Exil",0)) -> 0 | K138: 0 | L138: 0 | M138: =IF(AND(L138="Kardinal",K138="1. Dekanat"),2,IF(AND(L138="Kardinal",K138="2. Dekanat"),3,IF(AND(L138="Kardinal",K138="3. Dekanat"),4,IF(AND(L138="Fix",K138="1. Dekanat"),5,IF(AND(L138="Fix",K138="2. Dekanat"),6,IF(AND(L138="Fix",K138="3. Dekanat"),7,IF(AND(L138="Veränderlich",K138="1. Dekanat"),8,IF(AND(L138="Veränderlich",K138="2. Dekanat"),9,IF(AND(L138="Veränderlich",K138="3. Dekanat"),10,0))))))))) -> 0 | N138: 0
A139: Verdrängte. Transzendenz, Spiritualität, Okkultismus, Medialität. | F139: =IF($B$16="12. Haus","Neptun",0) -> 0 | G139: 0 | H139: =IF(F139<>0,$C$16,0) -> 0 | I139: 0 | J139: =IF(H139="12 Fische","Herrscher",IF(H139="6 Jungfrau","Exil",0)) -> 0 | K139: 0 | L139: 0 | M139: 0 | N139: 0
A140: Institutionen wie Krankenhäuser, Sanatorien und Gefängnisse. | F140: =IF($B$17="12. Haus","Pluto",0) -> 0 | G140: 0 | H140: =IF(F140<>0,$C$17,0) -> 0 | I140: 0 | J140: =IF(H140="8 Skorpion","Herrscher",IF(H140="2 Stier","Exil",0)) -> 0 | K140: 0 | L140: 0 | M140: 0 | N140: 0
A141: Hoffnungen und Ängste. Sehnsucht, Erlösung, Geheimnisse.
A142: Übersinnliche und mystische Erfahrungen, Realitätsflucht,
A143: Rückzug, Drogen, will aus dem Körpergefängnis fliehen. Freiwillige
A144: und erzwungene Isolation. Heimliche Feinde und grosse Tiere.
A145: Heimliche Affären, alles, was man versteckt und geheimhalten will. Wohltätigkeit,
A146: Mitgefühl. Kreativität, Kunst.

Sheet Astrologie 2
A3: Die astrologischen Karten für | B3: =Jahreskarten!E8 -> Zum | C3: =Jahreskarten!F8 -> Beispiel
A4: Geben Sie die Informationen aus Ihrem Horoskop auf dem Blatt "Astrologie 1" ein.
A5: Die zu interpretierenden Karten sind violett markiert.
C7: Sternzeichen | D7: Karte | E7: Wert 1 | F7: Wert 2 | G7: Wert 3 | H7: Mond | I7: ='Astrologie 1'!C14 -> 6 Jungfrau
A8: Die Karte der Individualität | B8: Die Position der Sonne | C8: ='Astrologie 1'!C11 -> 2 Stier | D8: =IF(C8="1 Widder","4 Der Herrscher",IF(C8="2 Stier","5 Der Hierophant",IF(C8="3 Zwillinge","6 Die Liebenden",IF(C8="4 Krebs","7 Der Wagen",IF(C8="5 Löwe","8 Die Kraft",IF(C8="6 Jungfrau","9 Der Eremit",IF(C8="7 Waage","11 Die Gerechtigkeit",IF(C8="8 Skorpion","13 Der Tod",IF(C8="9 Schütze","14 Die Mässigkeit",IF(C8="10 Steinbock","15 Der Teufel",IF(C8="11 Wassermann","17 Der Stern",IF(C8="12 Fische","18 Der Mond")))))))))))) -> 5 Der Hierophant | E8: =IF(D8="4 Der Herrscher",4,IF(D8="5 Der Hierophant",5,IF(D8="6 Die Liebenden",6,IF(D8="7 Der Wagen",7,IF(D8="8 Die Kraft",8,IF(D8="9 Der Eremit",9,IF(D8="11 Die Gerechtigkeit",11,IF(D8="13 Der Tod",13,IF(D8="14 Die Mässigkeit",14,IF(D8="15 Der Teufel",15,IF(D8="17 Der Stern",17,IF(D8="18 Der Mond",18)))))))))))) -> 5
A9: Die Karte der Persönlichkeit | B9: Die Position des Aszendenten | C9: ='Astrologie 1'!F8 -> 4 Krebs | D9: =IF(C9="1 Widder","4 Der Herrscher",IF(C9="2 Stier","5 Der Hierophant",IF(C9="3 Zwillinge","6 Die Liebenden",IF(C9="4 Krebs","7 Der Wagen",IF(C9="5 Löwe","8 Die Kraft",IF(C9="6 Jungfrau","9 Der Eremit",IF(C9="7 Waage","11 Die Gerechtigkeit",IF(C9="8 Skorpion","13 Der Tod",IF(C9="9 Schütze","14 Die Mässigkeit",IF(C9="10 Steinbock","15 Der Teufel",IF(C9="11 Wassermann","17 Der Stern",IF(C9="12 Fische","18 Der Mond")))))))))))) -> 7 Der Wagen | E9: =IF(D9="4 Der Herrscher",4,IF(D9="5 Der Hierophant",5,IF(D9="6 Die Liebenden",6,IF(D9="7 Der Wagen",7,IF(D9="8 Die Kraft",8,IF(D9="9 Der Eremit",9,IF(D9="11 Die Gerechtigkeit",11,IF(D9="13 Der Tod",13,IF(D9="14 Die Mässigkeit",14,IF(D9="15 Der Teufel",15,IF(D9="17 Der Stern",17,IF(D9="18 Der Mond",18)))))))))))) -> 7 | H9: Dekanat Sonne | I9: ='Astrologie 1'!D11 -> 3. Dekanat
H10: Dekanat Mond | I10: ='Astrologie 1'!D14 -> 3. Dekanat
A11: Die Karten der Problemlösung: | H11: Dekanat Aszendent | I11: ='Astrologie 1'!I8 -> 2. Dekanat
A12: Die Karte des Problems | B12: Karten der Individualität + Persönlichkeit | C12: =F12 -> 12 | D12: =IF(C12=1,"Der Magier",IF(C12=2,"Die Hohepriesterin",IF(C12=3,"Die Herrscherin",IF(C12=4,"Der Herrscher",IF(C12=5,"Der Hierophant",IF(C12=6,"Die Liebenden",IF(C12=7,"Der Wagen",IF(C12=8,"Die Kraft",IF(C12=9,"Der Eremit",IF(C12=10,"Das Rad",IF(C12=11,"Die Gerechtigkeit",IF(C12=12,"Der Gehängte",IF(C12=13,"Der Tod",IF(C12=14,"Die Mässigkeit",IF(C12=15,"Der Teufel",IF(C12=16,"Der Turm",IF(C12=17,"Der Stern",IF(C12=18,"Der Mond",IF(C12=19,"Die Sonne",IF(C12=20,"Das Gericht",IF(C12=21,"Die Welt",IF(C12=22,"Der Narr")))))))))))))))))))))) -> Der Gehängte | E12: =SUM(E8+E9) -> 12 | F12: =IF(E12>22,SUMPRODUCT(VALUE(MID(E12,ROW(INDIRECT("$b1:$A"&LEN(E12))),1))),E12) -> 12
A13: Die Karte der Lösung des Problems | B13: Karten der Individualität - Persönlichkeit | C13: =F13 -> 2 | D13: =IF(C13=1,"Der Magier",IF(C13=2,"Die Hohepriesterin",IF(C13=3,"Die Herrscherin",IF(C13=4,"Der Herrscher",IF(C13=5,"Der Hierophant",IF(C13=6,"Die Liebenden",IF(C13=7,"Der Wagen",IF(C13=8,"Die Kraft",IF(C13=9,"Der Eremit",IF(C13=10,"Das Rad",IF(C13=11,"Die Gerechtigkeit",IF(C13=12,"Der Gehängte",IF(C13=13,"Der Tod",IF(C13=14,"Die Mässigkeit",IF(C13=15,"Der Teufel",IF(C13=16,"Der Turm",IF(C13=17,"Der Stern",IF(C13=18,"Der Mond",IF(C13=19,"Die Sonne",IF(C13=20,"Das Gericht",IF(C13=21,"Die Welt",IF(C13=22,"Der Narr",IF(C13=0,"Der Narr"))))))))))))))))))))))) -> Die Hohepriesterin | E13: =SUM(E8-E9) -> -2 | F13: =ABS(E13) -> 2
A14: Die Hilfskarte | B14: Karte des Problems - Lösung des Problems | C14: =F14 -> 10 | D14: =IF(C14=1,"Der Magier",IF(C14=2,"Die Hohepriesterin",IF(C14=3,"Die Herrscherin",IF(C14=4,"Der Herrscher",IF(C14=5,"Der Hierophant",IF(C14=6,"Die Liebenden",IF(C14=7,"Der Wagen",IF(C14=8,"Die Kraft",IF(C14=9,"Der Eremit",IF(C14=10,"Das Rad",IF(C14=11,"Die Gerechtigkeit",IF(C14=12,"Der Gehängte",IF(C14=13,"Der Tod",IF(C14=14,"Die Mässigkeit",IF(C14=15,"Der Teufel",IF(C14=16,"Der Turm",IF(C14=17,"Der Stern",IF(C14=18,"Der Mond",IF(C14=19,"Die Sonne",IF(C14=20,"Das Gericht",IF(C14=21,"Die Welt",IF(C14=22,"Der Narr",IF(C14=0,"Der Narr"))))))))))))))))))))))) -> Das Rad | E14: =SUM(F12-F13) -> 10 | F14: =ABS(E14) -> 10
A15: Die Karte der Integration | B15: Alle Karten addiert | C15: =G15 -> 9 | D15: =IF(C15=1,"Der Magier",IF(C15=2,"Die Hohepriesterin",IF(C15=3,"Die Herrscherin",IF(C15=4,"Der Herrscher",IF(C15=5,"Der Hierophant",IF(C15=6,"Die Liebenden",IF(C15=7,"Der Wagen",IF(C15=8,"Die Kraft",IF(C15=9,"Der Eremit",IF(C15=10,"Das Rad",IF(C15=11,"Die Gerechtigkeit",IF(C15=12,"Der Gehängte",IF(C15=13,"Der Tod",IF(C15=14,"Die Mässigkeit",IF(C15=15,"Der Teufel",IF(C15=16,"Der Turm",IF(C15=17,"Der Stern",IF(C15=18,"Der Mond",IF(C15=19,"Die Sonne",IF(C15=20,"Das Gericht",IF(C15=21,"Die Welt",IF(C15=22,"Der Narr",IF(C15=0,"Der Narr"))))))))))))))))))))))) -> Der Eremit | F15: =SUM(E8+E9+F12+F13+F14) -> 36 | G15: =IF(F15>22,SUMPRODUCT(VALUE(MID(F15,ROW(INDIRECT("$b1:$A"&LEN(F15))),1))),F15) -> 9
A17: Die Schicksalskarte | B17: =C8 -> 2 Stier | C17: =IF(AND(E17="Kardinal",I9="1. Dekanat"),2,IF(AND(E17="Kardinal",I9="2. Dekanat"),3,IF(AND(E17="Kardinal",I9="3. Dekanat"),4,IF(AND(E17="Fix",I9="1. Dekanat"),5,IF(AND(E17="Fix",I9="2. Dekanat"),6,IF(AND(E17="Fix",I9="3. Dekanat"),7,IF(AND(E17="Veränderlich",I9="1. Dekanat"),8,IF(AND(E17="Veränderlich",I9="2. Dekanat"),9,IF(AND(E17="Veränderlich",I9="3. Dekanat"),10))))))))) -> 7 | D17: =IF(OR(B17="1 Widder",B17="5 Löwe",B17="9 Schütze"),"Stäbe",IF(OR(B17="2 Stier",B17="6 Jungfrau",B17="10 Steinbock"),"Münzen",IF(OR(B17="3 Zwillinge",B17="7 Waage",B17="11 Wassermann"),"Schwerter",IF(OR(B17="4 Krebs",B17="8 Skorpion",B17="12 Fische"),"Kelche",0)))) -> Münzen | E17: =IF(OR(B17="1 Widder",B17="7 Waage",B17="10 Steinbock",B17="4 Krebs"),"Kardinal",IF(OR(B17="2 Stier",B17="5 Löwe",B17="8 Skorpion",B17="11 Wassermann"),"Fix",IF(OR(B17="3 Zwillinge",B17="6 Jungfrau",B17="9 Schütze",B17="12 Fische"),"Veränderlich"))) -> Fix
A18: Die Personenkarten: | B18: Sternzeichen
A19: Die Karte des persönlichen Potentials | B19: =C8 -> 2 Stier | C19: =IF(AND(E19="Kardinal",I9="1. Dekanat"),"Königin",IF(AND(E19="Kardinal",I9="2. Dekanat"),"Königin",IF(AND(E19="Kardinal",I9="3. Dekanat"),"Ritter",IF(AND(E19="Fix",I9="1. Dekanat"),"Ritter",IF(AND(E19="Fix",I9="2. Dekanat"),"Ritter",IF(AND(E19="Fix",I9="3. Dekanat"),"König",IF(AND(E19="Veränderlich",I9="1. Dekanat"),"König",IF(AND(E19="Veränderlich",I9="2. Dekanat"),"König",IF(AND(E19="Veränderlich",I9="3. Dekanat"),"Königin",0))))))))) -> König | D19: =IF(AND(B19="1 Widder",I9<>"3. Dekanat"),Stäbe,IF(AND(B19="1 Widder",I9="3. Dekanat"),"Münzen",IF(AND(B19="2 Stier",I9<>"3. Dekanat"),"Münzen",IF(AND(B19="2 Stier",I9="3. Dekanat"),"Schwerter",IF(AND(B19="3 Zwillinge",I9<>"3. Dekanat"),"Schwerter",IF(AND(B19="3 Zwillinge",I9="3. Dekanat"),"Kelche",IF(AND(B19="4 Krebs",I9<>"3. Dekanat"),"Kelche",IF(AND(B19="4 Krebs",I9="3. Dekanat"),"Stäbe",IF(AND(B19="5 Löwe",I9<>"3. Dekanat"),"Stäbe",IF(AND(B19="5 Löwe",I9="3. Dekanat"),"Münzen",IF(AND(B19="6 Jungfrau",I9<>"3. Dekanat"),"Münzen",IF(AND(B19="6 Jungfrau",I9="3. Dekanat"),"Schwerter",IF(AND(B19="7 Waage",I9<>"3. Dekanat"),"Schwerter",IF(AND(B19="7 Waage",I9="3. Dekanat"),"Kelche",IF(AND(B19="8 Skorpion",I9<>"3. Dekanat"),"Kelche",IF(AND(B19="8 Skorpion",I9="3. Dekanat"),"Stäbe",IF(AND(B19="9 Schütze",I9<>"3. Dekanat"),"Stäbe",IF(AND(B19="9 Schütze",I9="3. Dekanat"),"Münzen",IF(AND(B19="10 Steinbock",I9<>"3. Dekanat"),"Münzen",IF(AND(B19="10 Steinbock",I9="3. Dekanat"),"Schwerter",IF(AND(B19="11 Wassermann",I9<>"3. Dekanat"),"Schwerter",IF(AND(B19="11 Wassermann",I9="3. Dekanat"),"Kelche",IF(AND(B19="12 Fische",I9<>"3. Dekanat"),"Kelche",IF(AND(B19="12 Fische",I9="3. Dekanat"),"Stäbe")))))))))))))))))))))))) -> Schwerter | E19: =IF(OR(B19="1 Widder",B19="7 Waage",B19="10 Steinbock",B19="4 Krebs"),"Kardinal",IF(OR(B19="2 Stier",B19="5 Löwe",B19="8 Skorpion",B19="11 Wassermann"),"Fix",IF(OR(B19="3 Zwillinge",B19="6 Jungfrau",B19="9 Schütze",B19="12 Fische"),"Veränderlich"))) -> Fix
